Workbook

Sheet Project info
A1: Cost effectiveness of cabazitaxel for the second line treatment of hormone refractory metastatic prostate cancer
A5: Research question:
B6: To assess the cost-effectiveness of cabazitaxel within its licensed indication for the second line treatment of
B7: hormone refractory, metastatic prostate cancer that has progressed following or during docetaxel-based treatment.
A9: Patient population:
B10: Men who have hormone refractory metastatic prostate cancer that has progressed following or during docetaxel based treatment
A13: Alternative (treatment) options:
A14: 1 | B14: Cabazitaxel in combination with prednisolone
A15: 2 | B15: Mitoxantrone in combination with prednisolone
A17: Perspective
B18: NHS
A20: Costs considered in the model:
A21: 1 | B21: costs of treatment (caba+ and mito+) | E21: 3 | F21: costs of care after progression
A22: 2 | B22: costs of follow up during progression free survival | E22: 4 | F22: costs of adverse events
A24: Health outcomes considered in the model:
A25: 1 | B25: survival | E25: 2 | F25: quality of life
A27: Health states in the model:
A28: 1 | B28: Stable disease / progression free
A29: 2 | B29: Progressive disease
A30: 3 | B30: Dead
A32: Time horizon of the model:
B33: 15 years
A35: Cycle duration
B36: 3 weeks
A38: Diagrammatical representation of the model structure:

Sheet Analysis
A1: ='Project info'!A1 -> Cost effectiveness of cabazitaxel for the second line treatment of hormone refractory metastatic prostate cancer
A3: ANALYSIS
D5: Probabilistic analysis?
E7: 0
E8: 0 = deterministic, 1 = probabilistic
A12: Results (deterministic) - discounted, with half cycle correction | C12: This section should be filled in as part of the deterministic assignment
A14: Treatment | C14: Costs | E14: QALY | G14: LY
A15: Cabazitaxel in combination with prednisolone | C15: =total_cost_caba -> 28687.31631 | E15: =total_QALY_caba -> 1.154982601 | G15: =total_LY_caba -> 1.771826067
A16: Mitoxantrone in combination with prednisolone | C16: =total_cost_mito -> 24124.79796 | E16: =total_QALY_mito -> 0.8742700181 | G16: =total_LY_mito -> 1.346064499
A17: Increment | C17: =C15-C16 -> 4562.518349 | E17: =E15-E16 -> 0.2807125824 | G17: =G15-G16 -> 0.4257615683
E18: incremental costs/ | G18: incremental costs/
A19: ICERs: | E19: QALY | G19: LY
A20: Cabazitaxel vs mitoxantrone | E20: =C17/E17 -> 16253.34465 | G20: =C17/G17 -> 10716.13478
A23: Results (probabilistic) | C23: This section should be filled in as part of the PSA assignment
A25: Treatment | C25: Costs | E25: QALY | G25: LY
A26: Cabazitaxel in combination with prednisolone | C26: =PSA_CostCaba_mean -> 28802.4093 | E26: =PSA_QALYCaba_mean -> 1.158891939 | G26: =PSA_LYCaba_mean -> 1.778889185
A27: Mitoxantrone in combination with prednisolone | C27: =PSA_CostMito_mean -> 24207.27866 | E27: =PSA_QALYMito_mean -> 0.8767215479 | G27: =PSA_LYMito_mean -> 1.350480842
A28: Increment | C28: =C26-C27 -> 4595.130649 | E28: =E26-E27 -> 0.2821703909 | G28: =G26-G27 -> 0.4284083426
E29: incremental costs/ | G29: incremental costs/
A30: ICERs: | E30: QALY | G30: LY
A31: Cabazitaxel vs mitoxantrone | E31: =C28/E28 -> 16284.9498 | G31: =C28/G28 -> 10726.05314
A35: Disaggregated Results (deterministic) - discounted, half cycle correction | C35: This section should be filled in as part of the deterministic assignment
A37: Treatment | B37: Cabazitaxel in combination with prednisolone | C37: Mitoxantrone in combination with prednisolone | D37: Increment
A39: Drug acquisition costs - SD | B39: =total_c_drug_acquisition_SD_caba -> 793.4454739 | C39: =total_c_drug_acquisition_SD_mito -> 817.3116828 | D39: =B39-C39 -> -23.86620885
A40: Chemo admin costs - SD | B40: =total_c_chemo_admin_SD_caba -> 2324.08567 | C40: =total_c_chemo_admin_SD_mito -> 2070.891088 | D40: =B40-C40 -> 253.1945822
A41: Premed costs SD | B41: =total_c_premed_SD_caba -> 426.0439091 | C41: =total_c_premed_SD_mito -> 141.3644553 | D41: 284.6794538
A42: Concomitant costs SD | B42: =total_c_concomitant_SD_caba -> 480.1817881 | C42: =total_c_concomitant_SD_mito -> 349.6293034 | D42: 130.5524847
A43: HC resource use costs SD | B43: =total_c_HC_resource_use_SD_caba -> 2192.466518 | C43: =total_c_HC_resource_use_SD_mito -> 1596.375707 | D43: 596.090811
A44: AE costs SD | B44: =total_c_AE_SD_caba -> 947.4884496 | C44: =total_c_AE_SD_mito -> 481.8227834 | D44: 465.6656662
A46: Drug acquisition costs post-progression chemo - PD | B46: =total_c_drug_acquisition_PD_caba -> 730.8253098 | C46: =total_c_drug_acquisition_PD_mito -> 663.134786 | D46: =B46-C46 -> 67.69052379
A47: Chemo admin costs - PD | B47: =total_c_chemo_admin_PD_caba -> 2360.02215 | C47: =total_c_chemo_admin_PD_mito -> 2303.554992 | D47: 56.46715729
A48: Premed costs PD | B48: =total_c_premed_PD_caba -> 161.1012996 | C48: =total_c_premed_PD_mito -> 157.2467034 | D48: 3.854596206
A49: Concomitant costs PD | B49: =total_c_concomitant_PD_caba -> 1908.416933 | C49: =total_c_concomitant_PD_mito -> 1465.000248 | D49: 443.4166855
A50: HC resource use PD | B50: =total_c_HC_resource_use_PD_caba -> 9027.701915 | C50: =total_c_HC_resource_use_PD_mito -> 6930.134245 | D50: 2097.56767
A51: BSC costs | B51: =total_c_BSC_PD_caba -> 1296.195065 | C51: =total_c_BSC_PD_mito -> 995.0268513 | D51: 301.1682141
A53: End of life costs | B53: =total_c_end_of_life_PD_caba -> 6039.341825 | C53: =total_c_end_of_life_PD_mito -> 6153.305112 | D53: =B53-C53 -> -113.9632869
A55: LYs accrued in SD state | B55: =total_LY_SD_caba -> 0.35619152 | C55: =total_LY_SD_mito -> 0.2593496799 | D55: =B55-C55 -> 0.09684184013
A56: LYs accrued in PD state | B56: =total_LY_PD_caba -> 1.415634547 | C56: =total_LY_PD_mito -> 1.086714819 | D56: =B56-C56 -> 0.3289197281
A58: QALYs accrued in SD state | B58: =total_QALY_SD_caba -> 0.27115904 | C58: =total_QALY_SD_mito -> 0.1950123103 | D58: =B58-C58 -> 0.07614672969
A59: QALYs accrued in PD state | B59: =total_QALY_PD_caba -> 0.8876028613 | C59: =total_QALY_PD_mito -> 0.6813701917 | D59: =B59-C59 -> 0.2062326695
A60: QALYs lost due to adverse events | B60: =total_QALY_loss_AE_caba -> 0.003779300668 | C60: =total_QALY_loss_AE_mito -> 0.002112483846 | D60: =B60-C60 -> 0.001666816822

Sheet Parameters
A4: Parameter name | B4: Value | C4: Description | D4: Source and description
A6: Discount rates
A7: cDR | B7: 0.035 | C7: Cost discount rate | D7: Methods guide NICE
A8: oDR | B8: 0.035 | C8: Outcome discount rate | D8: Methods guide NICE
A10: Choice of distribution OS and PFS
A11: Distribution_OS | B11: 4 | C11: 1 for exponential, 2 for Weibull, 3 for lognormal, 4 for loglogistic | D11: AIC of lognormal and loglogsitic for cabazitaxel and mitoxantrone were relatively low, compared to other distributions. Visually loglogistic follows both KM curves well.
A12: Distribution_PFS | B12: 2 | C12: 1 for exponential, 2 for Weibull, 3 for lognormal, 4 for loglogistic | D12: For cabazitaxel the AIC of exponential, weibull and lognormal were comparably low, for mitoxantrone the AIC of lognormal and loglogistic were relatively low, exponential and weibull were higher. BUT visually for cabazitaxel weibull and exponential follow curve well, the others don't follow curve at all, for mitoxantrone nothing follows perfectly, so no preference. But because visually for cabazitaxel there was a big preference, we chose Weibull.
A16: Parameter name | B16: Value | C16: Probabilistic | D16: Deterministic | E16: Standard error | F16: Distribution | G16: Number of cases | H16: Number of non-cases | J16: Description | K16: Source
G17: If you have an alpha and beta from your data source, fill these in here. If results were reported with a standard error, or if you need to assume a value for the SE, use the formulae from the method of moments
A21: Time
A22: Days a year | B22: =IF(Ind_PSA=0,D22,C22) -> 365 | C22: =D22 -> 365 | D22: 365 | F22: fixed | J22: Note: some modelles use 365.25 to account for leap years. This would be a bit more accurate, but not implemented her
A23: Weeks in a year | B23: =IF(Ind_PSA=0,D23,C23) -> 52 | C23: =D23 -> 52 | D23: 52 | F23: fixed | J23: This is the amount of weeks in a year
A24: Cycle length (weeks) | B24: =IF(Ind_PSA=0,D24,C24) -> 3 | C24: =D24 -> 3 | D24: =3 -> 3 | F24: fixed | J24: This is the amount of weeks in one cycle
A25: Cycle length (days) | B25: =IF(Ind_PSA=0,D25,C25) -> 21 | C25: =D25 -> 21 | D25: 21 | F25: fixed | J25: This is the amount of days in one cycle
A26: Cycle length (weeks/year) | B26: =IF(Ind_PSA=0,D26,C26) -> 0.05769230769 | C26: =cycle_length_weeks/weeks_in_a_year -> 0.05769230769 | D26: =cycle_length_weeks/weeks_in_a_year -> 0.05769230769 | F26: fixed | J26: This value is used to convert the number of people in a health state to LYs and QALYs
A28: Cohort size | B28: =IF(Ind_PSA=0,D28,C28) -> 1000 | C28: =D28 -> 1000 | D28: 1000 | F28: fixed | J28: This is the cohort size
A29: Calculation minutes to hours | B29: =IF(Ind_PSA=0,D29,C29) -> 0.01666666667 | C29: =D29 -> 0.01666666667 | D29: =1/60 -> 0.01666666667 | F29: fixed | J29: This value is used to convert the amount of minutes to the amount of hours
A30: Calculation days to hours | B30: =IF(Ind_PSA=0,D30,C30) -> 24 | C30: =D30 -> 24 | D30: =24 -> 24 | F30: fixed | J30: This value is used to convert the amount of days to the amount of hours
A31: Amount of weeks in 3 months | B31: =IF(Ind_PSA=0,D31,C31) -> 13 | C31: =D31 -> 13 | D31: =13 -> 13 | F31: fixed | J31: This value is used to calculate the health care resources from 3 months to 3 each 3-week cycle. | K31: This was given in the assignment under 2.1.5
A33: Patient characteristics
A34: Percentage used for SE calculation body surface and weight | B34: =IF(Ind_PSA=0,D34,C34) -> 0.05 | C34: =D34 -> 0.05 | D34: 0.05 | F34: fixed | J34: Assumed percentage used for SE calculation for average body surface and weight | K34: The assumption is based on information from: De Bono et al., 2010
A35: Average body surface area in m2 | B35: =IF(Ind_PSA=0,D35,C35) -> 2.01 | C35: =GAMMAINV(RAND(),G35,H35) -> 1.990711974 | D35: 2.01 | E35: =perc_SE_bodysurface_and_weight*D35 -> 0.1005 | F35: gamma | G35: =(D35^2)/(E35^2) -> 400 | H35: =(E35^2)/(D35) -> 0.005025 | J35: Assumed average body surface area in m2 | K35: De Bono et al., 2010
A36: Average body weight (kg) | B36: =IF(Ind_PSA=0,D36,C36) -> 70 | C36: =GAMMAINV(RAND(),G36,H36) -> 70.0106789 | D36: 70 | E36: =perc_SE_bodysurface_and_weight*D36 -> 3.5 | F36: gamma | G36: =(D36^2)/(E36^2) -> 400 | H36: =(E36^2)/(D36) -> 0.175 | J36: Assumed average body weight in kg | K36: De Bono et al., 2010
A38: Inflation (Annual increase on previous years)
A39: NHSCII price 2015/2016 | B39: =IF(Ind_PSA=0,D39,C39) -> 1.004 | C39: =D39 -> 1.004 | D39: =1 + 0.4/100 -> 1.004 | F39: fixed | J39: This is the index rate from 2015/2016 | K39: Table 12.1.1: The NHS Cost Inflation Index from the Unit Costs of Health and Social Care 2024 – version 2
A40: NHSCII price 2016/2017 | B40: 1.0209 | C40: =D40 -> 1.0209 | D40: =1+2.09/100 -> 1.0209 | F40: fixed | J40: This is the index rate from 2016/2017 | K40: Table 12.1.1: The NHS Cost Inflation Index from the Unit Costs of Health and Social Care 2024 – version 2
A41: NHSCII price 2017/2018 | B41: 1.0124 | C41: 1.0124 | D41: =1+1.24/100 -> 1.0124 | F41: fixed | J41: This is the index rate from 2017/2018 | K41: Table 12.1.1: The NHS Cost Inflation Index from the Unit Costs of Health and Social Care 2024 – version 2
A42: NHSCII price 2018/2019 | B42: 1.016 | C42: 1.016 | D42: =1+1.6/100 -> 1.016 | F42: fixed | J42: This is the index rate from 2018/2019 | K42: Table 12.1.1: The NHS Cost Inflation Index from the Unit Costs of Health and Social Care 2024 – version 2
A43: NHSCII price 2019/2020 | B43: 1.0214 | C43: 1.0214 | D43: =1+2.14/100 -> 1.0214 | F43: fixed | J43: This is the index rate from 2019/2020 | K43: Table 12.1.1: The NHS Cost Inflation Index from the Unit Costs of Health and Social Care 2024 – version 2
A44: NHSCII price 2020/2021 | B44: 1.0249 | C44: 1.0249 | D44: =1+2.49/100 -> 1.0249 | F44: fixed | J44: This is the index rate from 2020/2021 | K44: Table 12.1.1: The NHS Cost Inflation Index from the Unit Costs of Health and Social Care 2024 – version 2
A45: NHSCII price 2021/2022 | B45: 1.0258 | C45: 1.0258 | D45: =1+2.58/100 -> 1.0258 | F45: fixed | J45: This is the index rate from 2021/2022 | K45: Table 12.1.1: The NHS Cost Inflation Index from the Unit Costs of Health and Social Care 2024 – version 2
A46: NHSCII price 2022/2023 | B46: 1.0732 | C46: 1.0732 | D46: =1+7.32/100 -> 1.0732 | F46: fixed | J46: This is the index rate from 2022/2023 | K46: Table 12.1.1: The NHS Cost Inflation Index from the Unit Costs of Health and Social Care 2024 – version 2
A47: NHSCII price 2023/2024 | B47: 1.0431 | C47: 1.0431 | D47: =1+4.31/100 -> 1.0431 | F47: fixed | J47: This is the index rate from 2023/2024 | K47: Table 12.1.1: The NHS Cost Inflation Index from the Unit Costs of Health and Social Care 2024 – version 2
A49: Health state utility values
A50: SD cycle1 | B50: =IF(Ind_PSA=0,D50,C50) -> 0.704 | C50: =_xlfn.BETA.INV(RAND(),G50,H50) -> 0.7225132887 | D50: 0.704 | E50: 0.033 | F50: beta | G50: =D50*((D50*(1-D50))/E50^2-1) -> 134.0088889 | H50: =(1-D50)*((D50*(1-D50))/(E50^2)-1) -> 56.34464646 | J50: Utility value for stable disease in cycle 1 - The health state utilities will be used for both Cabazitaxel and Mitoxantrone. | K50: NICE TA391, Pre-meeting briefing document, Table 10. Values are derived from the UK Early Access Programme for cabazitaxel
A51: SD cycle2 | B51: =IF(Ind_PSA=0,D51,C51) -> 0.728 | C51: 0.7358898908 | D51: 0.728 | E51: 0.021 | F51: beta | G51: =D51*((D51*(1-D51))/E51^2-1) -> 326.1555556 | H51: =(1-D51)*((D51*(1-D51))/(E51^2)-1) -> 121.8603175 | J51: Utility value for stable disease in cycle 2 | K51: NICE TA391, Pre-meeting briefing document, Table 10. Values are derived from the UK Early Access Programme for cabazitaxel
A52: SD cycle3 | B52: 0.728 | C52: 0.726669352 | D52: 0.728 | E52: 0.033 | F52: beta | G52: 131.6463324 | H52: 49.18654178 | J52: Utility value for stable disease in cycle 3 | K52: NICE TA391, Pre-meeting briefing document, Table 10. Values are derived from the UK Early Access Programme for cabazitaxel
A53: SD cycle4 | B53: 0.75 | C53: 0.8102154518 | D53: 0.75 | E53: =0.026 -> 0.026 | F53: beta | G53: 207.2751479 | H53: 69.09171598 | J53: Utility value for stable disease in cycle 4 | K53: NICE TA391, Pre-meeting briefing document, Table 10. Values are derived from the UK Early Access Programme for cabazitaxel
A54: SD cycle5 | B54: 0.753 | C54: 0.7192916064 | D54: 0.753 | E54: =0.035 -> 0.035 | F54: beta | G54: 113.574529 | H54: 37.25485878 | J54: Utility value for stable disease in cycle 5 | K54: NICE TA391, Pre-meeting briefing document, Table 10. Values are derived from the UK Early Access Programme for cabazitaxel
A55: SD cycle6 | B55: 0.752 | C55: 0.7221907368 | D55: 0.752 | E55: =0.024 -> 0.024 | F55: beta | G55: 242.7288889 | H55: 80.04888889 | J55: Utility value for stable disease in cycle 6 | K55: NICE TA391, Pre-meeting briefing document, Table 10. Values are derived from the UK Early Access Programme for cabazitaxel
A56: SD cycle7 | B56: 0.778 | C56: 0.7921697056 | D56: 0.778 | E56: =0.042 -> 0.042 | F56: beta | G56: 75.39719728 | H56: 21.51436735 | J56: Utility value for stable disease in cycle 7 | K56: NICE TA391, Pre-meeting briefing document, Table 10. Values are derived from the UK Early Access Programme for cabazitaxel
A57: SD cycle8 | B57: 0.789 | C57: 0.763421442 | D57: 0.789 | E57: =0.034 -> 0.034 | F57: beta | G57: 112.8372379 | H57: 30.17573789 | J57: Utility value for stable disease in cycle 8 | K57: NICE TA391, Pre-meeting briefing document, Table 10. Values are derived from the UK Early Access Programme for cabazitaxel
A58: SD cycle9 | B58: 0.803 | C58: 0.8130835464 | D58: 0.803 | E58: =0.048 -> 0.048 | F58: beta | G58: 54.33040842 | H58: 13.32887977 | J58: Utility value for stable disease in cycle 9 | K58: NICE TA391, Pre-meeting briefing document, Table 10. Values are derived from the UK Early Access Programme for cabazitaxel
A59: SD cycle 10 and after | B59: 0.819 | C59: 0.7874881829 | D59: 0.819 | E59: =0.033 -> 0.033 | F59: beta | G59: =D59*((D59*(1-D59))/E59^2-1) -> 110.6665289 | H59: 24.45743802 | J59: Utility value for stable disease in cycle 10 and after | K59: NICE TA391, Pre-meeting briefing document, Table 10. Values are derived from the UK Early Access Programme for cabazitaxel
A60: Progressed disease | B60: 0.627 | C60: 0.6477812689 | D60: 0.627 | E60: =0.019 -> 0.019 | F60: beta | G60: 405.57 | H60: 241.2721053 | J60: Utility value for progressed disease - This utility value is constant over time. | K60: NICE TA391, Pre-meeting briefing document, Table 10. Values are derived from the UK Early Access Programme for cabazitaxel
A62: Incidence of adverse events Cabazitaxel
A63: Total patients (N) | B63: =IF(Ind_PSA=0,D63,C63) -> 371 | C63: =D63 -> 371 | D63: =371 -> 371 | F63: fixed | J63: Total number of patients recieving at least one dose of Cabazitaxel | K63: Bono et al., 2010, Table 4
A64: Neutropenia | B64: 0.8167115903 | C64: =_xlfn.BETA.INV(RAND(),G64,H64) -> 0.8292712756 | D64: =G64/Caba_total_patients -> 0.8167115903 | F64: beta | G64: =303 -> 303 | H64: =Caba_total_patients-G64 -> 68 | J64: Incidence of neutropenia for patients with Cabazitaxel | K64: Bono et al., 2010, Table 4
A65: Febrile neutropenia | B65: 0.07547169811 | C65: 0.06320773204 | D65: =G65/Caba_total_patients -> 0.07547169811 | F65: beta | G65: =28 -> 28 | H65: =Caba_total_patients-G65 -> 343 | J65: Incidence of febrile neutropenia for patients with Cabazitaxel | K65: Bono et al., 2010, Table 4
A66: Leukopenia | B66: 0.6819407008 | C66: 0.6957570081 | D66: =G66/Caba_total_patients -> 0.6819407008 | F66: beta | G66: =253 -> 253 | H66: =Caba_total_patients-G66 -> 118 | J66: Incidence of leukopenia for patients with Cabazitaxel | K66: Bono et al., 2010, Table 4
A67: Anaemia | B67: 0.1051212938 | C67: 0.1280520344 | D67: =G67/Caba_total_patients -> 0.1051212938 | F67: beta | G67: =39 -> 39 | H67: =Caba_total_patients-G67 -> 332 | J67: Incidence of anaemia for patients with Cabazitaxel | K67: Bono et al., 2010, Table 4
A68: Diarrhoea | B68: 0.06199460916 | C68: 0.05755226885 | D68: =G68/Caba_total_patients -> 0.06199460916 | F68: beta | G68: =23 -> 23 | H68: =Caba_total_patients-G68 -> 348 | J68: Incidence of diarrhoea for patients with Cabazitaxel | K68: Bono et al., 2010, Table 4
A69: Fatigue | B69: 0.04851752022 | C69: 0.04257396835 | D69: =G69/Caba_total_patients -> 0.04851752022 | F69: beta | G69: =18 -> 18 | H69: =Caba_total_patients-G69 -> 353 | J69: Incidence of fatigue for patients with Cabazitaxel | K69: Bono et al., 2010, Table 4
A70: Asthenia | B70: 0.04582210243 | C70: 0.06069957291 | D70: =G70/Caba_total_patients -> 0.04582210243 | F70: beta | G70: =17 -> 17 | H70: =Caba_total_patients-G70 -> 354 | J70: Incidence of asthenia for patients with Cabazitaxel | K70: Bono et al., 2010, Table 4
A71: Incidence of adverse events Mitoxantrone
A72: Total patients (N) | B72: =IF(Ind_PSA=0,D72,C72) -> 371 | C72: =D72 -> 371 | D72: =371 -> 371 | F72: fixed | J72: Total number of patients recieving at least one dose of Mitoxantrone | K72: Bono et al., 2010, Table 4
A73: Neutropenia | B73: 0.5795148248 | C73: =_xlfn.BETA.INV(RAND(),G73,H73) -> 0.5937382422 | D73: =G73/mito_total_patients -> 0.5795148248 | F73: beta | G73: =215 -> 215 | H73: =mito_total_patients-G73 -> 156 | J73: Incidence of neutropenia for patients with Mitoxantrone | K73: Bono et al., 2010, Table 4
A74: Febrile neutropenia | B74: 0.01347708895 | C74: 0.01685542917 | D74: =G74/mito_total_patients -> 0.01347708895 | F74: beta | G74: =5 -> 5 | H74: =mito_total_patients-G74 -> 366 | J74: Incidence of febrile neutropenia for patients with Mitoxantrone | K74: Bono et al., 2010, Table 4
A75: Leukopenia | B75: 0.423180593 | C75: 0.3951966228 | D75: =G75/mito_total_patients -> 0.423180593 | F75: beta | G75: =157 -> 157 | H75: =mito_total_patients-G75 -> 214 | J75: Incidence of leukopenia for patients with Mitoxantrone | K75: Bono et al., 2010, Table 4
A76: Anaemia | B76: 0.04851752022 | C76: 0.03704204311 | D76: =G76/mito_total_patients -> 0.04851752022 | F76: beta | G76: =18 -> 18 | H76: =mito_total_patients-G76 -> 353 | J76: Incidence of anaemia for patients with Mitoxantrone | K76: Bono et al., 2010, Table 4
A77: Diarrhoea | B77: 0.00269541779 | C77: 0.008348558411 | D77: =G77/mito_total_patients -> 0.00269541779 | F77: beta | G77: =1 -> 1 | H77: =mito_total_patients-G77 -> 370 | J77: Incidence of diarrhoea for patients with Mitoxantrone | K77: Bono et al., 2010, Table 4
A78: Fatigue | B78: 0.02964959569 | C78: 0.03419426429 | D78: =G78/mito_total_patients -> 0.02964959569 | F78: beta | G78: =11 -> 11 | H78: =mito_total_patients-G78 -> 360 | J78: Incidence of fatigue for patients with Mitoxantrone | K78: Bono et al., 2010, Table 4
A79: Asthenia | B79: 0.02425876011 | C79: 0.01493538632 | D79: =G79/mito_total_patients -> 0.02425876011 | F79: beta | G79: =9 -> 9 | H79: =mito_total_patients-G79 -> 362 | J79: Incidence of asthenia for patients with Mitoxantrone | K79: Bono et al., 2010, Table 4
A80: Absolute value disutilities of adverse events for Cabazitaxel and Mitoxantrone
A81: Neutropenia | B81: =IF(Ind_PSA=0,D81,C81) -> 0.09 | C81: =_xlfn.BETA.INV(RAND(),G81,H81) -> 0.09092382004 | D81: =ABS(-0.09) -> 0.09 | E81: 0.0157 | F81: beta | G81: =D81*((D81*(1-D81))/E81^2-1) -> 29.81385005 | H81: =(1-D81)*((D81*(1-D81))/(E81^2)-1) -> 301.4511506 | J81: Disutility of neutropenia for patients with Cabazitaxel and Mitoxantrone | K81: NICE TA391, ERG report, Table 30
A82: Febrile neutropenia | B82: 0.12 | C82: 0.09714877999 | D82: =ABS(-0.12) -> 0.12 | E82: 0.0209 | F82: beta | G82: 28.89032486 | H82: 211.8623823 | J82: Disutility of febrile neutropenia for patients with Cabazitaxel and Mitoxantrone | K82: NICE TA391, ERG report, Table 30
A83: Leukopenia | B83: 0.09 | C83: 0.08458879816 | D83: =ABS(-0.09) -> 0.09 | E83: 0.0157 | F83: beta | G83: 29.81385005 | H83: 301.4511506 | J83: Disutility of leukopenia for patients with Cabazitaxel and Mitoxantrone | K83: NICE TA391, ERG report, Table 30
A84: Anaemia | B84: 0.125 | C84: 0.1444068332 | D84: =ABS(-0.125) -> 0.125 | E84: 0.0217 | F84: beta | G84: 28.90911625 | H84: 202.3638137 | J84: Disutility of leukopenia for patients with Cabazitaxel and Mitoxantrone of anaemia for patients with Cabazitaxel and Mitoxantrone | K84: NICE TA391, ERG report, Table 30
A85: Diarrhoea | B85: =IF(Ind_PSA=0,D85,C85) -> 0.047 | C85: 0.05668092935 | D85: =ABS(-0.047) -> 0.047 | E85: 0.0082 | F85: beta | G85: 31.26140274 | H85: 633.8748257 | J85: Disutility of leukopenia for patients with Cabazitaxel and Mitoxantrone of diarrhoea for patients with Cabazitaxel and Mitoxantrone | K85: NICE TA391, ERG report, Table 30
A86: Fatigue | B86: 0.094 | C86: 0.1129411067 | D86: =ABS(-0.094) -> 0.094 | E86: 0.0163 | F86: beta | G86: 30.03666356 | H86: 289.5023104 | J86: Disutility of leukopenia for patients with Cabazitaxel and Mitoxantroneof fatigue for patients with Cabazitaxel and Mitoxantrone | K86: NICE TA391, ERG report, Table 30
A87: Asthenia | B87: 0.094 | C87: 0.09335489285 | D87: =ABS(-0.094) -> 0.094 | E87: 0.0163 | F87: beta | G87: 30.03666356 | H87: 289.5023104 | J87: Disutility of leukopenia for patients with Cabazitaxel and Mitoxantrone of asthenia for patients with Cabazitaxel and Mitoxantrone | K87: NICE TA391, ERG report, Table 30
A88: Average duration of adverse events (in days) for Cabazitaxel and Mitoxantrone
A89: Percentage used for SE calculation average duration of adverse events | B89: =IF(Ind_PSA=0,D89,C89) -> 0.1 | C89: =D89 -> 0.1 | D89: 0.1 | F89: fixed | J89: Assumed percentage used for SE calculation of average duration of adverse events | K89: Based on own reasoning.
A90: Neutropenia | B90: =IF(Ind_PSA=0,D90,C90) -> 1.9 | C90: =GAMMAINV(RAND(),G90,H90) -> 1.850176374 | D90: 1.9 | E90: =D90*perc_SE_duration_AE -> 0.19 | F90: gamma | G90: =(D90^2)/(E90^2) -> 100 | H90: =(E90^2)/(D90) -> 0.019 | J90: Duration (days) of neutropenia for patients with Cabazitaxel and Mitoxantrone | K90: NICE TA391, ERG report, Table 30
A91: Febrile neutropenia | B91: =IF(Ind_PSA=0,D91,C91) -> 6.2 | C91: 6.75078211 | D91: 6.2 | E91: 0.62 | F91: gamma | G91: =(D91^2)/(E91^2) -> 100 | H91: =(E91^2)/(D91) -> 0.062 | J91: Duration (days) of febrile neutropenia for patients with Cabazitaxel and Mitoxantrone | K91: NICE TA391, ERG report, Table 30
A92: Leukopenia | B92: 11.1 | C92: 9.830571121 | D92: 11.1 | E92: 1.11 | F92: gamma | G92: =(D92^2)/(E92^2) -> 100 | H92: =(E92^2)/(D92) -> 0.111 | J92: Duration (days) of leukopenia for patients with Cabazitaxel and Mitoxantrone | K92: NICE TA391, ERG report, Table 30
A93: Anaemia | B93: 25.4 | C93: 25.47809979 | D93: 25.4 | E93: =D93*perc_SE_duration_AE -> 2.54 | F93: gamma | G93: 100 | H93: 0.254 | J93: Duration (days) of anaemia for patients with Cabazitaxel and Mitoxantrone | K93: NICE TA391, ERG report, Table 30
A94: Diarrhoea | B94: 8 | C94: 7.78332799 | D94: 8 | E94: 0.8 | F94: gamma | G94: 100 | H94: 0.08 | J94: Duration (days) of diarrhoea for patients with Cabazitaxel and Mitoxantrone | K94: NICE TA391, ERG report, Table 30
A95: Fatigue | B95: 19.3 | C95: 21.08137798 | D95: 19.3 | E95: 1.93 | F95: gamma | G95: 100 | H95: 0.193 | J95: Duration (days) of fatigue for patients with Cabazitaxel and Mitoxantrone | K95: NICE TA391, ERG report, Table 30
A96: Asthenia | B96: =IF(Ind_PSA=0,D96,C96) -> 13.3 | C96: 14.20751604 | D96: 13.3 | E96: 1.33 | F96: gamma | G96: 100 | H96: 0.133 | J96: Duration (days) of asthenia for patients with Cabazitaxel and Mitoxantrone | K96: NICE TA391, ERG report, Table 30
A97: Unit cost of adverse events (in £) for Cabazitaxel and Mitoxantrone
A98: Percentage used for SE calculation for unit costs of adverse events | B98: =IF(Ind_PSA=0,D98,C98) -> 0.2 | C98: =D98 -> 0.2 | D98: 0.2 | F98: fixed | J98: Assumed percentage used for SE calculation of unit costs of adverse events | K98: The assumption is based on information from: National Cost Collection 2023/2024
A99: Neutropenia | B99: 389 | C99: =GAMMAINV(RAND(),G99,H99) -> 283.3552548 | D99: 389 | E99: =perc_SE_unitcosts_AE*D99 -> 77.8 | F99: gamma | G99: =(D99^2)/(E99^2) -> 25 | H99: =(E99^2)/(D99) -> 15.56 | J99: Treatment costs (in £) of neutropenia | K99: National Cost Collection 2023/2024: sheet Admitted Patient Care (APC); weighted average of SA35A-E; Day Case; round value
A100: Febrile neutropenia (2016) | B100: 2545 | C100: 1981.451416 | D100: 2545 | E100: =perc_SE_unitcosts_AE*D100 -> 509 | F100: gamma | G100: 25 | H100: 101.8 | J100: Treatment costs (in £) of febrile neutropenia | K100: Talbot at al. 2017 (2016 price); (SD: £2458); source is for costs of neutropenic sepsis, assumed to be the same as febrile neutropenia
A101: Leukopenia | B101: 389 | C101: 385.0026501 | D101: 389 | E101: 77.8 | F101: gamma | G101: 25 | H101: 15.56 | J101: Treatment costs (in £) of leukopenia | K101: National Cost Collection 2023/2024: weighted average of SA35A-E; Day Case
A102: Anaemia | B102: 393 | C102: 410.5277125 | D102: 393 | E102: 78.6 | F102: gamma | G102: 25 | H102: 15.72 | J102: Treatment costs (in £) of anaemia | K102: National Cost Collection 2023/2024: weighted average of: SA01G-K, SA03G-H, SA04G-L, SA05G-J; Day Case
A103: Diarrhoea | B103: 511 | C103: 548.1231455 | D103: 511 | E103: 102.2 | F103: gamma | G103: 25 | H103: 20.44 | J103: Treatment costs (in £) of diarrhoea | K103: National Cost Collection 2023/2024: weighted average of: FD10J-M; Day Case
A104: Fatigue | B104: 520 | C104: 642.0890576 | D104: 520 | E104: 104 | F104: gamma | G104: 25 | H104: 20.8 | J104: Treatment costs (in £) of fatigue | K104: National Cost Collection 2023/2024: sheet Admitted Patient Care (APC); weighted average calculated from: SA01G-K; Day Case, round value
A105: Asthenia | B105: 520 | C105: 513.1012307 | D105: 520 | E105: 104 | F105: gamma | G105: 25 | H105: 20.8 | J105: Treatment costs (in £) of asthenia | K105: National Cost Collection 2023/2024: sheet Admitted Patient Care (APC); weighted average calculated from: SA01G-K; Day Case, round value
A107: Drug acquisition costs in SD
A108: Quantity for Cabazitaxel | B108: =IF(Ind_PSA=0,D108,C108) -> 1621 | C108: =D108 -> 1621 | D108: 1621 | F108: fixed | J108: The number of prescriptions for Cabazitaxel - input variable used for SE calculation of vial costs for Cabazitaxel | K108: Emit National Database: 1 july 2024- 30 june 2025: NPC code= DXA015
A109: Quantity for Mitoxantrone | B109: =IF(Ind_PSA=0,D109,C109) -> 797 | C109: =D109 -> 797 | D109: 797 | F109: fixed | J109: The number of prescriptions for Mitoxantrone - input variable used for SE calculation of vial costs for Mitoxantrone | K109: Emit National Database: 1 july 2024- 30 june 2025: NPC code= DHA044
A110: Standard deviation for Cabazitaxel | B110: =IF(Ind_PSA=0,D110,C110) -> 43.75 | C110: =D110 -> 43.75 | D110: 43.75 | F110: fixed | J110: The standard deviation of Cabazitaxel - input variable used for SE calculation of vial costs for Cabazitaxel | K110: Emit National Database: 1 july 2024- 30 june 2025: NPC code= DXA015
A111: Standard deviation for Mitoxantrone | B111: =IF(Ind_PSA=0,D111,C111) -> 22.78 | C111: =D111 -> 22.78 | D111: 22.78 | F111: fixed | J111: The standard deviation of Mitoxantrone - input variable used for SE calculation of vial costs for Mitoxantrone | K111: Emit National Database: 1 july 2024- 30 june 2025: NPC code= DHA044
A112: Vial acquisition costs for Cabazitaxel | B112: =IF(Ind_PSA=0,D112,C112) -> 151.07 | C112: =GAMMAINV(RAND(),G112,H112) -> 149.8646178 | D112: 151.07 | E112: =SD_caba/SQRT(Quantity_caba) -> 1.086642157 | F112: gamma | G112: =(D112^2)/(E112^2) -> 19327.84164 | H112: =(E112^2)/(D112) -> 0.00781618573 | J112: Vial acquisition costs (in £) for Cabazitaxel | K112: Emit National Database: 1 july 2024- 30 june 2025: NPC code= DXA015
A113: Vial acquisition costs for Mitoxantrone | B113: 94.72 | C113: =GAMMAINV(RAND(),G113,H113) -> 94.68175169 | D113: 94.72 | E113: =SD_mito/SQRT(Quantity_mito) -> 0.8069089992 | F113: gamma | G113: =(D113^2)/(E113^2) -> 13779.52543 | H113: =(E113^2)/(D113) -> 0.006873966776 | J113: Vial acquisition costs (in £) for Mitoxantrone | K113: Emit National Database: 1 july 2024- 30 june 2025: NPC code= DHA044
A114: Dosage (mg) per m2 for Cabazitaxel | B114: 25 | C114: =D114 -> 25 | D114: 25 | F114: fixed | J114: Dosage (mg) per m2 for Cabizitaxel | K114: Bono et al., 2010
A115: Dosage (mg) per m2 for Mitoxantrone | B115: 12 | C115: =D115 -> 12 | D115: 12 | F115: fixed | J115: Dosage (mg) per m2 for Mitoxantrone | K115: Bono et al., 2010
A116: Dosage(mg) per vial for Cabazitaxel | B116: 60 | C116: =D116 -> 60 | D116: 60 | F116: fixed | J116: Dosage(mg) per 1.5ml vial for Cabazitaxel | K116: Emit National Database: 1 july 2024- 30 june 2025: NPC code= DXA015
A117: Dosage(mg) per vial for Mitoxantrone | B117: 20 | C117: =D117 -> 20 | D117: 20 | F117: fixed | J117: Dosage(mg) per 10ml vial for Mitoxantrone | K117: Emit National Database: 1 july 2024- 30 june 2025: NPC code= DHA044
A119: Percentage of patients receiving premedication (in decimals) in SD
A120: Antihistamine for Cabazitaxel | B120: =IF(Ind_PSA=0,D120,C120) -> 1 | C120: =D120 -> 1 | D120: 1 | F120: fixed | J120: Prevalence for antihistamine for Cabazitaxel | K120: Source for this wasn't given in the instruction assignment 3. We got the value from Table 5 of the instructions assignment 3 word file.
A121: Antihistamine for Mitoxantrone | B121: 0.09 | C121: =_xlfn.BETA.INV(RAND(),G121,H121) -> 0.09218135038 | D121: 0.09 | F121: beta | G121: =D121*mito_total_patients -> 33.39 | H121: =mito_total_patients-G121 -> 337.61 | J121: Prevalence for antihistamine for Mitoxantrone | K121: Source for this wasn't given in the instruction assignment 3. We got the value from Table 5 of the instructions assignment 3 word file.
A122: H2 antagonist for Cabazitaxel | B122: 1 | C122: =D122 -> 1 | D122: 1 | F122: fixed | J122: Prevalence for H2 antagonist for Cabazitaxel | K122: Source for this wasn't given in the instruction assignment 3. We got the value from Table 5 of the instructions assignment 3 word file.
A123: H2 antagonist for Mitoxantrone | B123: 0.25 | C123: =_xlfn.BETA.INV(RAND(),G123,H123) -> 0.2646878277 | D123: 0.25 | F123: beta | G123: =D123*mito_total_patients -> 92.75 | H123: =mito_total_patients-G123 -> 278.25 | J123: Prevalence for H2 antagonist for Mitoxantrone | K123: Source for this wasn't given in the instruction assignment 3. We got the value from Table 5 of the instructions assignment 3 word file.
A124: Anti-emetics for Cabazitaxel | B124: 1 | C124: =D124 -> 1 | D124: 1 | F124: fixed | J124: Prevalence for anti-emetics for Cabazitaxel | K124: Source for this wasn't given in the instruction assignment 3. We got the value from Table 5 of the instructions assignment 3 word file.
A125: Anti-emetics for Mitoxantrone | B125: 1 | C125: 1 | D125: 1 | F125: fixed | J125: Prevalence for anti-emetics for Mitoxantrone | K125: Source for this wasn't given in the instruction assignment 3. We got the value from Table 5 of the instructions assignment 3 word file.
A126: Corticosteroids for Cabazitaxel | B126: 1 | C126: =D126 -> 1 | D126: 1 | F126: fixed | J126: Prevalence for Corticosteroids for Cabazitaxel | K126: Source for this wasn't given in the instruction assignment 3. We got the value from Table 5 of the instructions assignment 3 word file.
A127: Corticosteroids for Mitoxantrone | B127: 0.56 | C127: =_xlfn.BETA.INV(RAND(),G127,H127) -> 0.5553725426 | D127: 0.56 | F127: beta | G127: =D127*mito_total_patients -> 207.76 | H127: =mito_total_patients-G127 -> 163.24 | J127: Prevalence for Corticosteroids for Mitoxantrone | K127: Source for this wasn't given in the instruction assignment 3. We got the value from Table 5 of the instructions assignment 3 word file.
A128: Prophylaxis for Cabazitaxel | B128: 0.25 | C128: =_xlfn.BETA.INV(RAND(),G128,H128) -> 0.2574447844 | D128: 0.25 | F128: beta | G128: =D128*Caba_total_patients -> 92.75 | H128: =Caba_total_patients-G128 -> 278.25 | J128: Prevalence for prophylaxis for Cabazitaxel | K128: Source for this wasn't given in the instruction assignment 3. We got the value from Table 5 of the instructions assignment 3 word file.
A129: Prophylaxis for Mitoxantrone | B129: 0.1 | C129: =_xlfn.BETA.INV(RAND(),G129,H129) -> 0.06738566706 | D129: 0.1 | F129: beta | G129: =D129*mito_total_patients -> 37.1 | H129: =mito_total_patients-G129 -> 333.9 | J129: Prevalence for prophylaxis for Mitoxantrone | K129: Source for this wasn't given in the instruction assignment 3. We got the value from Table 5 of the instructions assignment 3 word file.
A130: Premedication drugs and dosing other than prophylaxis in SD for Cabazitaxel and Mitoxantrone
A131: Quantity for antihistamine | B131: =IF(Ind_PSA=0,D131,C131) -> 171172 | C131: =D131 -> 171172 | D131: 171172 | F131: fixed | J131: The number of prescriptions for antihistamine - input variable used for SE calculation of costs per pack for antihistamine | K131: Emit National Database: 1 july 2024- 30 june 2025: Name & Pack Size = Chlorphenime
A132: Quantity for H2 antagonist | B132: 1718 | C132: 1718 | D132: 1718 | F132: fixed | J132: The number of prescriptions for H2 antagonist - input variable used for SE calculation of costs per pack for h2 antagonist | K132: Emit National Database: 1 july 2024- 30 june 2025: Name & Pack Size = Cimetidine
A133: Quantity for anti-emetics | B133: =IF(Ind_PSA=0,D133,C133) -> 225101 | C133: 225101 | D133: 225101 | F133: fixed | J133: The number of prescriptions for anti-emetics - input variable used for SE calculation of costs per pack for anti-emetics | K133: Emit National Database: 1 july 2024- 30 june 2025: NPC code = DDF029
A134: Quantity for corticosteroids | B134: =IF(Ind_PSA=0,D134,C134) -> 4435 | C134: 4435 | D134: 4435 | F134: fixed | J134: The number of prescriptions for corticosteroids - input variable used for SE calculation of costs per pack for corticosteroids | K134: Emit National Database: 1 july 2024- 30 june 2025: Name & Pack Size = Dexamethasone
A135: Standard deviation for antihistamine | B135: 0.21 | C135: 0.21 | D135: 0.21 | F135: fixed | J135: The standard deviation of antihistamine - input variable used for SE calculation of costs per pack for antihistamine | K135: Emit National Database: 1 july 2024- 30 june 2025: Name & Pack Size = Chlorphenamine
A136: Standard deviation for H2 antagonist | B136: 1.71 | C136: 1.71 | D136: 1.71 | F136: fixed | J136: The standard deviation of H2 antagonist - input variable used for SE calculation of costs per pack for h2 antagonist | K136: Emit National Database: 1 july 2024- 30 june 2025: Name & Pack Size = Cimetidine
A137: Standard deviation for anti-emetics | B137: 1.11 | C137: 1.11 | D137: 1.11 | F137: fixed | J137: The standard deviation of anti-emetics - input variable used for SE calculation of costs per pack for anti-emetics | K137: Emit National Database: 1 july 2024- 30 june 2025: NPC code = DDF029
A138: Standard deviation for corticosteroids | B138: 3.6 | C138: =D138 -> 3.6 | D138: 3.6 | F138: fixed | J138: The standard deviation of corticosteroids - input variable used for SE calculation of costs per pack for corticosteroids | K138: Emit National Database: 1 july 2024- 30 june 2025: Name & Pack Size = Dexamethasone
A139: Antihistamine (Chlorphenamine) costs per pack | B139: =IF(Ind_PSA=0,D139,C139) -> 0.38 | C139: =GAMMAINV(RAND(),G139,H139) -> 0.3799786111 | D139: 0.38 | E139: =SD_antihistamine/SQRT(quantity_antihistamine) -> 0.000507578166 | F139: gamma | G139: =(D139^2)/(E139^2) -> 560481.5601 | H139: =(E139^2)/(D139) -> 6.779884069e-07 | J139: Antihistamine costs (in £) per pack | K139: Emit National Database: 1 july 2024- 30 june 2025: Name & Pack Size = Chlorphenime
A140: H2 antagonist (Cimetidine) costs per pack | B140: 5.41 | C140: =GAMMAINV(RAND(),G140,H140) -> 5.351121549 | D140: 5.41 | E140: =SD_h2_antagonist/SQRT(quantity_h2_antagonist) -> 0.04125575418 | F140: gamma | G140: =(D140^2)/(E140^2) -> 17195.9221 | H140: =(E140^2)/(D140) -> 0.0003146094737 | J140: H2 antagonist costs (in £) per pack | K140: Emit National Database: 1 july 2024- 30 june 2025: Name & Pack Size = Cimetidine
A141: Anti-emetics (Ondansetron) costs per pack | B141: =IF(Ind_PSA=0,D141,C141) -> 3.5 | C141: 3.496925314 | D141: 3.5 | E141: =SD_anti_emetics/SQRT(quantity_anti_emetics) -> 0.002339560426 | F141: gamma | G141: 2238038.511 | H141: 1.563869425e-06 | J141: Anti-emetics costs (in £) per pack | K141: Emit National Database: 1 july 2024- 30 june 2025: NPC code = DDF029
A142: Corticosteroids (Dexamethasone) costs per pack | B142: 39.6 | C142: 39.49967948 | D142: 39.6 | E142: =SD_corticosteroids/SQRT(quantity_corticosteroids) -> 0.0540574666 | F142: gamma | G142: 536635 | H142: 7.379317413e-05 | J142: Corticosteroids costs (in £) per pack | K142: Emit National Database: 1 july 2024- 30 june 2025: Name & Pack Size = Dexamethasone
A143: Antihistamine (Chlorphenamine) pack size | B143: 28 | C143: =D143 -> 28 | D143: 28 | F143: fixed | J143: Antihistamine pack size | K143: Emit National Database: 1 july 2024- 30 june 2025: Name & Pack Size = Chlorphenamine
A144: H2 antagonist (Cimetidine) pack size | B144: 60 | C144: 60 | D144: 60 | F144: fixed | J144: H2 antagonist pack size | K144: Emit National Database: 1 july 2024- 30 june 2025: Name & Pack Size = Cimetidine
A145: Anti-emetics (Ondansetron) pack size | B145: 10 | C145: 10 | D145: 10 | F145: fixed | J145: Anti-emetics pack size | K145: Emit National Database: 1 july 2024- 30 june 2025: NPC code = DDF029
A146: Corticosteroids (Dexamethasone) pack size | B146: 50 | C146: 50 | D146: 50 | F146: fixed | J146: Corticosteroids pack size | K146: Emit National Database: 1 july 2024- 30 june 2025: Name & Pack Size = Dexamethasone
A147: Antihistamine (Chlorphenamine) dosing per cycle | B147: 1 | C147: 1 | D147: 1 | F147: fixed | J147: Antihistamine dosing per cycle | K147: Emit National Database: 1 july 2024- 30 june 2025: Name & Pack Size = Chlorphenamine
A148: H2 antagonist (Cimetidine) dosing per cycle | B148: 1 | C148: 1 | D148: 1 | F148: fixed | J148: H2 antagonist dosing per cycle | K148: Emit National Database: 1 july 2024- 30 june 2025: Name & Pack Size = Cimetidine
A149: Anti-emetics (Ondansetron) dosing per cycle | B149: 1 | C149: 1 | D149: 1 | F149: fixed | J149: Anti-emetics dosing per cycle | K149: Emit National Database: 1 july 2024- 30 june 2025: NPC code = DDF029
A150: Corticosteroids (Dexamethasone) dosing per cycle | B150: 1 | C150: =D150 -> 1 | D150: 1 | F150: fixed | J150: Corticosteroids dosing per cycle | K150: Emit National Database: 1 july 2024- 30 june 2025: Name & Pack Size = Dexamethasone
A151: Premedication drugs and dosing prophylaxis in SD for Cabazitaxel and Mitoxantrone
A152: Percentage used for SE calculation for unit costs of prophylaxis | B152: =IF(Ind_PSA=0,D152,C152) -> 0.1 | C152: =D152 -> 0.1 | D152: 0.1 | F152: fixed | J152: Assumed percentage used for SE calculation of unit cost of prophylaxis | K152: Based on own reasoning.
A153: Prophylaxis (G-SCF) dosage (mg/kg) | B153: =IF(Ind_PSA=0,D153,C153) -> 0.005 | C153: =D153 -> 0.005 | D153: 0.005 | F153: fixed | J153: Prophylaxis dosage (mg/kg) | K153: Source for this wasn't given in the instruction assignment 3. We got the value from the text below Table 6 of the instructions assignment 3 word file.
A154: Prophylaxis (G-SCF) unit costs per mg (2020/2021) | B154: =IF(Ind_PSA=0,D154,C154) -> 193.88 | C154: =GAMMAINV(RAND(),G154,H154) -> 222.2025768 | D154: 193.88 | E154: =D154*perc_SE_unitcosts_prophylaxis -> 19.388 | F154: gamma | G154: =(D154^2)/(E154^2) -> 100 | H154: =(E154^2)/(D154) -> 1.9388 | J154: Prophylaxis unit costs (in £) per mg | K154: Source for this wasn't given in the instruction assignment 3. We got the value from the text below Table 6 of the instructions assignment 3 word file.
A155: Prophylaxis (G-SCF) dosing per cycle (in days) | B155: =IF(Ind_PSA=0,D155,C155) -> 4.1 | C155: =D155 -> 4.1 | D155: 4.1 | F155: fixed | J155: Prophylaxis dosing per cycle | K155: Source for this wasn't given in the instruction assignment 3. We got the value from the text below Table 6 of the instructions assignment 3 word file.
A157: Concomitant medication costs in SD and PD for Cabazitaxel and Mitoxantrone
A158: Percentage used for SE calculation for LHRH cycle costs | B158: =IF(Ind_PSA=0,D158,C158) -> 0.2 | C158: =D158 -> 0.2 | D158: 0.2 | F158: fixed | J158: Assumed percentage used for SE calculation for LHRH cycle costs | K158: Based on own reasoning.
A159: Quantity for prednisolone | B159: =IF(Ind_PSA=0,D159,C159) -> 2320376 | C159: =D159 -> 2320376 | D159: 2320376 | F159: fixed | J159: The number of prescriptions for prednisolone | K159: Emit National Database: 1 july 2024- 30 june 2025: NPC code=DFN040
A160: Standard deviation prednisolone costs | B160: 0.06 | C160: 0.06 | D160: 0.06 | F160: fixed | J160: The standard deviation of prednisolone | K160: Emit National Database: 1 july 2024- 30 june 2025: NPC code=DFN040
A161: Prednisolone costs per pack | B161: 0.31 | C161: =GAMMAINV(RAND(),G161,H161) -> 0.3100359081 | D161: 0.31 | E161: =SD_prednisolone/SQRT(Quantity_prednisolone) -> 3.938873814e-05 | F161: gamma | G161: =(D161^2)/(E161^2) -> 61941148.22 | H161: =(E161^2)/(D161) -> 5.004750621e-09 | J161: Prednisolone costs (in £) per pack | K161: Emit National Database: 1 july 2024- 30 june 2025: NPC code=DFN040
A162: Prednisolone pack size | B162: 28 | C162: =D162 -> 28 | D162: 28 | F162: fixed | J162: Prednisolone pack size | K162: Emit National Database: 1 july 2024- 30 june 2025: NPC code=DFN040
A163: Prednisolone dosage (in tablets) per day | B163: 2 | C163: =D163 -> 2 | D163: 2 | F163: fixed | J163: Prednisolone dosage (per tablet) per day | K163: Emit National Database: 1 july 2024- 30 june 2025: NPC code=DFN040
A164: LHRH (50% leuroprorelin and 50% goserelin) cycle cost | B164: 77.31 | C164: =GAMMAINV(RAND(),G164,H164) -> 79.39406003 | D164: 77.31 | E164: =perc_SE_LHRH_cyclecosts*D164 -> 15.462 | F164: gamma | G164: =(D164^2)/(E164^2) -> 25 | H164: =(E164^2)/(D164) -> 3.0924 | J164: LHRH (50% leuroprorelin and 50% goserelin) cycle cost | K164: NICE submission Relugolix for hormone-sensitive prostate cancer (NICE TA995) published October 2024
A166: Chemotherapy administration cost in SD and PD for Cabazitaxel and Mitoxantrone
A167: Percentage used for SE calculation for infusion with chemotherapy costs per chemo administration | B167: =IF(Ind_PSA=0,D167,C167) -> 0.2 | C167: =D167 -> 0.2 | D167: 0.2 | F167: fixed | J167: Assumed percentage used for SE calculation for infusion with chemotherapy costs per chemo administration | K167: The assumption is based on information provided in the assignment on page 8.
A168: Percentage used for SE calculation for pharmacist hourly cost | B168: 0.1 | C168: 0.1 | D168: 0.1 | F168: fixed | J168: Assumed percentage used for SE calculation for pharmacist hourly cost | K168: The assumption is based on information from: PSSRU, 2014
A169: Percentage used for SE calculation for preparation time pharmacist per administration (cabazitaxel and mitoxantrone) | B169: 0.05 | C169: =D169 -> 0.05 | D169: 0.05 | F169: fixed | J169: Assumed percentage used for SE calculation for preparation time pharmacist per administration (cabazitaxel and mitoxantrone) | K169: Based on own reasoning.
A170: Infusion with chemotherapy costs per chemo administration (outpatient visit) | B170: 430 | C170: =GAMMAINV(RAND(),G170,H170) -> 510.5725071 | D170: 430 | E170: =perc_SE_unitcosts_chemoinfusion*D170 -> 86 | F170: gamma | G170: =(D170^2)/(E170^2) -> 25 | H170: =(E170^2)/(D170) -> 17.2 | J170: The costs (in £) for infusion with chemotherapy (includes chair use, nurse time, consumables etc.), per chemo administration. This is per cycle, because chemo is administered once per cycle | K170: Based on National Cost Collection 2023/2024; 'currency code' SB15Z, 'Total HRG' sheet (NICE TA391, Table 64)
A171: Pharmacist hourly cost | B171: 50 | C171: =GAMMAINV(RAND(),G171,H171) -> 46.21973238 | D171: 50 | E171: =perc_SE_unitcosts_hourlycost_pharmacist*D171 -> 5 | F171: gamma | G171: =(D171^2)/(E171^2) -> 100 | H171: 0.5 | J171: The costs (in £) of the pharmacist's time to prepare the chemotherapy prior to administration | K171: NICE TA391, Table 64; Hospital-based scientific and professional staff; Band 6
A172: Preparation time pharmacist per administration (in minutes) for Cabazitaxel | B172: 15 | C172: =GAMMAINV(RAND(),G172,H172) -> 16.84107208 | D172: 15 | E172: =perc_SE_preptime_pharmacist*D172 -> 0.75 | F172: gamma | G172: 400 | H172: 0.0375 | J172: The preparation time of Cabazitaxel by the pharmacist | K172: De Bono, et al. 2010
A173: Preparation time pharmacist per administration (in minutes) for Mitoxantrone | B173: 60 | C173: =GAMMAINV(RAND(),G173,H173) -> 59.08053531 | D173: 60 | E173: =perc_SE_preptime_pharmacist*D173 -> 3 | F173: gamma | G173: 400 | H173: 0.15 | J173: The preparation time of Mitoxantrone by the pharmacist | K173: De Bono, et al. 2010
A175: Health care resource use in SD for Cabazitaxel and Mitoxantrone
A176: Clinical oncologist resource use estimate (per 3 months) | B176: =IF(Ind_PSA=0,D176,C176) -> 4.3 | C176: =GAMMAINV(RAND(),G176,H176) -> 3.946170651 | D176: 4.3 | E176: 0.358 | F176: gamma | G176: =(D176^2)/(E176^2) -> 144.2682813 | H176: =(E176^2)/(D176) -> 0.0298055814 | J176: The frequency of use for the clinical oncologist in the stable disease health state, per 3 months | K176: Company submission from NICE TA391, Table 63 (UK observational study)
A177: Urologist (outpatient care) resource use estimate (per 3 months) | B177: 0.07 | C177: =GAMMAINV(RAND(),G177,H177) -> 0.06849829555 | D177: 0.07 | E177: 0.006 | F177: gamma | G177: =(D177^2)/(E177^2) -> 136.1111111 | H177: =(E177^2)/(D177) -> 0.0005142857143 | J177: The frequency of use for the urologist in the stable disease health state, per 3 months | K177: Company submission from NICE TA391, Table 63 (UK observational study)
A178: Oncology ward (inpatient care) resource use estimate (per 3 months) | B178: 0.03 | C178: 0.02841011649 | D178: 0.03 | E178: 0.003 | F178: gamma | G178: =(D178^2)/(E178^2) -> 100 | H178: 0.0003 | J178: The frequency of use for the oncology ward in the stable disease health state, per 3 months | K178: Company submission from NICE TA391, Table 63 (UK observational study)
A179: General ward (inpatient care) resource use estimate (per 3 months) | B179: 0.04 | C179: 0.04091497786 | D179: 0.04 | E179: 0.003 | F179: gamma | G179: 177.7777778 | H179: 0.000225 | J179: The frequency of use for the general ward in the stable disease health state, per 3 months | K179: Company submission from NICE TA391, Table 63 (UK observational study)
A180: CT scan resource use estimate (per 3 months) | B180: 0.15 | C180: 0.1438859106 | D180: 0.15 | E180: 0.013 | F180: gamma | G180: 133.1360947 | H180: 0.001126666667 | J180: The frequency of use for CT scan in the stable disease health state, per 3 months | K180: Company submission from NICE TA391, Table 63 (UK observational study)
A181: MRI resource use estimate (per 3 months) | B181: 0.04 | C181: 0.04055448148 | D181: 0.04 | E181: 0.003 | F181: gamma | G181: 177.7777778 | H181: 0.000225 | J181: The frequency of use for MRI in the stable disease health state, per 3 months | K181: Company submission from NICE TA391, Table 63 (UK observational study)
A182: Bone scan resource use estimate (per 3 months) | B182: 0.09 | C182: 0.1033055032 | D182: 0.09 | E182: 0.008 | F182: gamma | G182: 126.5625 | H182: 0.0007111111111 | J182: The frequency of use for bone scan in the stable disease health state, per 3 months | K182: Company submission from NICE TA391, Table 63 (UK observational study)
A183: Ultrasound resource use estimate (per 3 months) | B183: 0.04 | C183: 0.04103166285 | D183: 0.04 | E183: 0.003 | F183: gamma | G183: 177.7777778 | H183: 0.000225 | J183: The frequency of use for the ultrasound in the stable disease health state, per 3 months | K183: Company submission from NICE TA391, Table 63 (UK observational study)
A184: Conventional x-ray resource use estimate (per 3 months) | B184: 0.13 | C184: 0.1197960397 | D184: 0.13 | E184: 0.011 | F184: gamma | G184: 139.6694215 | H184: 0.0009307692308 | J184: The frequency of use for the conventional x-ray in the stable disease health state, per 3 months | K184: Company submission from NICE TA391, Table 63 (UK observational study)
A185: Complete blood count resource use estimate (per 3 months) | B185: 4.96 | C185: 5.040809989 | D185: 4.96 | E185: 0.413 | F185: gamma | G185: 144.2325393 | H185: 0.03438891129 | J185: The frequency of use for complete blood count in the stable disease health state, per 3 months | K185: Company submission from NICE TA391, Table 63 (UK observational study)
A186: Chemistry panel resource use estimate (per 3 months) | B186: 6.06 | C186: 6.184526749 | D186: 6.06 | E186: 0.505 | F186: gamma | G186: 144 | H186: 0.04208333333 | J186: The frequency of use for the chemistry panel in the stable disease health state, per 3 months | K186: Company submission from NICE TA391, Table 63 (UK observational study)
A187: Liver function test resource use estimate (per 3 months) | B187: 2 | C187: 2.087760083 | D187: 2 | E187: 0.167 | F187: gamma | G187: 143.4257234 | H187: 0.0139445 | J187: The frequency of use for liver function test in the stable disease health state, per 3 months | K187: Company submission from NICE TA391, Table 63 (UK observational study)
A188: PSA resource use estimate (per 3 months) | B188: 2 | C188: 1.973281328 | D188: 2 | E188: 0.167 | F188: gamma | G188: 143.4257234 | H188: 0.0139445 | J188: The frequency of use for PSA in the stable disease health state, per 3 months | K188: Company submission from NICE TA391, Table 63 (UK observational study)
A189: ECG resource use estimate (per 3 months) | B189: =IF(Ind_PSA=0,D189,C189) -> 1 | C189: 0.9628333566 | D189: 1 | E189: 0.083 | F189: gamma | G189: 145.158949 | H189: 0.006889 | J189: The frequency of use for ECG in the stable disease health state, per 3 months | K189: Company submission from NICE TA391, Table 63 (UK observational study)
A190: Echocardiography resource use estimate (per 3 months) | B190: 0 | C190: =D190 -> 0 | D190: 0 | E190: 0 | F190: fixed | J190: The frequency of use for echocardiography in the stable disease health state, per 3 months | K190: Company submission from NICE TA391, Table 63 (UK observational study)
A192: Oncology ward average length of stay inpatient care (days) per visit | B192: =IF(Ind_PSA=0,D192,C192) -> 8.17 | C192: 9.81903756 | D192: 8.17 | E192: 0.681 | F192: gamma | G192: 143.929524 | H192: 0.05676389229 | J192: The average length of stay inpatient care (days) per visit for oncology ward in the stable disease health state | K192: Company submission from NICE TA391, Table 63 (UK observational study)
A193: General ward average length of stay inpatient care (days) per visit | B193: =IF(Ind_PSA=0,D193,C193) -> 8.17 | C193: 10.0790084 | D193: 8.17 | E193: 0.681 | F193: gamma | G193: 143.929524 | H193: 0.05676389229 | J193: The average length of stay inpatient care (days) per visit for general ward in the stable disease health state | K193: Company submission from NICE TA391, Table 63 (UK observational study)
A194: Costs healthcare resources in SD for Cabazitaxel and Mitoxantrone
A195: Percentage used for SE calculation for the healthcare resources costs in SD | B195: =IF(Ind_PSA=0,D195,C195) -> 0.2 | C195: =D195 -> 0.2 | D195: 0.2 | F195: fixed | J195: Assumed percentage used for SE calculation for the healthcare resources costs in SD | K195: The assumption is based on information from: National Cost Collection 2023/2024
A196: Clinical oncologist resource use unit cost (in £) per visit | B196: =IF(Ind_PSA=0,D196,C196) -> 193 | C196: =GAMMAINV(RAND(),G196,H196) -> 164.2488753 | D196: 193 | E196: =perc_SE_healthcare_resourceuse_cost_SD*D196 -> 38.6 | F196: gamma | G196: =(D196^2)/(E196^2) -> 25 | H196: =(E196^2)/(D196) -> 7.72 | J196: Health care resource use unit cost (in £) for the clinical oncology per visit | K196: National Cost Collection 2023/2024: Summary: Outpatient Attendance: Currency: WF01A: Non-Admitted Face-to-Face Attendance, Follow-up; Service code 370: Medical Oncology Service – Consultant led
A197: Urologist (outpatient care) resource use unit cost (in £) per visit | B197: 163 | C197: 143.1505706 | D197: 163 | E197: =perc_SE_healthcare_resourceuse_cost_SD*D197 -> 32.6 | F197: gamma | G197: =(D197^2)/(E197^2) -> 25 | H197: =(E197^2)/(D197) -> 6.52 | J197: Health care resource use unit cost (in £) for the urologist per visit | K197: National Cost Collection 2023/2024: Summary: Outpatient Attendance: Consultant-led; WF01A: Non-Admitted Face-to-Face Attendance, Follow-up; Service code 101: Urology
A198: Oncology ward (inpatient care) resource use unit cost (in £) per 24h | B198: 824 | C198: 1019.343249 | D198: 824 | E198: =perc_SE_healthcare_resourceuse_cost_SD*D198 -> 164.8 | F198: gamma | G198: =(D198^2)/(E198^2) -> 25 | H198: 32.96 | J198: Health care resource use unit cost (in £) for the oncology ward per 24h | K198: National Cost Collection 2023/2024: Summary: HRG Costs: Non-elective Inpatient Short Stay; Weighted average of currency codes LB06H, LB06J, LB06K, LB06L, LB06M, LB06N, LB06P, LB06Q, LB06R, LB06S
A199: General ward (inpatient care) resource use unit cost (in £) per 24 | B199: 824 | C199: 728.0377 | D199: 824 | E199: =perc_SE_healthcare_resourceuse_cost_SD*D199 -> 164.8 | F199: gamma | G199: 25 | H199: 32.96 | J199: Health care resource use unit cost (in £) for the general ward per 24h | K199: National Cost Collection 2023/2024: Summary: HRG Costs: Non-elective Inpatient Short Stay; Weighted average of currency codes LB06H, LB06J, LB06K, LB06L, LB06M, LB06N, LB06P, LB06Q, LB06R, LB06S
A200: Urology ward (inpatient care) resource use unit cost (in £) per 24 | B200: 824 | C200: =GAMMAINV(RAND(),G200,H200) -> 824.8027226 | D200: 824 | E200: =perc_SE_healthcare_resourceuse_cost_SD*D200 -> 164.8 | F200: gamma | G200: 25 | H200: 32.96 | J200: Health care resource use unit cost (in £) for the urology ward per 24h | K200: National Cost Collection 2023/2024: Summary: HRG Costs: Non-elective Inpatient Short Stay; Weighted average of currency codes LB06H, LB06J, LB06K, LB06L, LB06M, LB06N, LB06P, LB06Q, LB06R, LB06S
A201: CT scan resource use unit cost (in £) per scan | B201: 142 | C201: 149.7281255 | D201: 142 | E201: =perc_SE_healthcare_resourceuse_cost_SD*D201 -> 28.4 | F201: gamma | G201: 25 | H201: 5.68 | J201: Health care resource use unit cost (in £) for the CT scan per scan | K201: National Cost Collection 2023/2024: Total HRGs; RD22Z: Computerised Tomography Scan, one area, pre and post contrast, Total
A202: MRI resource use unit cost (in £) per scan | B202: =IF(Ind_PSA=0,D202,C202) -> 232 | C202: 228.0208763 | D202: 232 | E202: =perc_SE_healthcare_resourceuse_cost_SD*D202 -> 46.4 | F202: gamma | G202: 25 | H202: 9.28 | J202: Health care resource use unit cost (in £) for the MRI per scan | K202: National Cost Collection 2023/2024: Total HRGs; RD03Z: Magnetic Resonance Imaging Scan of one area, with pre and post contrast, directly accessed
A203: Bone scan resource use unit cost (in £) per scan | B203: =IF(Ind_PSA=0,D203,C203) -> 271 | C203: 321.0139573 | D203: 271 | E203: =perc_SE_healthcare_resourceuse_cost_SD*D203 -> 54.2 | F203: gamma | G203: 25 | H203: 10.84 | J203: Health care resource use unit cost (in £) for the bone scan per scan | K203: National Cost Collection 2023/2024: Total HRGs; RN15A: Nuclear Bone Scan of Two or Three Phases, 19 years and over, directly accessed
A204: Ultrasound resource use unit cost (in £) per scan | B204: 71 | C204: =GAMMAINV(RAND(),G204,H204) -> 72.76409908 | D204: 71 | E204: =perc_SE_healthcare_resourceuse_cost_SD*D204 -> 14.2 | F204: gamma | G204: 25 | H204: 2.84 | J204: Health care resource use unit cost (in £) for the ultrasound per scan | K204: National Cost Collection 2023/2024: Total HRGs; Weighted average of RD40Z, RD41Z, RD42Z, RD43Z, directly accessed
A205: Conventional x-ray resource use unit cost (in £) per scan | B205: 42 | C205: 42.75300734 | D205: 42 | E205: =perc_SE_healthcare_resourceuse_cost_SD*D205 -> 8.4 | F205: gamma | G205: 25 | H205: 1.68 | J205: Health care resource use unit cost (in £) for the conventional x-ray per scan | K205: National Cost Collection 2023/2024: Other Currencies; PF: Plain Film, directly accessed
A206: Complete blood count resource use unit cost (in £) per test | B206: 3 | C206: 2.336973494 | D206: 3 | E206: =perc_SE_healthcare_resourceuse_cost_SD*D206 -> 0.6 | F206: gamma | G206: 25 | H206: 0.12 | J206: Health care resource use unit cost (in £) for the complete blood count per test | K206: National Cost Collection 2023/2024: Directly Accessed Pathology Services; PATH05 - Haematology
A207: Chemistry panel resource use unit cost (in £) per test | B207: 2 | C207: 1.58727412 | D207: 2 | E207: =perc_SE_healthcare_resourceuse_cost_SD*D207 -> 0.4 | F207: gamma | G207: 25 | H207: 0.08 | J207: Health care resource use unit cost (in £) for the chemistry panel per test | K207: National Cost Collection 2023/2024: Directly Accessed Pathology Services; PATH02 – Clinical Chemistry
A208: Liver function test resource use unit cost (in £) per test | B208: 7 | C208: 9.669830448 | D208: 7 | E208: =perc_SE_healthcare_resourceuse_cost_SD*D208 -> 1.4 | F208: gamma | G208: 25 | H208: 0.28 | J208: Health care resource use unit cost (in £) for the liver function per test | K208: National Cost Collection 2023/2024: Directly Accessed Pathology Services; PATH08 - Phlebotomy
A209: PSA resource use unit cost (in £) per test | B209: 2 | C209: 1.956054121 | D209: 2 | E209: =perc_SE_healthcare_resourceuse_cost_SD*D209 -> 0.4 | F209: gamma | G209: 25 | H209: 0.08 | J209: Health care resource use unit cost (in £) for the PSA per test | K209: National Cost Collection 2023/2024: Directly Accessed Pathology Services; PATH02 – Clinical Chemistry
A210: ECG resource use unit cost (in £) per test | B210: 118 | C210: 78.46956529 | D210: 118 | E210: =perc_SE_healthcare_resourceuse_cost_SD*D210 -> 23.6 | F210: gamma | G210: 25 | H210: 4.72 | J210: Health care resource use unit cost (in £) for the ECG per test | K210: National Cost Collection 2023/2024: Total HRGs tab; EY51Z: Electrocardiogram Monitoring or Stress Testing, total
A211: Echocardiography resource use unit cost (in £) per test | B211: 116 | C211: 120.7652238 | D211: 116 | E211: =perc_SE_healthcare_resourceuse_cost_SD*D211 -> 23.2 | F211: gamma | G211: 25 | H211: 4.64 | J211: Health care resource use unit cost (in £) for the echocardiography per test | K211: National Cost Collection 2023/2024: Total HRGs; RD51A: Simple Echocardiogram, 19 years and over
A213: Post-second-line chemotherapy costs in PD for Cabazitaxel and Mitoxantrone
A215: Percentage used for SE calculation for the Docetaxel and Carbonplatin-based regimens cost per mg | B215: =IF(Ind_PSA=0,D215,C215) -> 0.1 | C215: =D215 -> 0.1 | D215: 0.1 | F215: fixed | J215: Assumed percentage used for SE calculation for the Docetaxel and Carbonplatin-based regimens cost per mg | K215: Based on own reasoning.
A216: Docetaxel cost (in £) per mg | B216: =IF(Ind_PSA=0,D216,C216) -> 0.63 | C216: =GAMMAINV(RAND(),G216,H216) -> 0.5830059895 | D216: 0.63 | E216: =perc_SD_Docetaxel_Carbonplatin*D216 -> 0.063 | F216: gamma | G216: =(D216^2)/(E216^2) -> 100 | H216: =(E216^2)/(D216) -> 0.0063 | J216: Costs of docetaxel (in £) per mg | K216: Source for this wasn't given in the instruction assignment 3. We got the value from the text below Table10 of the instructions assignment 3 word file.
A217: Carboplatin-based regimens cost (in £) per mg | B217: 0.39 | C217: =GAMMAINV(RAND(),G217,H217) -> 0.4064042955 | D217: 0.39 | E217: =perc_SD_Docetaxel_Carbonplatin*D217 -> 0.039 | F217: gamma | G217: =(D217^2)/(E217^2) -> 100 | H217: 0.0039 | J217: Costs of carboplating-based regimens (in £) per mg | K217: Source for this wasn't given in the instruction assignment 3. We got the value from the text below Table10 of the instructions assignment 3 word file.
A218: Docetaxel dosage (mg) per m2 | B218: 75 | C218: =D218 -> 75 | D218: 75 | F218: fixed | J218: The dose of docetaxel in mg/m2 | K218: Source for this wasn't given in the instruction assignment 3. We got the value from the text below Table10 of the instructions assignment 3 word file.
A219: Carboplatin-based regimens dosage (mg) per m2 | B219: 360 | C219: 360 | D219: 360 | F219: fixed | J219: The dose of carboplatin-based regimen in mg/m2 | K219: Source for this wasn't given in the instruction assignment 3. We got the value from the text below Table10 of the instructions assignment 3 word file.
A220: Docetaxel dosing per cycle | B220: 1 | C220: 1 | D220: 1 | F220: fixed | J220: The amount of times docetaxel is administered per cycle | K220: Source for this wasn't given in the instruction assignment 3. We got the value from the text below Table10 of the instructions assignment 3 word file.
A221: Carboplatin-based regimens dosing per cycle | B221: 1 | C221: 1 | D221: 1 | F221: fixed | J221: The amount of times carboplatin-based regimen are administered per cycle | K221: Source for this wasn't given in the instruction assignment 3. We got the value from the text below Table10 of the instructions assignment 3 word file.
A222: Docetaxel max number of cycles | B222: 10 | C222: 10 | D222: 10 | F222: fixed | J222: Max amount of cycles docetaxel is administered | K222: Source for this wasn't given in the instruction assignment 3. We got the value from the text below Table10 of the instructions assignment 3 word file.
A223: Carboplatin-based regimens max number of cycles | B223: 6 | C223: 6 | D223: 6 | F223: fixed | J223: Max amount of cycles carboplatin-based regimen are administered | K223: Source for this wasn't given in the instruction assignment 3. We got the value from the text below Table10 of the instructions assignment 3 word file.
A224: Mitoxantrone max number of cycles | B224: 10 | C224: =D224 -> 10 | D224: 10 | F224: fixed | J224: Max amount of cycles mitoxantrone is administered | K224: Bono et al., 2010
... 50 more rows

Sheet Costs
A1: Cost overview | Q1: Cost overview | AN1: Cost overview
A2: Stable disease | B2: All total costs are per person per cycle (except from the lump-sum; that is for all cycles included already) | Q2: Progressed disease | S2: All total costs are per person per cycle (except from the lump-sum; that is for all cycles included already) | AN2: Dead
A4: Costs adverse events | Q4: Number of patients receiving each additional line of chemotherapy for Mitoxantrone | AN4: End of life costs
B5: Adverse event grade 3 or higher | D5: Unit costs | E5: Unit costs | F5: Incidence cabazitaxel | G5: Incidence mitoxantrone | H5: Costs cabazitaxel | I5: Costs mitoxantrone | Q5: Treatment | R5: Proportion of patients | AO5: Costs per patient | AP5: Costs per patient
D6: Non-indexed | E6: 2023/2024 | H6: 2023/2024 | I6: 2023/2024 | Q6: Docetaxel | R6: =docetaxel_n_patients_post_second_chemo/(docetaxel_n_patients_post_second_chemo+carboplatin_n_patients_post_second_chemo) -> 0.6666666667 | AO6: Non-indexed | AP6: 2023/2024
B7: Neutropenia | D7: =Unit_cost_AE_neutopenia -> 389 | E7: =D7 -> 389 | F7: =p_AE_neutropenia_caba -> 0.8167115903 | G7: =p_AE_neutropenia_mito -> 0.5795148248 | H7: =E7*F7 -> 317.7008086 | I7: =E7*G7 -> 225.4312668 | Q7: Carboplatin-based regimens | R7: =carboplatin_n_patients_post_second_chemo/(docetaxel_n_patients_post_second_chemo+carboplatin_n_patients_post_second_chemo) -> 0.3333333333 | AO7: =End_of_life_costs -> 6202 | AP7: =AO7*Inflation_index_23_24 -> 6469.3062
B8: Febrile neutropenia | D8: =Unit_cost_AE_febrile_neutropenia -> 2545 | E8: =D8*Inflation_index_16_17*Inflation_index_17_18*Inflation_index_18_19*Inflation_index_19_20*Inflation_index_20_21*Inflation_index_21_22*Inflation_index_22_23*Inflation_index_23_24 -> 3212.650529 | F8: =p_AE_febrile_neutropenia_caba -> 0.07547169811 | G8: =p_AE_febrile_neutropenia_mito -> 0.01347708895 | H8: =E8*F8 -> 242.4641909 | I8: =E8*G8 -> 43.29717694
B9: Leukopenia | D9: =Unit_cost_AE_leukopenia -> 389 | E9: =D9 -> 389 | F9: =p_AE_leukopenia_caba -> 0.6819407008 | G9: =p_AE_leukopenia_mito -> 0.423180593 | H9: 265.2749326 | I9: 164.6172507 | Q9: Number of patients receiving each additional line of chemotherapy for Cabazitaxel
B10: Anaemia | D10: =unit_cost_AE_anaemia -> 393 | E10: 393 | F10: =p_AE_anaemia_caba -> 0.1051212938 | G10: =p_AE_anaemia_mito -> 0.04851752022 | H10: 41.31266846 | I10: 19.06738544 | Q10: Treatment | R10: Proportion of patients
B11: Diarrhoea | D11: =unit_cost_AE_diarrhoea -> 511 | E11: 511 | F11: =p_AE_diarrhoea_caba -> 0.06199460916 | G11: =p_AE_diarrhoea_mito -> 0.00269541779 | H11: 31.67924528 | I11: 1.377358491 | Q11: Docetaxel | R11: =docetaxel_n_patients_post_second_chemo/(docetaxel_n_patients_post_second_chemo+carboplatin_n_patients_post_second_chemo+mito_n_patients_post_second_chemo) -> 0.5454545455
B12: Fatigue | D12: =unit_cost_AE_fatigue -> 520 | E12: 520 | F12: =p_AE_fatigue_caba -> 0.04851752022 | G12: =p_AE_fatigue_mito -> 0.02964959569 | H12: 25.22911051 | I12: 15.41778976 | Q12: Carboplatin-based regimens | R12: =carboplatin_n_patients_post_second_chemo/(docetaxel_n_patients_post_second_chemo+carboplatin_n_patients_post_second_chemo+mito_n_patients_post_second_chemo) -> 0.2727272727
B13: Asthenia | D13: =unit_cost_AE_asthenia -> 520 | E13: =D13 -> 520 | F13: =p_AE_asthenia_caba -> 0.04582210243 | G13: =p_AE_asthenia_mito -> 0.02425876011 | H13: 23.82749326 | I13: 12.61455526 | Q13: Mitoxantrone | R13: =mito_n_patients_post_second_chemo/(docetaxel_n_patients_post_second_chemo+carboplatin_n_patients_post_second_chemo+mito_n_patients_post_second_chemo) -> 0.1818181818
H14: =SUM(H7:H13) -> 947.4884496 | I14: =SUM(I7:I13) -> 481.8227834 | J14: Total costs adverse events for Cabazitaxel and Mitoxantrone
A15: Drug acquisition costs in SD | Q15: Post-second-line chemotherapy mix lump-sum cost for Mitoxantrone
B16: Vial acquisition costs (in £) | C16: Body surface area (m2) | D16: Dosage (mg) per m2 | E16: Dosage per cycle (mg) | F16: Dosage (mg) per vial | G16: Number of vials needed per cycle | H16: Drug acquisition cost per cycle | Q16: Treatment | R16: Cost (in £) per mg | S16: Body surface area (m2) | T16: Dosage (mg) per m2 | U16: Dosing per cycle | V16: Dosage (mg) per cycle | W16: Costs per cycle (in £) | X16: Max number of cycles | Y16: Total lump sum costs adjusted for proportion of patients receiving each additional line of chemo | Z16: Proportion of patients from total, receiving post-second-line chemotherapy mix | AA16: Total lump sum costs adjusted for share of patients recieving post-second line chemotherapy mix | AC16: Premedication cost per cycle | AD16: Premedication cost adjusted for proportion of patients per cycle | AE16: Premedication cost adjusted for proportion of patients receiving each additional line of chemo and maximum cycle length | AF16: Total lump sum for premedication costs adjusted for share of patients receiving post-second line chemotherapy mix | AH16: Administration cost per cycle | AI16: Administration cost adjusted for proportion of patients per cycle | AJ16: Administration cost adjusted for proportion of patients and maximum cycle length | AK16: Total lump sum for administration cost adjusted for share of patients receiving post-second line chemotheraphy mix
Q17: Docetaxel | R17: =cost_post_second_line_chemo_docetaxel_permg -> 0.63 | S17: =body_surface_area -> 2.01 | T17: =post_second_line_dosage_docetaxel_perm2 -> 75 | U17: =post_second_line_chemo_dosing_docetaxel_percycle -> 1 | V17: =S17*T17*U17 -> 150.75 | W17: =V17*R17 -> 94.9725 | X17: =n_cycles_docetaxel_max -> 10 | Y17: =W17*X17*R6 -> 633.15 | Z17: =proportion_patients_further_chemo -> 0.5592841163 | AA17: =Y17*Z17 -> 354.1107383 | AC17: =SD_pre_medication_costs_mito_per_cycle -> 32.76605849 | AD17: =AC17*R6 -> 21.844039 | AE17: =AD17*X17 -> 218.44039 | AF17: =AE17*Z17 -> 122.1702405 | AH17: =SD_total_administration_cost_mito -> 480 | AI17: =AH17*R6 -> 320 | AJ17: =AI17*X17 -> 3200 | AK17: =AJ17*Z17 -> 1789.709172
A18: Cabazitaxel | B18: =Vial_acq_costs_Caba -> 151.07 | C18: =body_surface_area -> 2.01 | D18: =dosage_per_m2_Caba -> 25 | E18: =C18*D18 -> 50.25 | F18: =dosage_per_vial_Caba -> 60 | G18: =CEILING(E18/F18,1) -> 1 | H18: =G18*B18 -> 151.07 | I18: Total drug acquisition costs Cabazitaxel | Q18: Carboplatin-based regimens | R18: =cost_post_second_line_chemo_carboplatin_permg -> 0.39 | S18: =body_surface_area -> 2.01 | T18: =post_second_line_dosage_carboplatin_perm2 -> 360 | U18: =post_second_line_chemo_dosing_carboplatin_percycle -> 1 | V18: =S18*T18*U18 -> 723.6 | W18: =V18*R18 -> 282.204 | X18: =n_cycles_carboplatin_max -> 6 | Y18: =W18*X18*R7 -> 564.408 | Z18: =proportion_patients_further_chemo -> 0.5592841163 | AA18: =Y18*Z18 -> 315.6644295 | AC18: =SD_pre_medication_costs_mito_per_cycle -> 32.76605849 | AD18: =AC18*R7 -> 10.9220195 | AE18: =AD18*X18 -> 65.53211699 | AF18: =AE18*Z18 -> 36.65107214 | AH18: =SD_total_administration_cost_mito -> 480 | AI18: =AH18*R7 -> 160 | AJ18: =AI18*X18 -> 960 | AK18: =AJ18*Z18 -> 536.9127517
A19: Mitoxantrone | B19: =Vial_acq_costs_Mito -> 94.72 | C19: =body_surface_area -> 2.01 | D19: =dosage_per_m2_mito -> 12 | E19: =C19*D19 -> 24.12 | F19: =dosage_per_vial_Mito -> 20 | G19: =CEILING(E19/F19,1) -> 2 | H19: =G19*B19 -> 189.44 | I19: Total drug acquisition costs Mitoxantrone | AA19: =SUM(AA17:AA18) -> 669.7751678 | AB19: Total lump sum of drug acquisition costs for Mitoxantrone | AF19: =SUM(AF17,AF18) -> 158.8213126 | AG19: Total lumpsum of premedication costs for Mitoxantrone | AK19: =SUM(AK17:AK18) -> 2326.621924 | AL19: Total lumpsum of administration costs for Mitoxantrone
A20: Premedication costs | Q20: Post-second-line chemotherapy mix lump-sum cost for Cabazitaxel
A21: Premedication | B21: Prevalence Cabazitaxel | C21: Prevalence Mitoxantrone | D21: Costs per pack (in £) | E21: Pack size | F21: Costs per tablet (in £) | G21: Dosage (mg) | H21: Unit cost per mg (in £) for 2023/2024 | I21: Dosing per cycle | J21: Cycle cost (in £) | K21: Costs for Mitoxantrone per cycle | L21: Costs for Cabazitaxel per cycle | Q21: Treatment | R21: Cost (in £) per mg | S21: Body surface area (m2) | T21: Dosage (mg) per m2 | U21: Dosing per cycle | V21: Dosage (mg) per cycle | W21: Costs per cycle (in £) | X21: Max number of cycles | Y21: Total lump sum costs adjusted for proportion of patients receiving each additional line of chemo | Z21: Proportion of patients from total, receiving post-second-line chemotherapy mix | AA21: Total lump sum costs adjusted for share of patients recieving post-second line chemotherapy mix | AC21: Premedication cost per cycle | AD21: Premedication cost adjusted for proportion of patients per cycle | AE21: Premedication cost adjusted for proportion of patients receiving each additional line of chemo and maximum cycle length | AF21: Total lump sum for premedication costs adjusted for share of patients receiving post-second line chemotherapy mix | AH21: Administration cost per cycle | AI21: Administration cost adjusted for proportion of patients per cycle | AJ21: Administration cost adjusted for proportion of patients and maximum cycle length | AK21: Total lump sum for administration cost adjusted for share of patients receiving post-second line chemotheraphy mix
A22: Antihistamine | B22: =Antihistamine_prevalence_Caba -> 1 | C22: =Antihistamine_prevalence_Mito -> 0.09 | D22: =Antihistamine_cost_pack -> 0.38 | E22: =Antihistamine_pack_size -> 28 | F22: =D22/E22 -> 0.01357142857 | G22: - | H22: - | I22: =Antihistamine_dosing_cycle -> 1 | J22: =I22*F22 -> 0.01357142857 | K22: =J22*C22 -> 0.001221428571 | L22: =J22*B22 -> 0.01357142857 | Q22: Docetaxel | R22: =cost_post_second_line_chemo_docetaxel_permg -> 0.63 | S22: =body_surface_area -> 2.01 | T22: =post_second_line_dosage_docetaxel_perm2 -> 75 | U22: =post_second_line_chemo_dosing_docetaxel_percycle -> 1 | V22: =S22*T22*U22 -> 150.75 | W22: =R22*V22 -> 94.9725 | X22: =n_cycles_docetaxel_max -> 10 | Y22: =W22*X22*R11 -> 518.0318182 | Z22: =proportion_patients_further_chemo -> 0.5592841163 | AA22: =Y22*Z22 -> 289.7269677 | AC22: =SD_pre_medication_costs_mito_per_cycle -> 32.76605849 | AD22: =AC22*R11 -> 17.87239554 | AE22: =AD22*X22 -> 178.7239554 | AF22: =AE22*Z22 -> 99.95746948 | AH22: =SD_total_administration_cost_mito -> 480 | AI22: =AH22*R11 -> 261.8181818 | AJ22: =AI22*X22 -> 2618.181818 | AK22: =AJ22*Z22 -> 1464.307505
A23: H2 antagonist | B23: =H2_antagonist_prevalence_Caba -> 1 | C23: =H2_antagonist_prevalence_Mito -> 0.25 | D23: =H2_antagonist_costs_pack -> 5.41 | E23: =H2_antagonist_pack_size -> 60 | F23: =D23/E23 -> 0.09016666667 | G23: - | H23: - | I23: =H2_antagonist_dosing_cycle -> 1 | J23: =I23*F23 -> 0.09016666667 | K23: =J23*C23 -> 0.02254166667 | L23: =J23*B23 -> 0.09016666667 | Q23: Carboplatin-based regimens | R23: =cost_post_second_line_chemo_carboplatin_permg -> 0.39 | S23: =body_surface_area -> 2.01 | T23: =post_second_line_dosage_carboplatin_perm2 -> 360 | U23: =post_second_line_chemo_dosing_carboplatin_percycle -> 1 | V23: =S23*T23*U23 -> 723.6 | W23: =V23*R23 -> 282.204 | X23: =n_cycles_carboplatin_max -> 6 | Y23: =W23*X23*R12 -> 461.7883636 | Z23: =proportion_patients_further_chemo -> 0.5592841163 | AA23: =Z23*Y23 -> 258.2708969 | AC23: =SD_pre_medication_costs_mito_per_cycle -> 32.76605849 | AD23: =AC23*R12 -> 8.936197771 | AE23: =AD23*X23 -> 53.61718663 | AF23: =AE23*Z23 -> 29.98724084 | AH23: =SD_total_administration_cost_mito -> 480 | AI23: =AH23*R12 -> 130.9090909 | AJ23: =AI23*X23 -> 785.4545455 | AK23: =AJ23*Z23 -> 439.2922514
A24: Anti-emetics | B24: =Anti_emetics_prevalence_Caba -> 1 | C24: =Anti_emetics_prevalence_Mito -> 1 | D24: =Anti_emetics_costs_pack -> 3.5 | E24: =Anti_emetics_pack_size -> 10 | F24: =D24/E24 -> 0.35 | G24: - | H24: - | I24: =Anti_emetics_dosing_cycle -> 1 | J24: =I24*F24 -> 0.35 | K24: =J24*C24 -> 0.35 | L24: =J24*B24 -> 0.35 | Q24: Mitoxantrone | R24: - | S24: - | T24: - | U24: - | V24: - | W24: =SD_costs_drug_acquisition_per_cycle_mito -> 189.44 | X24: =n_cycles_mitoxantrone_max -> 10 | Y24: =W24*X24*R13 -> 344.4363636 | Z24: =proportion_patients_further_chemo -> 0.5592841163 | AA24: =Z24*Y24 -> 192.6377873 | AC24: =SD_pre_medication_costs_mito_per_cycle -> 32.76605849 | AD24: =AC24*R13 -> 5.957465181 | AE24: =AD24*X24 -> 59.57465181 | AF24: =AE24*Z24 -> 33.31915649 | AH24: =SD_total_administration_cost_mito -> 480 | AI24: =AH24*R13 -> 87.27272727 | AJ24: =AI24*X24 -> 872.7272727 | AK24: =AJ24*Z24 -> 488.1025015
A25: Corticosteroids | B25: =Corticosteroids_prevalence_Caba -> 1 | C25: =Corticosteroids_prevalence_Mito -> 0.56 | D25: =Corticosteroids_costs_pack -> 39.6 | E25: =Corticosteroids_pack_size -> 50 | F25: =D25/E25 -> 0.792 | G25: - | H25: - | I25: =Corticosteroids_dosing_cycle -> 1 | J25: =I25*F25 -> 0.792 | K25: =J25*C25 -> 0.44352 | L25: =J25*B25 -> 0.792 | AA25: =SUM(AA22:AA24) -> 740.6356518 | AB25: Total lump sum of drug acquisition costs for Cabazitaxel | AF25: =SUM(AF22:AF24) -> 163.2638668 | AG25: Total lumpsum of premedication costs for Cabazitaxel | AK25: =SUM(AK22:AK24) -> 2391.702257 | AL25: Total lumpsum of administration costs for Cabazitaxel
A26: Prophylaxis | B26: =Prophylaxis_prevalence_Caba -> 0.25 | C26: =Prophylaxis_prevalence_Mito -> 0.1 | D26: - | E26: - | F26: - | G26: =Prohaphylaxis_dosage*avg_body_weight -> 0.35 | H26: =Prophylaxis_unit_costs*Inflation_index_21_22*Inflation_index_22_23*Inflation_index_23_24 -> 222.6395498 | I26: =Prophylaxis_dosing_cycle -> 4.1 | J26: =G26*I26*H26 -> 319.487754 | K26: =J26*C26 -> 31.9487754 | L26: =J26*B26 -> 79.8719385 | Q26: Concomitant medication costs
K27: =SUM(K22:K26) -> 32.76605849 | L27: =SUM(L22:L26) -> 81.11767659 | M27: Total pre-medication costs for Cabazitaxel and Mitoxantrone | Q27: Concomitant medication | R27: Costs per pack (in £) | S27: Pack size | T27: Costs per tablet (in £) | U27: Dosage(tablet) per day | V27: Dosage (tablet) per cycle | W27: Cycle cost (in £) | X27: Concomitant medication cost per cycle
A28: Concomitant medication costs | Q28: Prednisolone | R28: =prednisolone_costs_per_pack -> 0.31 | S28: =prednisolone_pack_size -> 28 | T28: =R28/S28 -> 0.01107142857 | U28: =prednisolone_dosage_per_day -> 2 | V28: =U28*cycle_length_days -> 42 | W28: =T28*V28 -> 0.465 | X28: =W28 -> 0.465
A29: Concomitant medication | B29: Costs per pack (in £) | C29: Pack size | D29: Costs per tablet (in £) | E29: Dosage(tablet) per day | F29: Dosage (tablet) per cycle | G29: Cycle cost (in £) | H29: Concomitant medication cost per cycle | Q29: LHRH (leuroproreling/goserelin) | R29: - | S29: - | T29: - | U29: - | V29: - | W29: =LHRH_cycle_cost -> 77.31 | X29: =W29 -> 77.31
A30: Prednisolone | B30: =prednisolone_costs_per_pack -> 0.31 | C30: =prednisolone_pack_size -> 28 | D30: =B30/C30 -> 0.01107142857 | E30: =prednisolone_dosage_per_day -> 2 | F30: =E30*cycle_length_days -> 42 | G30: =F30*D30 -> 0.465 | H30: =G30 -> 0.465 | X30: =SUM(X28:X29) -> 77.775 | Y30: Total concomitant medication cost for mitoxantrone and cabazitaxel per cycle
A31: LHRH (leuroprorelin/goserelin) | B31: - | C31: - | D31: - | F31: - | G31: =LHRH_cycle_cost -> 77.31 | H31: =G31 -> 77.31
H32: =SUM(H30:H31) -> 77.775 | I32: Total concomitation medication cost for Mitoxantrone and Cabazitaxel per cycle | Q32: Health care resource use costs best supportive care only
A33: Chemotherapy administration cost | Q33: Health care resource use | R33: Health care resource use estimates (per 3 months) | S33: Health care resource use estimates (per cycle) | T33: Average length of stay inpatient care (days) per visit | U33: Health care resource use unit cost (in £) | V33: Health care resource use cost (in £) per cycle | W33: Total health care resource use cost (in £) per cycle
B34: Costs (in £) outpatient visit chemotherapy per cycle | C34: Hourly cost (in £) pharmacist | D34: Preparation time pharmacist (min) per administration | E34: Preparation time pharmacist (hour) per administration | F34: Costs (in £) pharmacist per cycle | G34: Total chemotherapy administration costs per cycle | Q34: Urologist (outpatient care) | R34: =Usage_PD_supportive_care_urologist_per_3_months -> 0.05 | S34: =(R34/n_weeks_3_months)*cycle_length_weeks -> 0.01153846154 | T34: - | U34: =unit_cost_urologist -> 163 | V34: =S34*U34 -> 1.880769231 | W34: =SUM(V34:V48) -> 348.1869231 | X34: for Mitoxantrone and Cabazitaxel
A35: Cabazitaxel | B35: =Cost_infusion_chemotherapy_per_cycle -> 430 | C35: =costs_hourly_pharmacist -> 50 | D35: =Prep_time_admin_caba -> 15 | E35: =calculation_minutes_to_hours*Prep_time_admin_caba -> 0.25 | F35: =costs_hourly_pharmacist*E35 -> 12.5 | G35: =B35+F35 -> 442.5 | H35: Total chemotherapy medication cost for Cabazitaxel per cycle | Q35: Oncology ward (inpatient care) | R35: =Usage_PD_supportive_care_oncology_ward_per_3_months -> 0.13 | S35: =(R35/n_weeks_3_months)*cycle_length_weeks -> 0.03 | T35: =PD_oncology_ward_length_stay_per_visit -> 6.5 | U35: =unit_cost_oncology_ward -> 824 | V35: =S35*T35*U35 -> 160.68
A36: Mitoxantrone | B36: =Cost_infusion_chemotherapy_per_cycle -> 430 | C36: =costs_hourly_pharmacist -> 50 | D36: =prep_time_admin_mito -> 60 | E36: =calculation_minutes_to_hours*prep_time_admin_mito -> 1 | F36: =costs_hourly_pharmacist*E36 -> 50 | G36: =F36+B36 -> 480 | H36: Total chemotherapy medication cost for Mitoxantrone per cycle | Q36: General ward (inpatient care) | R36: =Usage_PD_supportive_care_general_ward_per_3_months -> 0.09 | S36: =(R36/n_weeks_3_months)*cycle_length_weeks -> 0.02076923077 | T36: =PD_general_ward_length_stay_per_visit -> 6.5 | U36: =unit_cost_general_ward -> 824 | V36: =S36*T36*U36 -> 111.24
A37: Health care resource use cost | Q37: Urology ward (inpatient care) | R37: =Usage_PD_supportive_care_urology_ward_per_3_months -> 0.02 | S37: =(R37/n_weeks_3_months)*cycle_length_weeks -> 0.004615384615 | T37: =PD_urology_ward_length_stay_per_visit -> 6.5 | U37: =unit_cost_urology_ward -> 824 | V37: =S37*T37*U37 -> 24.72
A38: Health care resource use | B38: Health care resource use estimates (per 3 months) | C38: Health care resource use estimates (per cycle) | D38: Average length of stay inpatient care (days) per visit | E38: Health care resource use unit cost (in £) | F38: Health care resource use cost (in £) per cycle | G38: Total health care resource use cost (in £) per cycle | Q38: CT scan | R38: =Usage_PD_supportive_care_ct_per_3_months -> 0.47 | S38: =(R38/n_weeks_3_months)*cycle_length_weeks -> 0.1084615385 | T38: - | U38: =unit_cost_CT_scan -> 142 | V38: =S38*U38 -> 15.40153846
A39: Clinical oncologist | B39: =Usage_SD_clinical_oncologist_per_3_months -> 4.3 | C39: =(B39/n_weeks_3_months)*cycle_length_weeks -> 0.9923076923 | D39: - | E39: =unit_cost_clinical_oncologist -> 193 | F39: =E39*C39 -> 191.5153846 | G39: =SUM(F39:F53) -> 355.1136 | H39: Total health care resource use costs for Mitoxantrone and Cabazitaxel per cycle | Q39: MRI | R39: =Usage_PD_supportive_care_MRI_per_3_months -> 0.15 | S39: =(R39/n_weeks_3_months)*cycle_length_weeks -> 0.03461538462 | T39: - | U39: =unit_cost_MRI_scan -> 232 | V39: 8.030769231
A40: Urologist (outpatient care) | B40: =Usage_SD_urologist_per_3_months -> 0.07 | C40: =(B40/n_weeks_3_months)*cycle_length_weeks -> 0.01615384615 | D40: - | E40: =unit_cost_urologist -> 163 | F40: =E40*C40 -> 2.633076923 | Q40: Bone scan | R40: =Usage_PD_supportive_care_bonescan_per_3_months -> 0.14 | S40: =(R40/n_weeks_3_months)*cycle_length_weeks -> 0.03230769231 | T40: - | U40: =unit_cost_bone_scan -> 271 | V40: 8.755384615
A41: Oncology ward (inpatient care) | B41: =Usage_SD_oncology_ward_per_3_months -> 0.03 | C41: =(B41/n_weeks_3_months)*cycle_length_weeks -> 0.006923076923 | D41: =SD_oncology_ward_length_stay_per_visit -> 8.17 | E41: =unit_cost_oncology_ward -> 824 | F41: =E41*C41*D41 -> 46.60670769 | Q41: Ultrasound | R41: =Usage_PD_supportive_care_ultrasound_per_3_months -> 0 | S41: =(R41/n_weeks_3_months)*cycle_length_weeks -> 0 | T41: - | U41: =unit_cost_ultrasound -> 71 | V41: 0
A42: General ward (inpatient care) | B42: =Usage_SD_general_ward_per_3_months -> 0.04 | C42: =(B42/n_weeks_3_months)*cycle_length_weeks -> 0.009230769231 | D42: =SD_general_ward_length_stay_per_visit -> 8.17 | E42: =unit_cost_general_ward -> 824 | F42: =E42*C42*D42 -> 62.14227692 | Q42: Conventional x-ray | R42: =Usage_PD_supportive_care_xray_per_3_months -> 0.84 | S42: =(R42/n_weeks_3_months)*cycle_length_weeks -> 0.1938461538 | T42: - | U42: =unit_cost_conventional_xray -> 42 | V42: 8.141538462
A43: CT scan | B43: =Usage_SD_CT_per_3_months -> 0.15 | C43: =(B43/n_weeks_3_months)*cycle_length_weeks -> 0.03461538462 | D43: - | E43: =unit_cost_CT_scan -> 142 | F43: =E43*C43 -> 4.915384615 | Q43: Complete blood count | R43: =Usage_PD_supportive_care_bloodcount_per_3_months -> 4.12 | S43: =(R43/n_weeks_3_months)*cycle_length_weeks -> 0.9507692308 | T43: - | U43: =unit_cost_complete_blood_count -> 3 | V43: 2.852307692
A44: MRI | B44: =Usage_SD_MRI_per_3_months -> 0.04 | C44: =(B44/n_weeks_3_months)*cycle_length_weeks -> 0.009230769231 | D44: - | E44: =unit_cost_MRI_scan -> 232 | F44: 2.141538462 | Q44: Chemistry panel | R44: =Usage_PD_supportive_care_chemistry_panel_per_3_months -> 3.89 | S44: =(R44/n_weeks_3_months)*cycle_length_weeks -> 0.8976923077 | T44: - | U44: =unit_cost_chemistry_panel -> 2 | V44: 1.795384615
A45: Bone scan | B45: =Usage_SD_bone_scan_per_3_months -> 0.09 | C45: =(B45/n_weeks_3_months)*cycle_length_weeks -> 0.02076923077 | D45: - | E45: =unit_cost_bone_scan -> 271 | F45: 5.628461538 | Q45: Liver function test | R45: =Usage_PD_supportive_care_liver_function_test_per_3_months -> 2 | S45: =(R45/n_weeks_3_months)*cycle_length_weeks -> 0.4615384615 | T45: - | U45: =unit_cost_liver_function_test -> 7 | V45: 3.230769231
A46: Ultrasound | B46: =Usage_SD_ultrasound_per_3_months -> 0.04 | C46: =(B46/n_weeks_3_months)*cycle_length_weeks -> 0.009230769231 | D46: - | E46: =unit_cost_ultrasound -> 71 | F46: 0.6553846154 | Q46: PSA | R46: =Usage_PD_supportive_care_PSA_per_3_months -> 2 | S46: =(R46/n_weeks_3_months)*cycle_length_weeks -> 0.4615384615 | T46: - | U46: =unit_cost_psa -> 2 | V46: 0.9230769231
A47: Conventional x-ray | B47: =Usage_SD_xray_per_3_months -> 0.13 | C47: =(B47/n_weeks_3_months)*cycle_length_weeks -> 0.03 | D47: - | E47: =unit_cost_conventional_xray -> 42 | F47: 1.26 | Q47: ECG | R47: =Usage_PD_supportive_care_ECG_per_3_months -> 0 | S47: =(R47/n_weeks_3_months)*cycle_length_weeks -> 0 | T47: - | U47: =unit_cost_ECG -> 118 | V47: 0
A48: Complete blood count | B48: =Usage_SD_blood_count_per_3_months -> 4.96 | C48: =(B48/n_weeks_3_months)*cycle_length_weeks -> 1.144615385 | D48: - | E48: =unit_cost_complete_blood_count -> 3 | F48: 3.433846154 | Q48: Echocardiography | R48: =Usage_PD_supportive_care_echocardiography_per_3_months -> 0.02 | S48: =(R48/n_weeks_3_months)*cycle_length_weeks -> 0.004615384615 | T48: - | U48: =unit_cost_echocardiography -> 116 | V48: 0.5353846154
A49: Chemistry panel | B49: =Usage_SD_chemistry_panel_per_3_months -> 6.06 | C49: =(B49/n_weeks_3_months)*cycle_length_weeks -> 1.398461538 | D49: - | E49: =unit_cost_chemistry_panel -> 2 | F49: 2.796923077 | Q49: Health care resource use costs additional chemotherapy
A50: Liver function test | B50: =Usage_SD_liver_function_test_per_3_months -> 2 | C50: =(B50/n_weeks_3_months)*cycle_length_weeks -> 0.4615384615 | D50: - | E50: =unit_cost_liver_function_test -> 7 | F50: 3.230769231 | Q50: Health care resource use | R50: Health care resource use estimates (per 3 months) | S50: Health care resource use estimates (per cycle) | T50: Average length of stay inpatient care (days) per visit | U50: Health care resource use unit cost (in £) | V50: Health care resource use cost (in £) per cycle | W50: Total health care resource use cost (in £) per cycle
A51: PSA | B51: =Usage_SD_PSA_per_3_months -> 2 | C51: =(B51/n_weeks_3_months)*cycle_length_weeks -> 0.4615384615 | D51: - | E51: =unit_cost_psa -> 2 | F51: 0.9230769231 | Q51: Urologist (outpatient care) | R51: =Usage_PD_additional_chemo_urologist_per_3_months -> 0.4 | S51: =(R51/n_weeks_3_months)*cycle_length_weeks -> 0.09230769231 | T51: - | U51: =unit_cost_urologist -> 163 | V51: =U51*S51 -> 15.04615385 | W51: =SUM(V51:V65) -> 383.4553846 | X51: for Mitoxantrone and Cabazitaxel
A52: ECG | B52: =Usage_SD_ECG_per_3_months -> 1 | C52: =(B52/n_weeks_3_months)*cycle_length_weeks -> 0.2307692308 | D52: - | E52: =unit_cost_ECG -> 118 | F52: 27.23076923 | Q52: Oncology ward (inpatient care) | R52: =Usage_PD_additional_chemo_oncology_ward_per_3_months -> 0.2 | S52: =(R52/n_weeks_3_months)*cycle_length_weeks -> 0.04615384615 | T52: =PD_oncology_ward_length_stay_per_visit -> 6.5 | U52: =unit_cost_oncology_ward -> 824 | V52: =S52*T52*U52 -> 247.2
A53: Echocardiography | B53: =Usage_SD_echocardiography_per_3_months -> 0 | C53: =(B53/n_weeks_3_months)*cycle_length_weeks -> 0 | D53: - | E53: =unit_cost_echocardiography -> 116 | F53: 0 | Q53: General ward (inpatient care) | R53: =Usage_PD_additional_chemo_general_ward_per_3_months -> 0.06 | S53: =(R53/n_weeks_3_months)*cycle_length_weeks -> 0.01384615385 | T53: =PD_oncology_ward_length_stay_per_visit -> 6.5 | U53: =unit_cost_general_ward -> 824 | V53: =S53*T53*U53 -> 74.16
Q54: Urology ward (inpatient care) | R54: =Usage_PD_additional_chemo_urology_ward_per_3_months -> 0 | S54: =(R54/n_weeks_3_months)*cycle_length_weeks -> 0 | T54: =PD_oncology_ward_length_stay_per_visit -> 6.5 | U54: =unit_cost_urology_ward -> 824 | V54: =S54*T54*U54 -> 0
Q55: CT scan | R55: =Usage_PD_additional_chemo_ct_per_3_months -> 0.09 | S55: =(R55/n_weeks_3_months)*cycle_length_weeks -> 0.02076923077 | T55: - | U55: =unit_cost_CT_scan -> 142 | V55: =U55*S55 -> 2.949230769
Q56: MRI | R56: =Usage_PD_additional_chemo_MRI_per_3_months -> 0.13 | S56: =(R56/n_weeks_3_months)*cycle_length_weeks -> 0.03 | T56: - | U56: =unit_cost_MRI_scan -> 232 | V56: 6.96
Q57: Bone scan | R57: =Usage_PD_additional_chemo_bonescan_per_3_months -> 0 | S57: =(R57/n_weeks_3_months)*cycle_length_weeks -> 0 | T57: - | U57: =unit_cost_bone_scan -> 271 | V57: 0
Q58: Ultrasound | R58: =Usage_PD_additional_chemo_ultrasound_per_3_months -> 0.05 | S58: =(R58/n_weeks_3_months)*cycle_length_weeks -> 0.01153846154 | T58: - | U58: =unit_cost_ultrasound -> 71 | V58: 0.8192307692
Q59: Conventional x-ray | R59: =Usage_PD_additional_chemo_xray_per_3_months -> 0.05 | S59: =(R59/n_weeks_3_months)*cycle_length_weeks -> 0.01153846154 | T59: - | U59: =unit_cost_conventional_xray -> 42 | V59: 0.4846153846
Q60: Complete blood count | R60: =Usage_PD_additional_chemo_bloodcount_per_3_months -> 3.47 | S60: =(R60/n_weeks_3_months)*cycle_length_weeks -> 0.8007692308 | T60: - | U60: =unit_cost_complete_blood_count -> 3 | V60: 2.402307692
Q61: Chemistry panel | R61: =Usage_PD_additional_chemo_chemistry_panel_per_3_months -> 4.44 | S61: =(R61/n_weeks_3_months)*cycle_length_weeks -> 1.024615385 | T61: - | U61: =unit_cost_chemistry_panel -> 2 | V61: 2.049230769
Q62: Liver function test | R62: =Usage_PD_additional_chemo_liver_function_test_per_3_months -> 2 | S62: =(R62/n_weeks_3_months)*cycle_length_weeks -> 0.4615384615 | T62: - | U62: =unit_cost_liver_function_test -> 7 | V62: 3.230769231
Q63: PSA | R63: =Usage_PD_additional_chemo_PSA_per_3_months -> 2 | S63: =(R63/n_weeks_3_months)*cycle_length_weeks -> 0.4615384615 | T63: - | U63: =unit_cost_psa -> 2 | V63: 0.9230769231
Q64: ECG | R64: =Usage_PD_additional_chemo_ECG_per_3_months -> 1 | S64: =(R64/n_weeks_3_months)*cycle_length_weeks -> 0.2307692308 | T64: - | U64: =unit_cost_ECG -> 118 | V64: 27.23076923
Q65: Echocardiography | R65: =Usage_PD_additional_chemo_echocardiography_per_3_months -> 0 | S65: =(R65/n_weeks_3_months)*cycle_length_weeks -> 0 | T65: - | U65: =unit_cost_echocardiography -> 116 | V65: 0
Q66: Health care resource adjusted for proportion of patients
Q67: Total healthcare resource use costs (in £) per cycle for best supportive care only | R67: Total healthcare resource use costs (in £) per cycle for additional chemotherapy | S67: Proportion of patients from total, receiving only best supportive care | T67: Proportion of patients from total, receiving additional chemotherapy | U67: Total healthcare resource use costs (in £) per cycle for best supportive care only | V67: Total healthcare resource use costs (in £) per cycle for additional chemotherapy | W67: Overall total Healthcare resource use costs (in £) per cycle
Q68: Not-corrected for proportion of patients receiving best supportive care only | R68: Not-corrected for proportion of patients receiving additional chemo | U68: Corrected for proportion of patients receiving best supportive care | V68: Corrected for proportion of patients receiving additional chemo | W68: Corrected for proportion of patients receiving either best supportive care or additional chemo
Q69: =W34 -> 348.1869231 | R69: =W51 -> 383.4553846 | S69: =1-proportion_patients_further_chemo -> 0.4407158837 | T69: =proportion_patients_further_chemo -> 0.5592841163 | U69: =Q69*S69 -> 153.4515075 | V69: =R69*T69 -> 214.4605059 | W69: =SUM(U69:V69) -> 367.9120134 | X69: for Mitoxantrone and Cabazitaxel
Q71: Best supportive care costs
R72: Overall costs per cycle | S72: Total overall costs per cycle
R73: Non-indexed | S73: 2023/2024
Q74: Best supportive care | R74: =Best_supportive_care_costs_PD -> 41.68 | S74: =R74*Inflation_index_15_16*Inflation_index_16_17*Inflation_index_17_18*Inflation_index_18_19*Inflation_index_19_20*Inflation_index_20_21*Inflation_index_21_22*Inflation_index_22_23*Inflation_index_23_24 -> 52.82471007 | T74: for Mitoxantrone and Cabazitaxel

Sheet Utilities
B2: Disutilities adverse events
C3: IMPORTANT: Make sure the values in column C come from the Parameter sheet and that those cells have a name
B4: Adverse event | C4: Incidence cabazitaxel (%) | D4: Disutility | E4: Duration (days) | F4: Duration (years) | G4: Total disutility by incidence | H4: Total QALY lost
C5: %(n/N)
A6: Cabazitaxel | B6: Neutropenia | C6: =p_AE_neutropenia_caba -> 0.8167115903 | D6: =absolute_disutility_AE_neutropenia -> 0.09 | E6: =duration_AE_neutropenia -> 1.9 | F6: =duration_AE_neutropenia/n_days_a_year -> 0.005205479452 | G6: =C6*D6 -> 0.07350404313 | H6: =G6*F6 -> 0.0003826237861
B7: Febrile neutropenia | C7: =p_AE_febrile_neutropenia_caba -> 0.07547169811 | D7: =absolute_disutility_AE_febrile_neutropenia -> 0.12 | E7: =duration_AE_febrile_neutropenia -> 6.2 | F7: =duration_AE_febrile_neutropenia/n_days_a_year -> 0.01698630137 | G7: =C7*D7 -> 0.009056603774 | H7: =G7*F7 -> 0.0001538382011
B8: Leukopenia | C8: =p_AE_leukopenia_caba -> 0.6819407008 | D8: =absolute_disutility_AE_leukopenia -> 0.09 | E8: =duration_AE_leukopenia -> 11.1 | F8: =duration_AE_leukopenia/n_days_a_year -> 0.0304109589 | G8: 0.06137466307 | H8: 0.001866462356
B9: Anaemia | C9: =p_AE_anaemia_caba -> 0.1051212938 | D9: =absolute_disutility_AE_anaemia -> 0.125 | E9: =duration_AE_anaemia -> 25.4 | F9: =duration_AE_anaemia/n_days_a_year -> 0.0695890411 | G9: 0.01314016173 | H9: 0.0009144112543
B10: Diarrhoea | C10: =p_AE_diarrhoea_caba -> 0.06199460916 | D10: =absolute_disutility_AE_diarrhoea -> 0.047 | E10: =duration_AE_diarrhoea -> 8 | F10: =duration_AE_diarrhoea/n_days_a_year -> 0.02191780822 | G10: 0.002913746631 | H10: 6.386293985e-05
B11: Fatigue | C11: =p_AE_fatigue_caba -> 0.04851752022 | D11: =absolute_disutility_AE_fatigue -> 0.094 | E11: =duration_AE_fatigue -> 19.3 | F11: =duration_AE_fatigue/n_days_a_year -> 0.05287671233 | G11: 0.0045606469 | H11: 0.0002411520142
B12: Asthenia | C12: =p_AE_asthenia_caba -> 0.04582210243 | D12: =absolute_disutility_AE_asthenia -> 0.094 | E12: =duration_AE_asthenia -> 13.3 | F12: =duration_AE_asthenia/n_days_a_year -> 0.03643835616 | G12: 0.004307277628 | H12: 0.0001569501163
H13: =SUM(H6:H12) -> 0.003779300668
B15: Adverse event | C15: Incidence mitoxantrone (%) | D15: Disutility | E15: Duration (days) | F15: Duration (years) | G15: Total disutility by incidence | H15: Total QALY lost
C16: %(n/N)
A17: Mitoxantrone | B17: Neutropenia | C17: =p_AE_neutropenia_mito -> 0.5795148248 | D17: =absolute_disutility_AE_neutropenia -> 0.09 | E17: =duration_AE_neutropenia -> 1.9 | F17: =duration_AE_neutropenia/n_days_a_year -> 0.005205479452 | G17: =C17*D17 -> 0.05215633423 | H17: =G17*F17 -> 0.0002714987261
B18: Febrile neutropenia | C18: =p_AE_febrile_neutropenia_mito -> 0.01347708895 | D18: =absolute_disutility_AE_febrile_neutropenia -> 0.12 | E18: =duration_AE_febrile_neutropenia -> 6.2 | F18: =duration_AE_febrile_neutropenia/n_days_a_year -> 0.01698630137 | G18: =C18*D18 -> 0.001617250674 | H18: =G18*F18 -> 2.747110734e-05
B19: Leukopenia | C19: =p_AE_leukopenia_mito -> 0.423180593 | D19: =absolute_disutility_AE_leukopenia -> 0.09 | E19: =duration_AE_leukopenia -> 11.1 | F19: =duration_AE_leukopenia/n_days_a_year -> 0.0304109589 | G19: 0.03808625337 | H19: =G19*F19 -> 0.001158239486
B20: Anaemia | C20: =p_AE_anaemia_mito -> 0.04851752022 | D20: =absolute_disutility_AE_anaemia -> 0.125 | E20: =duration_AE_anaemia -> 25.4 | F20: =duration_AE_anaemia/n_days_a_year -> 0.0695890411 | G20: 0.006064690027 | H20: 0.0004220359635
B21: Diarrhoea | C21: =p_AE_diarrhoea_mito -> 0.00269541779 | D21: =absolute_disutility_AE_diarrhoea -> 0.047 | E21: =duration_AE_diarrhoea -> 8 | F21: =duration_AE_diarrhoea/n_days_a_year -> 0.02191780822 | G21: 0.0001266846361 | H21: 2.776649559e-06
B22: Fatigue | C22: =p_AE_fatigue_mito -> 0.02964959569 | D22: =absolute_disutility_AE_fatigue -> 0.094 | E22: =duration_AE_fatigue -> 19.3 | F22: =duration_AE_fatigue/n_days_a_year -> 0.05287671233 | G22: 0.002787061995 | H22: 0.0001473706753
B23: Asthenia | C23: =p_AE_asthenia_mito -> 0.02425876011 | D23: =absolute_disutility_AE_asthenia -> 0.094 | E23: =duration_AE_asthenia -> 13.3 | F23: =duration_AE_asthenia/n_days_a_year -> 0.03643835616 | G23: 0.00228032345 | H23: 8.309123805e-05
H24: =SUM(H17:H23) -> 0.002112483846
B28: These numbers have to be added to the Parameters sheet (using alpha and beta) see instructions file

Sheet Cabazitaxel+
A1: Model for Cabazitaxel+
S2: Not discounted - with half cycle correction - Display costs WITHOUT decimals | AU2: Discounted - with half cycle correction - Display costs WITHOUT decimals
G3: Number of patients in health states at start cycle | K3: Compared to previous cycle | M3: Number of patients in health state during cycle (half-cycle corrected) | S3: Costs SD | Z3: Costs PD | AI3: LYs | AL3: QALYs | AR3: Discount factors | AU3: Costs SD | BB3: Costs PD | BK3: LYs | BN3: QALYs
A4: Cycle | B4: Time in weeks | C4: Time in months | D4: OS | E4: PFS | G4: Progression free (or stable disease) | H4: Progression | I4: Death | J4: Check | K4: Newly progressed | L4: Newly died | M4: Progression free (or stable disease) | N4: Progression | O4: Death | S4: Drug acquisition costs - SD | T4: Premed costs SD | U4: Concomitant costs SD | V4: Chemo admin costs - SD | W4: HC resource use SD | X4: AE costs SD | Y4: Total costs SD | Z4: Drug acquisition costs post-progression chemo - PD | AA4: Premed costs PD | AB4: Chemo admin costs - PD | AC4: Concomitant costs PD | AD4: HC resource use PD | AE4: BSC costs | AF4: End of life costs | AG4: Total costs PD | AH4: Total Costs | AI4: Years accrued in stable disease (SD) | AJ4: Years accrued in progressed disease (PD) | AK4: Total Life-years | AL4: QALYs accrued in stable disease (SD) | AM4: QALYs accrued in progressed disease (PD) | AN4: QALYs lost due to adverse events | AO4: Total QALYs | AQ4: Year | AR4: Cost | AS4: Benefit | AU4: Drug acquisition costs - SD | AV4: Premed costs SD | AW4: Concomitant costs SD | AX4: Chemo admin costs - SD | AY4: HC resource use SD | AZ4: AE costs SD | BA4: Total costs SD | BB4: Drug acquisition costs post-progression chemo - PD | BC4: Premed costs PD | BD4: Chemo admin costs - PD | BE4: Concomitant costs PD | BF4: HC resource use PD | BG4: BSC costs | BH4: End of life costs | BI4: Total costs PD | BJ4: Total Costs | BK4: Years accrued in stable disease (SD) | BL4: Years accrued in progressed disease (PD) | BM4: Total Life-years | BN4: QALYs accrued in stable disease (SD) | BO4: QALYs accrued in progressed disease (PD) | BP4: QALYs lost due to adverse events | BQ4: Total QALYs
B6: 0 | C6: 0 | D6: =OFFSET(extrapolation!L15,0,OS_dist_choice-1,1,1) -> 1 | E6: =OFFSET(extrapolation!D15,0,PFS_dist_choice-1,1,1) -> 1 | G6: =cohort_size -> 1000 | H6: =cohort_size-G6-I6 -> 0 | I6: =cohort_size*(1-D6) -> 0 | J6: =SUM(G6:I6) -> 1000 | S6: =SD_Costs_drug_acquisition_per_cycle_caba*G6 -> 151070 | T6: =SD_pre_medication_costs_caba_per_cycle*G6 -> 81117.67659 | V6: =SD_total_administration_costs_caba*G6 -> 442500 | X6: =SD_total_costs_AE_caba*G6 -> 947488.4496 | Y6: =SUM(S6:X6) -> 1622176.126 | Z6: =PD_lumpsum_secondline_chemo_caba*K6 -> 0 | AA6: =PD_lumpsum_premedication_costs__caba*K6 -> 0 | AB6: =PD_lumpsum_administration_costs__caba*K6 -> 0 | AF6: =End_of_life_costs_per_patient*L6 -> 0 | AG6: =SUM(Z6:AF6) -> 0 | AH6: =SUM(Y6,AG6) -> 1622176.126 | AN6: =QALY_lost_AE_caba_lumpsum*G6 -> 3.779300668 | AO6: =AL6+AM6-AN6 -> -3.779300668 | AQ6: 0 | AR6: =1/(1+cDR)^AQ6 -> 1 | AS6: =1/(1+oDR)^AQ6 -> 1 | AU6: =S6*AR6 -> 151070 | AV6: =T6*AR6 -> 81117.67659 | AX6: =V6*AR6 -> 442500 | AZ6: =X6*AR6 -> 947488.4496 | BA6: =SUM(AU6:AZ6) -> 1622176.126 | BB6: =Z6*AR6 -> 0 | BC6: =AA6*AR6 -> 0 | BD6: =AB6*AR6 -> 0 | BH6: =AF6*AR6 -> 0 | BI6: =SUM(BB6:BH6) -> 0 | BJ6: =SUM(BA6,BI6) -> 1622176.126 | BP6: =AN6*AS6 -> 3.779300668 | BQ6: =BN6+BO6-BP6 -> -3.779300668
A7: 1 | B7: =+A7*3 -> 3 | C7: =+(B7/52)*12 -> 0.6923076923 | D7: =OFFSET(extrapolation!L16,0,OS_dist_choice-1,1,1) -> 0.9977637425 | E7: =OFFSET(extrapolation!D16,0,PFS_dist_choice-1,1,1) -> 0.8340399196 | G7: =cohort_size*E7 -> 834.0399196 | H7: =cohort_size-G7-I7 -> 163.7238229 | I7: =(1-D7)*cohort_size -> 2.236257473 | J7: =G7+H7+I7 -> 1000 | K7: =G6-G7 -> 165.9600804 | L7: =I7-I6 -> 2.236257473 | M7: =(G6+G7)/2 -> 917.0199598 | N7: =(H6+H7)/2 -> 81.86191147 | O7: =(I6+I7)/2 -> 1.118128736 | S7: =SD_Costs_drug_acquisition_per_cycle_caba*G7 -> 125998.4107 | T7: =SD_pre_medication_costs_caba_per_cycle*G7 -> 67655.38046 | U7: =SD_concomittant_costs_per_cycle*M7 -> 71321.22737 | V7: =SD_total_administration_costs_caba*G7 -> 369062.6644 | W7: =SD_healthcare_costs_percycle*M7 -> 325646.2592 | Y7: =SUM(S7:X7) -> 959683.9421 | Z7: =PD_lumpsum_secondline_chemo_caba*K7 -> 122915.9523 | AA7: =PD_lumpsum_premedication_costs__caba*K7 -> 27095.28446 | AB7: =PD_lumpsum_administration_costs__caba*K7 -> 396927.099 | AC7: =PD_concomitant_costs_percycle*N7 -> 6366.810165 | AD7: =PD_total_healthcare_costs_percycle*N7 -> 30117.98067 | AE7: =PD_best_supportive_care_costs_percycle*N7 -> 4324.33174 | AF7: 14467.03433 | AG7: =SUM(Z7:AF7) -> 602214.4927 | AH7: 1561898.435 | AI7: =M7*cycle_length_weeksyear -> 52.90499768 | AJ7: =N7*cycle_length_weeksyear -> 4.722802585 | AK7: =SUM(AI7:AJ7) -> 57.62780027 | AL7: =(M7*u_SD_cycle1)*cycle_length_weeksyear -> 37.24511837 | AM7: =(N7*u_SD_cycle_progressed)*cycle_length_weeksyear -> 2.961197221 | AO7: =AL7+AM7-AN7 -> 40.20631559 | AQ7: =+B7/52 -> 0.05769230769 | AR7: 0.9980172705 | AS7: 0.9980172705 | AU7: =S7*AR7 -> 125748.5899 | AV7: =T7*AR7 -> 67521.23815 | AW7: =U7*AR7 -> 71179.81667 | AX7: =V7*AR7 -> 368330.913 | AY7: =W7*AR7 -> 325000.5908 | BA7: =SUM(AU7:AZ7) -> 957781.1485 | BB7: =Z7*AR7 -> 122672.2432 | BC7: =AA7*AR7 -> 27041.56185 | BD7: =AB7*AR7 -> 396140.0999 | BE7: =AC7*AR7 -> 6354.186502 | BF7: =AD7*AR7 -> 30058.26486 | BG7: =AE7*AR7 -> 4315.757759 | BH7: =AF7*AR7 -> 14438.35012 | BI7: =SUM(BB7:BH7) -> 601020.4642 | BJ7: 1558801.613 | BK7: =(AI7*AS7) -> 52.80010138 | BL7: =(AJ7*AS7) -> 4.713438545 | BM7: =SUM(BK7:BL7) -> 57.51353993 | BN7: =AL7*AS7 -> 37.17127137 | BO7: =AM7*AS7 -> 2.955325968 | BQ7: =BN7+BO7-BP7 -> 40.12659734
A8: 2 | B8: =+A8*3 -> 6 | C8: =+(B8/52)*12 -> 1.384615385 | D8: =OFFSET(extrapolation!L17,0,OS_dist_choice-1,1,1) -> 0.9912726256 | E8: =OFFSET(extrapolation!D17,0,PFS_dist_choice-1,1,1) -> 0.7051357318 | G8: =cohort_size*E8 -> 705.1357318 | H8: 286.1368938 | I8: =(1-D8)*cohort_size -> 8.727374351 | J8: =G8+H8+I8 -> 1000 | K8: =G7-G8 -> 128.9041878 | L8: =I8-I7 -> 6.491116878 | M8: =(G7+G8)/2 -> 769.5878257 | N8: =(H7+H8)/2 -> 224.9303584 | O8: 5.481815912 | S8: =SD_Costs_drug_acquisition_per_cycle_caba*G8 -> 106524.855 | T8: =SD_pre_medication_costs_caba_per_cycle*G8 -> 57198.97225 | U8: =SD_concomittant_costs_per_cycle*M8 -> 59854.69314 | V8: =SD_total_administration_costs_caba*G8 -> 312022.5613 | W8: =SD_healthcare_costs_percycle*M8 -> 273291.1033 | Y8: 808892.185 | Z8: =PD_lumpsum_secondline_chemo_caba*K8 -> 95471.03713 | AA8: =PD_lumpsum_premedication_costs__caba*K8 -> 21045.39614 | AB8: 308300.4369 | AC8: =PD_concomitant_costs_percycle*N8 -> 17493.95862 | AD8: 82754.58103 | AE8: =PD_best_supportive_care_costs_percycle*N8 -> 11881.88097 | AF8: 41993.02267 | AG8: 578940.3135 | AH8: 1387832.498 | AI8: =M8*cycle_length_weeksyear -> 44.39929764 | AJ8: =N8*cycle_length_weeksyear -> 12.97675145 | AK8: =SUM(AI8:AJ8) -> 57.37604908 | AL8: =(M8*u_SD_cycle2)*cycle_length_weeksyear -> 32.32268868 | AM8: =(N8*u_SD_cycle_progressed)*cycle_length_weeksyear -> 8.136423156 | AO8: 40.45911184 | AQ8: =+B8/52 -> 0.1153846154 | AR8: 0.9960384722 | AS8: 0.9960384722 | AU8: 106102.8538 | AV8: 56972.37693 | AW8: 59617.57712 | AX8: 310786.4753 | AY8: 272208.453 | BA8: 805687.7362 | BB8: 95092.82597 | BC8: 20962.02422 | BD8: 307079.0962 | BE8: 17424.65582 | BF8: =AD8*AR8 -> 82426.74646 | BG8: 11834.81057 | BH8: =AF8*AR8 -> 41826.66614 | BI8: =SUM(BB8:BH8) -> 576646.8253 | BJ8: 1382334.562 | BK8: =(AI8*AS8) -> 44.22340859 | BL8: =(AJ8*AS8) -> 12.92534368 | BM8: =SUM(BK8:BL8) -> 57.14875227 | BN8: =AL8*AS8 -> 32.19464145 | BO8: =AM8*AS8 -> 8.10419049 | BQ8: 40.29883194
A9: 3 | B9: 9 | C9: 2.076923077 | D9: =OFFSET(extrapolation!L18,0,OS_dist_choice-1,1,1) -> 0.9807760356 | E9: =OFFSET(extrapolation!D18,0,PFS_dist_choice-1,1,1) -> 0.5990055522 | G9: 599.0055522 | H9: 381.7704834 | I9: 19.22396436 | J9: 1000 | K9: 106.1301796 | L9: 10.49659001 | M9: =(G8+G9)/2 -> 652.070642 | N9: 333.9536886 | O9: 13.97566935 | S9: =SD_Costs_drug_acquisition_per_cycle_caba*G9 -> 90491.76878 | T9: =SD_pre_medication_costs_caba_per_cycle*G9 -> 48589.93866 | U9: =SD_concomittant_costs_per_cycle*M9 -> 50714.79418 | V9: =SD_total_administration_costs_caba*G9 -> 265059.9569 | W9: =SD_healthcare_costs_percycle*M9 -> 231559.1531 | Y9: 686415.6116 | Z9: =PD_lumpsum_secondline_chemo_caba*K9 -> 78603.79473 | AA9: =PD_lumpsum_premedication_costs__caba*K9 -> 17327.2235 | AB9: 253831.7901 | AC9: =PD_concomitant_costs_percycle*N9 -> 25973.24813 | AD9: 122865.574 | AE9: =PD_best_supportive_care_costs_percycle*N9 -> 17641.00678 | AF9: 67905.65481 | AG9: 584148.292 | AH9: 1270563.904 | AI9: =M9*cycle_length_weeksyear -> 37.61946012 | AJ9: =N9*cycle_length_weeksyear -> 19.26655896 | AK9: 56.88601908 | AL9: =(M9*u_SD_cycle3)*cycle_length_weeksyear -> 27.38696697 | AM9: =(N9*u_SD_cycle_progressed)*cycle_length_weeksyear -> 12.08013247 | AO9: 39.46709943 | AQ9: =+B9/52 -> 0.1730769231 | AR9: 0.9940635974 | AS9: =1/(1+oDR)^AQ9 -> 0.9940635974 | AU9: 89954.5732 | AV9: 48301.48923 | AW9: 50413.73075 | AX9: 263486.4542 | AY9: 230184.5248 | BA9: 682340.7722 | BB9: 78137.17096 | BC9: 17224.36213 | BD9: 252324.9424 | BE9: 25819.06047 | BF9: 122136.1945 | BG9: 17536.28266 | BH9: 67502.53951 | BI9: 580680.5526 | BJ9: 1263021.325 | BK9: =(AI9*AS9) -> 37.39613586 | BL9: 19.15218491 | BM9: 56.54832076 | BN9: 27.2243869 | BO9: 12.00841994 | BQ9: 39.23280684
A10: 4 | B10: 12 | C10: 2.769230769 | D10: =OFFSET(extrapolation!L19,0,OS_dist_choice-1,1,1) -> 0.9665712029 | E10: =OFFSET(extrapolation!D19,0,PFS_dist_choice-1,1,1) -> 0.5103898209 | G10: 510.3898209 | H10: 456.181382 | I10: 33.42879708 | J10: 1000 | K10: 88.61573132 | L10: =I10-I9 -> 14.20483272 | M10: 554.6976866 | N10: 418.9759327 | O10: 26.32638072 | S10: =SD_Costs_drug_acquisition_per_cycle_caba*G10 -> 77104.59025 | T10: =SD_pre_medication_costs_caba_per_cycle*G10 -> 41401.63643 | U10: =SD_concomittant_costs_per_cycle*M10 -> 43141.61257 | V10: =SD_total_administration_costs_caba*G10 -> 225847.4958 | W10: =SD_healthcare_costs_percycle*M10 -> 196980.6924 | Y10: 584476.0274 | Z10: =PD_lumpsum_secondline_chemo_caba*K10 -> 65631.96993 | AA10: =PD_lumpsum_premedication_costs__caba*K10 -> 14467.74696 | AB10: 211942.4446 | AC10: =PD_concomitant_costs_percycle*N10 -> 32585.85317 | AD10: 154146.279 | AE10: =PD_best_supportive_care_costs_percycle*N10 -> 22132.28217 | AF10: 91895.41241 | AG10: 592801.9883 | AH10: 1177278.016 | AI10: =M10*cycle_length_weeksyear -> 32.00178961 | AJ10: =N10*cycle_length_weeksyear -> 24.17168843 | AK10: 56.17347804 | AL10: =(M10*u_SD_cycle4)*cycle_length_weeksyear -> 24.00134221 | AM10: =(N10*u_SD_cycle_progressed)*cycle_length_weeksyear -> 15.15564864 | AO10: 39.15699085 | AQ10: 0.2307692308 | AR10: 0.9920926382 | AS10: =1/(1+oDR)^AQ10 -> 0.9920926382 | AU10: 76494.89635 | AV10: 41074.25871 | AW10: 42800.47623 | AX10: 224061.6379 | AY10: 195423.0948 | BA10: 579854.364 | BB10: 65112.99419 | BC10: 14353.34525 | BD10: 210266.539 | BE10: 32328.18504 | BF10: 152927.3886 | BG10: 21957.27421 | BH10: 91168.76214 | BI10: 588114.4885 | BJ10: 1167968.852 | BK10: 31.74873988 | BL10: 23.98055414 | BM10: 55.72929402 | BN10: 23.81155491 | BO10: 15.03580745 | BQ10: 38.84736236
A11: 5 | B11: 15 | C11: 3.461538462 | D11: =OFFSET(extrapolation!L20,0,OS_dist_choice-1,1,1) -> 0.9490143241 | E11: =OFFSET(extrapolation!D20,0,PFS_dist_choice-1,1,1) -> 0.4358464214 | G11: 435.8464214 | H11: 513.1679027 | I11: 50.98567593 | J11: 1000 | K11: 74.5433995 | L11: 17.55687885 | M11: 473.1181212 | N11: 484.6746423 | O11: 42.20723651 | S11: =SD_Costs_drug_acquisition_per_cycle_caba*G11 -> 65843.31888 | T11: =SD_pre_medication_costs_caba_per_cycle*G11 -> 35354.84906 | U11: =SD_concomittant_costs_per_cycle*M11 -> 36796.76187 | V11: =SD_total_administration_costs_caba*G11 -> 192862.0415 | W11: =SD_healthcare_costs_percycle*M11 -> 168010.6792 | Y11: 498867.6505 | Z11: =PD_lumpsum_secondline_chemo_caba*K11 -> 55209.49928 | AA11: =PD_lumpsum_premedication_costs__caba*K11 -> 12170.24365 | AB11: 178285.6169 | AC11: =PD_concomitant_costs_percycle*N11 -> 37695.57031 | AD11: 178317.6235 | AE11: =PD_best_supportive_care_costs_percycle*N11 -> 25602.79746 | AF11: 113580.8252 | AG11: 600862.1763 | AH11: 1099729.827 | AI11: =M11*cycle_length_weeksyear -> 27.29527622 | AJ11: =N11*cycle_length_weeksyear -> 27.9619986 | AK11: 55.25727482 | AL11: =(M11*u_SD_cycle5)*cycle_length_weeksyear -> 20.55334299 | AM11: =(N11*u_SD_cycle_progressed)*cycle_length_weeksyear -> 17.53217312 | AO11: 38.08551611 | AQ11: 0.2884615385 | AR11: 0.9901255869 | AS11: 0.9901255869 | AU11: 65193.15475 | AV11: 35005.74067 | AW11: 36433.41544 | AX11: 190957.642 | AY11: 166351.6724 | BA11: 493941.6252 | BB11: 54664.33787 | BC11: 12050.06963 | BD11: 176525.151 | BE11: 37323.34867 | BF11: 176556.8416 | BG11: 25349.98486 | BH11: 112459.2812 | BI11: 594929.0149 | BJ11: 1088870.64 | BK11: 27.02575139 | BL11: 27.68589027 | BM11: 54.71164166 | BN11: 20.35039079 | BO11: 17.3590532 | BQ11: 37.70944399
A12: 6 | B12: 18 | C12: 4.153846154 | D12: =OFFSET(extrapolation!L21,0,OS_dist_choice-1,1,1) -> 0.9285083492 | E12: =OFFSET(extrapolation!D21,0,PFS_dist_choice-1,1,1) -> 0.3728384238 | G12: 372.8384238 | H12: 555.6699255 | I12: 71.49165079 | J12: 1000 | K12: 63.00799766 | L12: 20.50597486 | M12: 404.3424226 | N12: 534.4189141 | O12: 61.23866336 | S12: =SD_Costs_drug_acquisition_per_cycle_caba*G12 -> 56324.70068 | T12: =SD_pre_medication_costs_caba_per_cycle*G12 -> 30243.78668 | U12: =SD_concomittant_costs_per_cycle*M12 -> 31447.73192 | V12: =SD_total_administration_costs_caba*G12 -> 164981.0025 | W12: =SD_healthcare_costs_percycle*M12 -> 143587.4933 | Y12: 426584.7151 | Z12: =PD_lumpsum_secondline_chemo_caba*K12 -> 46665.96942 | AA12: =PD_lumpsum_premedication_costs__caba*K12 -> 10286.92934 | AB12: 150696.3703 | AC12: =PD_concomitant_costs_percycle*N12 -> 41564.43104 | AD12: 196619.1387 | AE12: =PD_best_supportive_care_costs_percycle*N12 -> 28230.52419 | AF12: 132659.4303 | AG12: 606722.7933 | AH12: 1033307.508 | AI12: =M12*cycle_length_weeksyear -> 23.32744746 | AJ12: =N12*cycle_length_weeksyear -> 30.83186043 | AK12: 54.15930788 | AL12: =(M12*u_SD_cycle6)*cycle_length_weeksyear -> 17.54224049 | AM12: =(N12*u_SD_cycle_progressed)*cycle_length_weeksyear -> 19.33157649 | AO12: 36.87381697 | AQ12: 0.3461538462 | AR12: 0.9881624357 | AS12: 0.9881624357 | AU12: 55657.95341 | AV12: 29885.77391 | AW12: 31075.46737 | AX12: 163028.0293 | AY12: 141887.7671 | BA12: 421534.9911 | BB12: 46113.55801 | BC12: 10165.15715 | BD12: 148912.4923 | BE12: 41072.40941 | BF12: 194291.647 | BG12: 27896.34355 | BH12: 131089.0658 | BI12: 599540.6732 | BJ12: 1021075.664 | BK12: 23.0513073 | BL12: 30.4668863 | BM12: 53.51819359 | BN12: 17.33458309 | BO12: 19.10273771 | BQ12: 36.43732079
A13: 7 | B13: 21 | C13: 4.846153846 | D13: =OFFSET(extrapolation!L22,0,OS_dist_choice-1,1,1) -> 0.9054860225 | E13: =OFFSET(extrapolation!D22,0,PFS_dist_choice-1,1,1) -> 0.3193963128 | G13: 319.3963128 | H13: 586.0897098 | I13: 94.51397746 | J13: 1000 | K13: 53.44211098 | L13: 23.02232667 | M13: 346.1173683 | N13: 570.8798176 | O13: 83.00281413 | S13: =SD_Costs_drug_acquisition_per_cycle_caba*G13 -> 48251.20097 | T13: =SD_pre_medication_costs_caba_per_cycle*G13 -> 25908.6868 | U13: =SD_concomittant_costs_per_cycle*M13 -> 26919.27832 | V13: =SD_total_administration_costs_caba*G13 -> 141332.8684 | W13: =SD_healthcare_costs_percycle*M13 -> 122910.9847 | Y13: 365323.0192 | Z13: =PD_lumpsum_secondline_chemo_caba*K13 -> 39581.1327 | AA13: =PD_lumpsum_premedication_costs__caba*K13 -> 8725.165689 | AB13: 127817.6175 | AC13: =PD_concomitant_costs_percycle*N13 -> 44400.17781 | AD13: 210033.5431 | AE13: =PD_best_supportive_care_costs_percycle*N13 -> 30156.56085 | AF13: 148938.4807 | AG13: 609652.6783 | AH13: 974975.6975 | AI13: =M13*cycle_length_weeksyear -> 19.96830971 | AJ13: =N13*cycle_length_weeksyear -> 32.93537409 | AK13: 52.9036838 | AL13: =(M13*u_SD_cycle7)*cycle_length_weeksyear -> 15.53534495 | AM13: =(N13*u_SD_cycle_progressed)*cycle_length_weeksyear -> 20.65047956 | AO13: 36.18582451 | AQ13: 0.4038461538 | AR13: 0.9862031769 | AS13: 0.9862031769 | AU13: 47585.48769 | AV13: 25551.22924 | AW13: 26547.87779 | AX13: 139382.9238 | AY13: 121215.2036 | BA13: 360282.7221 | BB13: 39035.03881 | BC13: 8604.786121 | BD13: 126054.1404 | BE13: 43787.59641 | BF13: 207135.7475 | BG13: 29740.49612 | BH13: 146883.6028 | BI13: 601241.4081 | BJ13: 961524.1302 | BK13: 19.69281047 | BL13: 32.48097056 | BM13: 52.17378103 | BN13: 15.32100655 | BO13: 20.36556854 | BQ13: 35.68657509
A14: 8 | B14: 24 | C14: 5.538461538 | D14: =OFFSET(extrapolation!L23,0,OS_dist_choice-1,1,1) -> 0.8803922034 | E14: =OFFSET(extrapolation!D23,0,PFS_dist_choice-1,1,1) -> 0.2739473513 | G14: 273.9473513 | H14: 606.4448521 | I14: 119.6077966 | J14: 1000 | K14: 45.44896144 | L14: 25.09381915 | M14: 296.6718321 | N14: 596.2672809 | O14: 107.060887 | S14: =SD_Costs_drug_acquisition_per_cycle_caba*G14 -> 41385.22637 | T14: =SD_pre_medication_costs_caba_per_cycle*G14 -> 22221.97265 | U14: =SD_concomittant_costs_per_cycle*M14 -> 23073.65174 | V14: =SD_total_administration_costs_caba*G14 -> 121221.703 | W14: =SD_healthcare_costs_percycle*M14 -> 105352.2023 | Y14: 313254.756 | Z14: =PD_lumpsum_secondline_chemo_caba*K14 -> 33661.12118 | AA14: =PD_lumpsum_premedication_costs__caba*K14 -> 7420.173188 | AB14: 108700.3837 | AC14: =PD_concomitant_costs_percycle*N14 -> 46374.68777 | AD14: 219373.8959 | AE14: =PD_best_supportive_care_costs_percycle*N14 -> 31497.64624 | AF14: 162339.5998 | AG14: 609367.5078 | AH14: 922622.2638 | AI14: =M14*cycle_length_weeksyear -> 17.11568262 | AJ14: =N14*cycle_length_weeksyear -> 34.40003544 | AK14: 51.51571806 | AL14: =(M14*u_SD_cycle8)*cycle_length_weeksyear -> 13.50427359 | AM14: =(N14*u_SD_cycle_progressed)*cycle_length_weeksyear -> 21.56882222 | AO14: 35.0730958 | AQ14: 0.4615384615 | AR14: 0.9842478028 | AS14: 0.9842478028 | AU14: 40733.31812 | AV14: 21871.92775 | AW14: 22710.19102 | AX14: 119312.1948 | AY14: 103692.6736 | BA14: 308320.3053 | BB14: 33130.88456 | BC14: 7303.289156 | BD14: 106988.1138 | BE14: 45644.18454 | BF14: 215918.275 | BG14: 31001.48911 | BH14: 159782.3944 | BI14: 599768.6306 | BJ14: 908088.9359 | BK14: 16.84607301 | BL14: 33.85815929 | BM14: 50.7042323 | BN14: 13.2915516 | BO14: 21.22906588 | BQ14: 34.52061748
A15: 9 | B15: 27 | C15: 6.230769231 | D15: =OFFSET(extrapolation!L24,0,OS_dist_choice-1,1,1) -> 0.8536674763 | E15: =OFFSET(extrapolation!D24,0,PFS_dist_choice-1,1,1) -> 0.235213642 | G15: 235.213642 | H15: 618.4538342 | I15: 146.3325237 | J15: 1000 | K15: 38.73370929 | L15: 26.72472712 | M15: 254.5804967 | N15: 612.4493431 | O15: 132.9701602 | S15: =SD_Costs_drug_acquisition_per_cycle_caba*G15 -> 35533.7249 | T15: =SD_pre_medication_costs_caba_per_cycle*G15 -> 19079.98415 | U15: =SD_concomittant_costs_per_cycle*M15 -> 19799.99813 | V15: =SD_total_administration_costs_caba*G15 -> 104082.0366 | W15: =SD_healthcare_costs_percycle*M15 -> 90404.99667 | Y15: 268900.7404 | Z15: =PD_lumpsum_secondline_chemo_caba*K15 -> 28687.56603 | AA15: =PD_lumpsum_premedication_costs__caba*K15 -> 6323.815155 | AB15: 92639.49996 | AC15: =PD_concomitant_costs_percycle*N15 -> 47633.24766 | AD15: 225327.471 | AE15: =PD_best_supportive_care_costs_percycle*N15 -> 32352.45899 | AF15: 172890.4429 | AG15: 605854.5016 | AH15: 874755.2421 | AI15: =M15*cycle_length_weeksyear -> 14.68733635 | AJ15: =N15*cycle_length_weeksyear -> 35.33361595 | AK15: 50.0209523 | AL15: =(M15*u_SD_cycle9)*cycle_length_weeksyear -> 11.79393109 | AM15: =(N15*u_SD_cycle_progressed)*cycle_length_weeksyear -> 22.1541772 | AO15: 33.94810829 | AQ15: 0.5192307692 | AR15: 0.9822963056 | AS15: 0.9822963056 | AU15: 34904.6467 | AV15: 18742.19794 | AW15: 19449.46501 | AX15: 102239.4 | AY15: 88804.49424 | BA15: 264140.2039 | BB15: 28179.69013 | BC15: 6211.860264 | BD15: 90999.43856 | BE15: 46789.9632 | BF15: 221338.3423 | BG15: 31779.70094 | BH15: 169829.6433 | BI15: 595128.6387 | BJ15: 859268.8426 | BK15: 14.42731623 | BL15: 34.70808041 | BM15: 49.13539665 | BN15: 11.58513494 | BO15: 21.76196642 | BQ15: 33.34710135
A16: 10 | B16: 30 | C16: 6.923076923 | D16: =OFFSET(extrapolation!L25,0,OS_dist_choice-1,1,1) -> 0.8257342242 | E16: =OFFSET(extrapolation!D25,0,PFS_dist_choice-1,1,1) -> 0.2021446804 | G16: 202.1446804 | H16: 623.5895438 | I16: 174.2657758 | J16: 1000 | K16: 33.06896163 | L16: 27.93325206 | M16: 218.6791612 | N16: 621.021689 | O16: 160.2991498 | U16: =SD_concomittant_costs_per_cycle*M16 -> 17007.77176 | W16: =SD_healthcare_costs_percycle*M16 -> 77655.94419 | Y16: 94663.71595 | Z16: =PD_lumpsum_secondline_chemo_caba*K16 -> 24492.05195 | AA16: =PD_lumpsum_premedication_costs__caba*K16 -> 5398.966547 | AB16: 79091.11018 | AC16: =PD_concomitant_costs_percycle*N16 -> 48299.96186 | AD16: 228481.34 | AE16: =PD_best_supportive_care_costs_percycle*N16 -> 32805.29067 | AF16: 180708.7607 | AG16: 599277.4819 | AH16: 693941.1979 | AI16: =M16*cycle_length_weeksyear -> 12.61610546 | AJ16: =N16*cycle_length_weeksyear -> 35.82817437 | AK16: 48.44427982 | AL16: =(M16*u_SD_cycle10_after)*cycle_length_weeksyear -> 10.33259037 | AM16: =(N16*u_SD_cycle_progressed)*cycle_length_weeksyear -> 22.46426533 | AO16: 32.7968557 | AQ16: 0.5769230769 | AR16: 0.9803486778 | AS16: 0.9803486778 | AW16: 16673.54656 | AY16: 76129.9022 | BA16: 92803.44877 | BB16: 24010.75074 | BC16: 5292.869715 | BD16: 77536.86529 | BE16: 47350.80375 | BF16: 223991.3795 | BG16: 32160.62333 | BH16: 177157.5946 | BI16: 587500.887 | BJ16: 680304.3358 | BK16: 12.3681823 | BL16: 35.12410337 | BM16: 47.49228567 | BN16: 10.1295413 | BO16: 22.02281281 | BQ16: 32.15235412
A17: 11 | B17: 33 | C17: 7.615384615 | D17: =OFFSET(extrapolation!L26,0,OS_dist_choice-1,1,1) -> 0.796985768 | E17: =OFFSET(extrapolation!D26,0,PFS_dist_choice-1,1,1) -> 0.1738696731 | G17: 173.8696731 | H17: 623.1160949 | I17: 203.014232 | J17: 1000 | K17: 28.27500727 | L17: 28.7484562 | M17: 188.0071768 | N17: 623.3528193 | O17: 188.6400039 | U17: =SD_concomittant_costs_per_cycle*M17 -> 14622.25817 | W17: =SD_healthcare_costs_percycle*M17 -> 66763.90537 | Y17: 81386.16354 | Z17: =PD_lumpsum_secondline_chemo_caba*K17 -> 20941.47844 | AA17: =PD_lumpsum_premedication_costs__caba*K17 -> 4616.287021 | AB17: 67625.39871 | AC17: =PD_concomitant_costs_percycle*N17 -> 48481.26552 | AD17: 229338.9908 | AE17: =PD_best_supportive_care_costs_percycle*N17 -> 32928.43196 | AF17: 185982.5659 | AG17: 589914.4184 | AH17: 671300.5819 | AI17: =M17*cycle_length_weeksyear -> 10.84656789 | AJ17: =N17*cycle_length_weeksyear -> 35.96266265 | AK17: 46.80923054 | AL17: =(M17*u_SD_cycle10_after)*cycle_length_weeksyear -> 8.883339103 | AM17: =(N17*u_SD_cycle_progressed)*cycle_length_weeksyear -> 22.54858948 | AO17: 31.43192859 | AQ17: 0.6346153846 | AR17: 0.9784049115 | AS17: 0.9784049115 | AW17: 14306.48922 | AY17: 65322.13293 | BA17: 79628.62214 | BB17: 20489.24536 | BC17: 4516.597894 | BD17: 66165.02224 | BE17: 47434.30831 | BF17: 224386.395 | BG17: 32217.33955 | BH17: 181966.256 | BI17: 577175.1643 | BJ17: 656803.7865 | BK17: 10.6123353 | BL17: 35.18604577 | BM17: 45.79838107 | BN17: 8.691502609 | BO17: 22.0616507 | BQ17: 30.75315331
A18: 12 | B18: 36 | C18: 8.307692308 | D18: =OFFSET(extrapolation!L27,0,OS_dist_choice-1,1,1) -> 0.7677787308 | E18: =OFFSET(extrapolation!D27,0,PFS_dist_choice-1,1,1) -> 0.1496622819 | G18: 149.6622819 | H18: 618.116449 | I18: 232.2212692 | J18: 1000 | K18: 24.20739127 | L18: 29.20703716 | M18: 161.7659775 | N18: 620.6162719 | O18: 217.6177506 | U18: =SD_concomittant_costs_per_cycle*M18 -> 12581.3489 | W18: =SD_healthcare_costs_percycle*M18 -> 57445.29863 | Y18: 70026.64753 | Z18: =PD_lumpsum_secondline_chemo_caba*K18 -> 17928.85701 | AA18: =PD_lumpsum_premedication_costs__caba*K18 -> 3952.192304 | AB18: 57896.87235 | AC18: =PD_concomitant_costs_percycle*N18 -> 48268.43055 | AD18: 228332.1822 | AE18: =PD_best_supportive_care_costs_percycle*N18 -> 32783.87463 | AF18: 188949.2666 | AG18: 578111.6756 | AH18: 648138.3231 | AI18: =M18*cycle_length_weeksyear -> 9.332652548 | AJ18: =N18*cycle_length_weeksyear -> 35.80478492 | AK18: 45.13743747 | AL18: =(M18*u_SD_cycle10_after)*cycle_length_weeksyear -> 7.643442437 | AM18: =(N18*u_SD_cycle_progressed)*cycle_length_weeksyear -> 22.44960014 | AO18: 30.09304258 | AQ18: 0.6923076923 | AR18: 0.9764649993 | AS18: 0.9764649993 | AW18: 12285.24685 | AY18: 56093.32349 | BA18: 68378.57033 | BB18: 17506.90135 | BC18: 3859.177456 | BD18: 56534.26942 | BE18: 47132.433 | BF18: 222958.3841 | BG18: 32012.30612 | BH18: 184502.3455 | BI18: 564505.8169 | BJ18: 632884.3872 | BK18: 9.113008564 | BL18: 34.96211928 | BM18: 44.07512784 | BN18: 7.463554014 | BO18: 21.92124879 | BQ18: 29.3848028
A19: 13 | B19: 39 | C19: 9 | D19: =OFFSET(extrapolation!L28,0,OS_dist_choice-1,1,1) -> 0.7384284591 | E19: =OFFSET(extrapolation!D28,0,PFS_dist_choice-1,1,1) -> 0.1289137191 | G19: 128.9137191 | H19: 609.51474 | I19: 261.5715409 | J19: 1000 | K19: 20.74856273 | L19: 29.35027175 | M19: 139.2880005 | N19: 613.8155945 | O19: 246.896405 | U19: =SD_concomittant_costs_per_cycle*M19 -> 10833.12424 | W19: =SD_healthcare_costs_percycle*M19 -> 49463.0633 | Y19: 60296.18754 | Z19: =PD_lumpsum_secondline_chemo_caba*K19 -> 15367.12528 | AA19: =PD_lumpsum_premedication_costs__caba*K19 -> 3387.490582 | AB19: 49624.38431 | AC19: =PD_concomitant_costs_percycle*N19 -> 47739.50786 | AD19: 225830.1312 | AE19: =PD_best_supportive_care_costs_percycle*N19 -> 32424.63082 | AF19: 189875.895 | AG19: 564249.1651 | AH19: 624545.3526 | AI19: =M19*cycle_length_weeksyear -> 8.035846183 | AJ19: =N19*cycle_length_weeksyear -> 35.41243814 | AK19: 43.44828433 | AL19: =(M19*u_SD_cycle10_after)*cycle_length_weeksyear -> 6.581358024 | AM19: =(N19*u_SD_cycle_progressed)*cycle_length_weeksyear -> 22.20359872 | AO19: 28.78495674 | AQ19: 0.75 | AR19: 0.9745289333 | AS19: 0.9745289333 | AW19: 10557.19301 | AY19: 48203.18631 | BA19: 58760.37932 | BB19: 14975.70821 | BC19: 3301.207583 | BD19: 48360.39831 | BE19: 46523.53167 | BF19: 220077.9969 | BG19: 31598.74088 | BH19: 185039.5534 | BI19: 549877.137 | BJ19: 608637.5163 | BK19: 7.831164609 | BL19: 34.51044557 | BM19: 42.34161018 | BN19: 6.413723815 | BO19: 21.63804937 | BQ19: 28.05177319
A20: 14 | B20: 42 | C20: 9.692307692 | D20: =OFFSET(extrapolation!L29,0,OS_dist_choice-1,1,1) -> 0.7092071139 | E20: =OFFSET(extrapolation!D29,0,PFS_dist_choice-1,1,1) -> 0.111111743 | G20: 111.111743 | H20: 598.0953709 | I20: 290.7928861 | J20: 1000 | K20: 17.80197613 | L20: 29.22134518 | M20: 120.0127311 | N20: 603.8050554 | O20: 276.1822135 | U20: =SD_concomittant_costs_per_cycle*M20 -> 9333.99016 | W20: =SD_healthcare_costs_percycle*M20 -> 42618.15298 | Y20: 51952.14314 | Z20: =PD_lumpsum_secondline_chemo_caba*K20 -> 13184.77819 | AA20: =PD_lumpsum_premedication_costs__caba*K20 -> 2906.419459 | AB20: 42577.02649 | AC20: =PD_concomitant_costs_percycle*N20 -> 46960.93819 | AD20: 222147.1337 | AE20: =PD_best_supportive_care_costs_percycle*N20 -> 31895.82699 | AF20: 189041.8296 | AG20: 548713.9525 | AH20: 600666.0957 | AI20: =M20*cycle_length_weeksyear -> 6.923811409 | AJ20: =N20*cycle_length_weeksyear -> 34.83490704 | AK20: 41.75871845 | AL20: =(M20*u_SD_cycle10_after)*cycle_length_weeksyear -> 5.670601544 | AM20: =(N20*u_SD_cycle_progressed)*cycle_length_weeksyear -> 21.84148672 | AO20: 27.51208826 | AQ20: 0.8076923077 | AR20: 0.9725967061 | AS20: 0.9725967061 | AW20: 9078.208084 | AY20: 41450.27521 | BA20: 50528.48329 | BB20: 12823.47184 | BC20: 2826.773992 | BD20: 41410.27572 | BE20: 45674.05379 | BF20: 216059.5705 | BG20: 31021.77627 | BH20: 183861.4608 | BI20: 533677.3828 | BJ20: 584205.8661 | BK20: 6.734076169 | BL20: 33.88031585 | BM20: 40.61439202 | BN20: 5.515208383 | BO20: 21.24295804 | BQ20: 26.75816642
A21: 15 | B21: 45 | C21: 10.38461538 | D21: =OFFSET(extrapolation!L30,0,OS_dist_choice-1,1,1) -> 0.6803439337 | E21: =OFFSET(extrapolation!D30,0,PFS_dist_choice-1,1,1) -> 0.09582397496 | G21: 95.82397496 | H21: 584.5199587 | I21: 319.6560663 | J21: 1000 | K21: 15.28776806 | L21: 28.8631802 | M21: 103.467859 | N21: 591.3076648 | O21: 305.2244762 | U21: =SD_concomittant_costs_per_cycle*M21 -> 8047.212733 | W21: =SD_healthcare_costs_percycle*M21 -> 36742.84389 | Y21: 44790.05662 | Z21: =PD_lumpsum_secondline_chemo_caba*K21 -> 11322.66606 | AA21: =PD_lumpsum_premedication_costs__caba*K21 -> 2495.940128 | AB21: 36563.78937 | AC21: =PD_concomitant_costs_percycle*N21 -> 45988.95363 | AD21: 217549.1935 | AE21: =PD_best_supportive_care_costs_percycle*N21 -> 31235.65596 | AF21: 186724.7506 | AG21: 531880.9493 | AH21: 576671.0059 | AI21: =M21*cycle_length_weeksyear -> 5.969299557 | AJ21: =N21*cycle_length_weeksyear -> 34.11390374 | AK21: 40.0832033 | AL21: =(M21*u_SD_cycle10_after)*cycle_length_weeksyear -> 4.888856337 | AM21: =(N21*u_SD_cycle_progressed)*cycle_length_weeksyear -> 21.38941764 | AO21: 26.27827398 | AQ21: 0.8653846154 | AR21: 0.9706683099 | AS21: 0.9706683099 | AW21: 7811.174383 | AY21: 35665.11418 | BA21: 43476.28856 | BB21: 10990.55313 | BC21: 2422.729985 | BD21: 35491.31163 | BE21: 44640.0199 | BF21: 211168.108 | BG21: 30319.46138 | BH21: 181247.7981 | BI21: 516279.9821 | BJ21: 559756.2707 | BK21: 5.794209913 | BL21: 33.11328529 | BM21: 38.9074952 | BN21: 4.745457918 | BO21: 20.76202988 | BQ21: 25.50748779
A22: 16 | B22: 48 | C22: 11.07692308 | D22: =OFFSET(extrapolation!L31,0,OS_dist_choice-1,1,1) -> 0.6520271359 | E22: =OFFSET(extrapolation!D31,0,PFS_dist_choice-1,1,1) -> 0.08268447739 | G22: 82.68447739 | H22: 569.3426585 | I22: 347.9728641 | J22: 1000 | K22: 13.13949757 | L22: 28.31679782 | M22: 89.25422618 | N22: 576.9313086 | O22: 333.8144652 | U22: =SD_concomittant_costs_per_cycle*M22 -> 6941.747441 | W22: =SD_healthcare_costs_percycle*M22 -> 31695.38957 | Y22: 38637.13701 | Z22: =PD_lumpsum_secondline_chemo_caba*K22 -> 9731.580348 | AA22: =PD_lumpsum_premedication_costs__caba*K22 -> 2145.205181 | AB22: 31425.766 | AC22: =PD_concomitant_costs_percycle*N22 -> 44870.83253 | AD22: 212259.9594 | AE22: =PD_best_supportive_care_costs_percycle*N22 -> 30476.22911 | AF22: 183190.0357 | AG22: 514099.6082 | AH22: 552736.7453 | AI22: =M22*cycle_length_weeksyear -> 5.149282279 | AJ22: =N22*cycle_length_weeksyear -> 33.28449857 | AK22: 38.43378085 | AL22: =(M22*u_SD_cycle10_after)*cycle_length_weeksyear -> 4.217262187 | AM22: =(N22*u_SD_cycle_progressed)*cycle_length_weeksyear -> 20.86938061 | AO22: 25.08664279 | AQ22: 0.9230769231 | AR22: 0.9687437372 | AS22: 0.9687437372 | AW22: 6724.774359 | AY22: 30704.71015 | BA22: 37429.48451 | BB22: 9427.407516 | BC22: 2078.154085 | BD22: 30443.514 | BE22: 43468.338 | BF22: 205625.5063 | BG22: 29523.65609 | BH22: 177464.1998 | BI22: 498030.7758 | BJ22: 535460.2603 | BK22: 4.98833496 | BL22: 32.24414954 | BM22: 37.2324845 | BN22: 4.085446332 | BO22: 20.21708176 | BQ22: 24.30252809
A23: 17 | B23: 51 | C23: 11.76923077 | D23: =OFFSET(extrapolation!L32,0,OS_dist_choice-1,1,1) -> 0.6244069532 | E23: =OFFSET(extrapolation!D32,0,PFS_dist_choice-1,1,1) -> 0.07138284331 | G23: 71.38284331 | H23: 553.0241099 | I23: 375.5930468 | J23: 1000 | K23: 11.30163408 | L23: 27.62018269 | M23: 77.03366035 | N23: 561.1833842 | O23: 361.7829555 | U23: =SD_concomittant_costs_per_cycle*M23 -> 5991.292934 | W23: =SD_healthcare_costs_percycle*M23 -> 27355.70045 | Y23: 33346.99338 | Z23: =PD_lumpsum_secondline_chemo_caba*K23 -> 8370.393124 | AA23: =PD_lumpsum_premedication_costs__caba*K23 -> 1845.148481 | AB23: 27030.14374 | AC23: =PD_concomitant_costs_percycle*N23 -> 43646.03771 | AD23: 206466.1088 | AE23: =PD_best_supportive_care_costs_percycle*N23 -> 29644.34957 | AF23: 178683.4191 | AG23: 495685.6005 | AH23: 529032.5939 | AI23: =M23*cycle_length_weeksyear -> 4.444249636 | AJ23: =N23*cycle_length_weeksyear -> 32.37596447 | AK23: 36.82021411 | AL23: =(M23*u_SD_cycle10_after)*cycle_length_weeksyear -> 3.639840452 | AM23: =(N23*u_SD_cycle_progressed)*cycle_length_weeksyear -> 20.29972972 | AO23: 23.93957018 | AQ23: 0.9807692308 | AR23: 0.9668229805 | AS23: 0.9668229805 | AW23: 5792.519691 | AY23: 26448.11984 | BA23: 32240.63953 | BB23: 8092.688428 | BC23: 1783.931954 | BD23: 26133.36414 | BE23: 42197.99226 | BF23: 199616.1787 | BG23: 28660.8384 | BH23: 172755.2359 | BI23: 479240.2297 | BJ23: 511480.8692 | BK23: 4.296802679 | BL23: 31.30182647 | BM23: 35.59862915 | BN23: 3.519081394 | BO23: 19.62624519 | BQ23: 23.14532659
A24: 18 | B24: 54 | C24: 12.46153846 | D24: =OFFSET(extrapolation!L33,0,OS_dist_choice-1,1,1) -> 0.5975993637 | E24: =OFFSET(extrapolation!D33,0,PFS_dist_choice-1,1,1) -> 0.06165525557 | G24: 61.65525557 | H24: 535.9441082 | I24: 402.4006363 | J24: 1000 | K24: 9.72758774 | L24: 26.80758946 | M24: 66.51904944 | N24: 544.484109 | O24: 388.9968415 | U24: =SD_concomittant_costs_per_cycle*M24 -> 5173.51907 | W24: =SD_healthcare_costs_percycle*M24 -> 23621.81912 | Y24: 28795.33819 | Z24: =PD_lumpsum_secondline_chemo_caba*K24 -> 7204.598287 | AA24: =PD_lumpsum_premedication_costs__caba*K24 -> 1588.163589 | AB24: 23265.49356 | AC24: =PD_concomitant_costs_percycle*N24 -> 42347.25158 | AD24: 200322.2448 | AE24: =PD_best_supportive_care_costs_percycle*N24 -> 28762.2152 | AF24: 173426.5047 | AG24: 476916.4717 | AH24: 505711.8099 | AI24: =M24*cycle_length_weeksyear -> 3.837637468 | AJ24: =N24*cycle_length_weeksyear -> 31.41254475 | AK24: 35.25018222 | AL24: =(M24*u_SD_cycle10_after)*cycle_length_weeksyear -> 3.143025086 | AM24: =(N24*u_SD_cycle_progressed)*cycle_length_weeksyear -> 19.69566556 | AO24: 22.83869065 | AQ24: 1.038461538 | AR24: 0.964906032 | AS24: 0.964906032 | AW24: 4991.959758 | AY24: 22792.83575 | BA24: 27784.79551 | BB24: 6951.760345 | BC24: 1532.428627 | BD24: 22449.01507 | BE24: 40861.11849 | BF24: 193292.1424 | BG24: 27752.83494 | BH24: 167340.2805 | BI24: 460179.5803 | BJ24: 487964.3759 | BK24: 3.702959541 | BL24: 30.31015391 | BM24: 34.01311345 | BN24: 3.032723864 | BO24: 19.0044665 | BQ24: 22.03719037
A25: 19 | B25: 57 | C25: 13.15384615 | D25: =OFFSET(extrapolation!L34,0,OS_dist_choice-1,1,1) -> 0.5716901545 | E25: =OFFSET(extrapolation!D34,0,PFS_dist_choice-1,1,1) -> 0.05327711169 | G25: 53.27711169 | H25: 518.4130428 | I25: 428.3098455 | J25: 1000 | K25: 8.378143879 | L25: 25.90920921 | M25: 57.46618363 | N25: 527.1785755 | O25: 415.3552409 | U25: =SD_concomittant_costs_per_cycle*M25 -> 4469.432432 | W25: =SD_healthcare_costs_percycle*M25 -> 20407.02335 | Y25: 24876.45578 | Z25: =PD_lumpsum_secondline_chemo_caba*K25 -> 6205.152053 | AA25: =PD_lumpsum_premedication_costs__caba*K25 -> 1367.848166 | AB25: 20038.02563 | AC25: =PD_concomitant_costs_percycle*N25 -> 41001.31371 | AD25: 193955.3311 | AE25: =PD_best_supportive_care_costs_percycle*N25 -> 27848.05541 | AF25: 167614.6077 | AG25: 458030.3339 | AH25: 482906.7896 | AI25: =M25*cycle_length_weeksyear -> 3.315356748 | AJ25: =N25*cycle_length_weeksyear -> 30.41414859 | AK25: 33.72950533 | AL25: =(M25*u_SD_cycle10_after)*cycle_length_weeksyear -> 2.715277177 | AM25: =(N25*u_SD_cycle_progressed)*cycle_length_weeksyear -> 19.06967116 | AO25: 21.78494834 | AQ25: 1.096153846 | AR25: 0.9629928844 | AS25: 0.9629928844 | AW25: 4304.031629 | AY25: 19651.81828 | BA25: 23955.8499 | BB25: 5975.517273 | BC25: 1317.228051 | BD25: 19296.4761 | BE25: 39483.97335 | BF25: 186777.6038 | BG25: 26817.4792 | BH25: 161411.6746 | BI25: 441079.9523 | BJ25: 465035.8023 | BK25: 3.192664958 | BL25: 29.28860867 | BM25: 32.48127363 | BN25: 2.6147926 | BO25: 18.36395764 | BQ25: 20.97875024
A26: 20 | B26: 60 | C26: 13.84615385 | D26: =OFFSET(extrapolation!L35,0,OS_dist_choice-1,1,1) -> 0.5467390425 | E26: =OFFSET(extrapolation!D35,0,PFS_dist_choice-1,1,1) -> 0.04605690697 | G26: 46.05690697 | H26: 500.6821355 | I26: 453.2609575 | J26: 1000 | K26: 7.220204724 | L26: 24.95111203 | M26: 49.66700933 | N26: 509.5475892 | O26: 440.7854015 | U26: =SD_concomittant_costs_per_cycle*M26 -> 3862.851651 | W26: =SD_healthcare_costs_percycle*M26 -> 17637.43048 | Y26: 21500.28214 | Z26: =PD_lumpsum_secondline_chemo_caba*K26 -> 5347.541032 | AA26: =PD_lumpsum_premedication_costs__caba*K26 -> 1178.798542 | AB26: 17268.57994 | AC26: =PD_concomitant_costs_percycle*N26 -> 39630.06375 | AD26: 187468.6795 | AE26: =PD_best_supportive_care_costs_percycle*N26 -> 26916.70367 | AF26: 161416.3838 | AG26: 439226.7502 | AH26: 460727.0323 | AI26: =M26*cycle_length_weeksyear -> 2.865404384 | AJ26: =N26*cycle_length_weeksyear -> 29.3969763 | AK26: 32.26238068 | AL26: =(M26*u_SD_cycle10_after)*cycle_length_weeksyear -> 2.346766191 | AM26: =(N26*u_SD_cycle_progressed)*cycle_length_weeksyear -> 18.43190414 | AO26: 20.77867033 | AQ26: 1.153846154 | AR26: 0.96108353 | AS26: 0.96108353 | AW26: 3712.5231 | AY26: 16951.04395 | BA26: 20663.56705 | BB26: 5139.433612 | BC26: 1132.923864 | BD26: 16596.54776 | BE26: 38087.80156 | BF26: 180173.0602 | BG26: 25869.20058 | BH26: 155134.6279 | BI26: 422133.5955 | BJ26: 442797.1626 | BK26: 2.753892961 | BL26: 28.25294975 | BM26: 31.00684271 | BN26: 2.255438335 | BO26: 17.7145995 | BQ26: 19.97003783
A27: =+A26+1 -> 21 | B27: 63 | C27: 14.53846154 | D27: =OFFSET(extrapolation!L36,0,OS_dist_choice-1,1,1) -> 0.5227836549 | E27: =OFFSET(extrapolation!D36,0,PFS_dist_choice-1,1,1) -> 0.03983113805 | G27: 39.83113805 | H27: 482.9525168 | I27: 477.2163451 | J27: 1000 | K27: 6.225768916 | L27: 23.95538763 | M27: 42.94402251 | N27: 491.8173262 | O27: 465.2386513 | U27: =SD_concomittant_costs_per_cycle*M27 -> 3339.971351 | W27: =SD_healthcare_costs_percycle*M27 -> 15250.00643 | Y27: 18589.97778 | Z27: =PD_lumpsum_secondline_chemo_caba*K27 -> 4611.026419 | AA27: =PD_lumpsum_premedication_costs__caba*K27 -> 1016.443107 | AB27: 14890.18557 | AC27: =PD_concomitant_costs_percycle*N27 -> 38251.09254 | AD27: 180945.5027 | AE27: =PD_best_supportive_care_costs_percycle*N27 -> 25980.10766 | AF27: 154974.7377 | AG27: 420669.0958 | AH27: 439259.0735 | AI27: =M27*cycle_length_weeksyear -> 2.47753976 | AJ27: =N27*cycle_length_weeksyear -> 28.37407651 | AK27: 30.85161627 | AL27: =(M27*u_SD_cycle10_after)*cycle_length_weeksyear -> 2.029105064 | AM27: =(N27*u_SD_cycle_progressed)*cycle_length_weeksyear -> 17.79054597 | AO27: 19.81965104 | AQ27: 1.211538462 | AR27: 0.9591779614 | AS27: 0.9591779614 | AW27: 3203.626911 | AY27: 14627.47008 | BA27: 17831.09699 | BB27: 4422.79492 | BC27: 974.9498273 | BD27: 14282.33784 | BE27: 36689.60496 | BF27: 173558.9384 | BG27: 24919.54671 | BH27: 148648.353 | BI27: 403496.5257 | BJ27: 421327.6227 | BK27: 2.376401536 | BL27: 27.21578886 | BM27: 29.5921904 | BN27: 1.946272858 | BO27: 17.06429962 | BQ27: 19.01057247
A28: =+A27+1 -> 22 | B28: 66 | C28: 15.23076923 | D28: =OFFSET(extrapolation!L37,0,OS_dist_choice-1,1,1) -> 0.499843238 | E28: =OFFSET(extrapolation!D37,0,PFS_dist_choice-1,1,1) -> 0.0344600404 | G28: 34.4600404 | H28: 465.3831976 | I28: 500.156762 | J28: 1000 | K28: 5.371097657 | L28: 22.94041689 | M28: 37.14558922 | N28: 474.1678572 | O28: 488.6865536 | U28: =SD_concomittant_costs_per_cycle*M28 -> 2888.998202 | W28: =SD_healthcare_costs_percycle*M28 -> 13190.90391 | Y28: 16079.90212 | Z28: =PD_lumpsum_secondline_chemo_caba*K28 -> 3978.026414 | AA28: =PD_lumpsum_premedication_costs__caba*K28 -> 876.9061725 | AB28: 12846.06639 | AC28: =PD_concomitant_costs_percycle*N28 -> 36878.40509 | AD28: 174452.051 | AE28: =PD_best_supportive_care_costs_percycle*N28 -> 25047.77958 | AF28: 148408.5812 | AG28: 402487.8159 | AH28: 418567.718 | AI28: =M28*cycle_length_weeksyear -> 2.143014763 | AJ28: =N28*cycle_length_weeksyear -> 27.35583792 | AK28: 29.49885268 | AL28: =(M28*u_SD_cycle10_after)*cycle_length_weeksyear -> 1.755129091 | AM28: =(N28*u_SD_cycle_progressed)*cycle_length_weeksyear -> 17.15211037 | AO28: 18.90723946 | AQ28: 1.269230769 | AR28: 0.9572761709 | AS28: 0.9572761709 | AW28: 2765.569137 | AY28: 12627.33799 | BA28: 15392.90713 | BB28: 3808.069894 | BC28: 839.4413831 | BD28: 12297.23325 | BE28: 35302.81842 | BF28: 166998.7914 | BG28: 23977.64253 | BH28: 142067.9983 | BI28: 385291.9953 | BJ28: 400684.9024 | BK28: 2.051456967 | BL28: 26.18709177 | BM28: 28.23854874 | BN28: 1.680143256 | BO28: 16.41930654 | BQ28: 18.0994498
A29: 23 | B29: 69 | C29: 15.92307692 | D29: =OFFSET(extrapolation!L38,0,OS_dist_choice-1,1,1) -> 0.4779220175 | E29: =OFFSET(extrapolation!D38,0,PFS_dist_choice-1,1,1) -> 0.02982401133 | G29: 29.82401133 | H29: 448.0980062 | I29: 522.0779825 | J29: 1000 | K29: 4.636029069 | L29: 21.92122043 | M29: 32.14202586 | N29: 456.7406019 | O29: 511.1173722 | U29: =SD_concomittant_costs_per_cycle*M29 -> 2499.846061 | W29: =SD_healthcare_costs_percycle*M29 -> 11414.07052 | Y29: 13913.91658 | Z29: =PD_lumpsum_secondline_chemo_caba*K29 -> 3433.608411 | AA29: =PD_lumpsum_premedication_costs__caba*K29 -> 756.8960324 | AB29: 11088.00119 | AC29: =PD_concomitant_costs_percycle*N29 -> 35523.00031 | AD29: 168040.3545 | AE29: =PD_best_supportive_care_costs_percycle*N29 -> 24127.18987 | AF29: 141815.0872 | AG29: 384784.1375 | AH29: 398698.0541 | AI29: =M29*cycle_length_weeksyear -> 1.854347646 | AJ29: =N29*cycle_length_weeksyear -> 26.35041934 | AK29: 28.20476699 | AL29: =(M29*u_SD_cycle10_after)*cycle_length_weeksyear -> 1.518710722 | AM29: =(N29*u_SD_cycle_progressed)*cycle_length_weeksyear -> 16.52171293 | AO29: 18.04042365 | AQ29: 1.326923077 | AR29: 0.9553781512 | AS29: 0.9553781512 | AW29: 2388.298309 | AY29: 10904.75359 | BA29: 13293.0519 | BB29: 3280.394456 | BC29: 723.1219322 | BD29: 10593.23408 | BE29: 33937.89837 | BF29: 160542.0832 | BG29: 23050.59006 | BH29: 135487.0358 | BI29: 367614.3579 | BJ29: 380907.4098 | BK29: 1.771603226 | BL29: 25.17461491 | BM29: 26.94621814 | BN29: 1.450943042 | BO29: 15.78448355 | BQ29: 17.23542659
A30: 24 | B30: 72 | C30: 16.61538462 | D30: =OFFSET(extrapolation!L39,0,OS_dist_choice-1,1,1) -> 0.4570121747 | E30: =OFFSET(extrapolation!D39,0,PFS_dist_choice-1,1,1) -> 0.0258205999 | G30: 25.8205999 | H30: 431.1915748 | I30: 542.9878253 | J30: 1000 | K30: 4.003411425 | L30: 20.90984288 | M30: 27.82230562 | N30: 439.6447905 | O30: 532.5329039 | U30: =SD_concomittant_costs_per_cycle*M30 -> 2163.879819 | W30: =SD_healthcare_costs_percycle*M30 -> 9880.079107 | Y30: 12043.95893 | Z30: =PD_lumpsum_secondline_chemo_caba*K30 -> 2965.06923 | AA30: =PD_lumpsum_premedication_costs__caba*K30 -> 653.6124296 | AB30: 9574.968142 | AC30: =PD_concomitant_costs_percycle*N30 -> 34193.37358 | AD30: 161750.6001 | AE30: =PD_best_supportive_care_costs_percycle*N30 -> 23224.10859 | AF30: 135272.1762 | AG30: 367633.9082 | AH30: 379677.8671 | AI30: =M30*cycle_length_weeksyear -> 1.605133016 | AJ30: =N30*cycle_length_weeksyear -> 25.36412253 | AK30: 26.96925554 | AL30: =(M30*u_SD_cycle10_after)*cycle_length_weeksyear -> 1.31460394 | AM30: =(N30*u_SD_cycle_progressed)*cycle_length_weeksyear -> 15.90330483 | AO30: 17.21790877 | AQ30: 1.384615385 | AR30: 0.9534838948 | AS30: 0.9534838948 | AW30: 2063.224558 | AY30: 9420.496308 | BA30: 11483.72087 | BB30: 2827.145758 | BC30: 623.2089251 | BD30: 9129.577916 | BE30: 32602.83102 | BF30: 154226.5921 | BG30: 22143.81352 | BH30: 128979.8414 | BI30: 350533.0107 | BJ30: 362016.7315 | BK30: 1.53046848 | BL30: 24.18428234 | BM30: 25.71475082 | BN30: 1.253453685 | BO30: 15.16354503 | BQ30: 16.41699871
A31: 25 | B31: 75 | C31: 17.30769231 | D31: =OFFSET(extrapolation!L40,0,OS_dist_choice-1,1,1) -> 0.4370964316 | E31: =OFFSET(extrapolation!D40,0,PFS_dist_choice-1,1,1) -> 0.02236196739 | G31: 22.36196739 | H31: 414.7344642 | I31: 562.9035684 | J31: 1000 | K31: 3.458632513 | L31: 19.91574303 | M31: 24.09128365 | N31: 422.9630195 | O31: 552.9456968 | U31: =SD_concomittant_costs_per_cycle*M31 -> 1873.699586 | W31: =SD_healthcare_costs_percycle*M31 -> 8555.142464 | Y31: 10428.84205 | Z31: =PD_lumpsum_secondline_chemo_caba*K31 -> 2561.586546 | AA31: =PD_lumpsum_premedication_costs__caba*K31 -> 564.669718 | AB31: 8272.01919 | AC31: =PD_concomitant_costs_percycle*N31 -> 32895.94884 | AD31: 155613.1761 | AE31: =PD_best_supportive_care_costs_percycle*N31 -> 22342.89888 | AF31: 128841.0399 | AG31: 351091.3391 | AH31: 361520.1812 | AI31: =M31*cycle_length_weeksyear -> 1.389881749 | AJ31: =N31*cycle_length_weeksyear -> 24.40171266 | AK31: 25.79159441 | AL31: =(M31*u_SD_cycle10_after)*cycle_length_weeksyear -> 1.138313152 | AM31: =(N31*u_SD_cycle_progressed)*cycle_length_weeksyear -> 15.29987384 | AO31: 16.43818699 | AQ31: 1.442307692 | AR31: 0.9515933942 | AS31: 0.9515933942 | AW31: 1783.000148 | AY31: 8141.017055 | BA31: 9924.017204 | BB31: 2437.588836 | BC31: 537.3359736 | BD31: 7871.598818 | BE31: 31303.56761 | BF31: 148080.4704 | BG31: 21261.35498 | BH31: 122604.2824 | BI31: 334096.1991 | BJ31: 344020.2163 | BK31: 1.322602291 | BL31: 23.22050858 | BM31: 24.54311087 | BN31: 1.083211276 | BO31: 14.55925888 | BQ31: 15.64247015
A32: 26 | B32: 78 | C32: 18 | D32: =OFFSET(extrapolation!L41,0,OS_dist_choice-1,1,1) -> 0.418150262 | E32: =OFFSET(extrapolation!D41,0,PFS_dist_choice-1,1,1) -> 0.01937274008 | G32: 19.37274008 | H32: 398.7775219 | I32: 581.849738 | J32: 1000 | K32: 2.989227308 | L32: 18.94616965 | M32: 20.86735374 | N32: 406.7559931 | O32: 572.3766532 | U32: =SD_concomittant_costs_per_cycle*M32 -> 1622.958437 | W32: =SD_healthcare_costs_percycle*M32 -> 7410.281108 | Y32: 9033.239544 | Z32: =PD_lumpsum_secondline_chemo_caba*K32 -> 2213.928316 | AA32: =PD_lumpsum_premedication_costs__caba*K32 -> 488.0328091 | AB32: 7149.341701 | AC32: =PD_concomitant_costs_percycle*N32 -> 31635.44736 | AD32: 149650.4164 | AE32: =PD_best_supportive_care_costs_percycle*N32 -> 21486.76741 | AF32: 122568.5728 | AG32: 335192.5068 | AH32: 344225.7463 | AI32: =M32*cycle_length_weeksyear -> 1.203885792 | AJ32: =N32*cycle_length_weeksyear -> 23.46669191 | AK32: 24.6705777 | AL32: =(M32*u_SD_cycle10_after)*cycle_length_weeksyear -> 0.985982464 | AM32: =(N32*u_SD_cycle_progressed)*cycle_length_weeksyear -> 14.71361583 | AO32: 15.69959829 | AQ32: 1.5 | AR32: 0.9497066419 | AS32: 0.9497066419 | AW32: 1541.334407 | AY32: 7037.593186 | BA32: 8578.927593 | BB32: 2102.582426 | BC32: 463.4880002 | BD32: 6789.777298 | BE32: 30044.39448 | BF32: 142123.9944 | BG32: 20406.12572 | BH32: 116404.1877 | BI32: 318334.55 | BJ32: 326913.4776 | BK32: 1.143338333 | BL32: 22.28647317 | BM32: 23.4298115 | BN32: 0.9363940949 | BO32: 13.97361868 | BQ32: 14.91001277
A33: 27 | B33: 81 | C33: 18.69230769 | D33: =OFFSET(extrapolation!L42,0,OS_dist_choice-1,1,1) -> 0.4001437516 | E33: =OFFSET(extrapolation!D42,0,PFS_dist_choice-1,1,1) -> 0.01678819029 | G33: 16.78819029 | H33: 383.3555613 | I33: 599.8562484 | J33: 1000 | K33: 2.584549791 | L33: 18.00651038 | M33: 18.08046519 | N33: 391.0665416 | O33: 590.8529932 | U33: =SD_concomittant_costs_per_cycle*M33 -> 1406.20818 | W33: =SD_healthcare_costs_percycle*M33 -> 6420.619082 | Y33: 7826.827262 | Z33: =PD_lumpsum_secondline_chemo_caba*K33 -> 1914.209719 | AA33: =PD_lumpsum_premedication_costs__caba*K33 -> 421.9635928 | AB33: 6181.47357 | AC33: =PD_concomitant_costs_percycle*N33 -> 30415.20027 | AD33: 143878.0787 | AE33: =PD_best_supportive_care_costs_percycle*N33 -> 20657.97668 | AF33: 116489.6292 | AG33: 319958.5318 | AH33: 327785.359 | AI33: =M33*cycle_length_weeksyear -> 1.043103761 | AJ33: =N33*cycle_length_weeksyear -> 22.56153125 | AK33: 23.60463501 | AL33: =(M33*u_SD_cycle10_after)*cycle_length_weeksyear -> 0.85430198 | AM33: =(N33*u_SD_cycle_progressed)*cycle_length_weeksyear -> 14.14608009 | AO33: 15.00038207 | AQ33: 1.557692308 | AR33: 0.9478236305 | AS33: 0.9478236305 | AW33: 1332.837342 | AY33: 6085.614489 | BA33: 7418.451831 | BB33: 1814.333206 | BC33: 399.9470645 | BD33: 5858.946721 | BE33: 28828.24555 | BF33: 136371.0429 | BG33: 19580.11846 | BH33: 110411.6233 | BI33: 303264.2572 | BJ33: 310682.709 | BK33: 0.9886783935 | BL33: 21.38435246 | BM33: 22.37303085 | BN33: 0.8097276043 | BO33: 13.40798899 | BQ33: 14.21771659
A34: 28 | B34: 84 | C34: 19.38461538 | D34: =OFFSET(extrapolation!L43,0,OS_dist_choice-1,1,1) -> 0.3830431449 | E34: =OFFSET(extrapolation!D43,0,PFS_dist_choice-1,1,1) -> 0.01455269266 | G34: 14.55269266 | H34: 368.4904522 | I34: 616.9568551 | J34: 1000 | K34: 2.235497633 | L34: 17.10060673 | M34: 15.67044147 | N34: 375.9230068 | O34: 608.4065518 | U34: =SD_concomittant_costs_per_cycle*M34 -> 1218.768586 | W34: =SD_healthcare_costs_percycle*M34 -> 5564.786886 | Y34: 6783.555471 | Z34: =PD_lumpsum_secondline_chemo_caba*K34 -> 1655.689246 | AA34: =PD_lumpsum_premedication_costs__caba*K34 -> 364.9759878 | AB34: 5346.644735 | AC34: =PD_concomitant_costs_percycle*N34 -> 29237.41185 | AD34: 138306.5903 | AE34: =PD_best_supportive_care_costs_percycle*N34 -> 19858.02384 | AF34: 110629.0611 | AG34: 305398.3971 | AH34: 312181.9526 | AI34: =M34*cycle_length_weeksyear -> 0.9040639312 | AJ34: =N34*cycle_length_weeksyear -> 21.68786578 | AK34: 22.59192971 | AL34: =(M34*u_SD_cycle10_after)*cycle_length_weeksyear -> 0.7404283597 | AM34: =(N34*u_SD_cycle_progressed)*cycle_length_weeksyear -> 13.59829184 | AO34: 14.3387202 | AQ34: 1.615384615 | AR34: 0.9459443527 | AS34: 0.9459443527 | AW34: 1152.887261 | AY34: 5263.978728 | BA34: 6416.865989 | BB34: 1566.189892 | BC34: 345.2469745 | BD34: 5057.628393 | BE34: 27656.96463 | BF34: 130830.338 | BG34: 18784.58551 | BH34: 104648.9356 | BI34: 288889.8891 | BJ34: 295306.755 | BK34: 0.8551941702 | BL34: 20.51551415 | BM34: 21.37070832 | BN34: 0.7004040254 | BO34: 12.86322737 | BQ34: 13.5636314
A35: 29 | B35: 87 | C35: 20.07692308 | D35: =OFFSET(extrapolation!L44,0,OS_dist_choice-1,1,1) -> 0.3668121125 | E35: =OFFSET(extrapolation!D44,0,PFS_dist_choice-1,1,1) -> 0.01261841206 | G35: 12.61841206 | H35: 354.1937005 | I35: 633.1878875 | J35: 1000 | K35: 1.934280602 | L35: 16.23103234 | M35: 13.58555236 | N35: 361.3420764 | O35: 625.0723713 | U35: =SD_concomittant_costs_per_cycle*M35 -> 1056.616335 | W35: =SD_healthcare_costs_percycle*M35 -> 4824.414406 | Y35: 5881.03074 | Z35: =PD_lumpsum_secondline_chemo_caba*K35 -> 1432.597174 | AA35: =PD_lumpsum_premedication_costs__caba*K35 -> 315.7981305 | AB35: 4626.223281 | AC35: =PD_concomitant_costs_percycle*N35 -> 28103.37999 | AD35: 132942.0908 | AE35: =PD_best_supportive_care_costs_percycle*N35 -> 19087.79042 | AF35: 105003.5182 | AG35: 291511.398 | AH35: 297392.4287 | AI35: =M35*cycle_length_weeksyear -> 0.7837818668 | AJ35: =N35*cycle_length_weeksyear -> 20.84665825 | AK35: 21.63044012 | AL35: =(M35*u_SD_cycle10_after)*cycle_length_weeksyear -> 0.6419173489 | AM35: =(N35*u_SD_cycle_progressed)*cycle_length_weeksyear -> 13.07085472 | AO35: 13.71277207 | AQ35: 1.673076923 | AR35: 0.9440688009 | AS35: 0.9440688009 | AW35: 997.518516 | AY35: 4554.579123 | BA35: 5552.097639 | BB35: 1352.470296 | BC35: 298.1351624 | BD35: 4367.473066 | BE35: 26531.52425 | BF35: 125506.4803 | BG35: 18020.18742 | BH35: 99130.54547 | BI35: 275206.816 | BJ35: 280758.9136 | BK35: 0.7399440071 | BL35: 19.68067966 | BM35: 20.42062367 | BN35: 0.6060141418 | BO35: 12.33978615 | BQ35: 12.94580029
A36: 30 | B36: 90 | C36: 20.76923077 | D36: =OFFSET(extrapolation!L45,0,OS_dist_choice-1,1,1) -> 0.351412778 | E36: =OFFSET(extrapolation!D45,0,PFS_dist_choice-1,1,1) -> 0.01094418675 | G36: 10.94418675 | H36: 340.4685912 | I36: 648.587222 | J36: 1000 | K36: 1.674225305 | L36: 15.39933456 | M36: 11.7812994 | N36: 347.3311459 | O36: 640.8875547 | U36: =SD_concomittant_costs_per_cycle*M36 -> 916.2905611 | W36: =SD_healthcare_costs_percycle*M36 -> 4183.699644 | Y36: 5099.990205 | Z36: =PD_lumpsum_secondline_chemo_caba*K36 -> 1239.99095 | AA36: =PD_lumpsum_premedication_costs__caba*K36 -> 273.3404973 | AB36: 4004.248442 | AC36: =PD_concomitant_costs_percycle*N36 -> 27013.67987 | AD36: 127787.3012 | AE36: =PD_best_supportive_care_costs_percycle*N36 -> 18347.66708 | AF36: 99623.01052 | AG36: 278289.2386 | AH36: 283389.2288 | AI36: =M36*cycle_length_weeksyear -> 0.6796903502 | AJ36: =N36*cycle_length_weeksyear -> 20.03833534 | AK36: 20.71802569 | AL36: =(M36*u_SD_cycle10_after)*cycle_length_weeksyear -> 0.5566663968 | AM36: =(N36*u_SD_cycle_progressed)*cycle_length_weeksyear -> 12.56403626 | AO36: 13.12070265 | AQ36: 1.730769231 | AR36: 0.9421969679 | AS36: 0.9421969679 | AW36: 863.3261884 | AY36: 3941.869119 | BA36: 4805.195307 | BB36: 1168.315714 | BC36: 257.5405877 | BD36: 3772.790741 | BE36: 25452.20726 | BF36: 120400.8077 | BG36: 17287.11629 | BH36: 93864.49844 | BI36: 262203.2768 | BJ36: 267008.4721 | BK36: 0.6404021871 | BL36: 18.8800588 | BM36: 19.52046098 | BN36: 0.5244893912 | BO36: 11.83779687 | BQ36: 12.36228626
A37: 31 | B37: 93 | C37: 21.46153846 | D37: =OFFSET(extrapolation!L46,0,OS_dist_choice-1,1,1) -> 0.336806537 | E37: =OFFSET(extrapolation!D46,0,PFS_dist_choice-1,1,1) -> 0.009494576529 | G37: 9.494576529 | H37: 327.3119605 | I37: 663.193463 | J37: 1000 | K37: 1.449610222 | L37: 14.606241 | M37: 10.21938164 | N37: 333.8902758 | O37: 655.8903425 | U37: =SD_concomittant_costs_per_cycle*M37 -> 794.8124071 | W37: =SD_healthcare_costs_percycle*M37 -> 3629.041404 | Y37: 4423.853811 | Z37: =PD_lumpsum_secondline_chemo_caba*K37 -> 1073.633011 | AA37: =PD_lumpsum_premedication_costs__caba*K37 -> 236.6689701 | AB37: 3467.036039 | AC37: =PD_concomitant_costs_percycle*N37 -> 25968.3162 | AD37: 122842.2436 | AE37: =PD_best_supportive_care_costs_percycle*N37 -> 17637.65702 | AF37: 94492.24545 | AG37: 265717.8003 | AH37: 270141.6542 | AI37: =M37*cycle_length_weeksyear -> 0.58957971 | AJ37: =N37*cycle_length_weeksyear -> 19.26290053 | AK37: 19.85248024 | AL37: =(M37*u_SD_cycle10_after)*cycle_length_weeksyear -> 0.4828657825 | AM37: =(N37*u_SD_cycle_progressed)*cycle_length_weeksyear -> 12.07783863 | AO37: 12.56070441 | AQ37: 1.788461538 | AR37: 0.9403288462 | AS37: 0.9403288462 | AW37: 747.3850336 | AY37: 3412.492316 | BA37: 4159.87735 | BB37: 1009.568091 | BC37: 222.5466596 | BD37: 3260.153998 | BE37: 24418.75681 | BF37: 115512.1052 | BG37: 16585.19767 | BH37: 88853.78414 | BI37: 249862.1126 | BJ37: 254021.99 | BK37: 0.5543988084 | BL37: 18.11346103 | BM37: 18.66785984 | BN37: 0.4540526241 | BO37: 11.35714006 | BQ37: 11.81119269
A38: 32 | B38: 96 | C38: 22.15384615 | D38: =OFFSET(extrapolation!L47,0,OS_dist_choice-1,1,1) -> 0.3229547029 | E38: =OFFSET(extrapolation!D47,0,PFS_dist_choice-1,1,1) -> 0.008239050474 | G38: 8.239050474 | H38: 314.7156525 | I38: 677.0452971 | J38: 1000 | K38: 1.255526055 | L38: 13.85183405 | M38: 8.866813502 | N38: 321.0138065 | O38: 670.11938 | U38: =SD_concomittant_costs_per_cycle*M38 -> 689.6164201 | W38: =SD_healthcare_costs_percycle*M38 -> 3148.726063 | Y38: 3838.342483 | Z38: =PD_lumpsum_secondline_chemo_caba*K38 -> 929.8873584 | AA38: =PD_lumpsum_premedication_costs__caba*K38 -> 204.9820387 | AB38: 3002.844501 | AC38: =PD_concomitant_costs_percycle*N38 -> 24966.8488 | AD38: 118104.8359 | AE38: =PD_best_supportive_care_costs_percycle*N38 -> 16957.46126 | AF38: 89611.7559 | AG38: 253778.6157 | AH38: 257616.9582 | AI38: =M38*cycle_length_weeksyear -> 0.5115469328 | AJ38: =N38*cycle_length_weeksyear -> 18.5200273 | AK38: 19.03157423 | AL38: =(M38*u_SD_cycle10_after)*cycle_length_weeksyear -> 0.418956938 | AM38: =(N38*u_SD_cycle_progressed)*cycle_length_weeksyear -> 11.61205711 | AO38: 12.03101405 | AQ38: 1.846153846 | AR38: 0.9384644284 | AS38: 0.9384644284 | AW38: 647.1804795 | AY38: 2954.967405 | BA38: 3602.147885 | BB38: 872.6662083 | BC38: 192.3683518 | BD38: 2818.062748 | BE38: 23430.49949 | BF38: 110837.1873 | BG38: 15913.97419 | BH38: 84097.44528 | BI38: 238162.2036 | BJ38: 241764.3514 | BK38: 0.4800685999 | BL38: 17.38038683 | BM38: 17.86045543 | BN38: 0.3931761833 | BO38: 10.89750254 | BQ38: 11.29067873
A39: 33 | B39: 99 | C39: 22.84615385 | D39: =OFFSET(extrapolation!L48,0,OS_dist_choice-1,1,1) -> 0.3098190064 | E39: =OFFSET(extrapolation!D48,0,PFS_dist_choice-1,1,1) -> 0.007151293136 | G39: 7.151293136 | H39: 302.6677132 | I39: 690.1809936 | J39: 1000 | K39: 1.087757338 | L39: 13.13569656 | M39: 7.695171805 | N39: 308.6916829 | O39: 683.6131453 | U39: =SD_concomittant_costs_per_cycle*M39 -> 598.4919871 | W39: =SD_healthcare_costs_percycle*M39 -> 2732.660162 | Y39: 3331.152149 | Z39: =PD_lumpsum_secondline_chemo_caba*K39 -> 805.6318653 | AA39: =PD_lumpsum_premedication_costs__caba*K39 -> 177.5914692 | AB39: 2601.591682 | AC39: =PD_concomitant_costs_percycle*N39 -> 24008.49563 | AD39: 113571.3786 | AE39: =PD_best_supportive_care_costs_percycle*N39 -> 16306.54865 | AF39: 84978.84319 | AG39: 242450.0811 | AH39: 245781.2332 | AI39: =M39*cycle_length_weeksyear -> 0.4439522195 | AJ39: =N39*cycle_length_weeksyear -> 17.80913555 | AK39: 18.25308777 | AL39: =(M39*u_SD_cycle10_after)*cycle_length_weeksyear -> 0.3635968678 | AM39: =(N39*u_SD_cycle_progressed)*cycle_length_weeksyear -> 11.16632799 | AO39: 11.52992486 | AQ39: 1.903846154 | AR39: 0.9366037073 | AS39: 0.9366037073 | AW39: 560.549814 | AY39: 2559.419639 | BA39: 3119.969453 | BB39: 754.5577918 | BC39: 166.3328285 | BD39: 2436.660414 | BE39: 22486.44602 | BF39: 106371.3742 | BG39: 15272.77392 | BH39: 79591.49957 | BI39: 227079.6448 | BJ39: 230199.6142 | BK39: 0.4158072947 | BL39: 16.68010238 | BM39: 17.09590967 | BN39: 0.3405461743 | BO39: 10.45842419 | BQ39: 10.79897037
A40: 34 | B40: 102 | C40: 23.53846154 | D40: =OFFSET(extrapolation!L49,0,OS_dist_choice-1,1,1) -> 0.2973619741 | E40: =OFFSET(extrapolation!D49,0,PFS_dist_choice-1,1,1) -> 0.006208611255 | G40: 6.208611255 | H40: 291.1533628 | I40: 702.6380259 | J40: 1000 | K40: 0.9426818808 | L40: 12.45703229 | M40: 6.679952195 | N40: 296.910538 | O40: 696.4095098 | U40: =SD_concomittant_costs_per_cycle*M40 -> 519.533282 | W40: =SD_healthcare_costs_percycle*M40 -> 2372.141872 | Y40: 2891.675154 | Z40: =PD_lumpsum_secondline_chemo_caba*K40 -> 698.1838092 | AA40: =PD_lumpsum_premedication_costs__caba*K40 -> 153.905889 | AB40: 2254.614382 | AC40: =PD_concomitant_costs_percycle*N40 -> 23092.2171 | AD40: 109236.9539 | AE40: =PD_best_supportive_care_costs_percycle*N40 -> 15684.21309 | AF40: 80588.35626 | AG40: 231708.4444 | AH40: 234600.1195 | AI40: =M40*cycle_length_weeksyear -> 0.3853818574 | AJ40: =N40*cycle_length_weeksyear -> 17.12945412 | AK40: 17.51483597 | AL40: =(M40*u_SD_cycle10_after)*cycle_length_weeksyear -> 0.3156277412 | AM40: =(N40*u_SD_cycle_progressed)*cycle_length_weeksyear -> 10.74016773 | AO40: 11.05579547 | AQ40: 1.961538462 | AR40: 0.9347466756 | AS40: 0.9347466756 | AW40: 485.6320082 | AY40: 2217.351729 | BA40: 2702.983737 | BB40: 652.6249946 | BC40: 143.8630181 | BD40: 2107.493299 | BE40: 21585.37316 | BF40: 102108.8795 | BG40: 14660.76604 | BH40: 75329.6981 | BI40: 216588.6981 | BJ40: 219291.6818 | BK40: 0.36023441 | BL40: 16.01170029 | BM40: 16.3719347 | BN40: 0.2950319818 | BO40: 10.03933608 | BQ40: 10.33436806
A41: 35 | B41: 105 | C41: 24.23076923 | D41: =OFFSET(extrapolation!L50,0,OS_dist_choice-1,1,1) -> 0.2855472095 | E41: =OFFSET(extrapolation!D50,0,PFS_dist_choice-1,1,1) -> 0.005391425989 | G41: 5.391425989 | H41: 280.1557835 | I41: 714.4527905 | J41: 1000 | K41: 0.8171852663 | L41: 11.81476457 | M41: 5.800018622 | N41: 285.6545732 | O41: 708.5454082 | U41: =SD_concomittant_costs_per_cycle*M41 -> 451.0964483 | W41: =SD_healthcare_costs_percycle*M41 -> 2059.665493 | Y41: 2510.761941 | Z41: =PD_lumpsum_secondline_chemo_caba*K41 -> 605.2365423 | AA41: =PD_lumpsum_premedication_costs__caba*K41 -> 133.4168265 | AB41: 1954.463846 | AC41: =PD_concomitant_costs_percycle*N41 -> 22216.78443 | AD41: 105095.7492 | AE41: =PD_best_supportive_care_costs_percycle*N41 -> 15089.62001 | AF41: 76433.3297 | AG41: 221528.6005 | AH41: 224039.3625 | AI41: =M41*cycle_length_weeksyear -> 0.3346164589 | AJ41: =N41*cycle_length_weeksyear -> 16.48007153 | AK41: 16.81468799 | AL41: =(M41*u_SD_cycle10_after)*cycle_length_weeksyear -> 0.2740508799 | AM41: =(N41*u_SD_cycle_progressed)*cycle_length_weeksyear -> 10.33300485 | AO41: 10.60705573 | AQ41: 2.019230769 | AR41: 0.9328933258 | AS41: 0.9328933258 | AW41: 420.8248659 | AY41: 1921.448192 | BA41: 2342.273057 | BB41: 564.6211309 | BC41: 124.463667 | BD41: 1823.306277 | BE41: 20725.88991 | BF41: 98043.12296 | BG41: 14077.0058 | BH41: 71304.14314 | BI41: 206662.5529 | BJ41: 209004.8259 | BK41: 0.3121614612 | BL41: 15.37414874 | BM41: 15.6863102 | BN41: 0.2556602368 | BO41: 9.639591259 | BQ41: 9.895251495
A42: 36 | B42: 108 | C42: 24.92307692 | D42: =OFFSET(extrapolation!L51,0,OS_dist_choice-1,1,1) -> 0.2743395932 | E42: =OFFSET(extrapolation!D51,0,PFS_dist_choice-1,1,1) -> 0.004682837943 | G42: 4.682837943 | H42: 269.6567553 | I42: 725.6604068 | J42: 1000 | K42: 0.7085880452 | L42: 11.20761626 | M42: 5.037131966 | N42: 274.9062694 | O42: 720.0565986 | U42: =SD_concomittant_costs_per_cycle*M42 -> 391.7629387 | W42: =SD_healthcare_costs_percycle*M42 -> 1788.754066 | Y42: 2180.517005 | Z42: =PD_lumpsum_secondline_chemo_caba*K42 -> 524.8055688 | AA42: =PD_lumpsum_premedication_costs__caba*K42 -> 115.6868242 | AB42: 1694.731627 | AC42: =PD_concomitant_costs_percycle*N42 -> 21380.8351 | AD42: 101141.3191 | AE42: =PD_best_supportive_care_costs_percycle*N42 -> 14521.84398 | AF42: 72505.50138 | AG42: 211884.7236 | AH42: 214065.2406 | AI42: =M42*cycle_length_weeksyear -> 0.2906037673 | AJ42: =N42*cycle_length_weeksyear -> 15.85997708 | AK42: 16.15058085 | AL42: =(M42*u_SD_cycle10_after)*cycle_length_weeksyear -> 0.2380044854 | AM42: =(N42*u_SD_cycle_progressed)*cycle_length_weeksyear -> 9.94420563 | AO42: 10.18221012 | AQ42: 2.076923077 | AR42: 0.9310436507 | AS42: 0.9310436507 | AW42: 364.7483966 | AY42: 1665.408116 | BA42: 2030.156512 | BB42: 488.6168926 | BC42: 107.7094832 | BD42: 1577.869121 | BE42: 19906.49077 | BF42: 94166.98295 | BG42: 13520.47063 | BH42: 67505.78669 | BI42: 197273.9265 | BJ42: 199304.0831 | BK42: 0.2705647924 | BL42: 14.76633096 | BM42: 15.03689575 | BN42: 0.221592565 | BO42: 9.258489513 | BQ42: 9.480082078
A43: 37 | B43: 111 | C43: 25.61538462 | D43: =OFFSET(extrapolation!L52,0,OS_dist_choice-1,1,1) -> 0.2637054192 | E43: =OFFSET(extrapolation!D52,0,PFS_dist_choice-1,1,1) -> 0.004068254277 | G43: 4.068254277 | H43: 259.6371649 | I43: 736.2945808 | J43: 1000 | K43: 0.6145836668 | L43: 10.63417409 | M43: 4.37554611 | N43: 264.6469601 | O43: 730.9774938 | U43: =SD_concomittant_costs_per_cycle*M43 -> 340.3080987 | W43: =SD_healthcare_costs_percycle*M43 -> 1553.815931 | Y43: 1894.12403 | Z43: =PD_lumpsum_secondline_chemo_caba*K43 -> 455.1825747 | AA43: =PD_lumpsum_premedication_costs__caba*K43 -> 100.3393059 | AB43: 1469.901143 | AC43: =PD_concomitant_costs_percycle*N43 -> 20582.91732 | AD43: 97366.79593 | AE43: =PD_best_supportive_care_costs_percycle*N43 -> 13979.89894 | AF43: 68795.72836 | AG43: 202750.7636 | AH43: 204644.8876 | AI43: =M43*cycle_length_weeksyear -> 0.2524353525 | AJ43: =N43*cycle_length_weeksyear -> 15.26809385 | AK43: 15.5205292 | AL43: =(M43*u_SD_cycle10_after)*cycle_length_weeksyear -> 0.2067445537 | AM43: =(N43*u_SD_cycle_progressed)*cycle_length_weeksyear -> 9.573094845 | AO43: 9.779839399 | AQ43: 2.134615385 | AR43: 0.929197643 | AS43: 0.929197643 | AW43: 316.2134832 | AY43: 1443.802101 | BA43: 1760.015584 | BB43: 422.9545755 | BC43: 93.23504656 | BD43: 1365.828678 | BE43: 19125.59826 | BF43: 90472.99728 | BG43: 12990.08914 | BH43: 63924.82864 | BI43: 188395.5316 | BJ43: 190155.5472 | BK43: 0.2345623345 | BL43: 14.18707682 | BM43: 14.42163915 | BN43: 0.192106552 | BO43: 8.895297166 | BQ43: 9.087403718
A44: 38 | B44: 114 | C44: 26.30769231 | D44: =OFFSET(extrapolation!L53,0,OS_dist_choice-1,1,1) -> 0.2536124794 | E44: =OFFSET(extrapolation!D53,0,PFS_dist_choice-1,1,1) -> 0.003535068768 | G44: 3.535068768 | H44: 250.0774106 | I44: 746.3875206 | J44: 1000 | K44: 0.5331855084 | L44: 10.0929398 | M44: 3.801661522 | N44: 254.8572877 | O44: 741.3410507 | U44: =SD_concomittant_costs_per_cycle*M44 -> 295.6742249 | W44: =SD_healthcare_costs_percycle*M44 -> 1350.021709 | Y44: 1645.695934 | Z44: =PD_lumpsum_secondline_chemo_caba*K44 -> 394.8961965 | AA44: =PD_lumpsum_premedication_costs__caba*K44 -> 87.04992783 | AB44: 1275.220984 | AC44: =PD_concomitant_costs_percycle*N44 -> 19821.52555 | AD44: 93765.05787 | AE44: =PD_best_supportive_care_costs_percycle*N44 -> 13462.76234 | AF44: 65294.31803 | AG44: 194100.8309 | AH44: 195746.5268 | AI44: =M44*cycle_length_weeksyear -> 0.2193266263 | AJ44: =N44*cycle_length_weeksyear -> 14.70330506 | AK44: 14.92263169 | AL44: =(M44*u_SD_cycle10_after)*cycle_length_weeksyear -> 0.1796285069 | AM44: =(N44*u_SD_cycle_progressed)*cycle_length_weeksyear -> 9.218972274 | AO44: 9.398600781 | AQ44: 2.192307692 | AR44: 0.9273552954 | AS44: 0.9273552954 | AW44: 274.1950582 | AY44: 1251.949781 | BA44: 1526.144839 | BB44: 366.209079 | BC44: 80.72621154 | BD44: 1182.582932 | BE44: 18381.59669 | BF44: 86953.52294 | BG44: 12484.76394 | BH44: 60551.03158 | BI44: 180000.4334 | BJ44: 181526.5782 | BK44: 0.2033937083 | BL44: 13.63518781 | BM44: 13.83858152 | BN44: 0.1665794471 | BO44: 8.549262756 | BQ44: 8.715842203
A45: 39 | B45: 117 | C45: 27 | D45: =OFFSET(extrapolation!L54,0,OS_dist_choice-1,1,1) -> 0.2440301089 | E45: =OFFSET(extrapolation!D54,0,PFS_dist_choice-1,1,1) -> 0.003072387145 | G45: 3.072387145 | H45: 240.9577218 | I45: 755.9698911 | J45: 1000 | K45: 0.4626816231 | L45: 9.582370463 | M45: 3.303727957 | N45: 245.5175662 | O45: 751.1787059 | U45: =SD_concomittant_costs_per_cycle*M45 -> 256.9474418 | W45: =SD_healthcare_costs_percycle*M45 -> 1173.198728 | Y45: 1430.14617 | Z45: =PD_lumpsum_secondline_chemo_caba*K45 -> 342.6785055 | AA45: =PD_lumpsum_premedication_costs__caba*K45 -> 75.53919089 | AB45: 1106.596682 | AC45: =PD_concomitant_costs_percycle*N45 -> 19095.12871 | AD45: 90328.8621 | AE45: =PD_best_supportive_care_costs_percycle*N45 -> 12969.39425 | AF45: 61991.28865 | AG45: 185909.4881 | AH45: 187339.6343 | AI45: =M45*cycle_length_weeksyear -> 0.1905996898 | AJ45: =N45*cycle_length_weeksyear -> 14.16447497 | AK45: 14.35507466 | AL45: =(M45*u_SD_cycle10_after)*cycle_length_weeksyear -> 0.1561011459 | AM45: =(N45*u_SD_cycle_progressed)*cycle_length_weeksyear -> 8.881125807 | AO45: 9.037226953 | AQ45: 2.25 | AR45: 0.9255166007 | AS45: 0.9255166007 | AW45: 237.8091229 | AY45: 1085.814899 | BA45: 1323.624022 | BB45: 317.1546456 | BC45: 69.91277517 | BD45: 1024.1736 | BE45: 17672.85861 | BF45: 83600.8614 | BG45: 12003.38968 | BH45: 57373.96674 | BI45: 172062.3175 | BJ45: 173385.9415 | BK45: 0.176403177 | BL45: 13.10945673 | BM45: 13.2858599 | BN45: 0.144474202 | BO45: 8.219629367 | BQ45: 8.364103569
A46: 40 | B46: 120 | C46: 27.69230769 | D46: =OFFSET(extrapolation!L55,0,OS_dist_choice-1,1,1) -> 0.2349291991 | E46: =OFFSET(extrapolation!D55,0,PFS_dist_choice-1,1,1) -> 0.002670791101 | G46: 2.670791101 | H46: 232.258408 | I46: 765.0708009 | J46: 1000 | K46: 0.4015960445 | L46: 9.100909797 | M46: 2.871589123 | N46: 236.6080649 | O46: 760.520346 | U46: =SD_concomittant_costs_per_cycle*M46 -> 223.337844 | W46: =SD_healthcare_costs_percycle*M46 -> 1019.740351 | Y46: 1243.078195 | Z46: =PD_lumpsum_secondline_chemo_caba*K46 -> 297.4363482 | AA46: =PD_lumpsum_premedication_costs__caba*K46 -> 65.56612311 | AB46: 960.4981661 | AC46: =PD_concomitant_costs_percycle*N46 -> 18402.19225 | AD46: 87050.94954 | AE46: =PD_best_supportive_care_costs_percycle*N46 -> 12498.75243 | AF46: 58876.57217 | AG46: 178151.967 | AH46: 179395.0452 | AI46: =M46*cycle_length_weeksyear -> 0.1656686032 | AJ46: =N46*cycle_length_weeksyear -> 13.65046528 | AK46: 13.81613388 | AL46: =(M46*u_SD_cycle10_after)*cycle_length_weeksyear -> 0.1356825861 | AM46: =(N46*u_SD_cycle_progressed)*cycle_length_weeksyear -> 8.558841731 | AO46: 8.694524317 | AQ46: 2.307692308 | AR46: 0.9236815517 | AS46: 0.9236815517 | AW46: 206.2930463 | AY46: 941.9153498 | BA46: 1148.208396 | BB46: 274.7364676 | BC46: 60.56221833 | BD46: 887.1944364 | BE46: 16997.76549 | BF46: 80407.35614 | BG46: 11544.86704 | BH46: 54383.20354 | BI46: 164555.6853 | BJ46: 165703.8937 | BK46: 0.1530250325 | BL46: 12.60868295 | BM46: 12.76170798 | BN46: 0.1253275016 | BO46: 7.905644211 | BQ46: 8.030971712
A47: 41 | B47: 123 | C47: 28.38461538 | D47: =OFFSET(extrapolation!L56,0,OS_dist_choice-1,1,1) -> 0.2262821869 | E47: =OFFSET(extrapolation!D56,0,PFS_dist_choice-1,1,1) -> 0.002322135432 | G47: 2.322135432 | H47: 223.9600515 | I47: 773.7178131 | J47: 1000 | K47: 0.3486556689 | L47: 8.647012201 | M47: 2.496463266 | N47: 228.1092297 | O47: 769.394307 | U47: =SD_concomittant_costs_per_cycle*M47 -> 194.1624305 | W47: =SD_healthcare_costs_percycle*M47 -> 886.5280577 | Y47: 1080.690488 | Z47: =PD_lumpsum_secondline_chemo_caba*K47 -> 258.2268186 | AA47: =PD_lumpsum_premedication_costs__caba*K47 -> 56.92287269 | AB47: 833.8805504 | AC47: =PD_concomitant_costs_percycle*N47 -> 17741.19534 | AD47: 83924.12599 | AE47: =PD_best_supportive_care_costs_percycle*N47 -> 12049.80393 | AF47: 55940.16964 | AG47: 170804.3251 | AH47: 171885.0156 | AI47: =M47*cycle_length_weeksyear -> 0.1440267269 | AJ47: =N47*cycle_length_weeksyear -> 13.16014787 | AK47: 13.3041746 | AL47: =(M47*u_SD_cycle10_after)*cycle_length_weeksyear -> 0.1179578893 | AM47: =(N47*u_SD_cycle_progressed)*cycle_length_weeksyear -> 8.251412714 | AO47: 8.369370603 | AQ47: 2.365384615 | AR47: 0.921850141 | AS47: 0.921850141 | AW47: 178.988664 | AY47: 817.246015 | BA47: 996.234679 | BB47: 238.0464291 | BC47: 52.47435822 | BD47: 768.712903 | BE47: 16354.72343 | BF47: 77365.46738 | BG47: 11108.11345 | BH47: 51568.45327 | BI47: 157455.9912 | BJ47: 158452.2259 | BK47: 0.1327710585 | BL47: 12.13168417 | BM47: 12.26445523 | BN47: 0.1087394969 | BO47: 7.606565974 | BQ47: 7.715305471
A48: 42 | B48: 126 | C48: 29.07692308 | D48: =OFFSET(extrapolation!L57,0,OS_dist_choice-1,1,1) -> 0.218063026 | E48: =OFFSET(extrapolation!D57,0,PFS_dist_choice-1,1,1) -> 0.002019373543 | G48: 2.019373543 | H48: 216.0436525 | I48: 781.936974 | J48: 1000 | K48: 0.3027618891 | L48: 8.219160853 | M48: 2.170754487 | N48: 220.001852 | O48: 777.8273935 | U48: =SD_concomittant_costs_per_cycle*M48 -> 168.8304302 | W48: =SD_healthcare_costs_percycle*M48 -> 770.8644406 | Y48: 939.6948709 | Z48: =PD_lumpsum_secondline_chemo_caba*K48 -> 224.236249 | AA48: =PD_lumpsum_premedication_costs__caba*K48 -> 49.43007673 | AB48: 724.1162935 | AC48: =PD_concomitant_costs_percycle*N48 -> 17110.64404 | AD48: 80941.32432 | AE48: =PD_best_supportive_care_costs_percycle*N48 -> 11621.53405 | AF48: 53172.26826 | AG48: 163843.5533 | AH48: 164783.2482 | AI48: =M48*cycle_length_weeksyear -> 0.1252358358 | AJ48: =N48*cycle_length_weeksyear -> 12.69241454 | AK48: 12.81765037 | AL48: =(M48*u_SD_cycle10_after)*cycle_length_weeksyear -> 0.1025681495 | AM48: =(N48*u_SD_cycle_progressed)*cycle_length_weeksyear -> 7.958143915 | AO48: 8.060712065 | AQ48: 2.423076923 | AR48: 0.9200223616 | AS48: 0.9200223616 | AW48: 155.3277711 | AY48: 709.2125231 | BA48: 864.5402943 | BB48: 206.3023634 | BC48: 45.47677593 | BD48: 666.2031824 | BE48: 15742.17514 | BF48: 74467.82835 | BG48: 10692.0712 | BH48: 48919.67582 | BI48: 150739.7328 | BJ48: 151604.2731 | BK48: 0.1152197694 | BL48: 11.6773052 | BM48: 11.79252497 | BN48: 0.09436499114 | BO48: 7.321670358 | BQ48: 7.416035349
A49: 43 | B49: 129 | C49: 29.76923077 | D49: =OFFSET(extrapolation!L58,0,OS_dist_choice-1,1,1) -> 0.210247145 | E49: =OFFSET(extrapolation!D58,0,PFS_dist_choice-1,1,1) -> 0.001756407265 | G49: 1.756407265 | H49: 208.4907378 | I49: 789.752855 | J49: 1000 | K49: 0.2629662773 | L49: 7.815881018 | M49: 1.887890404 | N49: 212.2671951 | O49: 785.8449145 | U49: =SD_concomittant_costs_per_cycle*M49 -> 146.8306762 | W49: =SD_healthcare_costs_percycle*M49 -> 670.4155578 | Y49: 817.2462339 | Z49: =PD_lumpsum_secondline_chemo_caba*K49 -> 194.7622002 | AA49: =PD_lumpsum_premedication_costs__caba*K49 -> 42.93289128 | AB49: 628.9370391 | AC49: =PD_concomitant_costs_percycle*N49 -> 16509.0811 | AD49: 78095.65115 | AE49: =PD_best_supportive_care_costs_percycle*N49 -> 11212.95304 | AF49: 50563.32753 | AG49: 157247.6449 | AH49: 158064.8912 | AI49: =M49*cycle_length_weeksyear -> 0.1089167541 | AJ49: =N49*cycle_length_weeksyear -> 12.24618433 | AK49: 12.35510109 | AL49: =(M49*u_SD_cycle10_after)*cycle_length_weeksyear -> 0.08920282159 | AM49: =(N49*u_SD_cycle_progressed)*cycle_length_weeksyear -> 7.678357578 | AO49: 7.767560399 | AQ49: 2.480769231 | AR49: 0.9181982061 | AS49: 0.9181982061 | AW49: 134.8196635 | AY49: 615.5743625 | BA49: 750.3940259 | BB49: 178.8303028 | BC49: 39.42090375 | BD49: 577.488861 | BE49: 15158.60865 | BF49: 71707.28678 | BG49: 10295.71337 | BH49: 46427.15663 | BI49: 144384.5055 | BJ49: 145134.8995 | BK49: 0.1000071682 | BL49: 11.24442449 | BM49: 11.34443166 | BN49: 0.08190587076 | BO49: 7.050254154 | BQ49: 7.132160024
A50: 44 | B50: 132 | C50: 30.46153846 | D50: =OFFSET(extrapolation!L59,0,OS_dist_choice-1,1,1) -> 0.2028113955 | E50: =OFFSET(extrapolation!D59,0,PFS_dist_choice-1,1,1) -> 0.001527957539 | G50: 1.527957539 | H50: 201.2834379 | I50: 797.1886045 | J50: 1000 | K50: 0.2284497266 | L50: 7.435749548 | M50: 1.642182402 | N50: 204.8870879 | O50: 793.4707297 | U50: =SD_concomittant_costs_per_cycle*M50 -> 127.7207363 | W50: =SD_healthcare_costs_percycle*M50 -> 583.1613046 | Y50: 710.882041 | Z50: =PD_lumpsum_secondline_chemo_caba*K50 -> 169.1980121 | AA50: =PD_lumpsum_premedication_costs__caba*K50 -> 37.29758573 | AB50: 546.3837267 | AC50: =PD_concomitant_costs_percycle*N50 -> 15935.09326 | AD50: 75380.42102 | AE50: =PD_best_supportive_care_costs_percycle*N50 -> 10823.10101 | AF50: 48104.14065 | AG50: 150995.6353 | AH50: 151706.5173 | AI50: =M50*cycle_length_weeksyear -> 0.09474129243 | AJ50: =N50*cycle_length_weeksyear -> 11.82040891 | AK50: 11.91515021 | AL50: =(M50*u_SD_cycle10_after)*cycle_length_weeksyear -> 0.0775931185 | AM50: =(N50*u_SD_cycle_progressed)*cycle_length_weeksyear -> 7.411396389 | AO50: 7.488989508 | AQ50: 2.538461538 | AR50: 0.9163776674 | AS50: 0.9163776674 | AW50: 117.0404304 | AY50: 534.3959961 | BA50: 651.4364265 | BB50: 155.0492797 | BC50: 34.17867461 | BD50: 500.693845 | BE50: 14602.56359 | BF50: 69076.93438 | BG50: 9918.048061 | BH50: 44081.5602 | BI50: 138369.028 | BJ50: 139020.4645 | BK50: 0.08681880456 | BL50: 10.83195875 | BM50: 10.91877755 | BN50: 0.07110460094 | BO50: 6.791638136 | BQ50: 6.862742737
A51: 45 | B51: 135 | C51: 31.15384615 | D51: =OFFSET(extrapolation!L60,0,OS_dist_choice-1,1,1) -> 0.1957339942 | E51: =OFFSET(extrapolation!D60,0,PFS_dist_choice-1,1,1) -> 0.001329452995 | G51: 1.329452995 | H51: 194.4045412 | I51: 804.2660058 | J51: 1000 | K51: 0.1985045442 | L51: 7.077401324 | M51: 1.428705267 | N51: 197.8439896 | O51: 800.7273052 | U51: =SD_concomittant_costs_per_cycle*M51 -> 111.1175521 | W51: =SD_healthcare_costs_percycle*M51 -> 507.3526706 | Y51: 618.4702227 | Z51: =PD_lumpsum_secondline_chemo_caba*K51 -> 147.0195425 | AA51: =PD_lumpsum_premedication_costs__caba*K51 -> 32.40861947 | AB51: 474.7637666 | AC51: =PD_concomitant_costs_percycle*N51 -> 15387.31629 | AD51: 72789.18054 | AE51: =PD_best_supportive_care_costs_percycle*N51 -> 10451.05139 | AF51: 45785.87626 | AG51: 145067.6164 | AH51: 145686.0866 | AI51: =M51*cycle_length_weeksyear -> 0.08242530384 | AJ51: =N51*cycle_length_weeksyear -> 11.41407632 | AK51: 11.49650162 | AL51: =(M51*u_SD_cycle10_after)*cycle_length_weeksyear -> 0.06750632385 | AM51: =(N51*u_SD_cycle_progressed)*cycle_length_weeksyear -> 7.156625853 | AO51: 7.224132177 | AQ51: 2.596153846 | AR51: 0.9145607384 | AS51: 0.9145607384 | AW51: 101.6237505 | AY51: 464.004833 | BA51: 565.6285835 | BB51: 134.4583014 | BC51: 29.63965096 | BD51: 434.2003009 | BE51: 14072.63535 | BF51: 66570.1267 | BG51: 9558.121275 | BH51: 41873.96481 | BI51: 132673.1464 | BJ51: 133238.775 | BK51: 0.07538294675 | BL51: 10.43886607 | BM51: 10.51424901 | BN51: 0.06173863339 | BO51: 6.545169024 | BQ51: 6.606907658
A52: 46 | B52: 138 | C52: 31.84615385 | D52: =OFFSET(extrapolation!L61,0,OS_dist_choice-1,1,1) -> 0.1889944608 | E52: =OFFSET(extrapolation!D61,0,PFS_dist_choice-1,1,1) -> 0.001156933923 | G52: 1.156933923 | H52: 187.8375269 | I52: 811.0055392 | J52: 1000 | K52: 0.1725190717 | L52: 6.739533326 | M52: 1.243193459 | N52: 191.121034 | O52: 807.6357725 | U52: =SD_concomittant_costs_per_cycle*M52 -> 96.68937125 | W52: =SD_healthcare_costs_percycle*M52 -> 441.4749046 | Y52: 538.1642758 | Z52: =PD_lumpsum_secondline_chemo_caba*K52 -> 127.7737751 | AA52: =PD_lumpsum_premedication_costs__caba*K52 -> 28.16613075 | AB52: 412.6142533 | AC52: =PD_concomitant_costs_percycle*N52 -> 14864.43842 | AD52: 70315.72444 | AE52: =PD_best_supportive_care_costs_percycle*N52 -> 10095.91321 | AF52: 43600.10473 | AG52: 139444.735 | AH52: 139982.8992 | AI52: =M52*cycle_length_weeksyear -> 0.07172269954 | AJ52: =N52*cycle_length_weeksyear -> 11.0262135 | AK52: 11.0979362 | AL52: =(M52*u_SD_cycle10_after)*cycle_length_weeksyear -> 0.05874089092 | AM52: =(N52*u_SD_cycle_progressed)*cycle_length_weeksyear -> 6.913435866 | AO52: 6.972176757 | AQ52: 2.653846154 | AR52: 0.9127474119 | AS52: 0.9127474119 | AW52: 88.25297336 | AY52: 402.9550766 | BA52: 491.2080499 | BB52: 116.6251825 | BC52: 25.70856294 | BD52: 376.6125918 | BE52: 13567.4777 | BF52: 64180.4955 | BG52: 9215.018655 | BH52: 39795.88275 | BI52: 127277.8209 | BJ52: 127769.029 | BK52: 0.06546470838 | BL52: 10.06414784 | BM52: 10.12961255 | BN52: 0.05361559616 | BO52: 6.310220694 | BQ52: 6.36383629
A53: 47 | B53: 141 | C53: 32.53846154 | D53: =OFFSET(extrapolation!L62,0,OS_dist_choice-1,1,1) -> 0.182573554 | E53: =OFFSET(extrapolation!D62,0,PFS_dist_choice-1,1,1) -> 0.001006969458 | G53: 1.006969458 | H53: 181.5665846 | I53: 817.426446 | J53: 1000 | K53: 0.1499644647 | L53: 6.420906817 | M53: 1.08195169 | N53: 184.7020557 | O53: 814.2159926 | U53: =SD_concomittant_costs_per_cycle*M53 -> 84.14879273 | W53: =SD_healthcare_costs_percycle*M53 -> 384.2157598 | Y53: 468.3645526 | Z53: =PD_lumpsum_secondline_chemo_caba*K53 -> 111.0690291 | AA53: =PD_lumpsum_premedication_costs__caba*K53 -> 24.48377839 | AB53: 358.6703487 | AC53: =PD_concomitant_costs_percycle*N53 -> 14365.20238 | AD53: 67954.10521 | AE53: =PD_best_supportive_care_costs_percycle*N53 -> 9756.832544 | AF53: 41538.81228 | AG53: 134109.1756 | AH53: 134577.5401 | AI53: =M53*cycle_length_weeksyear -> 0.06242028983 | AJ53: =N53*cycle_length_weeksyear -> 10.65588783 | AK53: 10.71830812 | AL53: =(M53*u_SD_cycle10_after)*cycle_length_weeksyear -> 0.05112221737 | AM53: =(N53*u_SD_cycle_progressed)*cycle_length_weeksyear -> 6.68124167 | AO53: 6.732363887 | AQ53: 2.711538462 | AR53: 0.9109376807 | AS53: 0.9109376807 | AW53: 76.65430608 | AY53: 349.9966131 | BA53: 426.6509192 | BB53: 101.1769637 | BC53: 22.3031963 | BD53: 326.7263356 | BE53: 13085.80414 | BF53: 61901.95499 | BG53: 8887.866409 | BH53: 37839.26931 | BI53: 122165.1014 | BJ53: 122591.7523 | BK53: 0.05686099405 | BL53: 9.706849746 | BM53: 9.76371074 | BN53: 0.04656915413 | BO53: 6.086194791 | BQ53: 6.132763945
A54: 48 | B54: 144 | C54: 33.23076923 | D54: =OFFSET(extrapolation!L63,0,OS_dist_choice-1,1,1) -> 0.1764532059 | E54: =OFFSET(extrapolation!D63,0,PFS_dist_choice-1,1,1) -> 0.0008765861334 | G54: 0.8765861334 | H54: 175.5766198 | I54: 823.5467941 | J54: 1000 | K54: 0.1303833248 | L54: 6.120348097 | M54: 0.9417777957 | N54: 178.5716022 | O54: 820.48662 | U54: =SD_concomittant_costs_per_cycle*M54 -> 73.24676806 | W54: =SD_healthcare_costs_percycle*M54 -> 334.4381034 | Y54: 407.6848715 | Z54: =PD_lumpsum_secondline_chemo_caba*K54 -> 96.56653872 | AA54: =PD_lumpsum_premedication_costs__caba*K54 -> 21.28688577 | AB54: 311.8380922 | AC54: =PD_concomitant_costs_percycle*N54 -> 13888.40636 | AD54: 65698.63769 | AE54: =PD_best_supportive_care_costs_percycle*N54 -> 9432.993112 | AF54: 39594.40589 | AG54: 129044.1346 | AH54: 129451.8194 | AI54: =M54*cycle_length_weeksyear -> 0.05433333437 | AJ54: =N54*cycle_length_weeksyear -> 10.30220782 | AK54: 10.35654115 | AL54: =(M54*u_SD_cycle10_after)*cycle_length_weeksyear -> 0.04449900085 | AM54: =(N54*u_SD_cycle_progressed)*cycle_length_weeksyear -> 6.459484302 | AO54: 6.503983302 | AQ54: 2.769230769 | AR54: 0.9091315377 | AS54: 0.9091315377 | AW54: 66.59094688 | AY54: 304.0482272 | BA54: 370.6391741 | BB54: 87.79168583 | BC54: 19.35257919 | BD54: 283.5018442 | BE54: 12626.38823 | BF54: 59728.70351 | BG54: 8575.831533 | BH54: 35996.52311 | BI54: 117318.0925 | BJ54: 117688.7317 | BK54: 0.04939614782 | BL54: 9.366062034 | BM54: 9.415458182 | BN54: 0.04045544507 | BO54: 5.872520896 | BQ54: 5.912976341
A55: 49 | B55: 147 | C55: 33.92307692 | D55: =OFFSET(extrapolation!L64,0,OS_dist_choice-1,1,1) -> 0.1706164578 | E55: =OFFSET(extrapolation!D64,0,PFS_dist_choice-1,1,1) -> 0.0007632062162 | G55: 0.7632062162 | H55: 169.8532515 | I55: 829.3835422 | J55: 1000 | K55: 0.1133799172 | L55: 5.836748154 | M55: 0.8198961748 | N55: 172.7149357 | O55: 826.4651682 | U55: =SD_concomittant_costs_per_cycle*M55 -> 63.76742499 | W55: =SD_healthcare_costs_percycle*M55 -> 291.1562823 | Y55: 354.9237072 | Z55: =PD_lumpsum_secondline_chemo_caba*K55 -> 83.97320884 | AA55: =PD_lumpsum_premedication_costs__caba*K55 -> 18.51084369 | AB55: 271.1710038 | AC55: =PD_concomitant_costs_percycle*N55 -> 13432.90412 | AD55: 63543.89973 | AE55: =PD_best_supportive_care_costs_percycle*N55 -> 9123.616402 | AF55: 37759.71102 | AG55: 124233.7863 | AH55: 124588.71 | AI55: =M55*cycle_length_weeksyear -> 0.04730170239 | AJ55: =N55*cycle_length_weeksyear -> 9.964323211 | AK55: 10.01162491 | AL55: =(M55*u_SD_cycle10_after)*cycle_length_weeksyear -> 0.03874009426 | AM55: =(N55*u_SD_cycle_progressed)*cycle_length_weeksyear -> 6.247630654 | AO55: 6.286370748 | AQ55: 2.826923077 | AR55: 0.9073289758 | AS55: 0.9073289758 | AW55: 57.85803241 | AY55: 264.1745314 | BA55: 322.0325638 | BB55: 76.19132557 | BC55: 16.79542485 | BD55: 246.0413091 | BE55: 12188.06314 | BF55: 57655.22146 | BG55: 8278.121525 | BH55: 34260.47992 | BI55: 112720.9141 | BJ55: 113042.9467 | BK55: 0.04291820518 | BL55: 9.040919174 | BM55: 9.083837379 | BN55: 0.03515001004 | BO55: 5.668656322 | BQ55: 5.703806332
A56: 50 | B56: 150 | C56: 34.61538462 | D56: =OFFSET(extrapolation!L65,0,OS_dist_choice-1,1,1) -> 0.1650473963 | E56: =OFFSET(extrapolation!D65,0,PFS_dist_choice-1,1,1) -> 0.000664594467 | G56: 0.664594467 | H56: 164.3828018 | I56: 834.9526037 | J56: 1000 | K56: 0.09861174924 | L56: 5.569061491 | M56: 0.7139003416 | N56: 167.1180267 | O56: 832.168073 | U56: =SD_concomittant_costs_per_cycle*M56 -> 55.52359907 | W56: =SD_healthcare_costs_percycle*M56 -> 253.5157203 | Y56: 309.0393194 | Z56: =PD_lumpsum_secondline_chemo_caba*K56 -> 73.03537717 | AA56: =PD_lumpsum_premedication_costs__caba*K56 -> 16.09973549 | AB56: 235.8499433 | AC56: =PD_concomitant_costs_percycle*N56 -> 12997.60452 | AD56: 61484.72967 | AE56: =PD_best_supportive_care_costs_percycle*N56 -> 8827.961308 | AF56: 36027.96403 | AG56: 119663.2446 | AH56: 119972.2839 | AI56: =M56*cycle_length_weeksyear -> 0.04118655817 | AJ56: =N56*cycle_length_weeksyear -> 9.641424616 | AK56: 9.682611174 | AL56: =(M56*u_SD_cycle10_after)*cycle_length_weeksyear -> 0.03373179114 | AM56: =(N56*u_SD_cycle_progressed)*cycle_length_weeksyear -> 6.045173234 | AO56: 6.078905025 | AQ56: 2.884615385 | AR56: 0.9055299878 | AS56: 0.9055299878 | AW56: 50.27828399 | AY56: 229.5660872 | BA56: 279.8443712 | BB56: 66.1357242 | BC56: 14.57879329 | BD56: 213.5691963 | BE56: 11769.72067 | BF56: 55676.26651 | BG56: 7993.983695 | BH56: 32624.40183 | BI56: 108358.6564 | BJ56: 108638.5008 | BK56: 0.03729566352 | BL56: 8.730599115 | BM56: 8.767894779 | BN56: 0.03054514842 | BO56: 5.474085645 | BQ56: 5.504630794
A57: 51 | B57: 153 | C57: 35.30769231 | D57: =OFFSET(extrapolation!L66,0,OS_dist_choice-1,1,1) -> 0.1597310919 | E57: =OFFSET(extrapolation!D66,0,PFS_dist_choice-1,1,1) -> 0.0005788121502 | G57: 0.5788121502 | H57: 159.1522798 | I57: 840.2689081 | J57: 1000 | K57: 0.08578231677 | L57: 5.316304359 | M57: 0.6217033086 | N57: 161.7675408 | O57: 837.6107559 | U57: =SD_concomittant_costs_per_cycle*M57 -> 48.35297483 | W57: =SD_healthcare_costs_percycle*M57 -> 220.7753 | Y57: 269.1282749 | Z57: =PD_lumpsum_secondline_chemo_caba*K57 -> 63.5334421 | AA57: =PD_lumpsum_premedication_costs__caba*K57 -> 14.00515274 | AB57: 205.1657607 | AC57: =PD_concomitant_costs_percycle*N57 -> 12581.47048 | AD57: 59516.22164 | AE57: =PD_best_supportive_care_costs_percycle*N57 -> 8545.323441 | AF57: 34392.80075 | AG57: 115318.5207 | AH57: 115587.6489 | AI57: =M57*cycle_length_weeksyear -> 0.03586749857 | AJ57: =N57*cycle_length_weeksyear -> 9.332742738 | AK57: 9.368610236 | AL57: =(M57*u_SD_cycle10_after)*cycle_length_weeksyear -> 0.02937548133 | AM57: =(N57*u_SD_cycle_progressed)*cycle_length_weeksyear -> 5.851629696 | AO57: 5.881005178 | AQ57: 2.942307692 | AR57: 0.9037345668 | AS57: 0.9037345668 | AW57: 43.69825476 | AY57: 199.5222702 | BA57: 243.2205249 | BB57: 57.41736777 | BC57: 12.65694065 | BD57: 185.4153899 | BE57: 11370.30978 | BF57: 53786.86678 | BG57: 7722.704179 | BH57: 31081.96289 | BI57: 104217.3333 | BJ57: 104460.5539 | BK57: 0.03241469829 | BL57: 8.434322215 | BM57: 8.466736914 | BN57: 0.0265476379 | BO57: 5.288320029 | BQ57: 5.314867667
A58: 52 | B58: 156 | C58: 36 | D58: =OFFSET(extrapolation!L67,0,OS_dist_choice-1,1,1) -> 0.1546535394 | E58: =OFFSET(extrapolation!D67,0,PFS_dist_choice-1,1,1) -> 0.0005041772971 | G58: 0.5041772971 | H58: 154.1493621 | I58: 845.3464606 | J58: 1000 | K58: 0.07463485311 | L58: 5.077552553 | M58: 0.5414947236 | N58: 156.6508209 | O58: 842.8076844 | U58: =SD_concomittant_costs_per_cycle*M58 -> 42.11475213 | W58: =SD_healthcare_costs_percycle*M58 -> 192.2921407 | Y58: 234.4068928 | Z58: =PD_lumpsum_secondline_chemo_caba*K58 -> 55.27723309 | AA58: =PD_lumpsum_premedication_costs__caba*K58 -> 12.18517472 | AB58: 178.5043467 | AC58: =PD_concomitant_costs_percycle*N58 -> 12183.5176 | AD58: 57633.71893 | AE58: =PD_best_supportive_care_costs_percycle*N58 -> 8275.034198 | AF58: 32848.24221 | AG58: 111186.4797 | AH58: 111420.8866 | AI58: =M58*cycle_length_weeksyear -> 0.03124008021 | AJ58: =N58*cycle_length_weeksyear -> 9.03754736 | AK58: 9.068787441 | AL58: =(M58*u_SD_cycle10_after)*cycle_length_weeksyear -> 0.02558562569 | AM58: =(N58*u_SD_cycle_progressed)*cycle_length_weeksyear -> 5.666542195 | AO58: 5.692127821 | AQ58: 3 | AR58: 0.9019427057 | AS58: 0.9019427057 | AW58: 37.98509349 | AY58: 173.4364937 | BA58: 211.4215871 | BB58: 49.85689717 | BC58: 10.99032945 | BD58: 161.0006934 | BE58: 10988.83483 | BF58: 51982.31239 | BG58: 7463.606734 | BH58: 29627.23246 | BI58: 100283.8343 | BJ58: 100495.2559 | BK58: 0.02817676247 | BL58: 8.151349919 | BM58: 8.179526681 | BN58: 0.02307676846 | BO58: 5.110896399 | BQ58: 5.133973168
A59: 53 | B59: 159 | C59: 36.69230769 | D59: =OFFSET(extrapolation!L68,0,OS_dist_choice-1,1,1) -> 0.1498016004 | E59: =OFFSET(extrapolation!D68,0,PFS_dist_choice-1,1,1) -> 0.0004392303569 | G59: 0.4392303569 | H59: 149.3623701 | I59: 850.1983996 | J59: 1000 | K59: 0.06494694017 | L59: 4.851938927 | M59: 0.471703827 | N59: 151.7558661 | O59: 847.7724301 | U59: =SD_concomittant_costs_per_cycle*M59 -> 36.68676515 | W59: =SD_healthcare_costs_percycle*M59 -> 167.5084441 | Y59: 204.1952093 | Z59: =PD_lumpsum_secondline_chemo_caba*K59 -> 48.10201936 | AA59: =PD_lumpsum_premedication_costs__caba*K59 -> 10.60348859 | AB59: 155.3337434 | AC59: =PD_concomitant_costs_percycle*N59 -> 11802.81248 | AD59: 55832.80623 | AE59: =PD_best_supportive_care_costs_percycle*N59 -> 8016.459627 | AF59: 31388.67858 | AG59: 107254.7962 | AH59: 107458.9914 | AI59: =M59*cycle_length_weeksyear -> 0.02721368233 | AJ59: =N59*cycle_length_weeksyear -> 8.755146119 | AK59: 8.782359802 | AL59: =(M59*u_SD_cycle10_after)*cycle_length_weeksyear -> 0.02228800583 | AM59: =(N59*u_SD_cycle_progressed)*cycle_length_weeksyear -> 5.489476617 | AO59: 5.511764623 | AQ59: 3.057692308 | AR59: 0.9001543973 | AS59: 0.9001543973 | AW59: 33.02375297 | AY59: 150.7834626 | BA59: 183.8072155 | BB59: 43.29924425 | BC59: 9.54477688 | BD59: 139.8243522 | BE59: 10624.35356 | BF59: 50258.14604 | BG59: 7216.051384 | BH59: 28254.65705 | BI59: 96545.87641 | BJ59: 96729.68363 | BK59: 0.02449651581 | BL59: 7.880983278 | BM59: 7.905479794 | BN59: 0.02006264645 | BO59: 4.941376515 | BQ59: 4.961439162
A60: 54 | B60: 162 | C60: 37.38461538 | D60: =OFFSET(extrapolation!L69,0,OS_dist_choice-1,1,1) -> 0.1451629497 | E60: =OFFSET(extrapolation!D69,0,PFS_dist_choice-1,1,1) -> 0.0003827044966 | G60: 0.3827044966 | H60: 144.7802452 | I60: 854.8370503 | J60: 1000 | K60: 0.05652586032 | L60: 4.638650726 | M60: 0.4109674268 | N60: 147.0713076 | O60: 852.5177249 | U60: =SD_concomittant_costs_per_cycle*M60 -> 31.96299162 | W60: =SD_healthcare_costs_percycle*M60 -> 145.9401224 | Y60: 177.903114 | Z60: =PD_lumpsum_secondline_chemo_caba*K60 -> 41.8650674 | AA60: =PD_lumpsum_premedication_costs__caba*K60 -> 9.228630531 | AB60: 135.1930277 | AC60: =PD_concomitant_costs_percycle*N60 -> 11438.47095 | AD60: 54109.30091 | AE60: =PD_best_supportive_care_costs_percycle*N60 -> 7768.999187 | AF60: 30008.8519 | AG60: 103511.9097 | AH60: 103689.8128 | AI60: =M60*cycle_length_weeksyear -> 0.02370965924 | AJ60: =N60*cycle_length_weeksyear -> 8.484883133 | AK60: 8.508592793 | AL60: =(M60*u_SD_cycle10_after)*cycle_length_weeksyear -> 0.01941821091 | AM60: =(N60*u_SD_cycle_progressed)*cycle_length_weeksyear -> 5.320021725 | AO60: 5.339439935 | AQ60: 3.115384615 | AR60: 0.8983696346 | AS60: 0.8983696346 | AW60: 28.7145811 | AY60: 131.1081744 | BA60: 159.8227555 | BB60: 37.61030531 | BC60: 8.290721438 | BD60: 121.4533109 | BE60: 10275.97497 | BF60: 48610.15289 | BG60: 6979.432961 | BH60: 26959.04132 | BI60: 92991.95648 | BJ60: 93151.77923 | BK60: 0.0213000379 | BL60: 7.62256136 | BM60: 7.643861398 | BN60: 0.01744473104 | BO60: 4.779345973 | BQ60: 4.796790704
A61: 55 | B61: 165 | C61: 38.07692308 | D61: =OFFSET(extrapolation!L70,0,OS_dist_choice-1,1,1) -> 0.1407260229 | E61: =OFFSET(extrapolation!D70,0,PFS_dist_choice-1,1,1) -> 0.0003334999108 | G61: 0.3334999108 | H61: 140.392523 | I61: 859.2739771 | J61: 1000 | K61: 0.04920458583 | L61: 4.43692682 | M61: 0.3581022037 | N61: 142.5863841 | O61: 857.0555137 | U61: =SD_concomittant_costs_per_cycle*M61 -> 27.85139889 | W61: =SD_healthcare_costs_percycle*M61 -> 127.1669627 | Y61: 155.0183616 | Z61: =PD_lumpsum_secondline_chemo_caba*K61 -> 36.4426705 | AA61: =PD_lumpsum_premedication_costs__caba*K61 -> 8.033330948 | AB61: 117.682719 | AC61: =PD_concomitant_costs_percycle*N61 -> 11089.65602 | AD61: 52459.24366 | AE61: =PD_best_supportive_care_costs_percycle*N61 -> 7532.0844 | AF61: 28703.83818 | AG61: 99946.98099 | AH61: 100101.9993 | AI61: =M61*cycle_length_weeksyear -> 0.02065974252 | AJ61: =N61*cycle_length_weeksyear -> 8.226137544 | AK61: 8.246797286 | AL61: =(M61*u_SD_cycle10_after)*cycle_length_weeksyear -> 0.01692032912 | AM61: =(N61*u_SD_cycle_progressed)*cycle_length_weeksyear -> 5.15778824 | AO61: 5.174708569 | AQ61: 3.173076923 | AR61: 0.8965884106 | AS61: 0.8965884106 | AW61: 24.97124147 | AY61: 114.016425 | BA61: 138.9876665 | BB61: 32.67407602 | BC61: 7.202591427 | BD61: 105.512962 | BE61: 9942.857068 | BF61: 47034.3499 | BG61: 6753.179581 | BH61: 25735.52866 | BI61: 89611.30483 | BJ61: 89750.2925 | BK61: 0.01852328571 | BL61: 7.375459586 | BM61: 7.393982872 | BN61: 0.015170571 | BO61: 4.624413161 | BQ61: 4.639583732
A62: 56 | B62: 168 | C62: 38.76923077 | D62: =OFFSET(extrapolation!L71,0,OS_dist_choice-1,1,1) -> 0.136479968 | E62: =OFFSET(extrapolation!D71,0,PFS_dist_choice-1,1,1) -> 0.000290661594 | G62: 0.290661594 | H62: 136.1893064 | I62: 863.520032 | J62: 1000 | K62: 0.0428383168 | L62: 4.246054905 | M62: 0.3120807524 | N62: 138.2909147 | O62: 861.3970046 | U62: =SD_concomittant_costs_per_cycle*M62 -> 24.27208052 | W62: =SD_healthcare_costs_percycle*M62 -> 110.8241195 | Y62: 135.0962 | Z62: =PD_lumpsum_secondline_chemo_caba*K62 -> 31.72758469 | AA62: =PD_lumpsum_premedication_costs__caba*K62 -> 6.993949249 | AB62: 102.456499 | AC62: =PD_concomitant_costs_percycle*N62 -> 10755.57589 | AD62: 50878.88886 | AE62: =PD_best_supportive_care_costs_percycle*N62 -> 7305.177474 | AF62: 27469.02932 | AG62: 96549.84958 | AH62: 96684.94578 | AI62: =M62*cycle_length_weeksyear -> 0.01800465879 | AJ62: =N62*cycle_length_weeksyear -> 7.978322001 | AK62: 7.99632666 | AL62: =(M62*u_SD_cycle10_after)*cycle_length_weeksyear -> 0.01474581555 | AM62: =(N62*u_SD_cycle_progressed)*cycle_length_weeksyear -> 5.002407895 | AO62: 5.01715371 | AQ62: 3.230769231 | AR62: 0.8948107184 | AS62: 0.8948107184 | AW62: 21.7189178 | AY62: 99.16660995 | BA62: 120.8855278 | BB62: 28.39018285 | BC62: 6.258260752 | BD62: 91.67917348 | BE62: 9624.204588 | BF62: 45526.97509 | BG62: 6536.751103 | BH62: 24579.58186 | BI62: 86393.84026 | BJ62: 86514.72579 | BK62: 0.01611076167 | BL62: 7.139088041 | BM62: 7.155198803 | BN62: 0.0131947138 | BO62: 4.476208202 | BQ62: 4.489402916
A63: 57 | B63: 171 | C63: 39.46153846 | D63: =OFFSET(extrapolation!L72,0,OS_dist_choice-1,1,1) -> 0.1324145993 | E63: =OFFSET(extrapolation!D72,0,PFS_dist_choice-1,1,1) -> 0.0002533601023 | G63: 0.2533601023 | H63: 132.1612392 | I63: 867.5854007 | J63: 1000 | K63: 0.03730149163 | L63: 4.065368724 | M63: 0.2720108481 | N63: 134.1752728 | O63: 865.5527164 | U63: =SD_concomittant_costs_per_cycle*M63 -> 21.15564371 | W63: =SD_healthcare_costs_percycle*M63 -> 96.59475152 | Y63: 117.7503952 | Z63: =PD_lumpsum_secondline_chemo_caba*K63 -> 27.62681457 | AA63: =PD_lumpsum_premedication_costs__caba*K63 -> 6.089985762 | AB63: 89.21406174 | AC63: =PD_concomitant_costs_percycle*N63 -> 10435.48184 | AD63: 49364.69476 | AE63: =PD_best_supportive_care_costs_percycle*N63 -> 7087.769883 | AF63: 26300.11509 | AG63: 93310.99243 | AH63: 93428.74283 | AI63: =M63*cycle_length_weeksyear -> 0.01569293355 | AJ63: =N63*cycle_length_weeksyear -> 7.740881122 | AK63: 7.756574055 | AL63: =(M63*u_SD_cycle10_after)*cycle_length_weeksyear -> 0.01285251257 | AM63: =(N63*u_SD_cycle_progressed)*cycle_length_weeksyear -> 4.853532463 | AO63: 4.866384976 | AQ63: 3.288461538 | AR63: 0.8930365508 | AS63: 0.8930365508 | AW63: 18.89276309 | AY63: 86.26264372 | BA63: 105.1554068 | BB63: 24.67175519 | BC63: 5.438579879 | BD63: 79.67141798 | BE63: 9319.266708 | BF63: 44084.47674 | BG63: 6329.637569 | BH63: 23486.96407 | BI63: 83330.12683 | BJ63: 83435.28224 | BK63: 0.01401436325 | BL63: 6.912889777 | BM63: 6.92690414 | BN63: 0.0114777635 | BO63: 4.33438189 | BQ63: 4.345859653
A64: 58 | B64: 174 | C64: 40.15384615 | D64: =OFFSET(extrapolation!L73,0,OS_dist_choice-1,1,1) -> 0.1285203539 | E64: =OFFSET(extrapolation!D73,0,PFS_dist_choice-1,1,1) -> 0.0002208748979 | G64: 0.2208748979 | H64: 128.299479 | I64: 871.4796461 | J64: 1000 | K64: 0.03248520445 | L64: 3.894245337 | M64: 0.2371175001 | N64: 130.2303591 | O64: 869.5325234 | U64: =SD_concomittant_costs_per_cycle*M64 -> 18.44181357 | W64: =SD_healthcare_costs_percycle*M64 -> 84.20364908 | Y64: 102.6454627 | Z64: =PD_lumpsum_secondline_chemo_caba*K64 -> 24.05970057 | AA64: =PD_lumpsum_premedication_costs__caba*K64 -> 5.303660093 | AB64: 77.69493682 | AC64: =PD_concomitant_costs_percycle*N64 -> 10128.66618 | AD64: 47913.31362 | AE64: =PD_best_supportive_care_costs_percycle*N64 -> 6879.380962 | AF64: 25193.0655 | AG64: 90221.48456 | AH64: 90324.13002 | AI64: =M64*cycle_length_weeksyear -> 0.01367985578 | AJ64: =N64*cycle_length_weeksyear -> 7.513289948 | AK64: 7.526969803 | AL64: =(M64*u_SD_cycle10_after)*cycle_length_weeksyear -> 0.01120380188 | AM64: =(N64*u_SD_cycle_progressed)*cycle_length_weeksyear -> 4.710832797 | AO64: 4.722036599 | AQ64: 3.346153846 | AR64: 0.8912659009 | AS64: 0.8912659009 | AW64: 16.43655959 | AY64: 75.04784116 | BA64: 91.48440074 | BB64: 21.44359071 | BC64: 4.726971391 | BD64: 69.24684786 | BE64: 9027.334786 | BF64: 42703.50263 | BG64: 6131.35767 | BH64: 22453.72022 | BI64: 80411.33271 | BJ64: 80502.81712 | BK64: 0.01219238898 | BL64: 6.696339134 | BM64: 6.708531523 | BN64: 0.009985566576 | BO64: 4.198604637 | BQ64: 4.208590203
A65: 59 | B65: 177 | C65: 40.84615385 | D65: =OFFSET(extrapolation!L74,0,OS_dist_choice-1,1,1) -> 0.1247882515 | E65: =OFFSET(extrapolation!D74,0,PFS_dist_choice-1,1,1) -> 0.0001925799245 | G65: 0.1925799245 | H65: 124.5956715 | I65: 875.2117485 | J65: 1000 | K65: 0.02829497341 | L65: 3.73210247 | M65: 0.2067274112 | N65: 126.4475753 | O65: 873.3456973 | U65: =SD_concomittant_costs_per_cycle*M65 -> 16.0782244 | W65: =SD_healthcare_costs_percycle*M65 -> 73.4117152 | Y65: 89.4899396 | Z65: =PD_lumpsum_secondline_chemo_caba*K65 -> 20.95626607 | AA65: =PD_lumpsum_premedication_costs__caba*K65 -> 4.61954677 | AB65: 67.67315178 | AC65: =PD_concomitant_costs_percycle*N65 -> 9834.460167 | AD65: 46521.58201 | AE65: =PD_best_supportive_care_costs_percycle*N65 -> 6679.556504 | AF65: 24144.11365 | AG65: 87272.9613 | AH65: 87362.45124 | AI65: =M65*cycle_length_weeksyear -> 0.01192658141 | AJ65: =N65*cycle_length_weeksyear -> 7.29505242 | AK65: 7.306979001 | AL65: =(M65*u_SD_cycle10_after)*cycle_length_weeksyear -> 0.009767870178 | AM65: =(N65*u_SD_cycle_progressed)*cycle_length_weeksyear -> 4.573997867 | AO65: 4.583765737 | AQ65: 3.403846154 | AR65: 0.8894987617 | AS65: 0.8894987617 | AW65: 14.3015607 | AY65: 65.29962976 | BA65: 79.60119046 | BB65: 18.64057272 | BC65: 4.109081131 | BD65: 60.1951847 | BE65: 8747.740141 | BF65: 41380.88959 | BG65: 5941.457239 | BH65: 21476.15919 | BI65: 77629.191 | BJ65: 77708.79219 | BK65: 0.0106086794 | BL65: 6.488940094 | BM65: 6.499548773 | BN65: 0.008688508428 | BO65: 4.068565439 | BQ65: 4.077253947
A66: 60 | B66: 180 | C66: 41.53846154 | D66: =OFFSET(extrapolation!L75,0,OS_dist_choice-1,1,1) -> 0.1212098555 | E66: =OFFSET(extrapolation!D75,0,PFS_dist_choice-1,1,1) -> 0.0001679311131 | G66: 0.1679311131 | H66: 121.0419244 | I66: 878.7901445 | J66: 1000 | K66: 0.02464881141 | L66: 3.578395965 | M66: 0.1802555188 | N66: 122.818798 | O66: 877.0009465 | U66: =SD_concomittant_costs_per_cycle*M66 -> 14.01937297 | W66: =SD_healthcare_costs_percycle*M66 -> 64.01118619 | Y66: 78.03055916 | Z66: =PD_lumpsum_secondline_chemo_caba*K66 -> 18.2557885 | AA66: =PD_lumpsum_premedication_costs__caba*K66 -> 4.024260263 | AB66: 58.95261789 | AC66: =PD_concomitant_costs_percycle*N66 -> 9552.232011 | AD66: 45186.51124 | AE66: =PD_best_supportive_care_costs_percycle*N66 -> 6487.867394 | AF66: 23149.7392 | AG66: 84457.58252 | AH66: 84535.61307 | AI66: =M66*cycle_length_weeksyear -> 0.01039935685 | AJ66: =N66*cycle_length_weeksyear -> 7.085699882 | AK66: 7.096099239 | AL66: =(M66*u_SD_cycle10_after)*cycle_length_weeksyear -> 0.008517073262 | AM66: =(N66*u_SD_cycle_progressed)*cycle_length_weeksyear -> 4.442733826 | AO66: 4.451250899 | AQ66: 3.461538462 | AR66: 0.8877351263 | AS66: 0.8877351263 | AW66: 12.44548984 | AY66: 56.82497845 | BA66: 69.27046829 | BB66: 16.20630471 | BC66: 3.572477193 | BD66: 52.33430969 | BE66: 8479.85189 | BF66: 40113.65326 | BG66: 5759.50778 | BH66: 20550.83666 | BI66: 74975.96268 | BJ66: 75045.23315 | BK66: 0.009231874368 | BL66: 6.290224679 | BM66: 6.299456554 | BN66: 0.007560905107 | BO66: 3.943970874 | BQ66: 3.951531779
A67: 61 | B67: 183 | C67: 42.23076923 | D67: =OFFSET(extrapolation!L76,0,OS_dist_choice-1,1,1) -> 0.1177772382 | E67: =OFFSET(extrapolation!D76,0,PFS_dist_choice-1,1,1) -> 0.0001464555552 | G67: 0.1464555552 | H67: 117.6307826 | I67: 882.2227618 | J67: 1000 | K67: 0.02147555785 | L67: 3.432617337 | M67: 0.1571933341 | N67: 119.3363535 | O67: 880.5064532 | U67: =SD_concomittant_costs_per_cycle*M67 -> 12.22571156 | W67: =SD_healthcare_costs_percycle*M67 -> 55.82149078 | Y67: 68.04720234 | Z67: =PD_lumpsum_secondline_chemo_caba*K67 -> 15.90556379 | AA67: =PD_lumpsum_premedication_costs__caba*K67 -> 3.506182616 | AB67: 51.36314019 | AC67: =PD_concomitant_costs_percycle*N67 -> 9281.384892 | AD67: 43905.27809 | AE67: =PD_best_supportive_care_costs_percycle*N67 -> 6303.908274 | AF67: 22206.65262 | AG67: 81767.99876 | AH67: 81836.04596 | AI67: =M67*cycle_length_weeksyear -> 0.0090688462 | AJ67: =N67*cycle_length_weeksyear -> 6.884789624 | AK67: 6.89385847 | AL67: =(M67*u_SD_cycle10_after)*cycle_length_weeksyear -> 0.007427385038 | AM67: =(N67*u_SD_cycle_progressed)*cycle_length_weeksyear -> 4.316763094 | AO67: 4.324190479 | AQ67: 3.519230769 | AR67: 0.8859749877 | AS67: 0.8859749877 | AW67: 10.83167465 | AY67: 49.45644461 | BA67: 60.28811926 | BB67: 14.09193168 | BC67: 3.1063901 | BD67: 45.50645749 | BE67: 8223.074865 | BF67: 38898.97821 | BG67: 5585.105055 | BH67: 19674.53878 | BI67: 72444.40169 | BJ67: 72504.68981 | BK67: 0.0080347709 | BL67: 6.099751402 | BM67: 6.107786173 | BN67: 0.006580477367 | BO67: 3.824544129 | BQ67: 3.831124607
A68: 62 | B68: 186 | C68: 42.92307692 | D68: =OFFSET(extrapolation!L77,0,OS_dist_choice-1,1,1) -> 0.1144829467 | E68: =OFFSET(extrapolation!D77,0,PFS_dist_choice-1,1,1) -> 0.0001277421197 | G68: 0.1277421197 | H68: 114.3552046 | I68: 885.5170533 | J68: 1000 | K68: 0.01871343551 | L68: 3.294291448 | M68: 0.1370988375 | N68: 115.9929936 | O68: 883.8699076 | U68: =SD_concomittant_costs_per_cycle*M68 -> 10.66286208 | W68: =SD_healthcare_costs_percycle*M68 -> 48.68566172 | Y68: 59.34852381 | Z68: =PD_lumpsum_secondline_chemo_caba*K68 -> 13.8598375 | AA68: =PD_lumpsum_premedication_costs__caba*K68 -> 3.055227842 | AB68: 44.75696594 | AC68: =PD_concomitant_costs_percycle*N68 -> 9021.355076 | AD68: 42675.21581 | AE68: =PD_best_supportive_care_costs_percycle*N68 -> 6127.296257 | AF68: 21311.78009 | AG68: 79197.31927 | AH68: 79256.66779 | AI68: =M68*cycle_length_weeksyear -> 0.007909548315 | AJ68: =N68*cycle_length_weeksyear -> 6.691903476 | AK68: 6.699813025 | AL68: =(M68*u_SD_cycle10_after)*cycle_length_weeksyear -> 0.00647792007 | AM68: =(N68*u_SD_cycle_progressed)*cycle_length_weeksyear -> 4.19582348 | AO68: 4.2023014 | AQ68: 3.576923077 | AR68: 0.8842183389 | AS68: 0.8842183389 | AW68: 9.428298199 | AY68: 43.04875494 | BA68: 52.47705314 | BB68: 12.2551225 | BC68: 2.701488488 | BD68: 39.57493008 | BE68: 7976.8476 | BF68: 37734.20844 | BG68: 5417.867719 | BH68: 18844.26679 | BI68: 70027.72209 | BJ68: 70080.19915 | BK68: 0.006993767673 | BL68: 5.917103776 | BM68: 5.924097544 | BN68: 0.005727895724 | BO68: 3.710024068 | BQ68: 3.715751963
A69: 63 | B69: 189 | C69: 43.61538462 | D69: =OFFSET(extrapolation!L78,0,OS_dist_choice-1,1,1) -> 0.1113199724 | E69: =OFFSET(extrapolation!D78,0,PFS_dist_choice-1,1,1) -> 0.0001114333178 | G69: 0.1114333178 | H69: 111.2085391 | I69: 888.6800276 | J69: 1000 | K69: 0.01630880186 | L69: 3.162974309 | M69: 0.1195877188 | N69: 112.7818718 | O69: 887.0985405 | U69: =SD_concomittant_costs_per_cycle*M69 -> 9.300934828 | W69: =SD_healthcare_costs_percycle*M69 -> 42.46722533 | Y69: 51.76816016 | Z69: =PD_lumpsum_secondline_chemo_caba*K69 -> 12.0788801 | AA69: =PD_lumpsum_premedication_costs__caba*K69 -> 2.662638055 | AB69: 39.00579823 | AC69: =PD_concomitant_costs_percycle*N69 -> 8771.610081 | AD69: 41493.80554 | AE69: =PD_best_supportive_care_costs_percycle*N69 -> 5957.669681 | AF69: 20462.24931 | AG69: 76739.08193 | AH69: 76790.85009 | AI69: =M69*cycle_length_weeksyear -> 0.006899291468 | AJ69: =N69*cycle_length_weeksyear -> 6.506646452 | AK69: 6.513545743 | AL69: =(M69*u_SD_cycle10_after)*cycle_length_weeksyear -> 0.005650519712 | AM69: =(N69*u_SD_cycle_progressed)*cycle_length_weeksyear -> 4.079667325 | AO69: 4.085317845 | AQ69: 3.634615385 | AR69: 0.8824651732 | AS69: 0.8824651732 | AW69: 8.207751063 | AY69: 37.47584735 | BA69: 45.68359842 | BB69: 10.65919102 | BC69: 2.349685352 | BD69: 34.42125849 | BE69: 7740.640409 | BF69: 36616.83829 | BG69: 5257.436007 | BH69: 18057.22238 | BI69: 67719.56722 | BJ69: 67765.25082 | BK69: 0.00608838444 | BL69: 5.741888888 | BM69: 5.747977272 | BN69: 0.004986386856 | BO69: 3.600164333 | BQ69: 3.605150719
A70: 64 | B70: 192 | C70: 44.30769231 | D70: =OFFSET(extrapolation!L79,0,OS_dist_choice-1,1,1) -> 0.1082817214 | E70: =OFFSET(extrapolation!D79,0,PFS_dist_choice-1,1,1) -> 9.721824953e-05 | G70: 0.09721824953 | H70: =cohort_size-G70-I70 -> 108.1845031 | I70: 891.7182786 | J70: 1000 | K70: 0.01421506832 | L70: 3.038250994 | M70: 0.1043257837 | N70: 109.6965211 | O70: 890.1991531 | U70: =SD_concomittant_costs_per_cycle*M70 -> 8.113937826 | W70: =SD_healthcare_costs_percycle*M70 -> 37.04750462 | Y70: 45.16144244 | Z70: =PD_lumpsum_secondline_chemo_caba*K70 -> 10.52818639 | AA70: =PD_lumpsum_premedication_costs__caba*K70 -> 2.32080702 | AB70: 33.99821098 | AC70: =PD_concomitant_costs_percycle*N70 -> 8531.646929 | AD70: 40358.66795 | AE70: =PD_best_supportive_care_costs_percycle*N70 -> 5794.686924 | AF70: =End_of_life_costs_per_patient*L70 -> 19655.376 | AG70: 74387.225 | AH70: 74432.38644 | AI70: =M70*cycle_length_weeksyear -> 0.006018795213 | AJ70: =N70*cycle_length_weeksyear -> 6.328645449 | AK70: 6.334664244 | AL70: =(M70*u_SD_cycle10_after)*cycle_length_weeksyear -> 0.004929393279 | AM70: =(N70*u_SD_cycle_progressed)*cycle_length_weeksyear -> 3.968060696 | AO70: 3.97299009 | AQ70: 3.692307692 | AR70: =1/(1+cDR)^AQ70 -> 0.8807154834 | AS70: =1/(1+oDR)^AQ70 -> 0.8807154834 | AW70: 7.146070675 | AY70: 32.62831094 | BA70: 39.77438161 | BB70: 9.272336765 | BC70: 2.043970677 | BD70: 29.94275082 | BE70: 7513.95355 | BF70: 35544.50375 | BG70: 5103.470496 | BH70: 17310.79397 | BI70: 65513.98083 | BJ70: 65553.75521 | BK70: 0.005300846135 | BL70: 5.573736036 | BM70: 5.579036882 | BN70: 0.004341392985 | BO70: 3.494732495 | BQ70: 3.499073888
A71: 65 | B71: 195 | C71: 45 | D71: =OFFSET(extrapolation!L80,0,OS_dist_choice-1,1,1) -> 0.1053619877 | E71: =OFFSET(extrapolation!D80,0,PFS_dist_choice-1,1,1) -> 8.482648507e-05 | G71: =cohort_size*E71 -> 0.08482648507 | H71: 105.2771612 | I71: =(1-D71)*cohort_size -> 894.6380123 | J71: 1000 | K71: 0.01239176446 | L71: 2.919733692 | M71: 0.0910223673 | N71: 106.7308322 | O71: 893.1781454 | U71: =SD_concomittant_costs_per_cycle*M71 -> 7.079264616 | W71: =SD_healthcare_costs_percycle*M71 -> 32.32328053 | Y71: =SUM(S71:X71) -> 39.40254515 | Z71: =PD_lumpsum_secondline_chemo_caba*K71 -> 9.177782548 | AA71: =PD_lumpsum_premedication_costs__caba*K71 -> 2.023127382 | AB71: =PD_lumpsum_administration_costs__caba*K71 -> 29.63741103 | AC71: =PD_concomitant_costs_percycle*N71 -> 8300.990473 | AD71: =PD_total_healthcare_costs_percycle*N71 -> 39267.55536 | AE71: =PD_best_supportive_care_costs_percycle*N71 -> 5638.025266 | AF71: 18888.65128 | AG71: =SUM(Z71:AF71) -> 72136.0607 | AH71: =SUM(Y71,AG71) -> 72175.46325 | AI71: =M71*cycle_length_weeksyear -> 0.005251290421 | AJ71: =N71*cycle_length_weeksyear -> 6.157548011 | AK71: 6.162799301 | AL71: =(M71*u_SD_cycle10_after)*cycle_length_weeksyear -> 0.004300806855 | AM71: =(N71*u_SD_cycle_progressed)*cycle_length_weeksyear -> 3.860782603 | AO71: =AL71+AM71-AN71 -> 3.86508341 | AQ71: =+B71/52 -> 3.75 | AR71: 0.8789692629 | AS71: 0.8789692629 | AW71: =U71*AR71 -> 6.222456002 | AY71: =W71*AR71 -> 28.41117006 | BA71: =SUM(AU71:AZ71) -> 34.63362606 | BB71: =Z71*AR71 -> 8.066988761 | BC71: =AA71*AR71 -> 1.778266784 | BD71: =AB71*AR71 -> 26.05037333 | BE71: =AC71*AR71 -> 7296.315477 | BF71: 34514.97419 | BG71: =AE71*AR71 -> 4955.650912 | BH71: =AF71*AR71 -> 16602.54389 | BI71: =SUM(BB71:BH71) -> 63405.3801 | BJ71: =SUM(BA71,BI71) -> 63440.01373 | BK71: 0.00461572287 | BL71: 5.412295436 | BM71: 5.416911159 | BN71: 0.003780277031 | BO71: 3.393509238 | BQ71: =BN71+BO71-BP71 -> 3.397289515
A72: 66 | B72: =+A72*3 -> 198 | C72: =+(B72/52)*12 -> 45.69230769 | D72: =OFFSET(extrapolation!L81,0,OS_dist_choice-1,1,1) -> 0.1025549278 | E72: =OFFSET(extrapolation!D81,0,PFS_dist_choice-1,1,1) -> 7.402275737e-05 | G72: 0.07402275737 | H72: 102.4809051 | I72: 897.4450722 | J72: =G72+H72+I72 -> 1000 | K72: =G71-G72 -> 0.0108037277 | L72: =I72-I71 -> 2.80705986 | M72: =(G71+G72)/2 -> 0.07942462122 | N72: 103.8790332 | O72: 896.0415422 | U72: =SD_concomittant_costs_per_cycle*M72 -> 6.177249915 | W72: =SD_healthcare_costs_percycle*M72 -> 28.20476317 | Y72: 34.38201308 | Z72: =PD_lumpsum_secondline_chemo_caba*K72 -> 8.001625907 | AA72: =PD_lumpsum_premedication_costs__caba*K72 -> 1.76385836 | AB72: 25.83929993 | AC72: =PD_concomitant_costs_percycle*N72 -> 8079.191804 | AD72: 38218.34424 | AE72: =PD_best_supportive_care_costs_percycle*N72 -> 5487.379809 | AF72: 18159.72976 | AG72: 69980.2504 | AH72: 70014.63241 | AI72: =M72*cycle_length_weeksyear -> 0.004582189686 | AJ72: =N72*cycle_length_weeksyear -> 5.993021144 | AK72: =SUM(AI72:AJ72) -> 5.997603333 | AL72: =(M72*u_SD_cycle10_after)*cycle_length_weeksyear -> 0.003752813352 | AM72: =(N72*u_SD_cycle_progressed)*cycle_length_weeksyear -> 3.757624257 | AO72: 3.76137707 | AQ72: 3.807692308 | AR72: 0.8772265046 | AS72: 0.8772265046 | AW72: 5.418847351 | AY72: 24.74196581 | BA72: 30.16081316 | BB72: 7.019238326 | BC72: 1.547303304 | BD72: 22.66691876 | BE72: 7087.281186 | BF72: =AD72*AR72 -> 33526.14453 | BG72: 4813.67501 | BH72: 15930.19626 | BI72: 61388.53045 | BJ72: 61418.69126 | BK72: =(AI72*AS72) -> 0.004019618241 | BL72: =(AJ72*AS72) -> 5.25723699 | BM72: =SUM(BK72:BL72) -> 5.261256608 | BN72: =AL72*AS72 -> 0.00329206734 | BO72: =AM72*AS72 -> 3.296287593 | BQ72: 3.29957966
A73: 67 | B73: 201 | C73: 46.38461538 | D73: =OFFSET(extrapolation!L82,0,OS_dist_choice-1,1,1) -> 0.09985503734 | E73: =OFFSET(extrapolation!D82,0,PFS_dist_choice-1,1,1) -> 6.460235609e-05 | G73: 0.06460235609 | H73: 99.79043498 | I73: 900.1449627 | J73: 1000 | K73: =G72-G73 -> 0.009420401271 | L73: 2.699890509 | M73: 0.06931255673 | N73: 101.13567 | O73: 898.7950174 | U73: =SD_concomittant_costs_per_cycle*M73 -> 5.3907841 | W73: =SD_healthcare_costs_percycle*M73 -> 24.61383155 | Y73: 30.00461565 | Z73: =PD_lumpsum_secondline_chemo_caba*K73 -> 6.977085035 | AA73: =PD_lumpsum_premedication_costs__caba*K73 -> 1.538011138 | AB73: 22.53079499 | AC73: =PD_concomitant_costs_percycle*N73 -> 7865.826737 | AD73: 37209.02799 | AE73: =PD_best_supportive_care_costs_percycle*N73 -> 5342.462448 | AF73: 17466.41841 | AG73: 67914.78148 | AH73: 67944.78609 | AI73: =M73*cycle_length_weeksyear -> 0.00399880135 | AJ73: =N73*cycle_length_weeksyear -> 5.834750194 | AK73: 5.838748996 | AL73: =(M73*u_SD_cycle10_after)*cycle_length_weeksyear -> 0.003275018305 | AM73: =(N73*u_SD_cycle_progressed)*cycle_length_weeksyear -> 3.658388372 | AO73: 3.66166339 | AQ73: 3.865384615 | AR73: 0.8754872018 | AS73: 0.8754872018 | AW73: 4.719562487 | AY73: 21.5490945 | BA73: 26.26865699 | BB73: 6.108348654 | BC73: 1.346509068 | BD73: 19.72542265 | BE73: 6886.430639 | BF73: 32576.0278 | BG73: 4677.257499 | BH73: 15291.62578 | BI73: 59458.52199 | BJ73: 59484.79065 | BK73: 0.003500899404 | BL73: 5.108249121 | BM73: 5.11175002 | BN73: 0.002867236612 | BO73: 3.202872199 | BQ73: 3.205739435
A74: 68 | B74: 204 | C74: 47.07692308 | D74: =OFFSET(extrapolation!L83,0,OS_dist_choice-1,1,1) -> 0.09725712875 | E74: =OFFSET(extrapolation!D83,0,PFS_dist_choice-1,1,1) -> 5.638713014e-05 | G74: 0.05638713014 | H74: 97.20074162 | I74: 902.7428713 | J74: 1000 | K74: 0.008215225956 | L74: 2.597908588 | M74: 0.06049474312 | N74: 98.4955883 | O74: 901.443917 | U74: =SD_concomittant_costs_per_cycle*M74 -> 4.704978646 | W74: =SD_healthcare_costs_percycle*M74 -> 21.48250601 | Y74: 26.18748466 | Z74: =PD_lumpsum_secondline_chemo_caba*K74 -> 6.08448923 | AA74: =PD_lumpsum_premedication_costs__caba*K74 -> 1.341249556 | AB74: 19.64837446 | AC74: =PD_concomitant_costs_percycle*N74 -> 7660.49438 | AD74: 36237.7102 | AE74: =PD_best_supportive_care_costs_percycle*N74 -> 5203.000896 | AF74: 16806.66614 | AG74: 65934.94573 | AH74: 65961.13321 | AI74: =M74*cycle_length_weeksyear -> 0.003490081334 | AJ74: =N74*cycle_length_weeksyear -> 5.682437787 | AK74: 5.685927868 | AL74: =(M74*u_SD_cycle10_after)*cycle_length_weeksyear -> 0.002858376612 | AM74: =(N74*u_SD_cycle_progressed)*cycle_length_weeksyear -> 3.562888492 | AO74: 3.565746869 | AQ74: 3.923076923 | AR74: 0.8737513475 | AS74: 0.8737513475 | AW74: 4.110981432 | AY74: 18.77036857 | BA74: 22.88135 | BB74: 5.316330664 | BC74: 1.171918607 | BD74: 17.16779366 | BE74: 6693.367287 | BF74: 31662.74812 | BG74: 4546.129043 | BH74: 14684.84718 | BI74: 57610.74768 | BJ74: 57633.62903 | BK74: 0.003049463268 | BL74: 4.965037673 | BM74: 4.968087136 | BN74: 0.002497510417 | BO74: 3.113078621 | BQ74: 3.115576131
A75: 69 | B75: 207 | C75: 47.76923077 | D75: =OFFSET(extrapolation!L84,0,OS_dist_choice-1,1,1) -> 0.09475631126 | E75: =OFFSET(extrapolation!D84,0,PFS_dist_choice-1,1,1) -> 4.922201724e-05 | G75: 0.04922201724 | H75: 94.70708925 | I75: 905.2436887 | J75: 1000 | K75: 0.007165112896 | L75: 2.500817484 | M75: 0.05280457369 | N75: 95.95391543 | O75: 903.99328 | U75: =SD_concomittant_costs_per_cycle*M75 -> 4.106875719 | W75: =SD_healthcare_costs_percycle*M75 -> 18.75162226 | Y75: 22.85849798 | Z75: =PD_lumpsum_secondline_chemo_caba*K75 -> 5.30673806 | AA75: =PD_lumpsum_premedication_costs__caba*K75 -> 1.169804038 | AB75: 17.13681669 | AC75: =PD_concomitant_costs_percycle*N75 -> 7462.815773 | AD75: 35302.59822 | AE75: =PD_best_supportive_care_costs_percycle*N75 -> 5068.737763 | AF75: 16178.55406 | AG75: 64036.31917 | AH75: 64059.17767 | AI75: =M75*cycle_length_weeksyear -> 0.003046417713 | AJ75: =N75*cycle_length_weeksyear -> 5.535802813 | AK75: 5.538849231 | AL75: =(M75*u_SD_cycle10_after)*cycle_length_weeksyear -> 0.002495016107 | AM75: =(N75*u_SD_cycle_progressed)*cycle_length_weeksyear -> 3.470948364 | AO75: 3.47344338 | AQ75: 3.980769231 | AR75: 0.8720189349 | AS75: 0.8720189349 | AW75: 3.58127339 | AY75: 16.35176967 | BA75: 19.93304306 | BB75: 4.627576071 | BC75: 1.020091271 | BD75: 14.94362864 | BE75: 6507.716662 | BF75: 30784.5341 | BG75: 4420.035306 | BH75: 14108.00548 | BI75: 55840.88284 | BJ75: 55860.81588 | BK75: 0.002656533929 | BL75: 4.827324873 | BM75: 4.829981407 | BN75: 0.002175701288 | BO75: 3.026732696 | BQ75: 3.028908397
A76: 70 | B76: 210 | C76: 48.46153846 | D76: =OFFSET(extrapolation!L85,0,OS_dist_choice-1,1,1) -> 0.09234797165 | E76: =OFFSET(extrapolation!D85,0,PFS_dist_choice-1,1,1) -> 4.29720307e-05 | G76: 0.0429720307 | H76: 92.30499962 | I76: 907.6520284 | J76: 1000 | K76: 0.006249986547 | L76: 2.408339619 | M76: 0.04609702397 | N76: 93.50604443 | O76: 906.4478585 | U76: =SD_concomittant_costs_per_cycle*M76 -> 3.585196039 | W76: =SD_healthcare_costs_percycle*M76 -> 16.36968013 | Y76: 19.95487617 | Z76: =PD_lumpsum_secondline_chemo_caba*K76 -> 4.62896286 | AA76: =PD_lumpsum_premedication_costs__caba*K76 -> 1.020396971 | AB76: 14.94810693 | AC76: =PD_concomitant_costs_percycle*N76 -> 7272.432606 | AD76: 34401.99707 | AE76: =PD_best_supportive_care_costs_percycle*N76 -> 4939.429687 | AF76: 15580.28643 | AG76: 62214.74326 | AH76: 62234.69814 | AI76: =M76*cycle_length_weeksyear -> 0.002659443691 | AJ76: =N76*cycle_length_weeksyear -> 5.394579486 | AK76: 5.39723893 | AL76: =(M76*u_SD_cycle10_after)*cycle_length_weeksyear -> 0.002178084383 | AM76: =(N76*u_SD_cycle_progressed)*cycle_length_weeksyear -> 3.382401338 | AO76: 3.384579422 | AQ76: 4.038461538 | AR76: 0.8702899572 | AS76: 0.8702899572 | AW76: 3.120160108 | AY76: 14.24636822 | BA76: 17.36652833 | BB76: 4.02853989 | BC76: 0.8880412365 | BD76: 13.00918734 | BE76: 6329.125061 | BF76: 29939.71256 | BG76: 4298.736051 | BH76: 13559.36681 | BI76: 54144.86625 | BJ76: 54162.23278 | BK76: 0.002314487136 | BL76: 4.694848351 | BM76: 4.697162838 | BN76: 0.001895564964 | BO76: 2.943669916 | BQ76: 2.945565481
A77: 71 | B77: 213 | C77: 49.15384615 | D77: =OFFSET(extrapolation!L86,0,OS_dist_choice-1,1,1) -> 0.09002775651 | E77: =OFFSET(extrapolation!D86,0,PFS_dist_choice-1,1,1) -> 3.751964233e-05 | G77: 0.03751964233 | H77: 89.99023686 | I77: 909.9722435 | J77: 1000 | K77: 0.005452388362 | L77: 2.32021514 | M77: 0.04024583651 | N77: 91.14761824 | O77: 908.8121359 | U77: =SD_concomittant_costs_per_cycle*M77 -> 3.130119935 | W77: =SD_healthcare_costs_percycle*M77 -> 14.29184389 | Y77: 17.42196382 | Z77: =PD_lumpsum_secondline_chemo_caba*K77 -> 4.038233208 | AA77: =PD_lumpsum_premedication_costs__caba*K77 -> 0.8901780073 | AB77: 13.04048955 | AC77: =PD_concomitant_costs_percycle*N77 -> 7089.006009 | AD77: 33534.30375 | AE77: =PD_best_supportive_care_costs_percycle*N77 -> 4814.846508 | AF77: 15010.18219 | AG77: 60466.30735 | AH77: 60483.72931 | AI77: =M77*cycle_length_weeksyear -> 0.002321875184 | AJ77: =N77*cycle_length_weeksyear -> 5.258516437 | AK77: 5.260838312 | AL77: =(M77*u_SD_cycle10_after)*cycle_length_weeksyear -> 0.001901615775 | AM77: =(N77*u_SD_cycle_progressed)*cycle_length_weeksyear -> 3.297089806 | AO77: 3.298991422 | AQ77: 4.096153846 | AR77: 0.8685644077 | AS77: 0.8685644077 | AW77: 2.718710767 | AY77: 12.41338692 | BA77: 15.13209769 | BB77: 3.507465635 | BC77: 0.7731769336 | BD77: 11.32650508 | BE77: 6157.258305 | BF77: 29126.70267 | BG77: 4182.004305 | BH77: 13037.31 | BI77: 52518.88243 | BJ77: 52534.01453 | BK77: 0.002016698144 | BL77: 4.567360214 | BM77: 4.569376913 | BN77: 0.00165167578 | BO77: 2.863734854 | BQ77: 2.86538653
A78: 72 | B78: 216 | C78: 49.84615385 | D78: =OFFSET(extrapolation!L87,0,OS_dist_choice-1,1,1) -> 0.0877915558 | E78: =OFFSET(extrapolation!D87,0,PFS_dist_choice-1,1,1) -> 3.276250929e-05 | G78: 0.03276250929 | H78: 87.75879329 | I78: 912.2084442 | J78: 1000 | K78: 0.004757133048 | L78: 2.236200706 | M78: 0.03514107581 | N78: 88.87451508 | O78: 911.0903438 | U78: =SD_concomittant_costs_per_cycle*M78 -> 2.733097171 | W78: =SD_healthcare_costs_percycle*M78 -> 12.47907394 | Y78: 15.21217111 | Z78: =PD_lumpsum_secondline_chemo_caba*K78 -> 3.523302336 | AA78: =PD_lumpsum_premedication_costs__caba*K78 -> 0.7766679364 | AB78: 11.37764585 | AC78: =PD_concomitant_costs_percycle*N78 -> 6912.21541 | AD78: 32698.00178 | AE78: =PD_best_supportive_care_costs_percycle*N78 -> 4694.770492 | AF78: 14466.66709 | AG78: 58787.33239 | AH78: 58802.54456 | AI78: =M78*cycle_length_weeksyear -> 0.002027369758 | AJ78: =N78*cycle_length_weeksyear -> 5.12737587 | AK78: 5.12940324 | AL78: =(M78*u_SD_cycle10_after)*cycle_length_weeksyear -> 0.001660415832 | AM78: =(N78*u_SD_cycle_progressed)*cycle_length_weeksyear -> 3.21486467 | AO78: 3.216525086 | AQ78: 4.153846154 | AR78: 0.8668422794 | AS78: 0.8668422794 | AW78: 2.369164182 | AY78: 10.8173889 | BA78: 13.18655308 | BB78: 3.054147428 | BC78: 0.6732486043 | BD78: 9.862624464 | BE78: 5991.800562 | BF78: 28344.0104 | BG78: 4069.625555 | BH78: 12540.31868 | BI78: 50959.34521 | BJ78: 50972.53177 | BK78: 0.001757409823 | BL78: 4.444626187 | BM78: 4.446383596 | BN78: 0.001439318645 | BO78: 2.786780619 | BQ78: 2.788219938
A79: 73 | B79: 219 | C79: 50.53846154 | D79: =OFFSET(extrapolation!L88,0,OS_dist_choice-1,1,1) -> 0.08563548745 | E79: =OFFSET(extrapolation!D88,0,PFS_dist_choice-1,1,1) -> 2.861149892e-05 | G79: 0.02861149892 | H79: 85.60687595 | I79: 914.3645126 | J79: 1000 | K79: 0.004151010365 | L79: 2.156068355 | M79: 0.0306870041 | N79: 86.68283462 | O79: 913.2864784 | U79: =SD_concomittant_costs_per_cycle*M79 -> 2.386681744 | W79: =SD_healthcare_costs_percycle*M79 -> 10.8973725 | Y79: 13.28405424 | Z79: =PD_lumpsum_secondline_chemo_caba*K79 -> 3.074386267 | AA79: =PD_lumpsum_premedication_costs__caba*K79 -> 0.6777100034 | AB79: 9.927980861 | AC79: =PD_concomitant_costs_percycle*N79 -> 6741.757463 | AD79: 31891.65621 | AE79: =PD_best_supportive_care_costs_percycle*N79 -> 4578.995607 | AF79: 13948.26637 | AG79: 57174.35574 | AH79: 57187.63979 | AI79: =M79*cycle_length_weeksyear -> 0.001770404083 | AJ79: =N79*cycle_length_weeksyear -> 5.000932767 | AK79: 5.002703171 | AL79: =(M79*u_SD_cycle10_after)*cycle_length_weeksyear -> 0.001449960944 | AM79: =(N79*u_SD_cycle_progressed)*cycle_length_weeksyear -> 3.135584845 | AO79: 3.137034806 | AQ79: 4.211538462 | AR79: 0.8651235657 | AS79: 0.8651235657 | AW79: 2.064774621 | AY79: 9.427573754 | BA79: 11.49234837 | BB79: 2.65972401 | BC79: 0.5863028946 | BD79: 8.588930203 | BE79: 5832.453255 | BF79: 27590.22334 | BG79: 3961.397007 | BH79: 12066.97394 | BI79: 49462.8825 | BJ79: 49474.37485 | BK79: 0.001531618293 | BL79: 4.326424787 | BM79: 4.327956405 | BN79: 0.001254395382 | BO79: 2.712668341 | BQ79: 2.713922737
A80: 74 | B80: 222 | C80: 51.23076923 | D80: =OFFSET(extrapolation!L89,0,OS_dist_choice-1,1,1) -> 0.083555883 | E80: =OFFSET(extrapolation!D89,0,PFS_dist_choice-1,1,1) -> 2.498897257e-05 | G80: 0.02498897257 | H80: 83.53089403 | I80: 916.444117 | J80: 1000 | K80: 0.003622526356 | L80: 2.079604449 | M80: 0.02680023574 | N80: 84.56888499 | O80: 915.4043148 | U80: =SD_concomittant_costs_per_cycle*M80 -> 2.084388335 | W80: =SD_healthcare_costs_percycle*M80 -> 9.517128196 | Y80: 11.60151653 | Z80: =PD_lumpsum_secondline_chemo_caba*K80 -> 2.682972169 | AA80: =PD_lumpsum_premedication_costs__caba*K80 -> 0.5914276604 | AB80: 8.664004462 | AC80: =PD_concomitant_costs_percycle*N80 -> 6577.34503 | AD80: 31113.90875 | AE80: =PD_best_supportive_care_costs_percycle*N80 -> 4467.326831 | AF80: 13453.59795 | AG80: 55624.11697 | AH80: 55635.71848 | AI80: =M80*cycle_length_weeksyear -> 0.001546167447 | AJ80: =N80*cycle_length_weeksyear -> 4.878974134 | AK80: 4.880520301 | AL80: =(M80*u_SD_cycle10_after)*cycle_length_weeksyear -> 0.001266311139 | AM80: =(N80*u_SD_cycle_progressed)*cycle_length_weeksyear -> 3.059116782 | AO80: 3.060383093 | AQ80: 4.269230769 | AR80: 0.8634082597 | AS80: 0.8634082597 | AW80: 1.799678105 | AY80: 8.217167092 | BA80: 10.0168452 | BB80: 2.316500331 | BC80: 0.510643527 | BD80: 7.480573015 | BE80: 5678.934026 | BF80: 26864.0058 | BG80: 3857.126884 | BH80: 11615.94759 | BI80: 48026.32203 | BJ80: 48036.33887 | BK80: 0.001334973744 | BL80: 4.212546566 | BM80: 4.21388154 | BN80: 0.001093343497 | BO80: 2.641266697 | BQ80: 2.64236004
A81: 75 | B81: 225 | C81: 51.92307692 | D81: =OFFSET(extrapolation!L90,0,OS_dist_choice-1,1,1) -> 0.0815492743 | E81: =OFFSET(extrapolation!D90,0,PFS_dist_choice-1,1,1) -> 2.18272938e-05 | G81: 0.0218272938 | H81: 81.52744701 | I81: 918.4507257 | J81: 1000 | K81: 0.003161678762 | L81: 2.006608698 | M81: 0.02340813318 | N81: 82.52917052 | O81: 917.4474214 | U81: =SD_concomittant_costs_per_cycle*M81 -> 1.820567558 | W81: =SD_healthcare_costs_percycle*M81 -> 8.312546444 | Y81: 10.133114 | Z81: =PD_lumpsum_secondline_chemo_caba*K81 -> 2.341652011 | AA81: =PD_lumpsum_premedication_costs__caba*K81 -> 0.5161879004 | AB81: 7.561794234 | AC81: =PD_concomitant_costs_percycle*N81 -> 6418.706237 | AD81: 30363.47329 | AE81: =PD_best_supportive_care_costs_percycle*N81 -> 4359.579505 | AF81: 12981.36609 | AG81: 54133.54476 | AH81: 54143.67787 | AI81: =M81*cycle_length_weeksyear -> 0.001350469222 | AJ81: =N81*cycle_length_weeksyear -> 4.761298299 | AK81: 4.762648768 | AL81: =(M81*u_SD_cycle10_after)*cycle_length_weeksyear -> 0.001106034293 | AM81: =(N81*u_SD_cycle_progressed)*cycle_length_weeksyear -> 2.985334033 | AO81: 2.986440068 | AQ81: 4.326923077 | AR81: 0.8616963547 | AS81: 0.8616963547 | AW81: 1.568776428 | AY81: 7.162890969 | BA81: 8.731667398 | BB81: 2.017793002 | BC81: 0.4447972321 | BD81: 6.515970526 | BE81: 5530.975766 | BF81: 26164.09425 | BG81: 3756.633768 | BH81: 11185.99584 | BI81: 46646.67818 | BJ81: 46655.40985 | BK81: 0.001163694406 | BL81: 4.102793388 | BM81: 4.103957082 | BN81: 0.0009530657184 | BO81: 2.572451454 | BQ81: 2.57340452
A82: 76 | B82: 228 | C82: 52.61538462 | D82: =OFFSET(extrapolation!L91,0,OS_dist_choice-1,1,1) -> 0.07961238105 | E82: =OFFSET(extrapolation!D91,0,PFS_dist_choice-1,1,1) -> 1.906753174e-05 | G82: 0.01906753174 | H82: 79.59331352 | I82: 920.387619 | J82: 1000 | K82: 0.002759762066 | L82: 1.93689325 | M82: 0.02044741277 | N82: 80.56038026 | O82: 919.4191723 | U82: =SD_concomittant_costs_per_cycle*M82 -> 1.590297528 | W82: =SD_healthcare_costs_percycle*M82 -> 7.261154359 | Y82: 8.851451887 | Z82: =PD_lumpsum_secondline_chemo_caba*K82 -> 2.043978177 | AA82: =PD_lumpsum_premedication_costs__caba*K82 -> 0.4505694264 | AB82: 6.600529164 | AC82: =PD_concomitant_costs_percycle*N82 -> 6265.583575 | AD82: 29639.1317 | AE82: =PD_best_supportive_care_costs_percycle*N82 -> 4255.578731 | AF82: 12530.35551 | AG82: 52699.7446 | AH82: 52708.59605 | AI82: =M82*cycle_length_weeksyear -> 0.001179658429 | AJ82: =N82*cycle_length_weeksyear -> 4.647714246 | AK82: 4.648893904 | AL82: =(M82*u_SD_cycle10_after)*cycle_length_weeksyear -> 0.0009661402534 | AM82: =(N82*u_SD_cycle_progressed)*cycle_length_weeksyear -> 2.914116832 | AO82: 2.915082972 | AQ82: 4.384615385 | AR82: 0.8599878439 | AS82: 0.8599878439 | AW82: 1.367636542 | AY82: 6.244504482 | BA82: 7.612141024 | BB82: 1.757796385 | BC82: 0.3874842296 | BD82: 5.676374845 | BE82: 5388.325709 | BF82: 25489.29297 | BG82: 3659.745977 | BH82: 10775.95342 | BI82: 45321.13973 | BJ82: 45328.75187 | BK82: 0.001014491909 | BL82: 3.996977753 | BM82: 3.997992245 | BN82: 0.0008308688734 | BO82: 2.506105051 | BQ82: 2.50693592
A83: 77 | B83: 231 | C83: 53.30769231 | D83: =OFFSET(extrapolation!L92,0,OS_dist_choice-1,1,1) -> 0.0777420992 | E83: =OFFSET(extrapolation!D92,0,PFS_dist_choice-1,1,1) -> 1.665833353e-05 | G83: 0.01665833353 | H83: 77.72544087 | I83: 922.2579008 | J83: 1000 | K83: 0.002409198203 | L83: 1.870281848 | M83: 0.01786293263 | N83: 78.65937719 | O83: 921.3227599 | U83: =SD_concomittant_costs_per_cycle*M83 -> 1.389289586 | W83: =SD_healthcare_costs_percycle*M83 -> 6.343370315 | Y83: 7.7326599 | Z83: =PD_lumpsum_secondline_chemo_caba*K83 -> 1.784338082 | AA83: =PD_lumpsum_premedication_costs__caba*K83 -> 0.3933350146 | AB83: 5.762084781 | AC83: =PD_concomitant_costs_percycle*N83 -> 6117.733061 | AD83: 28939.72984 | AE83: =PD_best_supportive_care_costs_percycle*N83 -> 4155.158795 | AF83: 12099.42595 | AG83: 51319.9874 | AH83: 51327.72006 | AI83: =M83*cycle_length_weeksyear -> 0.001030553806 | AJ83: =N83*cycle_length_weeksyear -> 4.538040992 | AK83: 4.539071546 | AL83: =(M83*u_SD_cycle10_after)*cycle_length_weeksyear -> 0.000844023567 | AM83: =(N83*u_SD_cycle_progressed)*cycle_length_weeksyear -> 2.845351702 | AO83: 2.846195725 | AQ83: 4.442307692 | AR83: 0.8582827206 | AS83: 0.8582827206 | AW83: 1.192403245 | AY83: 5.444405132 | BA83: 6.636808377 | BB83: 1.531466543 | BC83: 0.3375926464 | BD83: 4.945497802 | BE83: 5250.744576 | BF83: 24838.47006 | BG83: 3566.300995 | BH83: 10384.72822 | BI83: 44047.05841 | BJ83: 44053.69522 | BK83: 0.0008845065243 | BL83: 3.894922169 | BM83: 3.895806675 | BN83: 0.0007244108434 | BO83: 2.4421162 | BQ83: 2.442840611
A84: 78 | B84: 234 | C84: 54 | D84: =OFFSET(extrapolation!L93,0,OS_dist_choice-1,1,1) -> 0.07593549016 | E84: =OFFSET(extrapolation!D93,0,PFS_dist_choice-1,1,1) -> 1.455494398e-05 | G84: 0.01455494398 | H84: 75.92093522 | I84: 924.0645098 | J84: 1000 | K84: 0.00210338955 | L84: 1.806609041 | M84: 0.01560663876 | N84: 76.82318804 | O84: 923.1612053 | U84: =SD_concomittant_costs_per_cycle*M84 -> 1.213806329 | W84: =SD_healthcare_costs_percycle*M84 -> 5.542129673 | Y84: 6.755936003 | Z84: =PD_lumpsum_secondline_chemo_caba*K84 -> 1.557845291 | AA84: =PD_lumpsum_premedication_costs__caba*K84 -> 0.3434075114 | AB84: 5.030681536 | AC84: =PD_concomitant_costs_percycle*N84 -> 5974.92345 | AD84: 28264.17379 | AE84: =PD_best_supportive_care_costs_percycle*N84 -> 4058.162635 | AF84: 11687.50707 | AG84: 49991.69888 | AH84: 49998.45481 | AI84: =M84*cycle_length_weeksyear -> 0.0009003830053 | AJ84: =N84*cycle_length_weeksyear -> 4.432107002 | AK84: 4.433007385 | AL84: =(M84*u_SD_cycle10_after)*cycle_length_weeksyear -> 0.0007374136813 | AM84: =(N84*u_SD_cycle_progressed)*cycle_length_weeksyear -> 2.778931091 | AO84: 2.779668504 | AQ84: 4.5 | AR84: 0.8565809782 | AS84: 0.8565809782 | AW84: 1.039723413 | AY84: 4.747282857 | BA84: 5.78700627 | BB84: 1.334420643 | BC84: 0.294156342 | BD84: 4.309186111 | BE84: 5118.005773 | BF84: 24210.55363 | BG84: 3476.14492 | BH84: 10011.29624 | BI84: 42821.93833 | BJ84: 42827.72533 | BK84: 0.0007712509554 | BL84: 3.796458552 | BM84: 3.797229803 | BN84: 0.0006316545325 | BO84: 2.380379512 | BQ84: 2.381011166
A85: 79 | B85: 237 | C85: 54.69230769 | D85: =OFFSET(extrapolation!L94,0,OS_dist_choice-1,1,1) -> 0.0741897707 | E85: =OFFSET(extrapolation!D94,0,PFS_dist_choice-1,1,1) -> 1.271835275e-05 | G85: 0.01271835275 | H85: 74.17705235 | I85: 925.8102293 | J85: 1000 | K85: 0.001836591229 | L85: 1.74571946 | M85: 0.01363664837 | N85: 75.04899378 | O85: 924.9373696 | U85: =SD_concomittant_costs_per_cycle*M85 -> 1.060590327 | W85: =SD_healthcare_costs_percycle*M85 -> 4.842559294 | Y85: 5.903149621 | Z85: =PD_lumpsum_secondline_chemo_caba*K85 -> 1.360244942 | AA85: =PD_lumpsum_premedication_costs__caba*K85 -> 0.2998489858 | AB85: 4.392579388 | AC85: =PD_concomitant_costs_percycle*N85 -> 5836.935491 | AD85: 27611.42641 | AE85: =PD_best_supportive_care_costs_percycle*N85 -> 3964.441338 | AF85: 11293.59373 | AG85: 48712.44964 | AH85: 48718.35279 | AI85: =M85*cycle_length_weeksyear -> 0.0007867297136 | AJ85: =N85*cycle_length_weeksyear -> 4.329749641 | AK85: 4.330536371 | AL85: =(M85*u_SD_cycle10_after)*cycle_length_weeksyear -> 0.0006443316354 | AM85: =(N85*u_SD_cycle_progressed)*cycle_length_weeksyear -> 2.714753025 | AO85: 2.715397357 | AQ85: 4.557692308 | AR85: 0.8548826098 | AS85: 0.8548826098 | AW85: 0.9066802266 | AY85: 4.139819728 | BA85: 5.046499954 | BB85: 1.162849746 | BC85: 0.2563356835 | BD85: 3.755139731 | BE85: 4989.894646 | BF85: 23604.52827 | BG85: 3389.131958 | BH85: 9654.696881 | BI85: 41643.42608 | BJ85: 41648.47258 | BK85: 0.0006725615508 | BL85: 3.701427673 | BM85: 3.702100235 | BN85: 0.0005508279101 | BO85: 2.320795151 | BQ85: 2.321345979
A86: 80 | B86: 240 | C86: 55.38461538 | D86: =OFFSET(extrapolation!L95,0,OS_dist_choice-1,1,1) -> 0.07250230356 | E86: =OFFSET(extrapolation!D95,0,PFS_dist_choice-1,1,1) -> 1.11145526e-05 | G86: 0.0111145526 | H86: 72.49118901 | I86: 927.4976964 | J86: 1000 | K86: 0.001603800158 | L86: 1.687467143 | M86: 0.01191645267 | N86: 73.33412068 | O86: 926.6539629 | U86: =SD_concomittant_costs_per_cycle*M86 -> 0.9268021068 | W86: =SD_healthcare_costs_percycle*M86 -> 4.231694409 | Y86: 5.158496515 | Z86: =PD_lumpsum_secondline_chemo_caba*K86 -> 1.187831575 | AA86: =PD_lumpsum_premedication_costs__caba*K86 -> 0.2618426154 | AB86: 3.835812459 | AC86: =PD_concomitant_costs_percycle*N86 -> 5703.561236 | AD86: 26980.50399 | AE86: =PD_best_supportive_care_costs_percycle*N86 -> 3873.853663 | AF86: 10916.74165 | AG86: 47479.94602 | AH86: 47485.10452 | AI86: =M86*cycle_length_weeksyear -> 0.0006874876543 | AJ86: =N86*cycle_length_weeksyear -> 4.230814654 | AK86: 4.231502142 | AL86: =(M86*u_SD_cycle10_after)*cycle_length_weeksyear -> 0.0005630523889 | AM86: =(N86*u_SD_cycle_progressed)*cycle_length_weeksyear -> 2.652720788 | AO86: 2.653283841 | AQ86: 4.615384615 | AR86: 0.8531876089 | AS86: 0.8531876089 | AW86: 0.7907360734 | AY86: 3.610429234 | BA86: 4.401165307 | BB86: 1.013443182 | BC86: 0.2234008749 | BD86: 3.27266766 | BE86: 4866.207773 | BF86: 23019.43169 | BG86: 3305.123944 | BH86: 9314.028703 | BI86: 40509.30162 | BJ86: 40513.70278 | BK86: 0.0005865559479 | BL86: 3.609678639 | BM86: 3.610265195 | BN86: 0.0004803893213 | BO86: 2.263268506 | BQ86: 2.263748896
A87: 81 | B87: 243 | C87: 56.07692308 | D87: =OFFSET(extrapolation!L96,0,OS_dist_choice-1,1,1) -> 0.07087058866 | E87: =OFFSET(extrapolation!D96,0,PFS_dist_choice-1,1,1) -> 9.713893944e-06 | G87: 0.009713893944 | H87: 70.86087477 | I87: 929.1294113 | J87: 1000 | K87: 0.001400658652 | L87: 1.631714898 | M87: 0.01041422327 | N87: 71.67603189 | O87: 928.3135539 | U87: =SD_concomittant_costs_per_cycle*M87 -> 0.8099662148 | W87: =SD_healthcare_costs_percycle*M87 -> 3.698232317 | Y87: 4.508198532 | Z87: =PD_lumpsum_secondline_chemo_caba*K87 -> 1.037377733 | AA87: =PD_lumpsum_premedication_costs__caba*K87 -> 0.2286769475 | AB87: 3.349958459 | AC87: =PD_concomitant_costs_percycle*N87 -> 5574.60338 | AD87: 26370.47321 | AE87: =PD_best_supportive_care_costs_percycle*N87 -> 3786.265604 | AF87: 10556.0633 | AG87: 46292.02151 | AH87: 46296.52971 | AI87: =M87*cycle_length_weeksyear -> 0.0006008205733 | AJ87: =N87*cycle_length_weeksyear -> 4.135155686 | AK87: 4.135756506 | AL87: =(M87*u_SD_cycle10_after)*cycle_length_weeksyear -> 0.0004920720495 | AM87: =(N87*u_SD_cycle_progressed)*cycle_length_weeksyear -> 2.592742615 | AO87: 2.593234687 | AQ87: 4.673076923 | AR87: 0.8514959686 | AS87: 0.8514959686 | AW87: 0.6896829667 | AY87: 3.149029909 | BA87: 3.838712875 | BB87: 0.8833229579 | BC87: 0.194717499 | BD87: 2.852476123 | BE87: 4746.752305 | BF87: 22454.35163 | BG87: 3223.989898 | BH87: 8988.445349 | BI87: 39417.46969 | BJ87: 39421.30841 | BK87: 0.000511596296 | BL87: 3.521068396 | BM87: 3.521579992 | BN87: 0.0004189973664 | BO87: 2.207709884 | BQ87: 2.208128882
A88: 82 | B88: 246 | C88: 56.76923077 | D88: =OFFSET(extrapolation!L97,0,OS_dist_choice-1,1,1) -> 0.06929225493 | E88: =OFFSET(extrapolation!D97,0,PFS_dist_choice-1,1,1) -> 8.490523314e-06 | G88: 0.008490523314 | H88: 69.28376441 | I88: 930.7077451 | J88: 1000 | K88: 0.00122337063 | L88: 1.578333729 | M88: 0.009102208629 | N88: 70.07231959 | O88: 929.9185782 | U88: =SD_concomittant_costs_per_cycle*M88 -> 0.7079242761 | W88: =SD_healthcare_costs_percycle*M88 -> 3.232318074 | Y88: 3.94024235 | Z88: =PD_lumpsum_secondline_chemo_caba*K88 -> 0.906071904 | AA88: =PD_lumpsum_premedication_costs__caba*K88 -> 0.1997322196 | AB88: 2.925938298 | AC88: =PD_concomitant_costs_percycle*N88 -> 5449.874656 | AD88: 25780.44818 | AE88: =PD_best_supportive_care_costs_percycle*N88 -> 3701.549966 | AF88: 10210.72418 | AG88: 45146.62873 | AH88: 45150.56897 | AI88: =M88*cycle_length_weeksyear -> 0.0005251274209 | AJ88: =N88*cycle_length_weeksyear -> 4.042633822 | AK88: 4.04315895 | AL88: =(M88*u_SD_cycle10_after)*cycle_length_weeksyear -> 0.0004300793577 | AM88: =(N88*u_SD_cycle_progressed)*cycle_length_weeksyear -> 2.534731407 | AO88: 2.535161486 | AQ88: 4.730769231 | AR88: 0.8498076825 | AS88: 0.8498076825 | AW88: 0.6015994885 | AY88: 2.746848732 | BA88: 3.34844822 | BB88: 0.7699868649 | BC88: 0.1697339747 | BD88: 2.486484844 | BE88: 4631.345351 | BF88: 21908.42292 | BG88: 3145.605599 | BH88: 8677.151852 | BI88: 38365.95193 | BJ88: 38369.30038 | BK88: 0.0004462573166 | BL88: 3.43546128 | BM88: 3.435907537 | BN88: 0.0003654847423 | BO88: 2.154034222 | BQ88: 2.154399707
A89: 83 | B89: 249 | C89: 57.46153846 | D89: =OFFSET(extrapolation!L98,0,OS_dist_choice-1,1,1) -> 0.06776505264 | E89: =OFFSET(extrapolation!D98,0,PFS_dist_choice-1,1,1) -> 7.421894526e-06 | G89: 0.007421894526 | H89: 67.75763075 | I89: 932.2349474 | J89: 1000 | K89: 0.001068628789 | L89: 1.52720229 | M89: 0.00795620892 | N89: 68.52069758 | O89: 931.4713462 | U89: =SD_concomittant_costs_per_cycle*M89 -> 0.6187941487 | W89: =SD_healthcare_costs_percycle*M89 -> 2.825357992 | Y89: 3.444152141 | Z89: =PD_lumpsum_secondline_chemo_caba*K89 -> 0.7914645794 | AA89: =PD_lumpsum_premedication_costs__caba*K89 -> 0.1744684682 | AB89: 2.555841886 | AC89: =PD_concomitant_costs_percycle*N89 -> 5329.197254 | AD89: 25209.58781 | AE89: =PD_best_supportive_care_costs_percycle*N89 -> 3619.585984 | AF89: 9879.939243 | AG89: 44041.83206 | AH89: 44045.27621 | AI89: =M89*cycle_length_weeksyear -> 0.0004590120531 | AJ89: =N89*cycle_length_weeksyear -> 3.953117168 | AK89: 3.95357618 | AL89: =(M89*u_SD_cycle10_after)*cycle_length_weeksyear -> 0.0003759308715 | AM89: =(N89*u_SD_cycle_progressed)*cycle_length_weeksyear -> 2.478604464 | AO89: 2.478980395 | AQ89: 4.788461538 | AR89: 0.8481227437 | AS89: 0.8481227437 | AW89: 0.5248133912 | AY89: 2.396250372 | BA89: 2.921063763 | BB89: 0.6712591107 | BC89: 0.147970676 | BD89: 2.167667633 | BE89: 4519.813397 | BF89: 21380.82478 | BG89: 3069.853196 | BH89: 8379.401178 | BI89: 37352.87945 | BJ89: 37355.80051 | BK89: 0.0003892985619 | BL89: 3.352728579 | BM89: 3.353117877 | BN89: 0.0003188355222 | BO89: 2.102160819 | BQ89: 2.102479654
A90: 84 | B90: 252 | C90: 58.15384615 | D90: =OFFSET(extrapolation!L99,0,OS_dist_choice-1,1,1) -> 0.06628684626 | E90: =OFFSET(extrapolation!D99,0,PFS_dist_choice-1,1,1) -> 6.488343252e-06 | G90: 0.006488343252 | H90: 66.28035792 | I90: 933.7131537 | J90: 1000 | K90: 0.000933551274 | L90: 1.478206379 | M90: 0.006955118889 | N90: 67.01899433 | O90: 932.9740505 | U90: =SD_concomittant_costs_per_cycle*M90 -> 0.5409343716 | W90: =SD_healthcare_costs_percycle*M90 -> 2.469857307 | Y90: 3.010791679 | Z90: =PD_lumpsum_secondline_chemo_caba*K90 -> 0.6914213563 | AA90: =PD_lumpsum_premedication_costs__caba*K90 -> 0.1524151909 | AB90: 2.23277669 | AC90: =PD_concomitant_costs_percycle*N90 -> 5212.402284 | AD90: 24657.09314 | AE90: =PD_best_supportive_care_costs_percycle*N90 -> 3540.258945 | AF90: 9562.969694 | AG90: 42975.80068 | AH90: 42978.81147 | AI90: =M90*cycle_length_weeksyear -> 0.000401256859 | AJ90: =N90*cycle_length_weeksyear -> 3.866480442 | AK90: 3.866881699 | AL90: =(M90*u_SD_cycle10_after)*cycle_length_weeksyear -> 0.0003286293675 | AM90: =(N90*u_SD_cycle_progressed)*cycle_length_weeksyear -> 2.424283237 | AO90: 2.424611867 | AQ90: 4.846153846 | AR90: 0.8464411458 | AS90: 0.8464411458 | AW90: 0.4578691092 | AY90: 2.090588849 | BA90: 2.548457958 | BB90: 0.5852474851 | BC90: 0.1290104888 | BD90: 1.889914059 | BE90: 4411.991762 | BF90: 20870.77817 | BG90: 2996.620838 | BH90: 8094.491025 | BI90: 36376.48597 | BJ90: 36379.03442 | BK90: 0.0003396403154 | BL90: 3.272748136 | BM90: 3.273087776 | BN90: 0.0002781654183 | BO90: 2.052013081 | BQ90: 2.052291246
A91: 85 | B91: 255 | C91: 58.84615385 | D91: =OFFSET(extrapolation!L100,0,OS_dist_choice-1,1,1) -> 0.06485560779 | E91: =OFFSET(extrapolation!D100,0,PFS_dist_choice-1,1,1) -> 5.67271663e-06 | G91: 0.00567271663 | H91: 64.84993507 | I91: 935.1443922 | J91: 1000 | K91: 0.0008156266216 | L91: 1.431238475 | M91: 0.006080529941 | N91: 65.56514649 | O91: 934.428773 | U91: =SD_concomittant_costs_per_cycle*M91 -> 0.4729132161 | W91: =SD_healthcare_costs_percycle*M91 -> 2.159278877 | Y91: 2.632192093 | Z91: =PD_lumpsum_secondline_chemo_caba*K91 -> 0.6040821545 | AA91: =PD_lumpsum_premedication_costs__caba*K91 -> 0.1331623561 | AB91: 1.950736032 | AC91: =PD_concomitant_costs_percycle*N91 -> 5099.329269 | AD91: 24122.20506 | AE91: =PD_best_supportive_care_costs_percycle*N91 -> 3463.459855 | AF91: 9259.11994 | AG91: 41946.8021 | AH91: 41949.43429 | AI91: =M91*cycle_length_weeksyear -> 0.0003507998043 | AJ91: =N91*cycle_length_weeksyear -> 3.782604605 | AK91: 3.782955405 | AL91: =(M91*u_SD_cycle10_after)*cycle_length_weeksyear -> 0.0002873050397 | AM91: =(N91*u_SD_cycle_progressed)*cycle_length_weeksyear -> 2.371693088 | AO91: 2.371980393 | AQ91: 4.903846154 | AR91: 0.8447628819 | AS91: 0.8447628819 | AW91: 0.3994995314 | AY91: 1.824078647 | BA91: 2.223578179 | BB91: 0.5103061818 | BC91: 0.1124906157 | BD91: 1.647909392 | BE91: 4307.724089 | BF91: 20377.54346 | BG91: 2925.802328 | BH91: 7821.760845 | BI91: 35435.10143 | BJ91: 35437.32501 | BK91: 0.0002963426536 | BL91: 3.195403968 | BM91: 3.19570031 | BN91: 0.0002427046333 | BO91: 2.003518288 | BQ91: 2.003760992
A92: =+A91+1 -> 86 | B92: 258 | C92: 59.53846154 | D92: =OFFSET(extrapolation!L101,0,OS_dist_choice-1,1,1) -> 0.06346941049 | E92: =OFFSET(extrapolation!D101,0,PFS_dist_choice-1,1,1) -> 4.960050764e-06 | G92: 0.004960050764 | H92: 63.46445044 | I92: 936.5305895 | J92: 1000 | K92: 0.0007126658659 | L92: 1.386197298 | M92: 0.005316383697 | N92: 64.15719275 | O92: 935.8374909 | U92: =SD_concomittant_costs_per_cycle*M92 -> 0.413481742 | W92: =SD_healthcare_costs_percycle*M92 -> 1.887920154 | Y92: 2.301401896 | Z92: =PD_lumpsum_secondline_chemo_caba*K92 -> 0.5278257481 | AA92: =PD_lumpsum_premedication_costs__caba*K92 -> 0.116352585 | AB92: 1.70448456 | AC92: =PD_concomitant_costs_percycle*N92 -> 4989.825666 | AD92: 23604.20196 | AE92: =PD_best_supportive_care_costs_percycle*N92 -> 3389.085106 | AF92: 8967.734777 | AG92: 40953.19617 | AH92: 40955.49758 | AI92: =M92*cycle_length_weeksyear -> 0.0003067144441 | AJ92: =N92*cycle_length_weeksyear -> 3.701376505 | AK92: 3.70168322 | AL92: =(M92*u_SD_cycle10_after)*cycle_length_weeksyear -> 0.0002511991297 | AM92: =(N92*u_SD_cycle_progressed)*cycle_length_weeksyear -> 2.320763069 | AO92: 2.321014268 | AQ92: 4.961538462 | AR92: 0.8430879457 | AS92: 0.8430879457 | AW92: 0.3486014725 | AY92: 1.591682724 | BA92: 1.940284196 | BB92: 0.4450035257 | BC92: 0.09809546188 | BD92: 1.437030386 | BE92: 4206.86187 | BF92: 19900.41814 | BG92: 2857.2968 | BH92: 7560.58909 | BI92: 34527.14603 | BJ92: 34529.08632 | BK92: 0.0002585872505 | BL92: 3.120585914 | BM92: 3.120844501 | BN92: 0.0002117829582 | BO92: 1.956607368 | BQ92: 1.956819151
A93: 87 | B93: 261 | C93: 60.23076923 | D93: =OFFSET(extrapolation!L102,0,OS_dist_choice-1,1,1) -> 0.06212642308 | E93: =OFFSET(extrapolation!D102,0,PFS_dist_choice-1,1,1) -> 4.33728988e-06 | G93: 0.00433728988 | H93: 62.12208579 | I93: 937.8735769 | J93: 1000 | K93: 0.0006227608839 | L93: 1.34298741 | M93: 0.004648670322 | N93: 62.79326811 | O93: 937.2020832 | U93: =SD_concomittant_costs_per_cycle*M93 -> 0.3615503343 | W93: =SD_healthcare_costs_percycle*M93 -> 1.650806053 | Y93: 2.012356388 | Z93: =PD_lumpsum_secondline_chemo_caba*K93 -> 0.4612389132 | AA93: =PD_lumpsum_premedication_costs__caba*K93 -> 0.10167435 | AB93: 1.489458612 | AC93: =PD_concomitant_costs_percycle*N93 -> 4883.746428 | AD93: 23102.3977 | AE93: =PD_best_supportive_care_costs_percycle*N93 -> 3317.036183 | AF93: 8688.196777 | AG93: 39993.42946 | AH93: 39995.44182 | AI93: =M93*cycle_length_weeksyear -> 0.0002681925186 | AJ93: =N93*cycle_length_weeksyear -> 3.622688545 | AK93: 3.622956738 | AL93: =(M93*u_SD_cycle10_after)*cycle_length_weeksyear -> 0.0002196496727 | AM93: =(N93*u_SD_cycle_progressed)*cycle_length_weeksyear -> 2.271425718 | AO93: 2.271645367 | AQ93: 5.019230769 | AR93: 0.8414163303 | AS93: 0.8414163303 | AW93: 0.3042143555 | AY93: 1.389015171 | BA93: 1.693229527 | BB93: 0.3880939538 | BC93: 0.08555045848 | BD93: 1.253254799 | BE93: 4109.263997 | BF93: 19438.7347 | BG93: 2791.008413 | BH93: 7310.390649 | BI93: 33651.12465 | BJ93: 33652.81788 | BK93: 0.0002256615648 | BL93: 3.048189302 | BM93: 3.048414963 | BN93: 0.0001848168216 | BO93: 1.911214692 | BQ93: 1.911399509
A94: 88 | B94: 264 | C94: 60.92307692 | D94: =OFFSET(extrapolation!L103,0,OS_dist_choice-1,1,1) -> 0.06082490425 | E94: =OFFSET(extrapolation!D103,0,PFS_dist_choice-1,1,1) -> 3.793041727e-06 | G94: 0.003793041727 | H94: 60.8211112 | I94: 939.1750958 | J94: 1000 | K94: 0.0005442481534 | L94: 1.301518833 | M94: 0.004065165803 | N94: 61.4715985 | O94: 938.5243363 | U94: =SD_concomittant_costs_per_cycle*M94 -> 0.3161682704 | W94: =SD_healthcare_costs_percycle*M94 -> 1.443595663 | Y94: 1.759763933 | Z94: =PD_lumpsum_secondline_chemo_caba*K94 -> 0.4030895858 | AA94: =PD_lumpsum_premedication_costs__caba*K94 -> 0.08885605803 | AB94: 1.301679537 | AC94: =PD_concomitant_costs_percycle*N94 -> 4780.953573 | AD94: 22616.13957 | AE94: =PD_best_supportive_care_costs_percycle*N94 -> 3247.219368 | AF94: 8419.923854 | AG94: 39066.02999 | AH94: 39067.78976 | AI94: =M94*cycle_length_weeksyear -> 0.0002345287964 | AJ94: =N94*cycle_length_weeksyear -> 3.546438375 | AK94: 3.546672904 | AL94: =(M94*u_SD_cycle10_after)*cycle_length_weeksyear -> 0.0001920790842 | AM94: =(N94*u_SD_cycle_progressed)*cycle_length_weeksyear -> 2.223616861 | AO94: 2.22380894 | AQ94: 5.076923077 | AR94: 0.8397480294 | AS94: 0.8397480294 | AW94: 0.265501682 | AY94: 1.212256613 | BA94: 1.477758295 | BB94: 0.3384936854 | BC94: 0.07461669963 | BD94: 1.093082826 | BE94: 4014.796342 | BF94: 18991.85864 | BG94: 2726.846066 | BH94: 7070.614464 | BI94: 32805.6217 | BJ94: 32807.09946 | BK94: 0.0001969450946 | BL94: 2.978114637 | BM94: 2.978311582 | BN94: 0.0001612980325 | BO94: 1.867277877 | BQ94: 1.867439175
A95: 89 | B95: 267 | C95: 61.61538462 | D95: =OFFSET(extrapolation!L104,0,OS_dist_choice-1,1,1) -> 0.05956319754 | E95: =OFFSET(extrapolation!D104,0,PFS_dist_choice-1,1,1) -> 3.317364509e-06 | G95: 0.003317364509 | H95: 59.55988018 | I95: 940.4368025 | J95: 1000 | K95: =G94-G95 -> 0.000475677218 | L95: 1.261706704 | M95: 0.003555203118 | N95: 60.19049569 | O95: 939.8059491 | U95: =SD_concomittant_costs_per_cycle*M95 -> 0.2765059225 | W95: =SD_healthcare_costs_percycle*M95 -> 1.262500978 | Y95: 1.5390069 | Z95: =PD_lumpsum_secondline_chemo_caba*K95 -> 0.3523035064 | AA95: =PD_lumpsum_premedication_costs__caba*K95 -> 0.07766090196 | AB95: 1.137678276 | AC95: =PD_concomitant_costs_percycle*N95 -> 4681.315802 | AD95: 22144.80646 | AE95: =PD_best_supportive_care_costs_percycle*N95 -> 3179.545484 | AF95: 8162.367004 | AG95: 38169.60239 | AH95: 38171.1414 | AI95: =M95*cycle_length_weeksyear -> 0.0002051078722 | AJ95: =N95*cycle_length_weeksyear -> 3.472528598 | AK95: 3.472733705 | AL95: =(M95*u_SD_cycle10_after)*cycle_length_weeksyear -> 0.0001679833473 | AM95: =(N95*u_SD_cycle_progressed)*cycle_length_weeksyear -> 2.177275431 | AO95: 2.177443414 | AQ95: 5.134615385 | AR95: 0.8380830362 | AS95: 0.8380830362 | AW95: 0.231734923 | AY95: 1.058080653 | BA95: 1.289815576 | BB95: 0.2952595923 | BC95: 0.06508628451 | BD95: 0.9534688638 | BE95: 3923.331361 | BF95: 18559.18663 | BG95: 2664.723133 | BH95: 6840.741321 | BI95: 31989.29626 | BJ95: 31990.58608 | BK95: 0.0001718974283 | BL95: 2.91026731 | BM95: 2.910439208 | BN95: 0.0001407839937 | BO95: 1.824737604 | BQ95: 1.824878388
A96: 90 | B96: 270 | C96: 62.30769231 | D96: =OFFSET(extrapolation!L105,0,OS_dist_choice-1,1,1) -> 0.05833972659 | E96: =OFFSET(extrapolation!D105,0,PFS_dist_choice-1,1,1) -> 2.901581265e-06 | G96: 0.002901581265 | H96: 58.33682501 | I96: 941.6602734 | J96: 1000 | K96: 0.0004157832434 | L96: 1.223470949 | M96: 0.003109472887 | N96: 58.94835259 | O96: 941.0485379 | U96: =SD_concomittant_costs_per_cycle*M96 -> 0.2418392538 | W96: =SD_healthcare_costs_percycle*M96 -> 1.104216111 | Y96: 1.346055365 | Z96: =PD_lumpsum_secondline_chemo_caba*K96 -> 0.3079438935 | AA96: =PD_lumpsum_premedication_costs__caba*K96 -> 0.06788238008 | AB96: 0.994429722 | AC96: =PD_concomitant_costs_percycle*N96 -> 4584.708123 | AD96: 21687.80709 | AE96: =PD_best_supportive_care_costs_percycle*N96 -> 3113.929635 | AF96: 7915.008198 | AG96: 37302.8233 | AH96: 37304.16936 | AI96: =M96*cycle_length_weeksyear -> 0.0001793926666 | AJ96: =N96*cycle_length_weeksyear -> 3.400866496 | AK96: 3.401045889 | AL96: =(M96*u_SD_cycle10_after)*cycle_length_weeksyear -> 0.0001469225939 | AM96: =(N96*u_SD_cycle_progressed)*cycle_length_weeksyear -> 2.132343293 | AO96: 2.132490215 | AQ96: 5.192307692 | AR96: 0.8364213442 | AS96: 0.8364213442 | AW96: 0.2022795137 | AY96: 0.9235899239 | BA96: 1.125869438 | BB96: 0.2575708454 | BC96: 0.0567782716 | BD96: 0.8317622448 | BE96: 3834.747731 | BF96: 18140.14476 | BG96: 2604.557211 | BH96: 6620.281796 | BI96: 31200.87761 | BJ96: 31202.00348 | BK96: 0.0001500478553 | BL96: 2.844557326 | BM96: 2.844707374 | BN96: 0.0001228891935 | BO96: 1.783537443 | BQ96: 1.783660333
A97: 91 | B97: 273 | C97: 63 | D97: =OFFSET(extrapolation!L106,0,OS_dist_choice-1,1,1) -> 0.05715299061 | E97: =OFFSET(extrapolation!D106,0,PFS_dist_choice-1,1,1) -> 2.538118135e-06 | G97: 0.002538118135 | H97: 57.1504525 | I97: 942.8470094 | J97: 1000 | K97: 0.0003634631301 | L97: 1.186735978 | M97: 0.0027198497 | N97: 57.74363875 | O97: 942.2536414 | U97: =SD_concomittant_costs_per_cycle*M97 -> 0.2115363104 | W97: =SD_healthcare_costs_percycle*M97 -> 0.9658556185 | Y97: 1.177391929 | Z97: =PD_lumpsum_secondline_chemo_caba*K97 -> 0.2691937523 | AA97: =PD_lumpsum_premedication_costs__caba*K97 -> 0.05934039607 | AB97: 0.8692955889 | AC97: =PD_concomitant_costs_percycle*N97 -> 4491.011504 | AD97: 21244.5784 | AE97: =PD_best_supportive_care_costs_percycle*N97 -> 3050.290976 | AF97: 7677.358423 | AG97: 36464.43713 | AH97: 36465.61452 | AI97: =M97*cycle_length_weeksyear -> 0.0001569144058 | AJ97: =N97*cycle_length_weeksyear -> 3.331363774 | AK97: 3.331520689 | AL97: =(M97*u_SD_cycle10_after)*cycle_length_weeksyear -> 0.0001285128983 | AM97: =(N97*u_SD_cycle_progressed)*cycle_length_weeksyear -> 2.088765086 | AO97: 2.088893599 | AQ97: 5.25 | AR97: 0.834762947 | AS97: 0.834762947 | AW97: 0.1765826739 | AY97: 0.8062604825 | BA97: 0.9828431564 | BB97: 0.22471297 | BC97: 0.0495351639 | BD97: 0.7256557476 | BE97: 3748.929998 | BF97: 17734.18687 | BG97: 2546.269884 | BH97: 6408.774342 | BI97: 30439.161 | BJ97: 30440.14384 | BK97: 0.0001309863318 | BL97: 2.780899042 | BM97: 2.781030028 | BN97: 0.0001072778057 | BO97: 1.743623699 | BQ97: 1.743730977
A98: 92 | B98: 276 | C98: 63.69230769 | D98: =OFFSET(extrapolation!L107,0,OS_dist_choice-1,1,1) -> 0.05600156021 | E98: =OFFSET(extrapolation!D107,0,PFS_dist_choice-1,1,1) -> 2.220363417e-06 | G98: 0.002220363417 | H98: 55.99933985 | I98: 943.9984398 | J98: 1000 | K98: 0.0003177547185 | L98: 1.151430405 | M98: 0.002379240776 | N98: 56.57489617 | O98: 943.4227246 | U98: =SD_concomittant_costs_per_cycle*M98 -> 0.1850454514 | W98: =SD_healthcare_costs_percycle*M98 -> 0.8449007572 | Y98: 1.029946209 | Z98: =PD_lumpsum_secondline_chemo_caba*K98 -> 0.235340473 | AA98: =PD_lumpsum_premedication_costs__caba*K98 -> 0.05187786404 | AB98: 0.7599746775 | AC98: =PD_concomitant_costs_percycle*N98 -> 4400.11255 | AD98: 20814.58396 | AE98: =PD_best_supportive_care_costs_percycle*N98 -> 2988.552488 | AF98: 7448.955859 | AG98: 35653.25205 | AH98: 35654.282 | AI98: =M98*cycle_length_weeksyear -> 0.0001372638909 | AJ98: =N98*cycle_length_weeksyear -> 3.263936318 | AK98: 3.264073581 | AL98: =(M98*u_SD_cycle10_after)*cycle_length_weeksyear -> 0.0001124191267 | AM98: =(N98*u_SD_cycle_progressed)*cycle_length_weeksyear -> 2.046488071 | AO98: 2.04660049 | AQ98: 5.307692308 | AR98: 0.8331078379 | AS98: 0.8331078379 | AW98: 0.1541628159 | AY98: 0.7038934431 | BA98: 0.858056259 | BB98: 0.1960639927 | BC98: 0.04321985514 | BD98: 0.6331408604 | BE98: 3665.768253 | BF98: 17340.79304 | BG98: 2489.786501 | BH98: 6205.78351 | BI98: 29703.00373 | BJ98: 29703.86178 | BK98: 0.0001143556234 | BL98: 2.719210928 | BM98: 2.719325284 | BN98: 9.365725555e-05 | BO98: 1.704945252 | BQ98: 1.705038909
A99: 93 | B99: 279 | C99: 64.38461538 | D99: =OFFSET(extrapolation!L108,0,OS_dist_choice-1,1,1) -> 0.05488407343 | E99: =OFFSET(extrapolation!D108,0,PFS_dist_choice-1,1,1) -> 1.942544733e-06 | G99: 0.001942544733 | H99: 54.88213088 | I99: 945.1159266 | J99: 1000 | K99: 0.0002778186838 | L99: 1.117486784 | M99: 0.002081454075 | N99: 55.44073536 | O99: 944.5571832 | U99: =SD_concomittant_costs_per_cycle*M99 -> 0.1618850907 | W99: =SD_healthcare_costs_percycle*M99 -> 0.7391526498 | Y99: 0.9010377404 | Z99: =PD_lumpsum_secondline_chemo_caba*K99 -> 0.205762422 | AA99: =PD_lumpsum_premedication_costs__caba*K99 -> 0.04535775259 | AB99: 0.6644595732 | AC99: =PD_concomitant_costs_percycle*N99 -> 4311.903193 | AD99: 20397.31257 | AE99: =PD_best_supportive_care_costs_percycle*N99 -> 2928.640772 | AF99: 7229.364182 | AG99: 34868.1363 | AH99: 34869.03734 | AI99: =M99*cycle_length_weeksyear -> 0.0001200838889 | AJ99: =N99*cycle_length_weeksyear -> 3.198503963 | AK99: 3.198624047 | AL99: =(M99*u_SD_cycle10_after)*cycle_length_weeksyear -> 9.834870504e-05 | AM99: =(N99*u_SD_cycle_progressed)*cycle_length_weeksyear -> 2.005461985 | AO99: 2.005560334 | AQ99: 5.365384615 | AR99: 0.8314560104 | AS99: 0.8314560104 | AW99: 0.1346003316 | AY99: 0.6145729132 | BA99: 0.7491732449 | BB99: 0.1710824025 | BC99: 0.03771297601 | BD99: 0.5524689058 | BE99: 3585.157826 | BF99: 16959.46813 | BG99: 2435.035972 | BH99: 6010.898301 | BI99: 28991.3215 | BJ99: 28992.07067 | BK99: 9.984447121e-05 | BL99: 2.659415345 | BM99: 2.659515189 | BN99: 8.177262192e-05 | BO99: 1.667453421 | BQ99: 1.667535194
A100: 94 | B100: 282 | C100: 65.07692308 | D100: =OFFSET(extrapolation!L109,0,OS_dist_choice-1,1,1) -> 0.05379923206 | E100: =OFFSET(extrapolation!D109,0,PFS_dist_choice-1,1,1) -> 1.699621962e-06 | G100: 0.001699621962 | H100: 53.79753244 | I100: 946.2007679 | J100: 1000 | K100: 0.0002429227707 | L100: 1.084841366 | M100: 0.001821083348 | N100: 54.33983166 | O100: 945.6583473 | U100: =SD_concomittant_costs_per_cycle*M100 -> 0.1416347574 | W100: =SD_healthcare_costs_percycle*M100 -> 0.6466914635 | Y100: 0.7883262208 | Z100: =PD_lumpsum_secondline_chemo_caba*K100 -> 0.1799172646 | AA100: =PD_lumpsum_premedication_costs__caba*K100 -> 0.03966051089 | AB100: 0.5809989392 | AC100: =PD_concomitant_costs_percycle*N100 -> 4226.280407 | AD100: 19992.27687 | AE100: =PD_best_supportive_care_costs_percycle*N100 -> 2870.485853 | AF100: 7018.170978 | AG100: 34108.01469 | AH100: 34108.80302 | AI100: =M100*cycle_length_weeksyear -> 0.0001050625008 | AJ100: =N100*cycle_length_weeksyear -> 3.134990288 | AK100: 3.13509535 | AL100: =(M100*u_SD_cycle10_after)*cycle_length_weeksyear -> 8.604618817e-05 | AM100: =(N100*u_SD_cycle_progressed)*cycle_length_weeksyear -> 1.965638911 | AO100: 1.965724957 | AQ100: 5.423076923 | AR100: 0.8298074581 | AS100: 0.8298074581 | AW100: 0.117529578 | AY100: 0.5366293994 | BA100: 0.6541589774 | BB100: 0.149296688 | BC100: 0.03291058773 | BD100: 0.4821172528 | BE100: 3506.999002 | BF100: 16589.74045 | BG100: 2381.950569 | BH100: 5823.73062 | BI100: 28303.08497 | BJ100: 28303.73913 | BK100: 8.718164674e-05 | BL100: 2.601438322 | BM100: 2.601525504 | BN100: 7.140176868e-05 | BO100: 1.631101828 | BQ100: 1.63117323
A101: 95 | B101: 285 | C101: 65.76923077 | D101: =OFFSET(extrapolation!L110,0,OS_dist_choice-1,1,1) -> 0.05274579819 | E101: =OFFSET(extrapolation!D110,0,PFS_dist_choice-1,1,1) -> 1.487193899e-06 | G101: 0.001487193899 | H101: 52.74431099 | I101: 947.2542018 | J101: 1000 | K101: 0.0002124280628 | L101: 1.053433871 | M101: 0.001593407931 | N101: 53.27092172 | O101: 946.7274849 | U101: =SD_concomittant_costs_per_cycle*M101 -> 0.1239273018 | W101: =SD_healthcare_costs_percycle*M101 -> 0.5658408266 | Y101: 0.6897681284 | Z101: =PD_lumpsum_secondline_chemo_caba*K101 -> 0.1573317968 | AA101: =PD_lumpsum_premedication_costs__caba*K101 -> 0.03468182696 | AB101: 0.5080646774 | AC101: =PD_concomitant_costs_percycle*N101 -> 4143.145936 | AD101: 19599.01207 | AE101: =PD_best_supportive_care_costs_percycle*N101 -> 2814.020995 | AF101: 6814.98627 | AG101: 33371.86534 | AH101: 33372.55511 | AI101: =M101*cycle_length_weeksyear -> 9.192738062e-05 | AJ101: =N101*cycle_length_weeksyear -> 3.073322407 | AK101: 3.073414334 | AL101: =(M101*u_SD_cycle10_after)*cycle_length_weeksyear -> 7.528852473e-05 | AM101: =(N101*u_SD_cycle_progressed)*cycle_length_weeksyear -> 1.926973149 | AO101: 1.927048438 | AQ101: 5.480769231 | AR101: 0.8281621743 | AS101: 0.8281621743 | AW101: 0.1026319037 | AY101: 0.4686079693 | BA101: 0.571239873 | BB101: 0.1302962429 | BC101: 0.02872217722 | BD101: 0.4207599479 | BE101: 3431.196747 | BF101: 16231.16045 | BG101: 2330.465746 | BH101: 5643.913847 | BI101: 27637.31657 | BJ101: 27637.88781 | BK101: 7.613077942e-05 | BL101: 2.545209367 | BM101: 2.545285498 | BN101: 6.235110834e-05 | BO101: 1.595846273 | BQ101: 1.595908624
A102: 96 | B102: 288 | C102: 66.46153846 | D102: =OFFSET(extrapolation!L111,0,OS_dist_choice-1,1,1) -> 0.05172259092 | E102: =OFFSET(extrapolation!D111,0,PFS_dist_choice-1,1,1) -> 1.301416877e-06 | G102: 0.001301416877 | H102: 51.7212895 | I102: 948.2774091 | J102: 1000 | K102: 0.0001857770228 | L102: 1.023207271 | M102: 0.001394305388 | N102: 52.23280025 | O102: 947.7658054 | U102: =SD_concomittant_costs_per_cycle*M102 -> 0.1084421016 | W102: =SD_healthcare_costs_percycle*M102 -> 0.4951368058 | Y102: 0.6035789074 | Z102: =PD_lumpsum_secondline_chemo_caba*K102 -> 0.1375930864 | AA102: =PD_lumpsum_premedication_costs__caba*K102 -> 0.03033067511 | AB102: 0.4443233249 | AC102: =PD_concomitant_costs_percycle*N102 -> 4062.406039 | AD102: 19217.07471 | AE102: =PD_best_supportive_care_costs_percycle*N102 -> 2759.182529 | AF102: 6619.441142 | AG102: 32658.71666 | AH102: 32659.32024 | AI102: =M102*cycle_length_weeksyear -> 8.044069546e-05 | AJ102: =N102*cycle_length_weeksyear -> 3.013430783 | AK102: 3.013511224 | AL102: =(M102*u_SD_cycle10_after)*cycle_length_weeksyear -> 6.588092958e-05 | AM102: =(N102*u_SD_cycle_progressed)*cycle_length_weeksyear -> 1.889421101 | AO102: 1.889486982 | AQ102: 5.538461538 | AR102: 0.8265201528 | AS102: 0.8265201528 | AW102: 0.08962958234 | AY102: 0.4092405484 | BA102: 0.4988701307 | BB102: 0.1137234588 | BC102: 0.02506891423 | BD102: 0.3672421824 | BE102: 3357.66046 | BF102: 15883.29952 | BG102: 2280.519966 | BH102: 5471.101504 | BI102: 26993.08749 | BJ102: 26993.58636 | BK102: 6.64858559e-05 | BL102: 2.490661272 | BM102: 2.490727757 | BN102: 5.445191598e-05 | BO102: 1.561644617 | BQ102: 1.561699069
A103: 97 | B103: 291 | C103: 67.15384615 | D103: =OFFSET(extrapolation!L112,0,OS_dist_choice-1,1,1) -> 0.05072848332 | E103: =OFFSET(extrapolation!D112,0,PFS_dist_choice-1,1,1) -> 1.138933802e-06 | G103: 0.001138933802 | H103: 50.72734438 | I103: 949.2715167 | J103: 1000 | K103: 0.0001624830742 | L103: 0.9941075999 | M103: 0.001220175339 | N103: 51.22431694 | O103: 948.7744629 | U103: =SD_concomittant_costs_per_cycle*M103 -> 0.09489913703 | W103: =SD_healthcare_costs_percycle*M103 -> 0.4333008574 | Y103: 0.5281999945 | Z103: =PD_lumpsum_secondline_chemo_caba*K103 -> 0.1203407576 | AA103: =PD_lumpsum_premedication_costs__caba*K103 -> 0.02652761499 | AB103: 0.3886111354 | AC103: =PD_concomitant_costs_percycle*N103 -> 3983.97125 | AD103: 18846.04158 | AE103: =PD_best_supportive_care_costs_percycle*N103 -> 2705.909691 | AF103: 6431.18646 | AG103: 31967.64446 | AH103: 31968.17266 | AI103: =M103*cycle_length_weeksyear -> 7.039473112e-05 | AJ103: =N103*cycle_length_weeksyear -> 2.955249054 | AK103: 2.955319449 | AL103: =(M103*u_SD_cycle10_after)*cycle_length_weeksyear -> 5.765328479e-05 | AM103: =(N103*u_SD_cycle_progressed)*cycle_length_weeksyear -> 1.852941157 | AO103: 1.85299881 | AQ103: 5.596153846 | AR103: 0.8248813869 | AS103: 0.8248813869 | AW103: 0.07828053177 | AY103: 0.3574218122 | BA103: 0.435702344 | BB103: 0.09926685102 | BC103: 0.02188213584 | BD103: 0.3205580924 | BE103: 3286.30373 | BF103: 15545.74892 | BG103: 2232.054539 | BH103: 5304.966006 | BI103: 26369.5149 | BJ103: 26369.9506 | BK103: 5.806730344e-05 | BL103: 2.437729939 | BM103: 2.437788006 | BN103: 4.755712152e-05 | BO103: 1.528456671 | BQ103: 1.528504229
A104: 98 | B104: 294 | C104: 67.84615385 | D104: =OFFSET(extrapolation!L113,0,OS_dist_choice-1,1,1) -> 0.04976239956 | E104: =OFFSET(extrapolation!D113,0,PFS_dist_choice-1,1,1) -> 9.968122785e-07 | G104: 0.0009968122785 | H104: 49.76140274 | I104: 950.2376004 | J104: 1000 | K104: 0.0001421215239 | L104: 0.9660837616 | M104: 0.00106787304 | N104: 50.24437356 | O104: 949.7545586 | U104: =SD_concomittant_costs_per_cycle*M104 -> 0.08305382572 | W104: =SD_healthcare_costs_percycle*M104 -> 0.3792162397 | Y104: 0.4622700654 | Z104: =PD_lumpsum_secondline_chemo_caba*K104 -> 0.1052602675 | AA104: =PD_lumpsum_premedication_costs__caba*K104 -> 0.02320330955 | AB104: 0.3399123695 | AC104: =PD_concomitant_costs_percycle*N104 -> 3907.756154 | AD104: 18485.50864 | AE104: =PD_best_supportive_care_costs_percycle*N104 -> 2654.144466 | AF104: 6249.891669 | AG104: 31297.76931 | AH104: 31298.23158 | AI104: =M104*cycle_length_weeksyear -> 6.160806002e-05 | AJ104: =N104*cycle_length_weeksyear -> 2.898713859 | AK104: 2.898775467 | AL104: =(M104*u_SD_cycle10_after)*cycle_length_weeksyear -> 5.045700116e-05 | AM104: =(N104*u_SD_cycle_progressed)*cycle_length_weeksyear -> 1.81749359 | AO104: 1.817544047 | AQ104: 5.653846154 | AR104: 0.8232458703 | AS104: 0.8232458703 | AW104: 0.06837371903 | AY104: 0.3121882033 | BA104: 0.3805619223 | BB104: 0.08665508051 | BC104: 0.01910202876 | BD104: 0.2798314544 | BE104: 3217.044116 | BF104: 15218.11865 | BG104: 2185.013471 | BH104: 5145.197506 | BI104: 25765.75933 | BJ104: 25766.13989 | BK104: 5.071858099e-05 | BL104: 2.386354214 | BM104: 2.386404932 | BN104: 4.153851783e-05 | BO104: 1.496244092 | BQ104: 1.496285631
A105: 99 | B105: 297 | C105: 68.53846154 | D105: =OFFSET(extrapolation!L114,0,OS_dist_choice-1,1,1) -> 0.0488233122 | E105: =OFFSET(extrapolation!D114,0,PFS_dist_choice-1,1,1) -> 8.724906262e-07 | G105: 0.0008724906262 | H105: 48.8224397 | I105: 951.1766878 | J105: 1000 | K105: 0.0001243216522 | L105: 0.9390873603 | M105: 0.0009346514523 | N105: 49.29192122 | O105: 950.7071441 | U105: =SD_concomittant_costs_per_cycle*M105 -> 0.07269251671 | W105: =SD_healthcare_costs_percycle*M105 -> 0.331907442 | Y105: 0.4045999587 | Z105: =PD_lumpsum_secondline_chemo_caba*K105 -> 0.09207704792 | AA105: =PD_lumpsum_premedication_costs__caba*K105 -> 0.02029723367 | AB105: 0.2973403763 | AC105: =PD_concomitant_costs_percycle*N105 -> 3833.679173 | AD105: 18135.08998 | AE105: =PD_best_supportive_care_costs_percycle*N105 -> 2603.831448 | AF105: 6075.243682 | AG105: 30648.254 | AH105: 30648.6586 | AI105: =M105*cycle_length_weeksyear -> 5.392219917e-05 | AJ105: =N105*cycle_length_weeksyear -> 2.843764686 | AK105: 2.843818608 | AL105: =(M105*u_SD_cycle10_after)*cycle_length_weeksyear -> 4.416228112e-05 | AM105: =(N105*u_SD_cycle_progressed)*cycle_length_weeksyear -> 1.783040458 | AO105: 1.78308462 | AQ105: 5.711538462 | AR105: 0.8216135964 | AS105: 0.8216135964 | AW105: 0.05972516008 | AY105: 0.2726996671 | BA105: 0.3324248272 | BB105: 0.07565175449 | BC105: 0.01667648315 | BD105: 0.2442988959 | BE105: 3149.802933 | BF105: 14900.0365 | BG105: 2139.34332 | BH105: 4991.502811 | BI105: 25181.02219 | BJ105: 25181.35462 | BK105: 4.430321199e-05 | BL105: 2.336475731 | BM105: 2.336520034 | BN105: 3.628433062e-05 | BO105: 1.464970283 | BQ105: 1.465006568
A106: 100 | B106: 300 | C106: 69.23076923 | D106: =OFFSET(extrapolation!L115,0,OS_dist_choice-1,1,1) -> 0.04791023966 | E106: =OFFSET(extrapolation!D115,0,PFS_dist_choice-1,1,1) -> 7.637308063e-07 | G106: 0.0007637308063 | H106: 47.90947593 | I106: 952.0897603 | J106: 1000 | K106: 0.0001087598199 | L106: 0.9130725386 | M106: 0.0008181107163 | N106: 48.36595782 | O106: 951.6332241 | U106: =SD_concomittant_costs_per_cycle*M106 -> 0.06362856096 | W106: =SD_healthcare_costs_percycle*M106 -> 0.2905222417 | Y106: 0.3541508026 | Z106: =PD_lumpsum_secondline_chemo_caba*K106 -> 0.0805514001 | AA106: =PD_lumpsum_premedication_costs__caba*K106 -> 0.01775654875 | AB106: 0.2601211068 | AC106: =PD_concomitant_costs_percycle*N106 -> 3761.662369 | AD106: 17794.41692 | AE106: =PD_best_supportive_care_costs_percycle*N106 -> 2554.917699 | AF106: 5906.945835 | AG106: 30018.30125 | AH106: 30018.6554 | AI106: =M106*cycle_length_weeksyear -> 4.719869517e-05 | AJ106: =N106*cycle_length_weeksyear -> 2.79034372 | AK106: 2.790390919 | AL106: =(M106*u_SD_cycle10_after)*cycle_length_weeksyear -> 3.865573134e-05 | AM106: =(N106*u_SD_cycle_progressed)*cycle_length_weeksyear -> 1.749545513 | AO106: 1.749584168 | AQ106: 5.769230769 | AR106: 0.8199845589 | AS106: 0.8199845589 | AW106: 0.05217443749 | AY106: 0.2382237522 | BA106: 0.2903981897 | BB106: 0.06605090428 | BC106: 0.01456009579 | BD106: 0.213295291 | BE106: 3084.505058 | BF106: 14591.14711 | BG106: 2094.993062 | BH106: 4843.604375 | BI106: 24614.54351 | BJ106: 24614.83391 | BK106: 3.870220124e-05 | BL106: 2.288038764 | BM106: 2.288077467 | BN106: 3.169710282e-05 | BO106: 1.434600305 | BQ106: 1.434632002
A107: 101 | B107: 303 | C107: 69.92307692 | D107: =OFFSET(extrapolation!L116,0,OS_dist_choice-1,1,1) -> 0.04702224383 | E107: =OFFSET(extrapolation!D116,0,PFS_dist_choice-1,1,1) -> 6.685773467e-07 | G107: 0.0006685773467 | H107: 47.02157525 | I107: 952.9777562 | J107: 1000 | K107: 9.515345962e-05 | L107: 0.8879958271 | M107: 0.0007161540765 | N107: 47.46552559 | O107: 952.5337583 | U107: =SD_concomittant_costs_per_cycle*M107 -> 0.0556988833 | W107: =SD_healthcare_costs_percycle*M107 -> 0.2543160523 | Y107: 0.3100149356 | Z107: =PD_lumpsum_secondline_chemo_caba*K107 -> 0.07047404459 | AA107: =PD_lumpsum_premedication_costs__caba*K107 -> 0.01553512176 | AB107: 0.2275787442 | AC107: =PD_concomitant_costs_percycle*N107 -> 3691.631253 | AD107: 17463.13709 | AE107: =PD_best_supportive_care_costs_percycle*N107 -> 2507.352628 | AF107: 5744.71691 | AG107: 29407.15147 | AH107: 29407.46148 | AI107: =M107*cycle_length_weeksyear -> 4.131658134e-05 | AJ107: =N107*cycle_length_weeksyear -> 2.738395707 | AK107: 2.738437024 | AL107: =(M107*u_SD_cycle10_after)*cycle_length_weeksyear -> 3.383828012e-05 | AM107: =(N107*u_SD_cycle_progressed)*cycle_length_weeksyear -> 1.716974108 | AO107: 1.717007947 | AQ107: 5.826923077 | AR107: 0.8183587513 | AS107: 0.8183587513 | AW107: 0.04558166859 | AY107: 0.208121767 | BA107: 0.2537034356 | BB107: 0.05767305113 | BC107: 0.01271330284 | BD107: 0.1862410569 | BE107: 3021.078742 | BF107: 14291.11106 | BG107: 2051.913966 | BH107: 4701.239357 | BI107: 24065.59975 | BJ107: 24065.85346 | BK107: 3.381178591e-05 | BL107: 2.240990091 | BM107: 2.241023903 | BN107: 2.769185266e-05 | BO107: 1.405100787 | BQ107: 1.405128479
A108: 102 | B108: 306 | C108: 70.61538462 | D108: =OFFSET(extrapolation!L117,0,OS_dist_choice-1,1,1) -> 0.04615842783 | E108: =OFFSET(extrapolation!D117,0,PFS_dist_choice-1,1,1) -> 5.853215081e-07 | G108: 0.0005853215081 | H108: 46.1578425 | I108: 953.8415722 | J108: 1000 | K108: 8.325583863e-05 | L108: 0.8638160039 | M108: 0.0006269494274 | N108: 46.58970888 | O108: 953.4096642 | U108: =SD_concomittant_costs_per_cycle*M108 -> 0.04876099172 | W108: =SD_healthcare_costs_percycle*M108 -> 0.2226382682 | Y108: 0.2713992599 | Z108: =PD_lumpsum_secondline_chemo_caba*K108 -> 0.06166224231 | AA108: =PD_lumpsum_premedication_costs__caba*K108 -> 0.01359267015 | AB108: 0.1991231772 | AC108: =PD_concomitant_costs_percycle*N108 -> 3623.514608 | AD108: 17140.9136 | AE108: =PD_best_supportive_care_costs_percycle*N108 -> 2461.087864 | AF108: 5588.29023 | AG108: 28814.08068 | AH108: 28814.35208 | AI108: =M108*cycle_length_weeksyear -> 3.617015927e-05 | AJ108: =N108*cycle_length_weeksyear -> 2.68786782 | AK108: 2.68790399 | AL108: =(M108*u_SD_cycle10_after)*cycle_length_weeksyear -> 2.962336045e-05 | AM108: =(N108*u_SD_cycle_progressed)*cycle_length_weeksyear -> 1.685293123 | AO108: 1.685322746 | AQ108: 5.884615385 | AR108: 0.8167361673 | AS108: 0.8167361673 | AW108: 0.03982486549 | AY108: 0.1818367259 | BA108: 0.2216615913 | BB108: 0.05036178346 | BC108: 0.01110162532 | BD108: 0.1626311006 | BE108: 2959.455433 | BF108: 13999.60408 | BG108: 2010.059469 | BH108: 4564.158744 | BI108: 23533.50182 | BJ108: 23533.72348 | BK108: 2.954147726e-05 | BL108: 2.195278861 | BM108: 2.195308403 | BN108: 2.419446987e-05 | BO108: 1.376439846 | BQ108: 1.376464041
A109: 103 | B109: 309 | C109: 71.30769231 | D109: =OFFSET(extrapolation!L118,0,OS_dist_choice-1,1,1) -> 0.04531793386 | E109: =OFFSET(extrapolation!D118,0,PFS_dist_choice-1,1,1) -> 5.124700154e-07 | G109: 0.0005124700154 | H109: 45.31742139 | I109: 954.6820661 | J109: 1000 | K109: 7.285149266e-05 | L109: 0.8404939624 | M109: 0.0005488957618 | N109: 45.73763195 | O109: 954.2618192 | U109: =SD_concomittant_costs_per_cycle*M109 -> 0.04269036787 | W109: =SD_healthcare_costs_percycle*M109 -> 0.19492035 | Y109: 0.2376107179 | Z109: =PD_lumpsum_secondline_chemo_caba*K109 -> 0.05395641275 | AA109: =PD_lumpsum_premedication_costs__caba*K109 -> 0.01189401639 | AB109: 0.1742390795 | AC109: =PD_concomitant_costs_percycle*N109 -> 3557.244325 | AD109: 16827.42426 | AE109: =PD_best_supportive_care_costs_percycle*N109 -> 2416.077147 | AF109: 5437.412802 | AG109: 28238.39862 | AH109: 28238.63623 | AI109: =M109*cycle_length_weeksyear -> 3.166706318e-05 | AJ109: =N109*cycle_length_weeksyear -> 2.638709536 | AK109: 2.638741203 | AL109: =(M109*u_SD_cycle10_after)*cycle_length_weeksyear -> 2.593532474e-05 | AM109: =(N109*u_SD_cycle_progressed)*cycle_length_weeksyear -> 1.654470879 | AO109: 1.654496814 | AQ109: 5.942307692 | AR109: 0.8151168004 | AS109: 0.8151168004 | AW109: 0.03479763607 | AY109: 0.158882852 | BA109: 0.1936804881 | BB109: 0.04398077853 | BC109: 0.009695012588 | BD109: 0.142025201 | BE109: 2899.569612 | BF109: 13716.31622 | BG109: 1969.385074 | BH109: 4432.126526 | BI109: 23017.59313 | BJ109: 23017.78682 | BK109: 2.581235522e-05 | BL109: 2.150856474 | BM109: 2.150882286 | BN109: 2.114031892e-05 | BO109: 1.348587009 | BQ109: 1.348608149
A110: 104 | B110: 312 | C110: 72 | D110: =OFFSET(extrapolation!L119,0,OS_dist_choice-1,1,1) -> 0.04449994127 | E110: =OFFSET(extrapolation!D119,0,PFS_dist_choice-1,1,1) -> 4.487177709e-07 | G110: 0.0004487177709 | H110: 44.49949256 | I110: 955.5000587 | J110: 1000 | K110: 6.375224456e-05 | L110: 0.8179925888 | M110: 0.0004805938932 | N110: 44.90845697 | O110: 955.0910624 | U110: =SD_concomittant_costs_per_cycle*M110 -> 0.03737819004 | W110: =SD_healthcare_costs_percycle*M110 -> 0.1706654275 | Y110: 0.2080436176 | Z110: =PD_lumpsum_secondline_chemo_caba*K110 -> 0.0472171852 | AA110: =PD_lumpsum_premedication_costs__caba*K110 -> 0.01040843796 | AB110: 0.1524763872 | AC110: =PD_concomitant_costs_percycle*N110 -> 3492.755241 | AD110: 16522.36083 | AE110: =PD_best_supportive_care_costs_percycle*N110 -> 2372.27622 | AF110: 5291.844527 | AG110: 27679.44691 | AH110: 27679.65496 | AI110: =M110*cycle_length_weeksyear -> 2.772657076e-05 | AJ110: =N110*cycle_length_weeksyear -> 2.590872518 | AK110: 2.590900244 | AL110: =(M110*u_SD_cycle10_after)*cycle_length_weeksyear -> 2.270806145e-05 | AM110: =(N110*u_SD_cycle_progressed)*cycle_length_weeksyear -> 1.624477069 | AO110: 1.624499777 | AQ110: 6 | AR110: 0.8135006443 | AS110: 0.8135006443 | AW110: 0.03040718168 | AY110: 0.1388364353 | BA110: 0.1692436169 | BB110: 0.03841121058 | BC110: 0.00846727099 | BD110: 0.1240396392 | BE110: 2841.358639 | BF110: 13440.95118 | BG110: 1929.848233 | BH110: 4304.918932 | BI110: 22517.2479 | BJ110: 22517.41714 | BK110: 2.255558318e-05 | BL110: 2.107676463 | BM110: 2.107699018 | BN110: 1.847302262e-05 | BO110: 1.321513142 | BQ110: 1.321531615
A111: 105 | B111: 315 | C111: 72.69230769 | D111: =OFFSET(extrapolation!L120,0,OS_dist_choice-1,1,1) -> 0.04370366463 | E111: =OFFSET(extrapolation!D120,0,PFS_dist_choice-1,1,1) -> 3.929240384e-07 | G111: 0.0003929240384 | H111: 43.7032717 | I111: 956.2963354 | J111: 1000 | K111: 5.579373251e-05 | L111: 0.7962766468 | M111: 0.0004208209046 | N111: 44.10138213 | O111: 955.898197 | U111: =SD_concomittant_costs_per_cycle*M111 -> 0.03272934586 | W111: =SD_healthcare_costs_percycle*M111 -> 0.1494392264 | Y111: 0.1821685723 | Z111: =PD_lumpsum_secondline_chemo_caba*K111 -> 0.04132282745 | AA111: =PD_lumpsum_premedication_costs__caba*K111 -> 0.009109100514 | AB111: 0.133441996 | AC111: =PD_concomitant_costs_percycle*N111 -> 3429.984995 | AD111: 16225.42829 | AE111: =PD_best_supportive_care_costs_percycle*N111 -> 2329.642725 | AF111: 5151.357448 | AG111: 27136.59734 | AH111: 27136.7795 | AI111: =M111*cycle_length_weeksyear -> 2.427812911e-05 | AJ111: =N111*cycle_length_weeksyear -> 2.544310508 | AK111: 2.544334786 | AL111: =(M111*u_SD_cycle10_after)*cycle_length_weeksyear -> 1.988378774e-05 | AM111: =(N111*u_SD_cycle_progressed)*cycle_length_weeksyear -> 1.595282688 | AO111: 1.595302572 | AQ111: 6.057692308 | AR111: 0.8118876926 | AS111: 0.8118876926 | AW111: 0.02657255309 | AY111: 0.1213278687 | BA111: 0.1479004218 | BB111: 0.03354949503 | BC111: 0.007395566598 | BD111: 0.1083399142 | BE111: 2784.762603 | BF111: 13173.22554 | BG111: 1891.408257 | BH111: 4182.323712 | BI111: 22031.8694 | BJ111: 22032.0173 | BK111: 1.971111423e-05 | BL111: 2.065694387 | BM111: 2.065714098 | BN111: 1.614340255e-05 | BO111: 1.295190381 | BQ111: 1.295206524
A112: 106 | B112: 318 | C112: 73.38461538 | D112: =OFFSET(extrapolation!L121,0,OS_dist_choice-1,1,1) -> 0.04292835196 | E112: =OFFSET(extrapolation!D121,0,PFS_dist_choice-1,1,1) -> 3.440916562e-07 | G112: 0.0003440916562 | H112: 42.92800787 | I112: 957.071648 | J112: 1000 | K112: =G111-G112 -> 4.883238218e-05 | L112: 0.7753126695 | M112: 0.0003685078473 | N112: 43.31563978 | O112: 956.6839917 | U112: =SD_concomittant_costs_per_cycle*M112 -> 0.02866069782 | W112: =SD_healthcare_costs_percycle*M112 -> 0.1308621483 | Y112: 0.1595228461 | Z112: =PD_lumpsum_secondline_chemo_caba*K112 -> 0.03616700321 | AA112: =PD_lumpsum_premedication_costs__caba*K112 -> 0.007972563541 | AB112: 0.1167925187 | AC112: =PD_concomitant_costs_percycle*N112 -> 3368.873884 | AD112: 15936.34425 | AE112: =PD_best_supportive_care_costs_percycle*N112 -> 2288.136113 | AF112: 5015.73506 | AG112: 26609.25024 | AH112: 26609.40976 | AI112: =M112*cycle_length_weeksyear -> 2.126006811e-05 | AJ112: =N112*cycle_length_weeksyear -> 2.498979218 | AK112: 2.499000478 | AL112: =(M112*u_SD_cycle10_after)*cycle_length_weeksyear -> 1.741199578e-05 | AM112: =(N112*u_SD_cycle_progressed)*cycle_length_weeksyear -> 1.56685997 | AO112: 1.566877382 | AQ112: 6.115384615 | AR112: 0.8102779389 | AS112: 0.8102779389 | AW112: 0.02322313116 | AY112: 0.1060347118 | BA112: 0.1292578429 | BB112: 0.02930532482 | BC112: 0.006459992354 | BD112: 0.09463440134 | BE112: 2729.724187 | BF112: 12912.86817 | BG112: 1854.026214 | BH112: 4064.139467 | BI112: 21560.88844 | BJ112: 21561.0177 | BK112: 1.722656417e-05 | BL112: 2.02486773 | BM112: 2.024884957 | BN112: 1.410855606e-05 | BO112: 1.269592067 | BQ112: 1.269606176
A113: 107 | B113: 321 | C113: 74.07692308 | D113: =OFFSET(extrapolation!L122,0,OS_dist_choice-1,1,1) -> 0.0421732831 | E113: =OFFSET(extrapolation!D122,0,PFS_dist_choice-1,1,1) -> 3.013488905e-07 | G113: 0.0003013488905 | H113: 42.17298175 | I113: 957.8267169 | J113: 1000 | K113: 4.274276565e-05 | L113: 0.7550688594 | M113: 0.0003227202734 | N113: 42.55049481 | O113: 957.4491825 | U113: =SD_concomittant_costs_per_cycle*M113 -> 0.02509956926 | W113: =SD_healthcare_costs_percycle*M113 -> 0.1146023581 | Y113: 0.1397019273 | Z113: =PD_lumpsum_secondline_chemo_caba*K113 -> 0.0316568161 | AA113: =PD_lumpsum_premedication_costs__caba*K113 -> 0.006978349198 | AB113: 0.1022279691 | AC113: =PD_concomitant_costs_percycle*N113 -> 3309.364734 | AD113: 15654.83822 | AE113: =PD_best_supportive_care_costs_percycle*N113 -> 2247.717552 | AF113: 4884.771653 | AG113: 26096.83302 | AH113: 26096.97272 | AI113: =M113*cycle_length_weeksyear -> 1.861847731e-05 | AJ113: =N113*cycle_length_weeksyear -> 2.454836239 | AK113: 2.454854857 | AL113: =(M113*u_SD_cycle10_after)*cycle_length_weeksyear -> 1.524853292e-05 | AM113: =(N113*u_SD_cycle_progressed)*cycle_length_weeksyear -> 1.539182322 | AO113: 1.53919757 | AQ113: 6.173076923 | AR113: 0.808671377 | AS113: 0.808671377 | AW113: 0.02029730324 | AY113: 0.0926756467 | BA113: 0.1129729499 | BB113: 0.02559996106 | BC113: 0.005643191255 | BD113: 0.08266883253 | BE113: 2676.188536 | BF113: 12659.61958 | BG113: 1817.664848 | BH113: 3950.175019 | BI113: 21103.76189 | BJ113: 21103.87486 | BK113: 1.505622968e-05 | BL113: 1.985155802 | BM113: 1.985170858 | BN113: 1.233105211e-05 | BO113: 1.244692688 | BQ113: 1.244705019
A114: 108 | B114: 324 | C114: 74.76923077 | D114: =OFFSET(extrapolation!L123,0,OS_dist_choice-1,1,1) -> 0.04143776811 | E114: =OFFSET(extrapolation!D123,0,PFS_dist_choice-1,1,1) -> 2.639335929e-07 | G114: 0.0002639335929 | H114: 41.43750417 | I114: 958.5622319 | J114: 1000 | K114: 3.74152976e-05 | L114: 0.7355149927 | M114: 0.0002826412417 | N114: 41.80524296 | O114: 958.1944744 | U114: =SD_concomittant_costs_per_cycle*M114 -> 0.02198242258 | W114: =SD_healthcare_costs_percycle*M114 -> 0.1003697489 | Y114: 0.1223521714 | Z114: =PD_lumpsum_secondline_chemo_caba*K114 -> 0.02771110333 | AA114: =PD_lumpsum_premedication_costs__caba*K114 -> 0.006108566164 | AB114: 0.08948625174 | AC114: =PD_concomitant_costs_percycle*N114 -> 3251.402771 | AD114: 15380.65111 | AE114: =PD_best_supportive_care_costs_percycle*N114 -> 2208.349839 | AF114: 4758.271702 | AG114: 25598.79873 | AH114: 25598.92108 | AI114: =M114*cycle_length_weeksyear -> 1.630622548e-05 | AJ114: =N114*cycle_length_weeksyear -> 2.41184094 | AK114: 2.411857246 | AL114: =(M114*u_SD_cycle10_after)*cycle_length_weeksyear -> 1.335479867e-05 | AM114: =(N114*u_SD_cycle_progressed)*cycle_length_weeksyear -> 1.512224269 | AO114: 1.512237624 | AQ114: 6.230769231 | AR114: 0.8070680004 | AS114: 0.8070680004 | AW114: 0.01774130983 | AY114: 0.08100521251 | BA114: 0.09874652234 | BB114: 0.02236474475 | BC114: 0.004930028279 | BD114: 0.07222149025 | BE114: 2624.103133 | BF114: 12413.23134 | BG114: 1782.288489 | BH114: 3840.248828 | BI114: 20659.9713 | BJ114: 20660.07005 | BK114: 1.31602328e-05 | BL114: 1.946519645 | BM114: 1.946532805 | BN114: 1.077823066e-05 | BO114: 1.220467817 | BQ114: 1.220478595
A115: 109 | B115: 327 | C115: 75.46153846 | D115: =OFFSET(extrapolation!L124,0,OS_dist_choice-1,1,1) -> 0.04072114577 | E115: =OFFSET(extrapolation!D124,0,PFS_dist_choice-1,1,1) -> 2.311793676e-07 | G115: 0.0002311793676 | H115: 40.72091459 | I115: 959.2788542 | J115: 1000 | K115: 3.275422537e-05 | L115: 0.7166223317 | M115: 0.0002475564802 | N115: 41.07920938 | O115: 958.9205431 | U115: =SD_concomittant_costs_per_cycle*M115 -> 0.01925370525 | W115: =SD_healthcare_costs_percycle*M115 -> 0.0879106729 | Y115: 0.1071643782 | Z115: =PD_lumpsum_secondline_chemo_caba*K115 -> 0.02425894706 | AA115: =PD_lumpsum_premedication_costs__caba*K115 -> 0.005347581488 | AB115: 0.07833835476 | AC115: =PD_concomitant_costs_percycle*N115 -> 3194.93551 | AD115: 15113.53463 | AE115: =PD_best_supportive_care_costs_percycle*N115 -> 2169.997326 | AF115: 4636.049293 | AG115: 25114.62471 | AH115: 25114.73187 | AI115: =M115*cycle_length_weeksyear -> 1.428210463e-05 | AJ115: =N115*cycle_length_weeksyear -> 2.369954388 | AK115: 2.36996867 | AL115: =(M115*u_SD_cycle10_after)*cycle_length_weeksyear -> 1.169704369e-05 | AM115: =(N115*u_SD_cycle_progressed)*cycle_length_weeksyear -> 1.485961401 | AO115: 1.485973098 | AQ115: 6.288461538 | AR115: 0.8054678029 | AS115: 0.8054678029 | AW115: 0.01550823967 | AY115: 0.07080921655 | BA115: 0.08631745622 | BB115: 0.01953980079 | BC115: 0.004307304712 | BD115: 0.06309902249 | BE115: 2573.417685 | BF115: 12173.46554 | BG115: 1747.862978 | BH115: 3734.188438 | BI115: 20229.02158 | BJ115: 20229.1079 | BK115: 1.150377544e-05 | BL115: 1.908921953 | BM115: 1.908933457 | BN115: 9.421592082e-06 | BO115: 1.196894065 | BQ115: 1.196903486
A116: 110 | B116: 330 | C116: 76.15384615 | D116: =OFFSET(extrapolation!L125,0,OS_dist_choice-1,1,1) -> 0.04002278223 | E116: =OFFSET(extrapolation!D125,0,PFS_dist_choice-1,1,1) -> 2.025034923e-07 | G116: 0.0002025034923 | H116: 40.02257973 | I116: 959.9772178 | J116: 1000 | K116: 2.867587522e-05 | L116: 0.6983635413 | M116: 0.00021684143 | N116: 40.37174716 | O116: 959.628036 | U116: =SD_concomittant_costs_per_cycle*M116 -> 0.01686484221 | W116: =SD_healthcare_costs_percycle*M116 -> 0.07700334082 | Y116: 0.09386818303 | Z116: =PD_lumpsum_secondline_chemo_caba*K116 -> 0.02123837554 | AA116: =PD_lumpsum_premedication_costs__caba*K116 -> 0.004681734273 | AB116: 0.0685841555 | AC116: =PD_concomitant_costs_percycle*N116 -> 3139.912636 | AD116: 14853.25078 | AE116: =PD_best_supportive_care_costs_percycle*N116 -> 2132.625839 | AF116: 4517.927587 | AG116: 24643.81135 | AH116: 24643.90522 | AI116: =M116*cycle_length_weeksyear -> 1.25100825e-05 | AJ116: =N116*cycle_length_weeksyear -> 2.329139259 | AK116: 2.329151769 | AL116: =(M116*u_SD_cycle10_after)*cycle_length_weeksyear -> 1.024575757e-05 | AM116: =(N116*u_SD_cycle_progressed)*cycle_length_weeksyear -> 1.460370316 | AO116: 1.460380561 | AQ116: 6.346153846 | AR116: 0.8038707781 | AS116: 0.8038707781 | AW116: 0.01355715383 | AY116: 0.0619007355 | BA116: 0.07545788933 | BB116: 0.01707290947 | BC116: 0.003763509373 | BD116: 0.05513279845 | BE116: 2524.084014 | BF116: 11940.09426 | BG116: 1714.355593 | BH116: 3631.829965 | BI116: 19810.43981 | BJ116: 19810.51526 | BK116: 1.005648975e-05 | BL116: 1.872326989 | BM116: 1.872337045 | BN116: 8.236265106e-06 | BO116: 1.173949022 | BQ116: 1.173957258
A117: 111 | B117: 333 | C117: 76.84615385 | D117: =OFFSET(extrapolation!L126,0,OS_dist_choice-1,1,1) -> 0.03934206962 | E117: =OFFSET(extrapolation!D126,0,PFS_dist_choice-1,1,1) -> 1.773963703e-07 | G117: 0.0001773963703 | H117: 39.34189223 | I117: 960.6579304 | J117: 1000 | K117: 2.5107122e-05 | L117: 0.6807126111 | M117: 0.0001899499313 | N117: 39.68223598 | O117: 960.3175741 | U117: =SD_concomittant_costs_per_cycle*M117 -> 0.01477335591 | W117: =SD_healthcare_costs_percycle*M117 -> 0.06745380394 | Y117: 0.08222715985 | Z117: =PD_lumpsum_secondline_chemo_caba*K117 -> 0.01859522967 | AA117: =PD_lumpsum_premedication_costs__caba*K117 -> 0.004099085822 | AB117: 0.06004876036 | AC117: =PD_concomitant_costs_percycle*N117 -> 3086.285903 | AD117: 14599.57134 | AE117: =PD_best_supportive_care_costs_percycle*N117 -> 2096.202611 | AF117: 4403.738315 | AG117: 24185.88091 | AH117: 24185.96313 | AI117: =M117*cycle_length_weeksyear -> 1.095864989e-05 | AJ117: =N117*cycle_length_weeksyear -> 2.289359768 | AK117: 2.289370727 | AL117: =(M117*u_SD_cycle10_after)*cycle_length_weeksyear -> 8.975134256e-06 | AM117: =(N117*u_SD_cycle_progressed)*cycle_length_weeksyear -> 1.435428574 | AO117: 1.43543755 | AQ117: 6.403846154 | AR117: 0.8022769198 | AS117: 0.8022769198 | AW117: 0.01185232247 | AY117: 0.05411663005 | BA117: 0.06596895253 | BB117: 0.01491852358 | BC117: 0.003288601947 | BD117: 0.0481757345 | BE117: 2476.055948 | BF117: 11712.89912 | BG117: 1681.734974 | BH117: 3533.017611 | BI117: 19403.77404 | BJ117: 19403.84001 | BK117: 8.791871875e-06 | BL117: 1.836700503 | BM117: 1.836709295 | BN117: 7.200543066e-06 | BO117: 1.151611215 | BQ117: 1.151618416
A118: 112 | B118: 336 | C118: 77.53846154 | D118: =OFFSET(extrapolation!L127,0,OS_dist_choice-1,1,1) -> 0.03867842484 | E118: =OFFSET(extrapolation!D127,0,PFS_dist_choice-1,1,1) -> 1.554123168e-07 | G118: 0.0001554123168 | H118: 38.67826943 | I118: 961.3215752 | J118: 1000 | K118: 2.198405358e-05 | L118: 0.6636447824 | M118: 0.0001664043436 | N118: 39.01008083 | O118: 960.9897528 | U118: =SD_concomittant_costs_per_cycle*M118 -> 0.01294209782 | W118: =SD_healthcare_costs_percycle*M118 -> 0.0590924455 | Y118: 0.07203454332 | Z118: =PD_lumpsum_secondline_chemo_caba*K118 -> 0.01628217385 | AA118: =PD_lumpsum_premedication_costs__caba*K118 -> 0.003589201595 | AB118: 0.05257931057 | AC118: =PD_concomitant_costs_percycle*N118 -> 3034.009036 | AD118: 14352.27738 | AE118: =PD_best_supportive_care_costs_percycle*N118 -> 2060.69621 | AF118: 4293.321306 | AG118: 23740.37638 | AH118: 23740.44842 | AI118: =M118*cycle_length_weeksyear -> 9.60025059e-06 | AJ118: =N118*cycle_length_weeksyear -> 2.250581586 | AK118: 2.250591186 | AL118: =(M118*u_SD_cycle10_after)*cycle_length_weeksyear -> 7.862605233e-06 | AM118: =(N118*u_SD_cycle_progressed)*cycle_length_weeksyear -> 1.411114655 | AO118: 1.411122517 | AQ118: 6.461538462 | AR118: 0.8006862217 | AS118: 0.8006862217 | AW118: 0.0103625594 | AY118: 0.04731450691 | BA118: 0.05767706632 | BB118: 0.01303691226 | BC118: 0.002873824264 | BD118: 0.04209952952 | BE118: 2429.289232 | BF118: 11491.67075 | BG118: 1649.971062 | BH118: 3437.603215 | BI118: 19008.59227 | BJ118: 19008.64994 | BK118: 7.686788372e-06 | BL118: 1.802009667 | BM118: 1.802017354 | BN118: 6.295479677e-06 | BO118: 1.129860061 | BQ118: 1.129866357
A119: 113 | B119: 339 | C119: 78.23076923 | D119: =OFFSET(extrapolation!L128,0,OS_dist_choice-1,1,1) -> 0.03803128836 | E119: =OFFSET(extrapolation!D128,0,PFS_dist_choice-1,1,1) -> 1.361615116e-07 | G119: 0.0001361615116 | H119: 38.0311522 | I119: 961.9687116 | J119: 1000 | K119: 1.925080518e-05 | L119: 0.6471364799 | M119: 0.0001457869142 | N119: 38.35471081 | O119: 961.6451434 | U119: =SD_concomittant_costs_per_cycle*M119 -> 0.01133857725 | W119: =SD_healthcare_costs_percycle*M119 -> 0.05177091593 | Y119: 0.06310949318 | Z119: =PD_lumpsum_secondline_chemo_caba*K119 -> 0.01425783264 | AA119: =PD_lumpsum_premedication_costs__caba*K119 -> 0.003142960892 | AB119: 0.0460421942 | AC119: =PD_concomitant_costs_percycle*N119 -> 2983.037633 | AD119: 14111.15888 | AE119: =PD_best_supportive_care_costs_percycle*N119 -> 2026.076479 | AF119: 4186.524042 | AG119: 23306.86048 | AH119: 23306.92359 | AI119: =M119*cycle_length_weeksyear -> 8.41078351e-06 | AJ119: =N119*cycle_length_weeksyear -> 2.212771778 | AK119: 2.212780188 | AL119: =(M119*u_SD_cycle10_after)*cycle_length_weeksyear -> 6.888431695e-06 | AM119: =(N119*u_SD_cycle_progressed)*cycle_length_weeksyear -> 1.387407905 | AO119: 1.387414793 | AQ119: 6.519230769 | AR119: 0.7990986775 | AS119: 0.7990986775 | AW119: 0.009060642086 | AY119: 0.04137007045 | BA119: 0.05043071254 | BB119: 0.01139341521 | BC119: 0.002511535892 | BD119: 0.03679225649 | BE119: 2383.741428 | BF119: 11276.2084 | BG119: 1619.035035 | BH119: 3345.445825 | BI119: 18624.48138 | BJ119: 18624.53181 | BK119: 6.72104598e-06 | BL119: 1.768223001 | BM119: 1.768229722 | BN119: 5.504536658e-06 | BO119: 1.108675822 | BQ119: 1.108681326
A120: 114 | B120: 342 | C120: 78.92307692 | D120: =OFFSET(extrapolation!L129,0,OS_dist_choice-1,1,1) -> 0.03740012311 | E120: =OFFSET(extrapolation!D129,0,PFS_dist_choice-1,1,1) -> 1.193029698e-07 | G120: 0.0001193029698 | H120: 37.40000381 | I120: 962.5998769 | J120: 1000 | K120: 1.685854184e-05 | L120: 0.6311652467 | M120: 0.0001277322407 | N120: 37.715578 | O120: 962.2842943 | U120: =SD_concomittant_costs_per_cycle*M120 -> 0.009934375018 | W120: =SD_healthcare_costs_percycle*M120 -> 0.04535945582 | Y120: 0.05529383084 | Z120: =PD_lumpsum_secondline_chemo_caba*K120 -> 0.01248603712 | AA120: =PD_lumpsum_premedication_costs__caba*K120 -> 0.002752390729 | AB120: 0.04032061257 | AC120: =PD_concomitant_costs_percycle*N120 -> 2933.329079 | AD120: 13876.01424 | AE120: =PD_best_supportive_care_costs_percycle*N120 -> 1992.314473 | AF120: 4083.201244 | AG120: 22884.9146 | AH120: 22884.96989 | AI120: =M120*cycle_length_weeksyear -> 7.369167731e-06 | AJ120: =N120*cycle_length_weeksyear -> 2.175898731 | AK120: 2.1759061 | AL120: =(M120*u_SD_cycle10_after)*cycle_length_weeksyear -> 6.035348372e-06 | AM120: =(N120*u_SD_cycle_progressed)*cycle_length_weeksyear -> 1.364288504 | AO120: 1.36429454 | AQ120: 6.576923077 | AR120: 0.797514281 | AS120: 0.797514281 | AW120: 0.00792280595 | AY120: 0.0361748138 | BA120: 0.04409761975 | BB120: 0.009957792918 | BC120: 0.002195070913 | BD120: 0.03215626434 | BE120: 2339.371832 | BF120: 11066.31952 | BG120: 1588.899245 | BH120: 3256.411304 | BI120: 18251.04621 | BJ120: 18251.09031 | BK120: 5.877016505e-06 | BL120: 1.735310312 | BM120: 1.735316189 | BN120: 4.813276517e-06 | BO120: 1.088039566 | BQ120: 1.088044379
A121: 115 | B121: 345 | C121: 79.61538462 | D121: =OFFSET(extrapolation!L130,0,OS_dist_choice-1,1,1) -> 0.03678441343 | E121: =OFFSET(extrapolation!D130,0,PFS_dist_choice-1,1,1) -> 1.045383996e-07 | G121: 0.0001045383996 | H121: 36.78430889 | I121: 963.2155866 | J121: 1000 | K121: 1.476457013e-05 | L121: 0.6157096844 | M121: 0.0001119206847 | N121: 37.09215635 | O121: 962.9077317 | U121: =SD_concomittant_costs_per_cycle*M121 -> 0.008704631252 | W121: =SD_healthcare_costs_percycle*M121 -> 0.03974455725 | Y121: 0.04844918851 | Z121: =PD_lumpsum_secondline_chemo_caba*K121 -> 0.01093516702 | AA121: =PD_lumpsum_premedication_costs__caba*K121 -> 0.002410520812 | AB121: 0.03531245572 | AC121: =PD_concomitant_costs_percycle*N121 -> 2884.84246 | AD121: 13646.64992 | AE121: =PD_best_supportive_care_costs_percycle*N121 -> 1959.382405 | AF121: 3983.214478 | AG121: 22474.13793 | AH121: 22474.18638 | AI121: =M121*cycle_length_weeksyear -> 6.456962578e-06 | AJ121: =N121*cycle_length_weeksyear -> 2.139932097 | AK121: 2.139938554 | AL121: =(M121*u_SD_cycle10_after)*cycle_length_weeksyear -> 5.288252352e-06 | AM121: =(N121*u_SD_cycle_progressed)*cycle_length_weeksyear -> 1.341737425 | AO121: 1.341742713 | AQ121: 6.634615385 | AR121: 0.7959330259 | AS121: 0.7959330259 | AW121: 0.006928303492 | AY121: 0.03163400572 | BA121: 0.03856230921 | BB121: 0.008703660578 | BC121: 0.001918613124 | BD121: 0.02810634973 | BE121: 2296.141389 | BF121: 10861.81937 | BG121: 1559.537167 | BH121: 3170.371953 | BI121: 17887.90861 | BJ121: 17887.94717 | BK121: 5.139309763e-06 | BL121: 1.703242629 | BM121: 1.703247769 | BN121: 4.209094696e-06 | BO121: 1.067933129 | BQ121: 1.067937338
A122: 116 | B122: 348 | C122: 80.30769231 | D122: =OFFSET(extrapolation!L131,0,OS_dist_choice-1,1,1) -> 0.03618366403 | E122: =OFFSET(extrapolation!D131,0,PFS_dist_choice-1,1,1) -> 9.1606837e-08 | G122: 9.1606837e-05 | H122: 36.18357243 | I122: 963.816336 | J122: 1000 | K122: 1.293156262e-05 | L122: 0.6007493956 | M122: 9.807261831e-05 | N122: 36.48394066 | O122: 963.5159613 | U122: =SD_concomittant_costs_per_cycle*M122 -> 0.007627597889 | W122: =SD_healthcare_costs_percycle*M122 -> 0.03482692055 | Y122: 0.04245451844 | Z122: =PD_lumpsum_secondline_chemo_caba*K122 -> 0.009577576312 | AA122: =PD_lumpsum_premedication_costs__caba*K122 -> 0.002111256918 | AB122: 0.03092844752 | AC122: =PD_concomitant_costs_percycle*N122 -> 2837.538485 | AD122: 13422.88007 | AE122: =PD_best_supportive_care_costs_percycle*N122 -> 1927.253588 | AF122: 3886.43179 | AG122: 22074.14654 | AH122: 22074.189 | AI122: =M122*cycle_length_weeksyear -> 5.658035672e-06 | AJ122: =N122*cycle_length_weeksyear -> 2.10484273 | AK122: 2.104848388 | AL122: =(M122*u_SD_cycle10_after)*cycle_length_weeksyear -> 4.633931215e-06 | AM122: =(N122*u_SD_cycle_progressed)*cycle_length_weeksyear -> 1.319736392 | AO122: 1.319741026 | AQ122: 6.692307692 | AR122: 0.7943549061 | AS122: 0.7943549061 | AW122: 0.006059019805 | AY122: 0.0276649352 | BA122: 0.03372395501 | BB122: 0.007607994732 | BC122: 0.001677087291 | BD122: 0.02456816402 | BE122: 2254.012616 | BF122: 10662.53063 | BG122: 1530.923343 | BH122: 3087.206159 | BI122: 17534.7066 | BJ122: 17534.74033 | BK122: 4.494488395e-06 | BL122: 1.671992149 | BM122: 1.671996644 | BN122: 3.680985995e-06 | BO122: 1.048339078 | BQ122: 1.048342759
A123: 117 | B123: 351 | C123: 81 | D123: =OFFSET(extrapolation!L132,0,OS_dist_choice-1,1,1) -> 0.0355973991 | E123: =OFFSET(extrapolation!D132,0,PFS_dist_choice-1,1,1) -> 8.027995633e-08 | G123: 8.027995633e-05 | H123: 35.59731882 | I123: 964.4026009 | J123: 1000 | K123: 1.132688067e-05 | L123: 0.5862649313 | M123: 8.594339666e-05 | N123: 35.89044562 | O123: 964.1094684 | U123: =SD_concomittant_costs_per_cycle*M123 -> 0.006684247676 | W123: =SD_healthcare_costs_percycle*M123 -> 0.03051966899 | Y123: 0.03720391666 | Z123: =PD_lumpsum_secondline_chemo_caba*K123 -> 0.008389091651 | AA123: =PD_lumpsum_premedication_costs__caba*K123 -> 0.001849270338 | AB123: 0.02709052608 | AC123: =PD_concomitant_costs_percycle*N123 -> 2791.379408 | AD123: 13204.52611 | AE123: =PD_best_supportive_care_costs_percycle*N123 -> 1895.902385 | AF123: 3792.727355 | AG123: 21684.57259 | AH123: 21684.60979 | AI123: =M123*cycle_length_weeksyear -> 4.958272884e-06 | AJ123: =N123*cycle_length_weeksyear -> 2.070602632 | AK123: 2.07060759 | AL123: =(M123*u_SD_cycle10_after)*cycle_length_weeksyear -> 4.060825492e-06 | AM123: =(N123*u_SD_cycle_progressed)*cycle_length_weeksyear -> 1.29826785 | AO123: 1.298271911 | AQ123: 6.75 | AR123: 0.7927799152 | AS123: 0.7927799152 | AW123: 0.005299137305 | AY123: 0.02419538059 | BA123: 0.02949451789 | BB123: 0.006650703367 | BC123: 0.001466064381 | BD123: 0.02147682496 | BE123: 2212.949531 | BF123: 10468.28309 | BG123: 1503.033332 | BH123: 3006.79807 | BI123: 17191.09362 | BJ123: 17191.12311 | BK123: 3.930819157e-06 | BL123: 1.641532179 | BM123: 1.64153611 | BN123: 3.219340889e-06 | BO123: 1.029240676 | BQ123: 1.029243896
A124: 118 | B124: 354 | C124: 81.69230769 | D124: =OFFSET(extrapolation!L133,0,OS_dist_choice-1,1,1) -> 0.03502516136 | E124: =OFFSET(extrapolation!D133,0,PFS_dist_choice-1,1,1) -> 7.035797322e-08 | G124: 7.035797322e-05 | H124: 35.025091 | I124: 964.9748386 | J124: 1000 | K124: 9.921983103e-06 | L124: 0.5722377397 | M124: 7.531896478e-05 | N124: 35.31120491 | O124: 964.6887198 | U124: =SD_concomittant_costs_per_cycle*M124 -> 0.005857932485 | W124: =SD_healthcare_costs_percycle*M124 -> 0.02674678873 | Y124: 0.03260472122 | Z124: =PD_lumpsum_secondline_chemo_caba*K124 -> 0.007348574423 | AA124: =PD_lumpsum_premedication_costs__caba*K124 -> 0.001619901328 | AB124: 0.02373042939 | AC124: =PD_concomitant_costs_percycle*N124 -> 2746.328962 | AD124: 12991.4165 | AE124: =PD_best_supportive_care_costs_percycle*N124 -> 1865.304162 | AF124: 3701.981157 | AG124: 21305.06348 | AH124: 21305.09608 | AI124: =M124*cycle_length_weeksyear -> 4.345324891e-06 | AJ124: =N124*cycle_length_weeksyear -> 2.037184899 | AK124: 2.037189244 | AL124: =(M124*u_SD_cycle10_after)*cycle_length_weeksyear -> 3.558821086e-06 | AM124: =(N124*u_SD_cycle_progressed)*cycle_length_weeksyear -> 1.277314932 | AO124: 1.27731849 | AQ124: 6.807692308 | AR124: 0.791208047 | AS124: 0.791208047 | AW124: 0.004634843322 | AY124: 0.02116227448 | BA124: 0.0257971178 | BB124: 0.005814251218 | BC124: 0.001281678966 | BD124: 0.01877570669 | BE124: 2172.917575 | BF124: 10278.91327 | BG124: 1475.843663 | BH124: 2929.037282 | BI124: 16856.73767 | BJ124: 16856.76346 | BK124: 3.438056021e-06 | BL124: 1.611837085 | BM124: 1.611840523 | BN124: 2.815767881e-06 | BO124: 1.010621852 | BQ124: 1.010624668
A125: 119 | B125: 357 | C125: 82.38461538 | D125: =OFFSET(extrapolation!L134,0,OS_dist_choice-1,1,1) -> 0.03446651124 | E125: =OFFSET(extrapolation!D134,0,PFS_dist_choice-1,1,1) -> 6.166606349e-08 | G125: 6.166606349e-05 | H125: 34.46644958 | I125: 965.5334888 | J125: 1000 | K125: 8.691909737e-06 | L125: 0.5586501198 | M125: 6.601201836e-05 | N125: 34.74577029 | O125: 965.2541637 | U125: =SD_concomittant_costs_per_cycle*M125 -> 0.005134084728 | W125: =SD_healthcare_costs_percycle*M125 -> 0.02344176548 | Y125: 0.02857585021 | Z125: =PD_lumpsum_secondline_chemo_caba*K125 -> 0.006437538234 | AA125: =PD_lumpsum_premedication_costs__caba*K125 -> 0.001419074794 | AB125: 0.02078846014 | AC125: =PD_concomitant_costs_percycle*N125 -> 2702.352284 | AD125: 12783.38631 | AE125: =PD_best_supportive_care_costs_percycle*N125 -> 1835.435242 | AF125: 3614.078684 | AG125: 20935.28116 | AH125: 20935.30974 | AI125: =M125*cycle_length_weeksyear -> 3.808385674e-06 | AJ125: =N125*cycle_length_weeksyear -> 2.004563671 | AK125: 2.004567479 | AL125: =(M125*u_SD_cycle10_after)*cycle_length_weeksyear -> 3.119067867e-06 | AM125: =(N125*u_SD_cycle_progressed)*cycle_length_weeksyear -> 1.256861421 | AO125: 1.256864541 | AQ125: 6.865384615 | AR125: 0.7896392955 | AS125: 0.7896392955 | AW125: 0.004054075047 | AY125: 0.01851053918 | BA125: 0.02256461423 | BB125: 0.005083333156 | BC125: 0.00112055722 | BD125: 0.01641538502 | BE125: 2133.883554 | BF125: 10094.26416 | BG125: 1449.331791 | BH125: 2853.818546 | BI125: 16531.32067 | BJ125: 16531.34323 | BK125: 3.007250981e-06 | BL125: 1.582882245 | BM125: 1.582885252 | BN125: 2.462938553e-06 | BO125: 0.9924671674 | BQ125: 0.9924696303
A126: 120 | B126: 360 | C126: 83.07692308 | D126: =OFFSET(extrapolation!L135,0,OS_dist_choice-1,1,1) -> 0.03392102607 | E126: =OFFSET(extrapolation!D135,0,PFS_dist_choice-1,1,1) -> 5.405123316e-08 | G126: 5.405123316e-05 | H126: 33.92097201 | I126: 966.0789739 | J126: 1000 | K126: 7.614830329e-06 | L126: 0.5454851762 | M126: 5.785864832e-05 | N126: 34.1937108 | O126: 965.8062313 | U126: =SD_concomittant_costs_per_cycle*M126 -> 0.004499956373 | W126: =SD_healthcare_costs_percycle*M126 -> 0.0205463929 | Y126: 0.02504634927 | Z126: =PD_lumpsum_secondline_chemo_caba*K126 -> 0.005639814824 | AA126: =PD_lumpsum_premedication_costs__caba*K126 -> 0.001243226645 | AB126: 0.01821240689 | AC126: =PD_concomitant_costs_percycle*N126 -> 2659.415857 | AD126: 12580.27699 | AE126: =PD_best_supportive_care_costs_percycle*N126 -> 1806.272859 | AF126: 3528.910632 | AG126: 20574.90143 | AH126: 20574.92648 | AI126: =M126*cycle_length_weeksyear -> 3.337998942e-06 | AJ126: =N126*cycle_length_weeksyear -> 1.972714084 | AK126: 1.972717422 | AL126: =(M126*u_SD_cycle10_after)*cycle_length_weeksyear -> 2.733821133e-06 | AM126: =(N126*u_SD_cycle_progressed)*cycle_length_weeksyear -> 1.236891731 | AO126: 1.236894465 | AQ126: 6.923076923 | AR126: 0.7880736544 | AS126: 0.7880736544 | AW126: 0.003546297064 | AY126: 0.01619207094 | BA126: 0.019738368 | BB126: 0.004444589479 | BC126: 0.0009797541651 | BD126: 0.01435271805 | BE126: 2095.815573 | BF126: 9914.184857 | BG126: 1423.476053 | BH126: 2781.041498 | BI126: 16214.53776 | BJ126: 16214.5575 | BK126: 2.630589024e-06 | BL126: 1.554643998 | BM126: 1.554646628 | BN126: 2.154452411e-06 | BO126: 0.9747617865 | BQ126: 0.9747639409
A127: 121 | B127: 363 | C127: 83.76923077 | D127: =OFFSET(extrapolation!L136,0,OS_dist_choice-1,1,1) -> 0.03338829929 | E127: =OFFSET(extrapolation!D136,0,PFS_dist_choice-1,1,1) -> 4.737958262e-08 | G127: 4.737958262e-05 | H127: 33.38825191 | I127: 966.6117007 | J127: 1000 | K127: 6.67165054e-06 | L127: 0.5327267774 | M127: 5.071540789e-05 | N127: 33.65461196 | O127: 966.3453373 | U127: =SD_concomittant_costs_per_cycle*M127 -> 0.003944390848 | W127: =SD_healthcare_costs_percycle*M127 -> 0.01800973107 | Y127: 0.02195412192 | Z127: =PD_lumpsum_secondline_chemo_caba*K127 -> 0.004941262246 | AA127: =PD_lumpsum_premedication_costs__caba*K127 -> 0.001089239465 | AB127: 0.01595660166 | AC127: =PD_concomitant_costs_percycle*N127 -> 2617.487445 | AD127: 12381.93605 | AE127: =PD_best_supportive_care_costs_percycle*N127 -> 1777.79512 | AF127: 3446.372644 | AG127: 20223.61324 | AH127: 20223.6352 | AI127: =M127*cycle_length_weeksyear -> 2.925888917e-06 | AJ127: =N127*cycle_length_weeksyear -> 1.941612229 | AK127: 1.941615154 | AL127: =(M127*u_SD_cycle10_after)*cycle_length_weeksyear -> 2.396303023e-06 | AM127: =(N127*u_SD_cycle_progressed)*cycle_length_weeksyear -> 1.217390867 | AO127: 1.217393264 | AQ127: 6.980769231 | AR127: 0.7865111175 | AS127: 0.7865111175 | AW127: 0.003102307254 | AY127: 0.01416485371 | BA127: 0.01726716097 | BB127: 0.003886357691 | BC127: 0.000856698949 | BD127: 0.0125500446 | BE127: 2058.682976 | BF127: 9738.530358 | BG127: 1398.255626 | BH127: 2710.6104 | BI127: 15906.09665 | BJ127: 15906.11392 | BK127: 2.301244162e-06 | BL127: 1.527099604 | BM127: 1.527101905 | BN127: 1.884718968e-06 | BO127: 0.9574914515 | BQ127: 0.9574933363
A128: 122 | B128: 366 | C128: 84.46153846 | D128: =OFFSET(extrapolation!L137,0,OS_dist_choice-1,1,1) -> 0.03286793977 | E128: =OFFSET(extrapolation!D137,0,PFS_dist_choice-1,1,1) -> 4.153391489e-08 | G128: 4.153391489e-05 | H128: 32.86789824 | I128: 967.1320602 | J128: 1000 | K128: 5.845667727e-06 | L128: 0.5203595167 | M128: 4.445674875e-05 | N128: 33.12807507 | O128: 966.8718805 | U128: =SD_concomittant_costs_per_cycle*M128 -> 0.003457623634 | W128: =SD_healthcare_costs_percycle*M128 -> 0.01578719609 | Y128: 0.01924481973 | Z128: =PD_lumpsum_secondline_chemo_caba*K128 -> 0.004329509927 | AA128: =PD_lumpsum_premedication_costs__caba*K128 -> 0.0009543863172 | AB128: 0.0139810967 | AC128: =PD_concomitant_costs_percycle*N128 -> 2576.536039 | AD128: 12188.2168 | AE128: =PD_best_supportive_care_costs_percycle*N128 -> 1749.980961 | AF128: 3366.365048 | AG128: 19881.11811 | AH128: 19881.13736 | AI128: =M128*cycle_length_weeksyear -> 2.564812428e-06 | AJ128: =N128*cycle_length_weeksyear -> 1.9112351 | AK128: 1.911237665 | AL128: =(M128*u_SD_cycle10_after)*cycle_length_weeksyear -> 2.100581379e-06 | AM128: =(N128*u_SD_cycle_progressed)*cycle_length_weeksyear -> 1.198344408 | AO128: 1.198346509 | AQ128: 7.038461538 | AR128: 0.7849516788 | AS128: 0.7849516788 | AW128: 0.002714067476 | AY128: 0.01239218608 | BA128: 0.01510625355 | BB128: 0.003398456085 | BC128: 0.0007491471419 | BD128: 0.01097448532 | BE128: 2022.456289 | BF128: 9567.161239 | BG128: 1373.650493 | BH128: 2642.433895 | BI128: 15605.71704 | BJ128: 15605.73215 | BK128: 2.013253821e-06 | BL128: 1.500227201 | BM128: 1.500229214 | BN128: 1.64885488e-06 | BO128: 0.9406424547 | BQ128: 0.9406441036
A129: 123 | B129: 369 | C129: 85.15384615 | D129: =OFFSET(extrapolation!L138,0,OS_dist_choice-1,1,1) -> 0.0323595711 | E129: =OFFSET(extrapolation!D138,0,PFS_dist_choice-1,1,1) -> 3.641164467e-08 | G129: 3.641164467e-05 | H129: 32.35953469 | I129: 967.6404289 | J129: 1000 | K129: 5.122270219e-06 | L129: 0.5083686743 | M129: 3.897277978e-05 | N129: 32.61371646 | O129: 967.3862446 | U129: =SD_concomittant_costs_per_cycle*M129 -> 0.003031107948 | W129: =SD_healthcare_costs_percycle*M129 -> 0.01383976413 | Y129: 0.01687087208 | Z129: =PD_lumpsum_secondline_chemo_caba*K129 -> 0.003793735942 | AA129: =PD_lumpsum_premedication_costs__caba*K129 -> 0.0008362816428 | AB129: 0.01225094525 | AC129: =PD_concomitant_costs_percycle*N129 -> 2536.531798 | AD129: 11998.97809 | AE129: =PD_best_supportive_care_costs_percycle*N129 -> 1722.810117 | AF129: 3288.792617 | AG129: 19547.1295 | AH129: 19547.14637 | AI129: =M129*cycle_length_weeksyear -> 2.248429603e-06 | AJ129: =N129*cycle_length_weeksyear -> 1.881560565 | AK129: 1.881562814 | AL129: =(M129*u_SD_cycle10_after)*cycle_length_weeksyear -> 1.841463845e-06 | AM129: =(N129*u_SD_cycle_progressed)*cycle_length_weeksyear -> 1.179738474 | AO129: 1.179740316 | AQ129: 7.096153846 | AR129: 0.7833953319 | AS129: 0.7833953319 | AW129: 0.002374555817 | AY129: 0.01084200661 | BA129: 0.01321656243 | BB129: 0.002971995028 | BC129: 0.0006551391351 | BD129: 0.009597333317 | BE129: 1987.10717 | BF129: 9399.943422 | BG129: 1349.641403 | BH129: 2576.424784 | BI129: 15313.13 | BJ129: 15313.14322 | BK129: 1.761409255e-06 | BL129: 1.474005763 | BM129: 1.474007525 | BN129: 1.44259418e-06 | BO129: 0.9242016137 | BQ129: 0.9242030563
